{"text_format":"1","workbook":"xlsx","n_sheets":17,"sheets":["Arkusz IZ","Dane projektu","Fiszka projektu","I. Informacje ogólne o projekci","II. Identyfikacja Wnioskodawcy","III. Cel i uzasadnienie realiza","IV. Zdolność do realizacji","V. Aspekty Finansowe","Słowniki","VI. Harmonogram płatności","VII. Zgodność projektu","VIII. Wskaźniki produktu","VIII. Wskaźniki rezultatu","IX. Powiazanie projektu","X. Zakres R-F","XI. Deklaracja wnioskodawcy","XII. Załączniki"],"not_rendered":{"charts":0,"images":1,"macros":1,"external_links":4,"defined_names":111,"comments":0,"pivot_tables":0},"unopened":[],"bounds":{"document_bytes":16777216,"sheet_cells":100000,"rows_first":2000,"rows_last":500,"rows_between":2000,"halvings":0,"cell_chars":16384,"cell_head_chars":4096},"cells_cut":0,"cells_raw":0,"read":"whole","date_system":"1900"}

{"sheet":"Arkusz IZ","index":0,"n_rows":5,"n_cols":190,"rows_kept":5,"cut":false,"hidden":true,"merged":[[1,1,3,1],[1,2,3,2],[1,3,3,3],[1,4,3,4],[1,5,3,5],[1,6,3,6],[1,13,3,13],[1,14,3,14],[1,15,3,15],[1,16,3,16],[1,17,3,17],[1,18,3,18],[1,7,3,7],[1,8,2,8],[1,9,3,9],[1,10,3,10],[1,11,3,11],[1,12,3,12],[1,25,3,25],[1,26,3,26],[1,27,2,29],[1,30,2,32],[1,33,3,33],[1,34,3,34],[1,19,3,19],[1,20,3,20],[1,21,3,21],[1,22,3,22],[1,23,3,23],[1,24,3,24],[1,85,3,85],[1,86,3,86],[1,87,3,87],[1,88,3,88],[1,89,3,89],[1,54,1,58],[2,58,3,58],[1,35,3,35],[1,36,1,50],[1,51,3,51],[1,52,3,52],[1,53,3,53],[1,84,3,84],[1,60,2,62],[1,63,2,65],[1,66,2,68],[2,36,2,38],[2,39,2,41],[2,42,2,44],[2,45,2,47],[2,48,2,50],[2,54,2,55],[2,56,2,57],[1,69,2,73],[1,90,1,99],[1,100,1,103],[1,104,1,114],[1,115,1,129],[1,130,1,139],[1,140,3,140],[2,90,3,90],[2,91,3,91],[2,92,3,92],[2,93,3,93],[2,101,3,101],[2,102,3,102],[2,103,3,103],[2,104,3,104],[2,105,3,105],[2,106,3,106],[2,94,3,94],[2,96,3,96],[2,97,3,97],[2,98,3,98],[2,99,3,99],[2,100,3,100],[2,115,2,117],[2,118,2,121],[1,74,2,78],[1,79,2,83],[2,171,3,171],[2,172,3,172],[2,173,3,173],[2,174,3,174],[1,159,3,159],[1,160,3,160],[1,161,3,161],[1,162,3,162],[1,163,3,163],[1,164,3,164],[1,153,3,153],[1,154,3,154],[1,155,3,155],[1,156,3,156],[1,157,3,157],[1,158,3,158],[1,147,3,147],[1,148,3,148],[1,149,3,149],[1,150,3,150],[1,151,3,151],[2,126,2,129],[2,109,3,109],[2,110,3,110],[2,111,3,111],[2,112,3,112],[2,187,3,187],[1,165,3,165],[1,166,3,166],[1,167,1,189],[1,152,3,152],[1,141,3,141],[1,142,3,142],[1,143,3,143],[1,144,3,144],[1,145,3,145],[1,146,3,146],[2,188,3,188],[2,189,3,189],[2,59,3,59],[2,181,3,181],[2,182,3,182],[2,183,3,183],[2,184,3,184],[2,185,3,185],[2,186,3,186],[2,175,3,175],[2,176,3,176],[2,177,3,177],[2,178,3,178],[2,179,3,179],[2,180,3,180],[2,130,2,132],[2,133,2,135],[2,136,2,139],[2,167,3,167],[2,168,3,168],[2,170,3,170],[2,113,3,113],[2,114,3,114],[2,122,2,125],[2,107,3,107],[2,108,3,108]]}
[null,"LP. ","Nr wniosku","Pracownik","Data wpływu wniosku ","Nr sprawy w EZD",null,"Status projektu","Nazwa Wnioskodawcy","Tytuł projektu","Klasyfikacja Projektu: Dział gospodarki- opis","KIS","Sektor Strategiczny Branże kluczowe","Województwo lokalizacja projektu ","Forma prawna Wnioskodawcy","REGON","NIP","Rodzaj dokumentu rejestrowego","Nr dokumentu rejestrowego","PKD podstawowej działalności Wnioskodawcy","Działalność dotycząca projektu  (PKD) ","Kraj pochodzenia kapitału","Nazwa Krajowego Klastra Kluczowego (KKK)","Data wstąpienia do kalstra o statusie KKK","Rodzaj przedsiębiorstwa (samodzielne/partnerskie/powiązane)","Status przedsiębiorstwa ","Województwo (siedziba firmy)","Adres siedziby firmy ulica nr budynku/nr lokalu","Adres siedziby firmy miejscowość","Adres siedziby firmy kod pocztowy + poczta","Adres korespondencyjny firmy ulica nr bud/ nr lok","Adres korespondencyjny firmy miejscowość","Adres korespondencyjny firmy kod pocztowy + poczta","Termin rozpoczęcia realizacji projektu","Termin zakończenia realizacji projektu","Kwalifikowalność VAT","Pomoc regionalna % dofinansowania","B + R % dofinansowania","De minimis % dofinansowania","WC pomoc regionalna","WC B + R","WC De minimis","WK pomoc regionalna ","WK B + R","WK De minimis","WKD pomoc regionalna","WKD B + R","WKD De minimis",null,null,null,null,null,null,null,null,null,null,null,null,"Adresat Imię i Nazwisko","Adresat Stanowisko","Adresat płeć","Adresat Imię i Nazwisko","Adresat Stanowisko","Adresat płeć","Adresat Imię i Nazwisko","Adresat Stanowisko","Adresat płeć","Osoba do kontaktu Imię i Nazwisko","Osoba do kontaktu Stanowisko","Osoba do kontaktu e-mail","Osoba do kontaktu płeć","Osoba do kontaktu tel","Osoba do kontaktu Imię i Nazwisko","Osoba do kontaktu Stanowisko","Osoba do kontaktu e-mail","Osoba do kontaktu płeć","Osoba do kontaktu tel","Osoba do kontaktu Imię i Nazwisko","Osoba do kontaktu Stanowisko","Osoba do kontaktu e-mail","Osoba do kontaktu płeć","Osoba do kontaktu tel",null,null,null,null,null,null," ",null,null,null,null,null,null," ",null,null,null,null,null,null,null,null,null,null,null,null,null,null,null,null,null,"Umowa Pomoc regionalna % dofinansowania","Umowa B + R % dofinansowania","Umowa De minimis % dofinansowania","Umowa WC pomoc regionalna","Umowa WC B + R","Umowa WC De minimis","Umowa KD Razem","Umowa WK pomoc regionalna ","Umowa WK B + R","Umowa WK De minimis","Umowa KD Razem","Umowa KD pomoc regionalna","Umowa KD B + R","Umowa KD De minimis","Umowa KD Razem","Słownie Umowa WC pomoc regionalna","Słownie Umowa WC B + R","Słownie Umowa WC De minimis","Słownie Umowa WK pomoc regionalna ","Słownie Umowa WK B + R","Słownie Umowa WK De minimis","Słownie Umowa KD pomoc regionalna","Słownie Umowa KD B + R","Słownie Umowa KD De minimis","Słownie Umowa KD RAZEM",null,null,null,null,null,null,"Data podpisania pisma o wyniku oceny merytorycznej","Data wysłania pisma o wyniku weryfikacji merytorycznej","Data odbioru przez Wnioskodawcę pisma o wyniku weryfikacji merytorycznej ","Termin na przekazanie dokumentacji do zawarcia umowy","Data otrzymania skanów dokumentacji od Wnioskodawcy","Data przekazania oryginałów dokumentcji przez Wnioskodawcę","Data przekazania projektu umowy do DBR",null,"Data zwrotu prafowanego projektu umowy z DBR",null,"Warunek finansowy","Planowana data podpisania projektu umowy","Czy umowa została podpisana","Data podpisania umowy","Powód z jakiego umowa nie została podpisana (jeśli dotyczy)?","Czy zachodzi konieczność wystawienia zaświadczenia \nDE MINIMIS","Jeżeli była taka konieczność, to czy zaświadczenie DE MINIMIS zostało wydane.","Weryfikacja w \nSUDOP/Schrimp","Data wpisania umowy do \nSL","Czy umowa została wpisana do SL","Data wpisania do SHRIMpa"]
[null,"LP. ","Nr wniosku","Pracownik","Data złożenia wniosku","Nr sprawy w EZD","Nr koszulki EZD","Status projektu",true,"Tytuł projektu","Klasyfikacja Projektu: Dział gospodarki- opis","KIS","Sektor Strategiczny Branże kluczowe","Województwo lokalizacja projektu ","Forma prawna Wnioskodawcy","REGON","NIP","Rodzaj dokumentu rejestrowego","Nr dokumentu rejestrowego","PKD podstawowej działalności Wnioskodawcy","Działalność dotycząca projektu  (PKD) ","Kraj pochodzenia kapitału","Nazwa Krajowego Klastra Kluczowego (KKK)","Data wstąpienia do kalstra o statusie KKK","Rodzaj przedsiębiorstwa (samodzielne/partnerskie/powiązane)","Status przedsiębiorstwa ","Województwo (siedziba firmy)","Adres siedziby firmy",null,null,"Adres korespondencyjny firmy",null,null,"Termin rozpoczęcia realizacji projektu","Termin zakończenia realizacji projektu","Kwalifikowalność VAT","ASPEKTY FINANSOWE",null,null,null,null,null,null,null,null,null,null,null,null,null,null,"pozwolenie na budowę","Dokumentacja OOŚ","Natura 2000","Wskaźniki",null,null,null,null,null,"Osoba do kontaktu (adresat w piśmie)",null,null,"Osoba do kontaktu (adresat w piśmie)",null,null,"Osoba do kontaktu (adresat w piśmie)",null,null,"Osoba do kontaktu",null,null,null,null,"Osoba do kontaktu",null,null,null,null,"Osoba do kontaktu",null,null,null,null,"Czy załączono \nOświadczenie o zgodności wersji elektronicznej z wersją papierową","Forma płatności","Źródło finansowania","Nazwa podmiotu finansującego projekt","Dołaczono upoważnienia dla banku do ","Dołączono dokument dot. zewnętrznego źródła finansowania projektu","Weryfikacja formalna",null,null,null,null,null,null,null,null,null,"Eksperci oceniający projekt",null,null,null,"Ocena merytoryczna",null,null,null,null,null,null,null,null,null,null,"Zatwierdzone kwoty przez Ekspertów",null,null,null,null,null,null,null,null,null,null,null,null,null,null,"Zatwierdzone kwoty przez Ekspertów (słownie)",null,null,null,null,null,null,null,null,null,"Wartość nakładów na działalność B+R (I kryterium rozstrzygające) (PLN)","Udział środków własnych w kosztach kwalifikowanych projektu (II kryterium rozstrzygające)     (%)","Poziom bezrobocia na obszarze gdzie realizowana jest inwestycja (III kryterium rozstrzygające)        ( %) ","Data zatwierdzenia listy ocenionych projektów","Data publikacji listy zatwierdzonych projektów","Wynik weryfikacji merytorycznej\n(powtórzenie)","Data podpisania pisma o wyniku oceny merytorycznej","Data wysłania pisma o wyniku weryfikacji merytorycznej","Data odbioru przez Wnioskodawcę pisma o wyniku weryfikacji merytorycznej ","Termin na przekazanie dokumentacji do zawarcia umowy","Data otrzymania skanów dokumentacji od Wnioskodawcy","Data przekazania oryginałów dokumentcji przez Wnioskodawcę","Data przekazania projektu umowy do DBR","Czy projekt umowy został przekazany do DBR","Data zwrotu prafowanego projektu umowy z DBR","Czy projekt umowy został zwrócony przez DBR","Warunek finansowy","Planowana data podpisania projektu umowy","Czy umowa została podpisana","Data podpisania umowy","Powód z jakiego umowa nie została podpisana (jeśli dotyczy)?","Czy zachodzi konieczność wystawienia zaświadczenia \nDE MINIMIS","Jeżeli była taka konieczność, to czy zaświadczenie DE MINIMIS zostało wydane.","Weryfikacja w \nSUDOP/Schrimp","Data wpisania umowy do \nSL","Czy umowa została wpisana do SL","Data wpisania do SHRIMpa","PROCEDURA ODWOŁAWCZA"]
[null,null,null,null,null,null,null,null,null,null,null,null,null,null,null,null,null,null,null,null,null,null,null,null,null,null,null,null,null,null,null,null,null,null,null,null,"Kategoria dofinansowania - Wielkość dofinansowania %",null,null,"WYDATKI CAŁKOWITE",null,null,"WYDATKI KWALIFIKOWANE",null,null,"WNIOSKOWANA KWOTA DOFINANSOWANIA",null,null,"RAZEM",null,null,null,null,null,"Wzrost zatrudnienia we wspieranych przedsiębiorostwach",null,"Liczba naukowców pracujących w ulepszonych obiektach infrastruktury badawczej",null,"Liczba nowych miejsc pracy dla pracowników B+R utworzonych  w wyniku realizacji projektu","E-mail firmowy",null,null,null,null,null,null,null,null,null,null,null,null,null,null,null,null,null,null,null,null,null,null,null,null,null,null,null,null,null,null,"Rezygancja po złożeniu wniosku a przed weryfikacją formalną","Wynik pierwszej weryfikacji formalnej ","Data podpisania pisma o negatywnym wyniku weryfikacji formalnej","Data złożenia poprawionego wniosku po weryfikacji warunków formalnych","Czy załączono \nOświadczenie o zgodności wersji elektronicznej z wersją papierową","Weryfikacja (uzupełnienia)","Wynik uzupełniającej weryfikacji warunków formalnych","Ostateczny wynik weryfikacji warunków formalnych","Data dokonanej oceny spełnienia warunków formalnych","KTO PODPISAŁ PISMO","Ekspert wiodący dla projektu","Ekspert nr 2","Ekspert nr 3","Ekspert nr 4","Data pisma z uwagami ekspertów do Wnioskodawcy","KTO PODPISAŁ PISMO","Data złożenia poprawionego wniosku po uwagach ekspertów/\nREZYGNACJA","Czy załączono \nOświadczenie o zgodności wersji elektronicznej z wersją papierową","Data oceny merytorycznej","Sekretarz KOP","Wynik oceny ","Końcowa liczba przyznanych punktów","Niespełnione kryterium obligatoryjne","Kryterium fakultatywne w którym nie otrzymano max liczby pkt","Czy dokonano korekty kwot wskazanych w WoD","Kategoria dofinansowania - Wielkość dofinansowania %",null,null,"WYDATKI CAŁKOWITE",null,null,null,"WYDATKI KWALIFIKOWANE",null,null,null,"KWOTA DOFINANSOWANIA",null,null,null,"WYDATKI CAŁKOWITE",null,null,"WYDATKI KWALIFIKOWANE",null,null,"KWOTA DOFINANSOWANIA",null,null,null,null,null,null,null,null,null,null,null,null,null,null,null,null,null,null,null,null,null,null,null,null,null,null,null,null,null,null,"Czy w ramach projektu złożono protest","Wynik rozpatrzenia protestu IP","PROCEDURA ODWOŁAWCZA","Data złożenia wniosku w wyniku pozytywnego rozparzenia protestu","Wynik ostatecznej oceny formalnej ","Data dokonania ostatecznej oceny formalnej","Rezygnacje po ocenie formalnej","Wynik oceny merytorycznej ","Data przeprowadzonej oceny merytorycznej","Wynik ostatecznej oceny merytorycznej przeprowadzonej na posiedzeniu  KK ","Rekomendowane   do wsparcia przez KK","Liczba uzyskanych punktów","Kryterium roztrzygające NUTS (w %)","Nr listy rankingowej","Data zatwierdzenia listy rankingowej przez IZ","Rekomendowane do wsparcia przez IZ","Rekomendowane   do wsparcia po procedurze odwoławczej/w wyniku zwiększenia alokacji","Liczba uzyskanych punktów w wyniku procedury odwoławczej","Nr suplementu do listy rankingowej","Data zatwierdzenia przez IZ suplementu do listy  rankingowej ","Ostatecznie zatwierdzone  przez IZ","Ostateczna liczba uzyskanych punktów","Rezygnacje             po zatwierdzeniu do wsparcia, a przed podpisaniem umowy o dofinansowanie"]
["Ranking",null,null,null,null,null,null,null,"Nazwa Wnioskodawcy",null,null,null,null,null,null,null,null,null,null,null,null,null,null,null,null,null,null,"ulica nr budynku/nr lokalu","miejscowość","kod pocztowy + poczta","ulica nr budynku/nr lokalu","miejscowość","kod pocztowy + poczta",null,null,null," regionalna pomoc inwestycyjna"," pomoc na projekty badawczo-rozwojowe","pomoc de minimis"," regionalna pomoc inwestycyjna"," pomoc na projekty badawczo-rozwojowe","pomoc de minimis"," regionalna pomoc inwestycyjna"," pomoc na projekty badawczo-rozwojowe","pomoc de minimis"," regionalna pomoc inwestycyjna"," pomoc na projekty badawczo-rozwojowe","pomoc de minimis",{"$f":"AN3","v":"WYDATKI CAŁKOWITE"},{"$f":"AQ3","v":"WYDATKI KWALIFIKOWANE"},{"$f":"AT3","v":"WNIOSKOWANA KWOTA DOFINANSOWANIA"},null,null,null,"bazowa","docelowa","bazowa","docelowa",null,null,"Imię i nazwisko","Stanowisko","Płeć","Imię i nazwisko","Stanowisko","Płeć","Imię i nazwisko","Stanowisko","Płeć","Imię i nazwisko","Stanowisko","E-mail","Płeć","tel","Imię i nazwisko","Stanowisko","E-mail","Płeć","tel","Imię i nazwisko","Stanowisko","E-mail","Płeć","tel",null,null,null,null,null,null,null,null,null,null,null,"I ręka",null,null,null,null,null,null,null,null,null,null,null,null,null,null,null,null,null,null,null," regionalna pomoc inwestycyjna"," pomoc na projekty badawczo-rozwojowe","pomoc de minimis"," regionalna pomoc inwestycyjna"," pomoc na projekty badawczo-rozwojowe","pomoc de minimis","RAZEM"," regionalna pomoc inwestycyjna"," pomoc na projekty badawczo-rozwojowe","pomoc de minimis","RAZEM"," regionalna pomoc inwestycyjna"," pomoc na projekty badawczo-rozwojowe","pomoc de minimis","RAZEM"," regionalna pomoc inwestycyjna"," pomoc na projekty badawczo-rozwojowe","pomoc de minimis"," regionalna pomoc inwestycyjna"," pomoc na projekty badawczo-rozwojowe","pomoc de minimis"," regionalna pomoc inwestycyjna"," pomoc na projekty badawczo-rozwojowe","pomoc de minimis","RAZEM",null,null,null,null,null,null,null,null,null,null,null,null,null,null,null,null,null,null,null,null,null,null,null,null,null,null,null,null,null,"Data rozpatrzenia przez IP"]
[null,null,null,null,null,null,null,null,{"$f":"'II. Identyfikacja Wnioskodawcy'!$P$5","v":0},{"$f":"'I. Informacje ogólne o projekci'!$M$4","v":0},{"$f":"'I. Informacje ogólne o projekci'!$M$7","v":0},{"$f":"'I. Informacje ogólne o projekci'!$P$114","v":0},{"$f":"'I. Informacje ogólne o projekci'!$P$127","v":0},{"$f":"'I. Informacje ogólne o projekci'!$A$146","v":0},{"$f":"'II. Identyfikacja Wnioskodawcy'!$P$11","v":0},{"$f":"'II. Identyfikacja Wnioskodawcy'!$P$9","v":0},{"$f":"'II. Identyfikacja Wnioskodawcy'!$P$8","v":0},{"$f":"'II. Identyfikacja Wnioskodawcy'!$P$6","v":0},{"$f":"'II. Identyfikacja Wnioskodawcy'!$P$7","v":0},{"$f":"'II. Identyfikacja Wnioskodawcy'!$P$13","v":0},{"$f":"'II. Identyfikacja Wnioskodawcy'!$P$14","v":0},{"$f":"'II. Identyfikacja Wnioskodawcy'!$P$16","v":0},{"$f":"'II. Identyfikacja Wnioskodawcy'!$G$19","v":" "},{"$f":"'II. Identyfikacja Wnioskodawcy'!$P$18","v":" "},{"$f":"'II. Identyfikacja Wnioskodawcy'!$P$26","v":0},{"$f":"'II. Identyfikacja Wnioskodawcy'!$P$27","v":0},{"$f":"'II. Identyfikacja Wnioskodawcy'!$A$33","v":0},{"$f":"IF('II. Identyfikacja Wnioskodawcy'!$A$36=\"n/d\",\"n/d\",CONCATENATE(\"ul. \",'II. Identyfikacja Wnioskodawcy'!$A$36,\" \",'II. Identyfikacja Wnioskodawcy'!$G$36,IF('II. Identyfikacja Wnioskodawcy'!$M$36=\"n/d\",\" \",\"/\"),IF('II. Identyfikacja Wnioskodawcy'!$M$36=\"n/d\",\" \",'II. Identyfikacja Wnioskodawcy'!$M$36)))","v":"ul.  /"},{"$f":"IF('II. Identyfikacja Wnioskodawcy'!$A$36=\"n/d\",CONCATENATE('II. Identyfikacja Wnioskodawcy'!$R$33,\" \",'II. Identyfikacja Wnioskodawcy'!$G$36,IF('II. Identyfikacja Wnioskodawcy'!$M$36=\"n/d\",\" \",\"/\"),IF('II. Identyfikacja Wnioskodawcy'!$M$36=\"n/d\",\" \",'II. Identyfikacja Wnioskodawcy'!$M$36)),'II. Identyfikacja Wnioskodawcy'!$R$33)","v":0},{"$f":"CONCATENATE('II. Identyfikacja Wnioskodawcy'!$W$33,\" \",'II. Identyfikacja Wnioskodawcy'!$AB$33)","v":" "},{"$f":"IF('II. Identyfikacja Wnioskodawcy'!$Z$70=\"nie\",$AB$5,CONCATENATE(\"ul. \",'II. Identyfikacja Wnioskodawcy'!$A$77,\" \",'II. Identyfikacja Wnioskodawcy'!$G$77,IF('II. Identyfikacja Wnioskodawcy'!$M$77=\"n/d\",\" \",\"/\"),IF('II. Identyfikacja Wnioskodawcy'!$M$77=\"n/d\",\" \",'II. Identyfikacja Wnioskodawcy'!$M$77)))","v":"ul.    / "},{"$f":"IF('II. Identyfikacja Wnioskodawcy'!$Z$70=\"nie\",$AC$5,'II. Identyfikacja Wnioskodawcy'!$R$74)","v":" "},{"$f":"IF('II. Identyfikacja Wnioskodawcy'!$Z$70=\"nie\",$AD$5,CONCATENATE('II. Identyfikacja Wnioskodawcy'!$W$74,\" \",'II. Identyfikacja Wnioskodawcy'!$AB$74))","v":"   "},{"$f":"'I. Informacje ogólne o projekci'!$Z$108","v":"00:00:00"},{"$f":"'I. Informacje ogólne o projekci'!$Z$109","v":"00:00:00"},{"$f":"'II. Identyfikacja Wnioskodawcy'!$P$15","v":0},{"$f":"'V. Aspekty Finansowe'!$N$7","v":0},{"$f":"'V. Aspekty Finansowe'!$N$11","v":"n/d"},{"$f":"'V. Aspekty Finansowe'!$N$15","v":"n/d"},{"$f":"'V. Aspekty Finansowe'!$B$6","v":0},{"$f":"'V. Aspekty Finansowe'!$B$10","v":0},{"$f":"'V. Aspekty Finansowe'!$B$14","v":0},{"$f":"'V. Aspekty Finansowe'!$X$6","v":0},{"$f":"'V. Aspekty Finansowe'!$X$10","v":0},{"$f":"'V. Aspekty Finansowe'!$X$14","v":0},{"$f":"'V. Aspekty Finansowe'!$AC$7","v":0},{"$f":"'V. Aspekty Finansowe'!$AC$11","v":0},{"$f":"'V. Aspekty Finansowe'!$AC$15","v":0},{"$f":"AN5+AO5+AP5","v":0},{"$f":"AQ5+AR5+AS5","v":0},{"$f":"AT5+AU5+AV5","v":0},{"$f":"'IV. Zdolność do realizacji'!$K$611","v":" "},{"$f":"'IV. Zdolność do realizacji'!$K$612","v":" "},null,{"$f":"'VIII. Wskaźniki rezultatu'!$D$7","v":0},{"$f":"'VIII. Wskaźniki rezultatu'!$AK$7","v":0},{"$f":"'VIII. Wskaźniki rezultatu'!$E$10","v":0},{"$f":"'VIII. Wskaźniki rezultatu'!$AL$10","v":0},{"$f":"'IV. Zdolność do realizacji'!$Z$526","v":0},{"$f":"'II. Identyfikacja Wnioskodawcy'!$AB$36","v":0},{"$f":"'II. Identyfikacja Wnioskodawcy'!$B$44","v":0},{"$f":"'II. Identyfikacja Wnioskodawcy'!$N$44","v":0},null,{"$f":"'II. Identyfikacja Wnioskodawcy'!$B$48","v":"Nie dotyczy"},{"$f":"'II. Identyfikacja Wnioskodawcy'!$N$48","v":"Nie dotyczy"},null,{"$f":"'II. Identyfikacja Wnioskodawcy'!$B$52","v":"Nie dotyczy"},{"$f":"'II. Identyfikacja Wnioskodawcy'!$N$52","v":"Nie dotyczy"},null,{"$f":"'II. Identyfikacja Wnioskodawcy'!$B$59","v":0},{"$f":"'II. Identyfikacja Wnioskodawcy'!$N$59","v":0},{"$f":"'II. Identyfikacja Wnioskodawcy'!$N$61","v":0},null,{"$f":"'II. Identyfikacja Wnioskodawcy'!$Z$59","v":0},{"$f":"'II. Identyfikacja Wnioskodawcy'!$B$63","v":"Nie dotyczy"},{"$f":"'II. Identyfikacja Wnioskodawcy'!$N$63","v":"Nie dotyczy"},{"$f":"'II. Identyfikacja Wnioskodawcy'!$N$65","v":"Nie dotyczy"},null,{"$f":"'II. Identyfikacja Wnioskodawcy'!$Z$63","v":"Nie dotyczy"},{"$f":"'II. Identyfikacja Wnioskodawcy'!$B$67","v":"Nie dotyczy"},{"$f":"'II. Identyfikacja Wnioskodawcy'!$N$67","v":"Nie dotyczy"},{"$f":"'II. Identyfikacja Wnioskodawcy'!$N$69","v":"Nie dotyczy"},null,{"$f":"'II. Identyfikacja Wnioskodawcy'!$Z$67","v":"Nie dotyczy"}]

{"sheet":"Dane projektu","index":1,"n_rows":128,"n_cols":5,"rows_kept":128,"cut":false,"hidden":true,"merged":[[124,0,124,1],[125,0,125,1],[126,0,126,1],[127,0,127,1],[122,0,122,1],[123,0,123,1],[113,0,113,1],[114,0,114,1],[115,0,115,1],[116,0,116,1],[117,0,117,1],[118,0,118,1],[119,0,119,1],[120,0,120,1],[121,0,121,1],[33,0,33,3],[34,0,34,3],[112,0,112,1],[107,0,107,1],[108,0,108,1],[109,0,109,1],[110,0,110,1],[111,0,111,1],[102,0,102,4],[103,0,103,1],[104,0,104,1],[105,0,105,1],[106,0,106,1],[45,0,45,4],[46,0,46,1],[47,0,47,1],[48,0,48,1],[49,0,49,1],[50,0,50,1],[51,0,51,1],[52,0,52,1],[53,0,53,1],[77,0,77,1],[79,0,79,4],[25,1,25,3],[26,1,26,3],[27,1,27,3],[28,1,28,3],[29,1,29,3],[30,1,30,3],[31,1,31,3],[32,1,32,3],[30,0,32,0],[1,0,1,3],[2,0,2,3],[3,0,3,3],[4,0,4,3],[5,0,5,3],[6,0,6,3],[7,0,7,3],[8,0,8,3],[9,0,9,3],[10,0,10,3],[35,0,35,3],[36,0,36,3],[21,0,21,3],[22,0,22,3],[23,0,23,3],[24,0,26,0],[27,0,29,0],[44,0,44,4],[16,0,16,3],[17,0,17,3],[18,0,18,3],[19,0,19,3],[20,0,20,3],[11,0,11,3],[12,0,12,3],[13,0,13,3],[14,0,14,3],[15,0,15,3],[39,1,39,3],[41,1,41,3],[37,0,37,3],[38,0,38,3],[24,1,24,3],[54,0,54,1],[55,0,55,1],[56,0,56,1],[59,0,59,1],[60,0,60,1],[61,0,61,1],[62,0,62,1],[63,0,63,1],[64,0,64,1],[88,0,88,1],[92,0,92,1],[80,0,80,1],[81,0,81,1],[82,0,82,1],[83,0,83,1],[84,0,84,1],[85,0,85,1],[86,0,86,1],[89,0,89,4],[90,0,90,4],[91,0,91,1],[96,0,96,1],[93,0,93,1],[94,0,94,1],[95,0,95,1],[100,0,100,1],[98,0,98,1],[99,0,99,1],[97,0,97,1],[57,0,57,4],[58,0,58,1],[67,0,67,4],[68,0,68,4],[69,0,69,1],[70,0,70,1],[71,0,71,1],[72,0,72,1],[73,0,73,1],[74,0,74,1],[75,0,75,1],[76,0,76,1],[65,0,65,1],[66,0,66,1],[78,0,78,1],[87,0,87,1]]}
[{"$f":"CONCATENATE('II. Identyfikacja Wnioskodawcy'!A77,\" \",'II. Identyfikacja Wnioskodawcy'!G77,\"lok. \",'II. Identyfikacja Wnioskodawcy'!M77,\", \",'II. Identyfikacja Wnioskodawcy'!W74,\" \",'II. Identyfikacja Wnioskodawcy'!R74)","v":"   lok.  ,    "}]
["Nazwa Wnioskodawcy",null,null,null,{"$f":"'II. Identyfikacja Wnioskodawcy'!$P$5","v":0}]
["Tytuł projektu",null,null,null,{"$f":"'I. Informacje ogólne o projekci'!$M$4","v":0}]
["Dział gospodarki",null,null,null,{"$f":"'I. Informacje ogólne o projekci'!$M$7","v":0}]
["KIS",null,null,null,{"$f":"'I. Informacje ogólne o projekci'!$P$114","v":0}]
["Sektor Strategiczny",null,null,null,{"$f":"'I. Informacje ogólne o projekci'!$P$127","v":0}]
["Województwo lokalizacji projektu",null,null,null,{"$f":"'I. Informacje ogólne o projekci'!$A$146","v":0}]
["Forma prawna Wnioskodawcy",null,null,null,{"$f":"'II. Identyfikacja Wnioskodawcy'!$P$11","v":0}]
["NIP",null,null,null,{"$f":"'II. Identyfikacja Wnioskodawcy'!$P$8","v":0}]
["PKD działalności dotyczącej projektu",null,null,null,{"$f":"'II. Identyfikacja Wnioskodawcy'!$P$14","v":0}]
["PKD podstawowej działalności Wnioskodawcy",null,null,null,{"$f":"'II. Identyfikacja Wnioskodawcy'!P13","v":0}]
["Kraj pochodzenia kapitału",null,null,null,{"$f":"'II. Identyfikacja Wnioskodawcy'!$P$16","v":0}]
["Nazwa Krajowego Klastra Kluczowego (KKK)",null,null,null,{"$f":"'II. Identyfikacja Wnioskodawcy'!$G$19","v":" "}]
["Data wstąpienia do KKK",null,null,null,{"$f":"'II. Identyfikacja Wnioskodawcy'!$P$18","v":" "}]
["Rodzaj przedsiębiorstwa (samodzielne/ partnerskie/ powiązane)",null,null,null,{"$f":"'II. Identyfikacja Wnioskodawcy'!P26","v":0}]
["Status Przesiębiorstwa",null,null,null,{"$f":"'II. Identyfikacja Wnioskodawcy'!P27","v":0}]
["Adres siedziby firmy",null,null,null,{"$f":"CONCATENATE('II. Identyfikacja Wnioskodawcy'!A36,\" \",'II. Identyfikacja Wnioskodawcy'!G36,\"lok. \",'II. Identyfikacja Wnioskodawcy'!M36,\", \",'II. Identyfikacja Wnioskodawcy'!W33,\" \",'II. Identyfikacja Wnioskodawcy'!R33)","v":" lok. ,  "}]
["Województwo (siedziba firmy)",null,null,null,{"$f":"'II. Identyfikacja Wnioskodawcy'!A33","v":0}]
["Adres korespondencyjny",null,null,null,{"$f":"IF('II. Identyfikacja Wnioskodawcy'!$Z$70=2,'Dane projektu'!$E$17,$A$1)","v":"   lok.  ,    "}]
["Pozwolenie na budowę",null,null,null,{"$f":"IF('IV. Zdolność do realizacji'!$AB$606=1,\"TAK\",\"NIE\")","v":"NIE"}]
["Natura 2000"]
["Data rozpoczecia okresu kwalifikowalności",null,null,null,{"$f":"'I. Informacje ogólne o projekci'!$Z$108","v":"00:00:00"}]
["Data zakończenia okresu kwalifikowalności",null,null,null,{"$f":"'I. Informacje ogólne o projekci'!$Z$109","v":"00:00:00"}]
["Kwalifikowalność VAT",null,null,null,{"$f":"'II. Identyfikacja Wnioskodawcy'!$P$15","v":0}]
["Kategoria dofinansowania - Wielkość dofinansowania %","regionalna pomoc inwestycyjna",null,null,{"$f":"'V. Aspekty Finansowe'!$N$7","v":0}]
[null," pomoc na projekty badawczo-rozwojowe",null,null,{"$f":"'V. Aspekty Finansowe'!$N$11","v":"n/d"}]
[null,"pomoc de minimis",null,null,{"$f":"'V. Aspekty Finansowe'!$N$15","v":"n/d"}]
["Kategoria dofinansowania - Kwota wnioskowanego dofinansowania","regionalna pomoc inwestycyjna",null,null,{"$f":"'V. Aspekty Finansowe'!$AC$7","v":0}]
[null," pomoc na projekty badawczo-rozwojowe",null,null,{"$f":"'V. Aspekty Finansowe'!$AC$11","v":0}]
[null,"pomoc de minimis",null,null,{"$f":"'V. Aspekty Finansowe'!$AC$15","v":0}]
["Finanse","Wydatki całkowite",null,null,{"$f":"'V. Aspekty Finansowe'!$U$17","v":0}]
[null,"w tym wydatki kwalifikowane",null,null,{"$f":"'V. Aspekty Finansowe'!$U$19","v":0}]
[null,"wnioskowana kwota dofinansowania",null,null,{"$f":"'V. Aspekty Finansowe'!$U$21","v":0}]
["Forma płatności"]
["Żródło finansowania"]
["Nazwa podmiotu finansującego projekt"]
["Dołączono upoważnienie dla banku do powierdzenia danych"]
["Dołączono dokument dot zewnętrznego źródła finansowania projektu"]
["Warunek finansowy"]
["Wskaźniki:","Wartość bazowa",null,null,"Wartość docelowa"]
["Wzrost zatrudnienia we wspieranych przedsiębiorstwach (O/K/M)",{"$f":"'VIII. Wskaźniki rezultatu'!$D$7","v":0},{"$f":"'VIII. Wskaźniki rezultatu'!$E$7","v":0},{"$f":"'VIII. Wskaźniki rezultatu'!$F$7","v":0},{"$f":"'VIII. Wskaźniki rezultatu'!$AK$7","v":0}]
["Liczba naukowców pracujących w ulepszonych obiektach infrastruktury badawczej",{"$f":"'VIII. Wskaźniki rezultatu'!$E$10","v":0},null,null,{"$f":"'VIII. Wskaźniki rezultatu'!$AL$10","v":0}]
[]
[]
["Wskażniki kluczowe"]
["Wskaźniki produktu"]
["Nazwa wskaźnika",null,"Jednostka miary","Wartośc bazowa","Wartość docelowa"]
[{"$f":"'VIII. Wskaźniki produktu'!$B$17","v":"Inwestycje prywatne uzupełniające wsparcie publiczne dla przedsiębiorstw (dotacje)"},null,{"$f":"'VIII. Wskaźniki produktu'!$C$17","v":"PLN"},{"$f":"'VIII. Wskaźniki produktu'!$D$17","v":0},{"$f":"'VIII. Wskaźniki produktu'!$F$17","v":0}]
[{"$f":"'VIII. Wskaźniki produktu'!$B$5","v":"Liczba przedsiębiorstw otrzymujących wsparcie (CI 1)"},null,"Przedsiębiorstwa",{"$f":"'VIII. Wskaźniki produktu'!$D$5","v":0},{"$f":"'VIII. Wskaźniki produktu'!$F$5","v":0}]
[{"$f":"'VIII. Wskaźniki produktu'!$B$8","v":"Liczba przedsiębiorstw otrzymujących dotacje (CI 2)"},null,"Przedsiębiorstwa",{"$f":"'VIII. Wskaźniki produktu'!$D$8","v":0},{"$f":"'VIII. Wskaźniki produktu'!$F$8","v":0}]
[{"$f":"'VIII. Wskaźniki produktu'!$B$14","v":"Liczba przedsiębiorstw ponoszących nakłady inwestycyjne na działalność B+R"},null,{"$f":"'VIII. Wskaźniki produktu'!$C$14","v":"Szt. "},{"$f":"'VIII. Wskaźniki produktu'!$D$14","v":0},{"$f":"'VIII. Wskaźniki produktu'!$F$14","v":0}]
[{"$f":"'VIII. Wskaźniki produktu'!$B$11","v":"Liczba wspartych labolatoriów badawczych"},null,{"$f":"'VIII. Wskaźniki produktu'!$C$11","v":"Szt. "},{"$f":"'VIII. Wskaźniki produktu'!$D$11","v":0},{"$f":"'VIII. Wskaźniki produktu'!$F$11","v":0}]
[{"$f":"'VIII. Wskaźniki produktu'!$B$20","v":"Nakłady inwestycyjne na zakup aparatury naukowo-badawczej, w tym:"},null,{"$f":"'VIII. Wskaźniki produktu'!$C$20","v":"PLN"},{"$f":"'VIII. Wskaźniki produktu'!$D$20","v":0},{"$f":"'VIII. Wskaźniki produktu'!$F$20","v":0}]
[{"$f":"'VIII. Wskaźniki produktu'!$B$21","v":"środki trwałe"},null,{"$f":"'VIII. Wskaźniki produktu'!$C$21","v":"PLN"},{"$f":"'VIII. Wskaźniki produktu'!$D$21","v":0},{"$f":"'VIII. Wskaźniki produktu'!$F$21","v":0}]
[{"$f":"'VIII. Wskaźniki produktu'!$B$22","v":"wartości niematerialne i prawne"},null,{"$f":"'VIII. Wskaźniki produktu'!$C$22","v":"PLN"},{"$f":"'VIII. Wskaźniki produktu'!$D$22","v":0},{"$f":"'VIII. Wskaźniki produktu'!$F$22","v":0}]
[]
[]
["Wskaźniki rezultatu"]
["Nazwa wskaźnika",null,"Jednostka miary","Wartośc bazowa","Wartość docelowa"]
[{"$f":"'VIII. Wskaźniki rezultatu'!$A$10","v":"Liczba naukowców pracujacych w ulepszonych obiektach infrastruktury badawczej."},null,{"$f":"'VIII. Wskaźniki rezultatu'!$C$10","v":"EPC"},{"$f":"'VIII. Wskaźniki rezultatu'!$E$10","v":0},{"$f":"'VIII. Wskaźniki rezultatu'!$AL$10","v":0}]
[{"$f":"'VIII. Wskaźniki rezultatu'!$A$16","v":"Liczba projektów B+R realizowanych przy wykorzystaniu wspartej infrastruktury badawczej."},null,{"$f":"'VIII. Wskaźniki rezultatu'!$C$16","v":"szt."},{"$f":"'VIII. Wskaźniki rezultatu'!$E$16","v":0},{"$f":"'VIII. Wskaźniki rezultatu'!$AL$16","v":0}]
[{"$f":"'VIII. Wskaźniki rezultatu'!$A$13","v":"Liczba przedsiębiorstw korzystających ze wspartej infrastruktury badawczej."},null,{"$f":"'VIII. Wskaźniki rezultatu'!$C$13","v":"szt."},{"$f":"'VIII. Wskaźniki rezultatu'!$E$13","v":0},{"$f":"'VIII. Wskaźniki rezultatu'!$AL$13","v":0}]
["Wzrosta zatrudnienia we wspieranych przedsiebiorstwach - Kobiety",null,"EPC",0,0]
["Wzrosta zatrudnienia we wspieranych przedsiebiorstwach - Mężczyźni",null,"EPC",0,0]
[{"$f":"'VIII. Wskaźniki rezultatu'!$A$6","v":"Wzrost zatrudnienia we wspieranych przedsiębiorstwach"},null,"EPC",{"$f":"'VIII. Wskaźniki rezultatu'!$D$7","v":0},{"$f":"'VIII. Wskaźniki rezultatu'!$AK$7","v":0}]
[]
[]
["Wskażniki specyficzne dla programu"]
["Wskaźniki produktu"]
["Nazwa wskaźnika",null,"Jednostka miary","Wartośc bazowa","Wartość docelowa"]
[{"$f":"'VIII. Wskaźniki produktu'!$B$17","v":"Inwestycje prywatne uzupełniające wsparcie publiczne dla przedsiębiorstw (dotacje)"},null,{"$f":"'VIII. Wskaźniki produktu'!$C$17","v":"PLN"},{"$f":"'VIII. Wskaźniki produktu'!$D$17","v":0},{"$f":"'VIII. Wskaźniki produktu'!$F$17","v":0}]
[{"$f":"'VIII. Wskaźniki produktu'!$B$5","v":"Liczba przedsiębiorstw otrzymujących wsparcie (CI 1)"},null,"Przedsiębiorstwa",{"$f":"'VIII. Wskaźniki produktu'!$D$5","v":0},{"$f":"'VIII. Wskaźniki produktu'!$F$5","v":0}]
[{"$f":"'VIII. Wskaźniki produktu'!$B$8","v":"Liczba przedsiębiorstw otrzymujących dotacje (CI 2)"},null,"Przedsiębiorstwa",{"$f":"'VIII. Wskaźniki produktu'!$D$8","v":0},{"$f":"'VIII. Wskaźniki produktu'!$F$8","v":0}]
[{"$f":"'VIII. Wskaźniki produktu'!$B$14","v":"Liczba przedsiębiorstw ponoszących nakłady inwestycyjne na działalność B+R"},null,{"$f":"'VIII. Wskaźniki produktu'!$C$14","v":"Szt. "},{"$f":"'VIII. Wskaźniki produktu'!$D$14","v":0},{"$f":"'VIII. Wskaźniki produktu'!$F$14","v":0}]
[{"$f":"'VIII. Wskaźniki produktu'!$B$11","v":"Liczba wspartych labolatoriów badawczych"},null,{"$f":"'VIII. Wskaźniki produktu'!$C$11","v":"Szt. "},{"$f":"'VIII. Wskaźniki produktu'!$D$11","v":0},{"$f":"'VIII. Wskaźniki produktu'!$F$11","v":0}]
[{"$f":"'VIII. Wskaźniki produktu'!$B$20","v":"Nakłady inwestycyjne na zakup aparatury naukowo-badawczej, w tym:"},null,{"$f":"'VIII. Wskaźniki produktu'!$C$20","v":"PLN"},{"$f":"'VIII. Wskaźniki produktu'!$D$20","v":0},{"$f":"'VIII. Wskaźniki produktu'!$F$20","v":0}]
[{"$f":"'VIII. Wskaźniki produktu'!$B$21","v":"środki trwałe"},null,{"$f":"'VIII. Wskaźniki produktu'!$C$21","v":"PLN"},{"$f":"'VIII. Wskaźniki produktu'!$D$21","v":0},{"$f":"'VIII. Wskaźniki produktu'!$F$21","v":0}]
[{"$f":"'VIII. Wskaźniki produktu'!$B$22","v":"wartości niematerialne i prawne"},null,{"$f":"'VIII. Wskaźniki produktu'!$C$22","v":"PLN"},{"$f":"'VIII. Wskaźniki produktu'!$D$22","v":0},{"$f":"'VIII. Wskaźniki produktu'!$F$22","v":0}]
[]
["Wskaźniki rezultatu"]
["Nazwa wskaźnika",null,"Jednostka miary","Wartośc bazowa","Wartość docelowa"]
[{"$f":"'VIII. Wskaźniki rezultatu'!$A$10","v":"Liczba naukowców pracujacych w ulepszonych obiektach infrastruktury badawczej."},null,{"$f":"'VIII. Wskaźniki rezultatu'!$C$10","v":"EPC"},{"$f":"'VIII. Wskaźniki rezultatu'!$E$10","v":0},{"$f":"'VIII. Wskaźniki rezultatu'!$AL$10","v":0}]
[{"$f":"'VIII. Wskaźniki rezultatu'!$A$16","v":"Liczba projektów B+R realizowanych przy wykorzystaniu wspartej infrastruktury badawczej."},null,{"$f":"'VIII. Wskaźniki rezultatu'!$C$16","v":"szt."},{"$f":"'VIII. Wskaźniki rezultatu'!$E$16","v":0},{"$f":"'VIII. Wskaźniki rezultatu'!$AL$16","v":0}]
[{"$f":"'VIII. Wskaźniki rezultatu'!$A$13","v":"Liczba przedsiębiorstw korzystających ze wspartej infrastruktury badawczej."},null,{"$f":"'VIII. Wskaźniki rezultatu'!$C$13","v":"szt."},{"$f":"'VIII. Wskaźniki rezultatu'!$E$13","v":0},{"$f":"'VIII. Wskaźniki rezultatu'!$AL$13","v":0}]
["Wzrosta zatrudnienia we wspieranych przedsiebiorstwach - Kobiety",null,"EPC",0,0]
["Wzrosta zatrudnienia we wspieranych przedsiebiorstwach - Mężczyźni",null,"EPC",0,0]
[{"$f":"'VIII. Wskaźniki rezultatu'!$A$6","v":"Wzrost zatrudnienia we wspieranych przedsiębiorstwach"},null,"EPC",{"$f":"'VIII. Wskaźniki rezultatu'!$D$7","v":0},{"$f":"'VIII. Wskaźniki rezultatu'!$AK$7","v":0}]
[]
[]
["Wskażniki specyficzne dla projektu"]
["Wskaźniki produktu"]
["Nazwa wskaźnika",null,"Jednostka miary","Wartośc bazowa","Wartość docelowa"]
[{"$f":"'VIII. Wskaźniki produktu'!$B$25","v":"Liczba zakupionych środków trwałych"},null,{"$f":"'VIII. Wskaźniki produktu'!$C$25","v":"Szt. "},{"$f":"'VIII. Wskaźniki produktu'!$D$25","v":0},{"$f":"'VIII. Wskaźniki produktu'!$F$25","v":0}]
[{"$f":"'VIII. Wskaźniki produktu'!$B$28","v":"Liczba zakupionych wartości niematerialnych i prawnych"},null,{"$f":"'VIII. Wskaźniki produktu'!$C$28","v":"Szt. "},{"$f":"'VIII. Wskaźniki produktu'!$D$28","v":0},{"$f":"'VIII. Wskaźniki produktu'!$F$28","v":0}]
[{"$f":"'VIII. Wskaźniki produktu'!$B$36","v":"Nie dotyczy"},null,{"$f":"'VIII. Wskaźniki produktu'!$C$36","v":"Nie dotyczy  "},{"$f":"'VIII. Wskaźniki produktu'!$D$36","v":"Nie dotyczy "},{"$f":"'VIII. Wskaźniki produktu'!$E$36","v":"Nie dotyczy "}]
[{"$f":"'VIII. Wskaźniki produktu'!$B$39","v":"Nie dotyczy"},null,{"$f":"'VIII. Wskaźniki produktu'!$C$39","v":"Nie dotyczy  "},{"$f":"'VIII. Wskaźniki produktu'!$D$39","v":"Nie dotyczy "},{"$f":"'VIII. Wskaźniki produktu'!$E$39","v":"Nie dotyczy "}]
[{"$f":"'VIII. Wskaźniki produktu'!$B$42","v":"Nie dotyczy"},null,{"$f":"'VIII. Wskaźniki produktu'!$C$42","v":"Nie dotyczy  "},{"$f":"'VIII. Wskaźniki produktu'!$D$42","v":"Nie dotyczy "},{"$f":"'VIII. Wskaźniki produktu'!$E$42","v":"Nie dotyczy "}]
[{"$f":"'VIII. Wskaźniki produktu'!$B$45","v":"Nie dotyczy"},null,{"$f":"'VIII. Wskaźniki produktu'!$C$45","v":"Nie dotyczy  "},{"$f":"'VIII. Wskaźniki produktu'!$D$45","v":"Nie dotyczy "},{"$f":"'VIII. Wskaźniki produktu'!$E$45","v":"Nie dotyczy "}]
[{"$f":"'VIII. Wskaźniki produktu'!$B$48","v":"Nie dotyczy"},null,{"$f":"'VIII. Wskaźniki produktu'!$C$48","v":"Nie dotyczy  "},{"$f":"'VIII. Wskaźniki produktu'!$D$48","v":"Nie dotyczy "},{"$f":"'VIII. Wskaźniki produktu'!$E$48","v":"Nie dotyczy "}]
[{"$f":"'VIII. Wskaźniki produktu'!$B$51","v":"Nie dotyczy"},null,{"$f":"'VIII. Wskaźniki produktu'!$C$51","v":"Nie dotyczy  "},{"$f":"'VIII. Wskaźniki produktu'!$D$51","v":"Nie dotyczy "},{"$f":"'VIII. Wskaźniki produktu'!$E$51","v":"Nie dotyczy "}]
[{"$f":"'VIII. Wskaźniki produktu'!$B$54","v":"Nie dotyczy"},null,{"$f":"'VIII. Wskaźniki produktu'!$C$54","v":"Nie dotyczy  "},{"$f":"'VIII. Wskaźniki produktu'!$D$54","v":"Nie dotyczy "},{"$f":"'VIII. Wskaźniki produktu'!$E$54","v":"Nie dotyczy "}]
[]
["Wskaźniki rezultatu"]
["Nazwa wskaźnika",null,"Jednostka miary","Wartośc bazowa","Wartość docelowa"]
[{"$f":"'VIII. Wskaźniki rezultatu'!$A$34","v":"Liczba jednostek naukowych z którymi Wnioskodawca nawiąże współpracę w ramach projektu"},null,{"$f":"'VIII. Wskaźniki rezultatu'!$C$34","v":"Szt."},{"$f":"'VIII. Wskaźniki rezultatu'!$E$34","v":0},{"$f":"'VIII. Wskaźniki rezultatu'!$AL$34","v":0}]
[{"$f":"'VIII. Wskaźniki rezultatu'!$A$37","v":"Liczba form współpracy z jednostkami naukowymi (w ramach nawiązania nowej współpracy)"},null,{"$f":"'VIII. Wskaźniki rezultatu'!C40","v":"Szt."},{"$f":"'VIII. Wskaźniki rezultatu'!$E$37","v":0},{"$f":"'VIII. Wskaźniki rezultatu'!$AL$37","v":0}]
[{"$f":"'VIII. Wskaźniki rezultatu'!$A$40","v":"Liczba jednostek naukowych z którymi Wnioskodawca rozwinie współpracę w ramach projektu"},null,{"$f":"'VIII. Wskaźniki rezultatu'!$C$40","v":"Szt."},{"$f":"'VIII. Wskaźniki rezultatu'!$E$40","v":0},{"$f":"'VIII. Wskaźniki rezultatu'!$AL$40","v":0}]
[{"$f":"'VIII. Wskaźniki rezultatu'!$A$43","v":"Liczba form współpracy z jednostkami naukowymi (w ramach rozwoju dotychczasowej współpracy)"},null,{"$f":"'VIII. Wskaźniki rezultatu'!$C$43","v":"Szt."},{"$f":"'VIII. Wskaźniki rezultatu'!$E$43","v":0},{"$f":"'VIII. Wskaźniki rezultatu'!$AL$43","v":0}]
[{"$f":"'VIII. Wskaźniki rezultatu'!$A$46","v":"Liczba podmiotów z sektora MSP z którymi Wnioskodawca nawiąże/rozwinie współpracę w ramach projektu"},null,{"$f":"'VIII. Wskaźniki rezultatu'!$C$46","v":"Szt."},{"$f":"'VIII. Wskaźniki rezultatu'!$E$46","v":0},{"$f":"'VIII. Wskaźniki rezultatu'!$AL$46","v":0}]
[{"$f":"'VIII. Wskaźniki rezultatu'!$A$49","v":"Liczba form współpracy z podmiotami sektora MSP w ramach nawiązania/rozwoju współpracy"},null,{"$f":"'VIII. Wskaźniki rezultatu'!$C$49","v":"Szt."},{"$f":"'VIII. Wskaźniki rezultatu'!$E$49","v":0},{"$f":"'VIII. Wskaźniki rezultatu'!$AL$49","v":0}]
[{"$f":"'VIII. Wskaźniki rezultatu'!$A$52","v":"Liczba organizacji pozarządowych (NGO) z którymi Wnioskodawca nawiąże/rozwinie współpracę w ramach projektu"},null,{"$f":"'VIII. Wskaźniki rezultatu'!$C$52","v":"Szt."},{"$f":"'VIII. Wskaźniki rezultatu'!$E$52","v":0},{"$f":"'VIII. Wskaźniki rezultatu'!$AL$52","v":0}]
[{"$f":"'VIII. Wskaźniki rezultatu'!$A$55","v":"Liczba form współpracy z organizacjami pozarządowymi (NGO) w ramach nawiązania/rozwoju współpracy"},null,{"$f":"'VIII. Wskaźniki rezultatu'!$C$55","v":"Szt."},{"$f":"'VIII. Wskaźniki rezultatu'!$E$55","v":0},{"$f":"'VIII. Wskaźniki rezultatu'!$AL$55","v":0}]
[{"$f":"'VIII. Wskaźniki rezultatu'!$A$61","v":"Nie dotyczy (Wskaźnik obrazujący pozytywny wpływ projektu na środowisko i klimat poprzez sposób realizacji projektu.)"},null,{"$f":"'VIII. Wskaźniki rezultatu'!$C$58","v":"Nie dotyczy"},{"$f":"'VIII. Wskaźniki rezultatu'!$E$58","v":0},{"$f":"'VIII. Wskaźniki rezultatu'!$AL$58","v":0}]
[{"$f":"'VIII. Wskaźniki rezultatu'!$A$61","v":"Nie dotyczy (Wskaźnik obrazujący pozytywny wpływ projektu na środowisko i klimat poprzez sposób realizacji projektu.)"},null,{"$f":"'VIII. Wskaźniki rezultatu'!$C$61","v":"Nie dotyczy"},{"$f":"'VIII. Wskaźniki rezultatu'!$E$61","v":0},{"$f":"'VIII. Wskaźniki rezultatu'!$AL$61","v":0}]
[{"$f":"'VIII. Wskaźniki rezultatu'!$A$64","v":"Nie dotyczy (Wskaźnik obrazujący pozytywny wpływ projektu na środowisko i klimat poprzez rezultat projektu.)"},null,{"$f":"'VIII. Wskaźniki rezultatu'!$C$64","v":"Nie dotyczy"},{"$f":"'VIII. Wskaźniki rezultatu'!$E$64","v":0},{"$f":"'VIII. Wskaźniki rezultatu'!$AL$64","v":0}]
[{"$f":"'VIII. Wskaźniki rezultatu'!$A$67","v":"Nie dotyczy (Wskaźnik obrazujący pozytywny wpływ projektu na środowisko i klimat poprzez rezultat projektu.)"},null,{"$f":"'VIII. Wskaźniki rezultatu'!$C$67","v":"Nie dotyczy"},{"$f":"'VIII. Wskaźniki rezultatu'!$E$67","v":0},{"$f":"'VIII. Wskaźniki rezultatu'!$AL$67","v":0}]
[{"$f":"'VIII. Wskaźniki rezultatu'!$A$73","v":"Nie dotyczy (Wskaźnik obrazujący dostępność produktów/ rezultatów projektu dla osób z niepełnosprawnościami)"},null,{"$f":"'VIII. Wskaźniki rezultatu'!$C$73","v":"Nie dotyczy"},{"$f":"'VIII. Wskaźniki rezultatu'!$E$73","v":0},{"$f":"'VIII. Wskaźniki rezultatu'!$AL$73","v":0}]
[{"$f":"CONCATENATE('VIII. Wskaźniki rezultatu'!A76,\" \",'VIII. Wskaźniki rezultatu'!$A$77)","v":"Nie dotyczy (Wskaźnik obrazujący spełnienie standardu architektonicznego stanowiącego załącznik nr 2 do Wytycznych w zakresie realizacji zasady równości szans i niedyskryminacji, w tym dostępności dla osób z niepełnosprawnościami oraz zasady równości szans kobiet i mężczyzn w ramach Funduszy Unijnych na lata 2014-2020.)"},null,{"$f":"'VIII. Wskaźniki rezultatu'!$C$76","v":"Nie dotyczy"},{"$f":"'VIII. Wskaźniki rezultatu'!$E$76","v":0},{"$f":"'VIII. Wskaźniki rezultatu'!$AL$76","v":0}]
[{"$f":"_xlfn.CONCAT('VIII. Wskaźniki rezultatu'!$A$80,\" \",'VIII. Wskaźniki rezultatu'!$A$81)","v":"Nie dotyczy (Wskaźnik obrazujący spełnienie standardu architektonicznego stanowiącego załącznik nr 2 do Wytycznych w zakresie realizacji zasady równości szans i niedyskryminacji, w tym dostępności dla osób z niepełnosprawnościami oraz zasady równości szans kobiet i mężczyzn w ramach Funduszy Unijnych na lata 2014-2020.)"},null,{"$f":"'VIII. Wskaźniki rezultatu'!$C$80","v":"Nie dotyczy"},{"$f":"'VIII. Wskaźniki rezultatu'!$E$80","v":0},{"$f":"'VIII. Wskaźniki rezultatu'!$AL$80","v":0}]
[{"$f":"'VIII. Wskaźniki rezultatu'!$A$84","v":"Nie dotyczy (Wskaźnik projektu na realizację zasady równości szans  kobiet i mężczyzn)"},null,{"$f":"'VIII. Wskaźniki rezultatu'!$C$84","v":"Nie dotyczy"},{"$f":"'VIII. Wskaźniki rezultatu'!$E$84","v":0},{"$f":"'VIII. Wskaźniki rezultatu'!$AL$84","v":0}]
[{"$f":"'VIII. Wskaźniki rezultatu'!$A$87","v":"Nie dotyczy (Wskaźnik projektu na realizację zasady równości szans  kobiet i mężczyzn)"},null,{"$f":"'VIII. Wskaźniki rezultatu'!$C$87","v":"Nie dotyczy"},{"$f":"'VIII. Wskaźniki rezultatu'!$E$87","v":0},{"$f":"'VIII. Wskaźniki rezultatu'!$AL$87","v":0}]
[{"$f":"'VIII. Wskaźniki rezultatu'!$A$93","v":"Nie dotyczy"},null,{"$f":"'VIII. Wskaźniki rezultatu'!$C$93","v":"Nie dotyczy"},{"$f":"'VIII. Wskaźniki rezultatu'!$E$96","v":0},{"$f":"'VIII. Wskaźniki rezultatu'!$AL$93","v":0}]
[{"$f":"'VIII. Wskaźniki rezultatu'!$A$96","v":"Nie dotyczy"},null,{"$f":"'VIII. Wskaźniki rezultatu'!$C$96","v":"Nie dotyczy"},{"$f":"'VIII. Wskaźniki rezultatu'!$E$99","v":0},{"$f":"'VIII. Wskaźniki rezultatu'!$AL$96","v":0}]
[{"$f":"'VIII. Wskaźniki rezultatu'!$A$99","v":"Nie dotyczy"},null,{"$f":"'VIII. Wskaźniki rezultatu'!$C$99","v":"Nie dotyczy"},{"$f":"'VIII. Wskaźniki rezultatu'!$E$102","v":0},{"$f":"'VIII. Wskaźniki rezultatu'!$AL$99","v":0}]
[{"$f":"'VIII. Wskaźniki rezultatu'!$A$102","v":"Nie dotyczy"},null,{"$f":"'VIII. Wskaźniki rezultatu'!$C$102","v":"Nie dotyczy"},{"$f":"'VIII. Wskaźniki rezultatu'!$E$105","v":0},{"$f":"'VIII. Wskaźniki rezultatu'!$AL$102","v":0}]
[{"$f":"'VIII. Wskaźniki rezultatu'!$A$105","v":"Nie dotyczy"},null,{"$f":"'VIII. Wskaźniki rezultatu'!$C$105","v":"Nie dotyczy"},{"$f":"'VIII. Wskaźniki rezultatu'!$E$105","v":0},{"$f":"'VIII. Wskaźniki rezultatu'!$AL$105","v":0}]
[{"$f":"'VIII. Wskaźniki rezultatu'!$A$108","v":"Nie dotyczy"},null,{"$f":"'VIII. Wskaźniki rezultatu'!$C$108","v":"Nie dotyczy"},{"$f":"'VIII. Wskaźniki rezultatu'!$E$108","v":0},{"$f":"'VIII. Wskaźniki rezultatu'!$AL$108","v":0}]
[{"$f":"'VIII. Wskaźniki rezultatu'!$A$111","v":"Nie dotyczy"},null,{"$f":"'VIII. Wskaźniki rezultatu'!$C$111","v":"Nie dotyczy"},{"$f":"'VIII. Wskaźniki rezultatu'!$E$111","v":0},{"$f":"'VIII. Wskaźniki rezultatu'!$AL$111","v":0}]

{"sheet":"Fiszka projektu","index":2,"n_rows":81,"n_cols":33,"rows_kept":81,"cut":false,"hidden":false,"merged":[[80,0,90,8],[81,9,90,9],[80,10,90,32],[77,9,77,13],[78,9,78,13],[79,9,79,13],[70,0,79,8],[72,9,72,13],[73,9,73,13],[74,9,74,13],[75,9,75,13],[76,9,76,13],[71,14,71,22],[70,14,70,22],[72,14,72,22],[73,14,73,22],[61,0,62,8],[63,0,64,8],[55,10,56,32],[57,10,58,32],[52,0,52,32],[59,0,60,8],[54,0,54,32],[53,1,53,32],[59,28,60,32],[61,28,62,32],[59,10,60,27],[61,10,62,27],[63,10,64,27],[63,28,64,32],[71,9,71,13],[67,22,67,27],[68,22,68,27],[68,29,68,32],[67,7,67,10],[67,29,67,32],[69,0,69,8],[69,10,69,32],[68,0,68,5],[68,7,68,10],[68,11,68,16],[68,18,68,21],[1,0,4,32],[5,0,28,32],[33,12,35,32],[55,0,56,8],[57,0,58,8],[42,0,42,32],[33,0,35,10],[50,0,50,32],[39,0,41,15],[36,1,38,15],[36,17,38,32],[39,16,41,32],[49,0,49,32],[51,1,51,32],[65,0,65,32],[66,0,66,10],[66,11,66,21],[66,22,66,32],[67,0,67,5],[67,11,67,16],[67,18,67,21],[79,14,79,22],[70,23,70,31],[71,23,71,32],[72,23,72,32],[73,23,73,32],[74,23,74,32],[75,23,75,32],[76,23,76,32],[77,23,77,32],[78,23,78,32],[79,23,79,32],[74,14,74,22],[75,14,75,22],[76,14,76,22],[77,14,77,22],[78,14,78,22]]}
[]
["Wzór wniosku o dofinansowanie (załącznik nr 2 do Regulaminu Konkursu) \nNabór 1/2.1/2020"]
[]
[]
[]
["\n\n\n\n\nMINISTERSTWO FUNDUSZY I POLITYKI REGIONALNEJ\nPROGRAM OPERACYJNY INTELIGENTNY ROZWÓJ\n\nWniosek o dofinansowanie realizacji projektu\n\n 2. Oś priorytetowa \n Wsparcie otoczenia i potencjału przedsiębiorstw do prowadzenia działalności B+R+I\n\nDziałanie 2.1 \nWsparcie inwestycji w infrastrukturę B+R przedsiębiorstw\n"]
[]
[]
[]
[]
[]
[]
[]
[]
[]
[]
[]
[]
[]
[]
[]
[]
[]
[]
[]
[]
[]
[]
[]
[]
[]
[]
[]
["NUMER WNIOSKU O DOFINANSOWANIE*",null,null,null,null,null,null,null,null,null,null,"1.","POIR.02.01.00-00-………/20"]
[]
[]
["2.",null,null,null,null,null,null,null,null,null,null,null,null,null,null,null,"3.","POIR.02.01.00-IZ.00-00-001/20"]
[]
[]
["DATA ZŁOŻENIA WNIOSKU*",null,null,null,null,null,null,null,null,null,null,null,null,null,null,null,"PEŁNY NR NABORU*"]
[]
[]
["* - Rubryka wypełniana przez Instytucje Organizującą Konkurs."]
[]
[]
[]
[]
[]
[]
["Fiszka projektu"]
[]
["4.","Nazwa Wnioskodawcy"]
[{"$f":"'II. Identyfikacja Wnioskodawcy'!$P$5","v":0}]
["5.","Tytuł projektu"]
[{"$f":"'I. Informacje ogólne o projekci'!$M$4","v":0}]
["Data rozpoczęcia okresu kwalifikowalności",null,null,null,null,null,null,null,null,"6.",{"$f":"'I. Informacje ogólne o projekci'!Z108","v":"00:00:00"}]
[]
["Data zakończenia okresu kwalifikowalności",null,null,null,null,null,null,null,null,"7.",{"$f":"'I. Informacje ogólne o projekci'!Z109","v":"00:00:00"}]
[]
["Całkowita wartość projektu",null,null,null,null,null,null,null,null,"8.",{"$f":"'V. Aspekty Finansowe'!$U$17","v":0},null,null,null,null,null,null,null,null,null,null,null,null,null,null,null,null,null,"PLN"]
[]
["Kwota kosztów kwalifikowanych projektu",null,null,null,null,null,null,null,null,"9.",{"$f":"'V. Aspekty Finansowe'!$U$19","v":0},null,null,null,null,null,null,null,null,null,null,null,null,null,null,null,null,null,"PLN"]
[]
["Kwota dofinansowania projektu",null,null,null,null,null,null,null,null,"10.",{"$f":"'V. Aspekty Finansowe'!$U$21","v":0},null,null,null,null,null,null,null,null,null,null,null,null,null,null,null,null,null,"PLN"]
[]
["Źródło finansowania (rodzaje pomocy)"]
["Źródło: Pomoc regionalna",null,null,null,null,null,null,null,null,null,null,"Źródło: Pomoc na działalność badawczo-rozwojową",null,null,null,null,null,null,null,null,null,null,"Źródło: Pomoc de minimis"]
["% wsparcia",null,null,null,null,null,"11.",{"$f":"'V. Aspekty Finansowe'!N7","v":0},null,null,null,"% wsparcia",null,null,null,null,null,"12.",{"$f":"'V. Aspekty Finansowe'!N11","v":"n/d"},null,null,null,"% wsparcia",null,null,null,null,null,"13.",{"$f":"'V. Aspekty Finansowe'!N15","v":"n/d"}]
["Kwota dofinansowania",null,null,null,null,null,"14.",{"$f":"'V. Aspekty Finansowe'!AC7","v":0},null,null,null,"Kwota dofinansowania",null,null,null,null,null,"15.",{"$f":"'V. Aspekty Finansowe'!AC11","v":0},null,null,null,"Kwota dofinansowania",null,null,null,null,null,"16.",{"$f":"'V. Aspekty Finansowe'!AC15","v":0}]
["Kwalifikowalność VAT",null,null,null,null,null,null,null,null,"17.",{"$f":"'II. Identyfikacja Wnioskodawcy'!$P$15","v":0}]
["Miejsce realizacji projektu",null,null,null,null,null,null,null,null,null,null,null,null,null,"Główne miejsce realizacji projektu",null,null,null,null,null,null,null,null,"Pozostałe miejsce realizacji projektu",null,null,null,null,null,null,null,null,"18."]
[null,null,null,null,null,null,null,null,null,"Miejscowość",null,null,null,null,{"$f":"'I. Informacje ogólne o projekci'!$R$146","v":0},null,null,null,null,null,null,null,null,{"$f":"'I. Informacje ogólne o projekci'!$R$154","v":" "}]
[null,null,null,null,null,null,null,null,null,"Ulica",null,null,null,null,{"$f":"'I. Informacje ogólne o projekci'!$A$149","v":0},null,null,null,null,null,null,null,null,{"$f":"'I. Informacje ogólne o projekci'!$A$157","v":" "}]
[null,null,null,null,null,null,null,null,null,"Nr budynku",null,null,null,null,{"$f":"'I. Informacje ogólne o projekci'!$G$149","v":0},null,null,null,null,null,null,null,null,{"$f":"'I. Informacje ogólne o projekci'!$G$157","v":" "}]
[null,null,null,null,null,null,null,null,null,"Nr lokalu",null,null,null,null,{"$f":"'I. Informacje ogólne o projekci'!$M$149","v":0},null,null,null,null,null,null,null,null,{"$f":"'I. Informacje ogólne o projekci'!$M$157","v":" "}]
[null,null,null,null,null,null,null,null,null,"Kod pocztowy",null,null,null,null,{"$f":"'I. Informacje ogólne o projekci'!$W$146","v":0},null,null,null,null,null,null,null,null,{"$f":"'I. Informacje ogólne o projekci'!$W$154","v":" "}]
[null,null,null,null,null,null,null,null,null,"Poczta",null,null,null,null,{"$f":"'I. Informacje ogólne o projekci'!$AB$146","v":0},null,null,null,null,null,null,null,null,{"$f":"'I. Informacje ogólne o projekci'!$AB$154","v":" "}]
[null,null,null,null,null,null,null,null,null,"Gmina",null,null,null,null,{"$f":"'I. Informacje ogólne o projekci'!$M$146","v":0},null,null,null,null,null,null,null,null,{"$f":"'I. Informacje ogólne o projekci'!$M$154","v":" "}]
[null,null,null,null,null,null,null,null,null,"Powiat",null,null,null,null,{"$f":"'I. Informacje ogólne o projekci'!$G$146","v":0},null,null,null,null,null,null,null,null,{"$f":"'I. Informacje ogólne o projekci'!$G$154","v":" "}]
[null,null,null,null,null,null,null,null,null,"Województwo",null,null,null,null,{"$f":"'I. Informacje ogólne o projekci'!$A$146","v":0},null,null,null,null,null,null,null,null,{"$f":"'I. Informacje ogólne o projekci'!$A$154","v":" "}]
["Skrócony opis projektu\n(1000 limit znaków)",null,null,null,null,null,null,null,null,"19.",{"$f":"'I. Informacje ogólne o projekci'!M5","v":0}]

{"sheet":"I. Informacje ogólne o projekci","index":3,"n_rows":159,"n_cols":42,"rows_kept":159,"cut":false,"hidden":false,"merged":[[146,33,148,33],[142,34,145,34],[142,35,145,35],[142,36,145,36],[146,34,148,34],[146,35,148,35],[146,36,148,36],[150,33,153,33],[154,33,156,33],[150,34,153,34],[150,35,153,35],[150,36,153,36],[154,34,156,34],[154,35,156,35],[154,36,156,36],[113,33,125,33],[113,34,125,34],[126,34,138,34],[113,35,125,35],[113,36,125,36],[126,35,138,35],[126,36,138,36],[110,33,112,36],[142,33,145,33],[139,33,141,36],[126,33,138,33],[109,25,109,32],[93,33,104,33],[93,34,104,34],[0,33,0,36],[28,33,40,33],[41,33,53,33],[54,33,65,33],[66,33,78,33],[80,33,92,33],[28,34,40,34],[28,35,40,35],[28,36,40,36],[41,34,53,34],[41,35,53,35],[41,36,53,36],[54,34,65,34],[54,35,65,35],[54,36,65,36],[93,35,104,35],[93,36,104,36],[105,33,105,36],[15,33,27,33],[15,34,27,34],[15,35,27,35],[15,36,27,36],[66,34,78,34],[66,35,78,35],[66,36,78,36],[80,34,92,34],[80,35,92,35],[80,36,92,36],[4,33,5,33],[4,34,5,34],[4,35,5,35],[4,36,5,36],[16,0,16,23],[143,0,143,5],[143,6,143,11],[143,12,143,16],[143,17,143,21],[143,22,143,26],[143,27,143,32],[67,1,67,32],[79,0,79,23],[79,25,79,32],[80,0,80,23],[81,1,81,32],[140,0,140,32],[139,0,139,32],[142,0,142,32],[18,0,27,32],[30,0,40,32],[128,0,138,32],[106,0,106,23],[80,25,80,32],[55,9,65,9],[29,1,29,32],[41,0,41,23],[107,0,107,23],[0,0,0,32],[1,0,1,32],[3,0,3,10],[3,12,3,32],[8,0,8,10],[8,12,8,32],[9,12,9,32],[10,0,10,10],[10,12,10,32],[6,0,6,10],[9,0,9,10],[4,0,5,10],[4,12,5,32],[2,0,2,32],[4,11,5,11],[6,12,6,32],[7,12,7,32],[7,0,7,10],[144,6,144,11],[144,12,144,16],[144,17,144,21],[144,22,144,26],[144,27,144,32],[113,0,113,13],[112,0,112,32],[113,15,113,32],[126,15,126,32],[126,0,126,13],[114,1,114,32],[109,0,109,23],[127,1,127,32],[42,1,42,32],[66,0,66,23],[115,0,125,32],[147,17,147,21],[147,22,147,26],[147,27,147,32],[146,0,146,5],[146,6,146,11],[146,12,146,16],[146,17,146,21],[146,22,146,26],[145,0,145,5],[145,6,145,11],[145,12,145,16],[145,17,145,21],[145,22,145,26],[145,27,145,32],[146,27,146,32],[147,0,147,5],[94,9,104,9],[105,0,105,32],[144,0,144,5],[155,0,155,5],[155,6,155,11],[155,12,155,16],[155,17,155,21],[155,22,155,26],[155,27,155,32],[154,0,154,5],[154,6,154,11],[154,12,154,16],[154,17,154,21],[154,22,154,26],[148,0,148,5],[148,6,148,11],[148,12,148,16],[148,17,148,21],[148,22,148,26],[149,25,149,32],[147,6,147,11],[147,12,147,16],[154,27,154,32],[152,27,152,32],[153,0,153,5],[153,6,153,11],[153,12,153,16],[153,17,153,21],[153,22,153,26],[153,27,153,32],[152,0,152,5],[152,6,152,11],[152,12,152,16],[151,12,151,16],[151,17,151,21],[151,22,151,26],[151,27,151,32],[158,0,158,32],[149,0,149,23],[54,0,54,23],[54,25,54,32],[55,10,65,32],[55,0,65,8],[93,0,93,23],[93,25,93,32],[94,0,104,8],[94,10,104,32],[156,27,156,32],[156,0,156,5],[156,6,156,11],[156,12,156,16],[156,17,156,21],[156,22,156,26],[152,17,152,21],[152,22,152,26],[148,27,148,32],[150,0,150,32],[151,0,151,5],[151,6,151,11],[141,0,141,32],[157,0,157,32],[11,0,11,10],[11,12,11,32],[15,0,15,32],[107,25,107,32],[108,0,108,23],[108,25,108,32],[111,0,111,32],[106,25,106,32],[17,1,17,32],[12,12,12,32],[13,0,13,10],[13,12,13,32],[14,0,14,10],[14,12,14,32],[28,0,28,23],[12,0,12,10],[43,0,53,32],[68,0,78,32],[82,0,92,32],[16,25,16,32],[28,25,28,32],[110,0,110,32],[41,25,41,32],[66,25,66,32],[126,37,138,37],[142,37,145,37],[146,37,148,37],[150,37,153,37],[154,37,156,37],[4,37,5,37],[15,37,27,37],[28,37,40,37],[41,37,53,37],[54,37,65,37],[66,37,78,37],[80,37,92,37],[93,37,104,37],[113,37,125,37]]}
["I. INFORMACJE OGÓLNE O PROJEKCIE",null,null,null,null,null,null,null,null,null,null,null,null,null,null,null,null,null,null,null,null,null,null,null,null,null,null,null,null,null,null,null,null,"Uwagi/komentarze Ekspertów"]
["1. Informacje podstawowe o projekcie",null,null,null,null,null,null,null,null,null,null,null,null,null,null,null,null,null,null,null,null,null,null,null,null,null,null,null,null,null,null,null,null,"Ekspert od innowacyjności 1","Ekspert od innowacyjności 2","Ekspert od innowacyjności 3","Ekspert finansowy","Uwagi MFiPR"]
[]
["Tytuł projektu",null,null,null,null,null,null,null,null,null,null,"20."]
["Skrócony opis projektu\n(1000 limit znaków)",null,null,null,null,null,null,null,null,null,null,"21."]
[]
["Rodzaj działalności gospodarczej",null,null,null,null,null,null,null,null,null,null,"22."]
["Zakres interwencji (dominujący)",null,null,null,null,null,null,null,null,null,null,"23.",{"$f":"IF(P114=Słowniki!Q6,Słowniki!G4,IF('I. Informacje ogólne o projekci'!P114=Słowniki!Q7,Słowniki!G4,IF('I. Informacje ogólne o projekci'!P114=Słowniki!Q8,Słowniki!G4,IF('II. Identyfikacja Wnioskodawcy'!$P$27=Słowniki!$K$19,Słowniki!$G$3,Słowniki!$G$2))))","v":"056 – Inwestycje w infrastrukturę, zdolności i wyposażenie w MŚP, związane bezpośrednio z działaniami badawczymi i innowacyjnymi"}]
["Duży projekt",null,null,null,null,null,null,null,null,null,null,"24.","NIE"]
["Duży projekt inwestycyjny",null,null,null,null,null,null,null,null,null,null,"25.","NIE"]
["Program operacyjny",null,null,null,null,null,null,null,null,null,null,"26.","Program Operacyjny Inteligentny Rozwój"]
["Oś priorytetowa",null,null,null,null,null,null,null,null,null,null,"27.","Wsparcie otoczenia i potencjału przedsiębiorstw do prowadzenia działalności B+R+I"]
["Działanie",null,null,null,null,null,null,null,null,null,null,"28.","Wsparcie inwestycji w infrastrukturę B+R przedsiębiorstw",null,null,null,null,null,null,null,null,null,null,null,null,null,null,null,null,null,null,null,null,null,null,null,null,null,null,null,null," "]
["Typ obszaru realizacji",null,null,null,null,null,null,null,null,null,null,"29.","07",null,null,1]
["Forma finansowania",null,null,null,null,null,null,null,null,null,null,"30.","Pomoc bezzwrotna"]
["Projekt dotyczy inwestycji początkowej:"]
["1. w rzeczowe aktywa trwałe lub wartości niematerialne i prawne związane z założeniem nowego zakładu",null,null,null,null,null,null,null,null,null,null,null,null,null,null,null,null,null,null,null,null,null,null,null,"31."]
["32.","Uzasadnienie:"]
[{"$f":"IF($Z$17=\"nie\",\"Nie dotyczy\",\" \")","v":" "}]
[]
[]
[]
[]
[]
[]
[]
[]
[]
["2. w rzeczowe aktywa trwałe lub wartości niematerialne i prawne związane ze zwiększeniem zdolności produkcyjnej istniejącego zakładu",null,null,null,null,null,null,null,null,null,null,null,null,null,null,null,null,null,null,null,null,null,null,null,"33."]
["34.","Uzasadnienie:"]
[{"$f":"IF(Z29=\"nie\",\"Nie dotyczy\",\" \")","v":" "}]
[]
[]
[]
[]
[]
[]
[]
[]
[]
[]
["3. w rzeczowe aktywa trwałe lub wartości niematerialne i prawne związane  z dywersyfikacją produkcji zakładu poprzez wprowadzenie produktów uprzednio nieprodukowanych w zakładzie",null,null,null,null,null,null,null,null,null,null,null,null,null,null,null,null,null,null,null,null,null,null,null,"35."]
["36.","Uzasadnienie:"]
[{"$f":"IF($Z$42=\"nie\",\"Nie dotyczy \",\" \")","v":" "}]
[]
[]
[]
[]
[]
[]
[]
[]
[]
[]
["Wartość księgowa ponownie wykorzystywanych aktywów, odnotowana w roku obrotowym poprzedzającym rozpoczęcie prac:",null,null,null,null,null,null,null,null,null,null,null,null,null,null,null,null,null,null,null,null,null,null,null,"37.",{"$f":"IF($Z$42=\"nie\",\"Nie dotyczy \",\" \")","v":" "}]
["Nazwa ponownie wykorzystywanych aktywów:",null,null,null,null,null,null,null,null,"38.",{"$f":"IF($Z$42=\"nie\",\"Nie dotyczy \",\" \")","v":" "}]
[]
[]
[]
[]
[]
[]
[]
[]
[]
[]
["4. w rzeczowe aktywa trwałe lub wartości niematerialne i prawne związane z zasadniczą zmianą dotyczącą procesu produkcyjnego istniejącego zakładu",null,null,null,null,null,null,null,null,null,null,null,null,null,null,null,null,null,null,null,null,null,null,null,"39."]
["40.","Uzasadnienie:"]
[{"$f":"IF($Z$67=\"nie\",\"Nie dotyczy \",\" \")","v":" "}]
[]
[]
[]
[]
[]
[]
[]
[]
[]
[]
["Kwota kosztów amortyzacji aktywów związanej z działalnością podlegającą modernizacji w ciągu poprzedzających trzech lat obrotowych",null,null,null,null,null,null,null,null,null,null,null,null,null,null,null,null,null,null,null,null,null,null,null,"41.",{"$f":"IF($Z$67=\"nie\",\"Nie dotyczy \",\" \")","v":" "}]
["5. w rzeczowe aktywa trwałe lub wartości niematerialne i prawne związane z założeniem nowego zakładu lub z dywersyfikacją działalności zakładu (inwestycja realizowana  przez przedsiębiorcę innego niż MSP na terenie woj. mazowieckiego)\n",null,null,null,null,null,null,null,null,null,null,null,null,null,null,null,null,null,null,null,null,null,null,null,"42."]
["43.","Uzasadnienie:"]
[{"$f":"IF($Z$81=\"nie\",\"Nie dotyczy \",\" \")","v":" "}]
[]
[]
[]
[]
[]
[]
[]
[]
[]
[]
["Wartość księgowa ponownie wykorzystywanych aktywów, odnotowana w roku obrotowym poprzedzającym rozpoczęcie prac 1:",null,null,null,null,null,null,null,null,null,null,null,null,null,null,null,null,null,null,null,null,null,null,null,"44.",{"$f":"IF($Z$81=\"nie\",\"Nie dotyczy \",\" \")","v":" "}]
["Nazwa ponownie wykorzystywanych aktywów:",null,null,null,null,null,null,null,null,"45.",{"$f":"IF($Z$81=\"nie\",\"Nie dotyczy \",\" \")","v":" "}]
[]
[]
[]
[]
[]
[]
[]
[]
[]
[]
[]
["Czy projekt zostanie rozpoczęty po dniu złożenia wniosku o dofinansowanie?\n",null,null,null,null,null,null,null,null,null,null,null,null,null,null,null,null,null,null,null,null,null,null,null,"46."]
["Data rozpoczęcia okresu kwalifikowalności\n",null,null,null,null,null,null,null,null,null,null,null,null,null,null,null,null,null,null,null,null,null,null,null,"47."]
["Data zakończenia okresu kwalifikowalności\n",null,null,null,null,null,null,null,null,null,null,null,null,null,null,null,null,null,null,null,null,null,null,null,"48."]
["Rok zakończenia okresu kwalifikowalności",null,null,null,null,null,null,null,null,null,null,null,null,null,null,null,null,null,null,null,null,null,null,null,"49."]
[]
["2. Klasyfikacja projektu"]
[]
["Powiązanie projektu ze Strategią Krajowych Inteligentnych Specjalizacji (KIS)",null,null,null,null,null,null,null,null,null,null,null,null,null,"50."]
["51.","Uzasadnienie wyboru krajowej inteligentnej specjalizacji"]
[" "]
[]
[]
[]
[]
[]
[]
[]
[]
[]
[]
["Przynależność projektu do sektorów strategicznych (branż kluczowych) określonych w Strategii na rzecz Odpowiedzialnego Rozwoju (SOR)",null,null,null,null,null,null,null,null,null,null,null,null,null,"52."]
["53.","Uzasadnienie wpisywania się projektu w ww. branże kluczowe"]
[{"$f":"IF(P127=\"Nie dotyczy\",\"Nie dotyczy\",\" \")","v":" "}]
[]
[]
[]
[]
[]
[]
[]
[]
[]
[]
[]
["3. Miejsce realizacji projektu"]
[]
["Główne miejsce realizacji projektu "]
["Województwo",null,null,null,null,null,"Powiat",null,null,null,null,null,"Gmina",null,null,null,null,"Miejscowość",null,null,null,null,"Kod pocztowy",null,null,null,null,"Poczta"]
["54.",null,null,null,null,null,"55.",null,null,null,null,null,"56.",null,null,null,null,"57.",null,null,null,null,"58.",null,null,null,null,"59."]
[]
["Ulica",null,null,null,null,null,"Nr budynku",null,null,null,null,null,"Nr lokalu",null,null,null,null,"Rodzaj lokalizacji",null,null,null,null,"Numer Księgi Wieczystej",null,null,null,null,"Podregion \n(NUTS 3)"]
["60.",null,null,null,null,null,"61.",null,null,null,null,null,"62.",null,null,null,null,"63.",null,null,null,null,"64.",null,null,null,null,"65."]
[]
["Czy projekt będzie realizowany w innym miejscu poza głównym miejscem realizacji?\n",null,null,null,null,null,null,null,null,null,null,null,null,null,null,null,null,null,null,null,null,null,null,null,"66."]
["Pozostałe miejsca realizacji projektu"]
["Województwo",null,null,null,null,null,"Powiat",null,null,null,null,null,"Gmina",null,null,null,null,"Miejscowość",null,null,null,null,"Kod pocztowy",null,null,null,null,"Poczta"]
["67.",null,null,null,null,null,"68.",null,null,null,null,null,"69.",null,null,null,null,"70.",null,null,null,null,"71.",null,null,null,null,"72."]
[{"$f":"IF($Z$150=\"nie\",\"Nie dotyczy\",\" \")","v":" "},null,null,null,null,null,{"$f":"IF($Z$150=\"nie\",\"Nie dotyczy\",\" \")","v":" "},null,null,null,null,null,{"$f":"IF($Z$150=\"nie\",\"Nie dotyczy\",\" \")","v":" "},null,null,null,null,{"$f":"IF($Z$150=\"nie\",\"Nie dotyczy\",\" \")","v":" "},null,null,null,null,{"$f":"IF($Z$150=\"nie\",\"Nie dotyczy\",\" \")","v":" "},null,null,null,null,{"$f":"IF($Z$150=\"nie\",\"Nie dotyczy\",\" \")","v":" "}]
["Ulica",null,null,null,null,null,"Nr budynku",null,null,null,null,null,"Nr lokalu",null,null,null,null,"Rodzaj lokalizacji",null,null,null,null,"Numer Księgi Wieczystej",null,null,null,null,"Podregion \n(NUTS 3)"]
["73.",null,null,null,null,null,"74.",null,null,null,null,null,"75.",null,null,null,null,"76.",null,null,null,null,"77.",null,null,null,null,"78."]
[{"$f":"IF($Z$150=\"nie\",\"Nie dotyczy\",\" \")","v":" "},null,null,null,null,null,{"$f":"IF($Z$150=\"nie\",\"Nie dotyczy\",\" \")","v":" "},null,null,null,null,null,{"$f":"IF($Z$150=\"nie\",\"Nie dotyczy\",\" \")","v":" "},null,null,null,null,{"$f":"IF($Z$150=\"nie\",\"Nie dotyczy\",\" \")","v":" "},null,null,null,null,{"$f":"IF($Z$150=\"nie\",\"Nie dotyczy\",\" \")","v":" "},null,null,null,null,{"$f":"IF($Z$150=\"nie\",\"Nie dotyczy\",\" \")","v":" "}]
[]
[" 1 Należy wypełnić w przypadku gdy inwestycja realizowana przez przedsiębiorcę innego niż MSP na terenie woj. mazowieckiego i jest inwestycją w rzeczowe aktywa trwałe lub wartości niematerialne i prawne związane z dywersyfikacją działalności zakładu"]

{"sheet":"II. Identyfikacja Wnioskodawcy","index":4,"n_rows":77,"n_cols":38,"rows_kept":77,"cut":false,"hidden":false,"merged":[[0,33,0,36],[18,33,22,33],[18,34,22,34],[18,35,22,35],[18,36,22,36],[2,33,3,36],[23,33,24,36],[71,27,71,32],[66,25,66,32],[28,0,28,32],[29,0,29,32],[27,0,27,32],[26,15,26,32],[17,0,17,13],[17,15,17,32],[24,0,24,32],[25,15,25,32],[14,0,14,13],[14,15,14,32],[15,0,15,13],[67,0,67,11],[67,12,67,32],[68,1,68,11],[65,0,65,11],[76,12,76,16],[76,17,76,21],[76,22,76,26],[76,27,76,32],[75,0,75,5],[75,6,75,11],[75,12,75,16],[75,17,75,21],[75,22,75,26],[75,27,75,32],[76,0,76,5],[76,6,76,11],[66,13,66,23],[74,0,74,5],[74,6,74,11],[74,12,74,16],[74,17,74,21],[74,22,74,26],[74,27,74,32],[73,0,73,5],[73,6,73,11],[73,12,73,16],[73,17,73,21],[73,22,73,26],[73,27,73,32],[69,25,69,32],[68,13,68,32],[63,0,63,11],[63,12,63,32],[72,0,72,5],[72,6,72,11],[72,12,72,16],[72,17,72,21],[72,22,72,26],[72,27,72,32],[59,0,59,11],[59,12,59,32],[60,1,60,11],[60,13,60,32],[70,0,70,32],[71,0,71,5],[71,6,71,11],[71,12,71,16],[71,17,71,21],[71,22,71,26],[69,0,69,23],[64,1,64,11],[64,13,64,32],[65,12,65,23],[65,24,65,32],[66,1,66,11],[48,0,48,11],[48,12,48,32],[49,1,49,11],[49,13,49,32],[37,0,37,32],[38,0,38,32],[39,0,39,32],[40,0,40,32],[42,0,42,11],[42,12,42,23],[42,24,42,32],[43,1,43,11],[43,13,43,23],[43,25,43,32],[44,0,44,11],[44,12,44,32],[45,1,45,11],[45,13,45,32],[46,0,46,11],[46,12,46,23],[46,24,46,32],[34,0,34,5],[34,6,34,11],[34,12,34,16],[34,17,34,21],[34,22,34,26],[34,27,34,32],[41,0,41,22],[47,1,47,11],[47,13,47,23],[47,25,47,32],[36,0,36,13],[36,15,36,32],[15,15,15,32],[16,0,16,13],[16,15,16,32],[23,0,23,32],[18,0,18,4],[19,0,22,4],[19,5,22,5],[19,6,22,32],[18,6,18,32],[5,0,5,13],[6,0,6,13],[6,15,6,32],[7,0,7,13],[7,15,7,32],[0,0,0,32],[1,0,1,32],[2,0,2,32],[3,0,3,32],[4,0,4,13],[4,15,4,32],[5,15,5,32],[11,0,11,13],[12,0,12,13],[13,0,13,13],[8,0,8,13],[8,15,8,32],[9,0,9,13],[10,0,10,13],[10,15,10,32],[9,15,9,32],[11,15,11,32],[12,15,12,32],[13,15,13,32],[53,1,53,11],[53,13,53,32],[54,0,54,32],[61,0,61,11],[61,12,61,23],[61,24,61,32],[62,1,62,11],[62,13,62,23],[62,25,62,32],[55,0,55,32],[57,0,57,11],[57,12,57,23],[57,24,57,32],[58,1,58,11],[58,13,58,23],[58,25,58,32],[56,0,56,22],[56,24,56,32],[50,0,50,11],[50,12,50,23],[50,24,50,32],[51,1,51,11],[51,13,51,23],[51,25,51,32],[52,0,52,11],[52,12,52,32],[31,0,31,5],[31,6,31,11],[31,12,31,16],[31,17,31,21],[31,22,31,26],[31,27,31,32],[33,0,33,5],[33,6,33,11],[33,12,33,16],[33,17,33,21],[33,22,33,26],[33,27,33,32],[32,0,32,5],[32,6,32,11],[32,12,32,16],[32,17,32,21],[42,33,43,33],[42,34,43,34],[42,35,43,35],[42,36,43,36],[44,33,45,33],[44,34,45,34],[44,35,45,35],[25,0,25,13],[26,0,26,13],[30,0,30,5],[30,6,30,11],[30,12,30,16],[30,17,30,21],[30,22,30,26],[30,27,30,32],[32,22,32,26],[32,27,32,32],[35,0,35,5],[35,6,35,11],[35,12,35,16],[35,17,35,21],[35,22,35,26],[35,27,35,32],[41,24,41,32],[30,33,32,33],[30,34,32,34],[30,35,32,35],[30,36,32,36],[33,33,35,33],[33,34,35,34],[33,35,35,35],[33,36,35,36],[40,33,41,33],[40,34,41,34],[40,35,41,35],[40,36,41,36],[37,33,39,36],[50,36,51,36],[52,33,53,33],[52,34,53,34],[52,35,53,35],[52,36,53,36],[54,33,54,36],[44,36,45,36],[46,33,47,33],[46,34,47,34],[46,35,47,35],[46,36,47,36],[48,33,49,33],[48,34,49,34],[48,35,49,35],[48,36,49,36],[74,33,76,33],[74,34,76,34],[74,35,76,35],[74,36,76,36],[70,33,70,36],[61,33,62,33],[61,34,62,34],[61,35,62,35],[61,36,62,36],[63,33,64,33],[63,34,64,34],[63,35,64,35],[63,36,64,36],[65,33,66,33],[65,34,66,34],[65,35,66,35],[65,36,66,36],[27,33,29,36],[67,33,68,33],[67,34,68,34],[67,35,68,35],[67,36,68,36],[71,33,73,33],[71,34,73,34],[71,35,73,35],[71,36,73,36],[55,33,56,33],[55,34,56,34],[55,35,56,35],[55,36,56,36],[57,33,58,33],[57,34,58,34],[57,35,58,35],[57,36,58,36],[59,33,60,33],[59,34,60,34],[59,35,60,35],[59,36,60,36],[50,33,51,33],[50,34,51,34],[50,35,51,35],[18,37,22,37],[30,37,32,37],[33,37,35,37],[40,37,41,37],[42,37,43,37],[44,37,45,37],[46,37,47,37],[48,37,49,37],[50,37,51,37],[74,37,76,37],[52,37,53,37],[55,37,56,37],[57,37,58,37],[59,37,60,37],[61,37,62,37],[63,37,64,37],[65,37,66,37],[67,37,68,37],[71,37,73,37]]}
["II. IDENTYFIKACJA WNIOSKODAWCY",null,null,null,null,null,null,null,null,null,null,null,null,null,null,null,null,null,null,null,null,null,null,null,null,null,null,null,null,null,null,null,null,"Uwagi/komentarze Ekspertów"]
[null,null,null,null,null,null,null,null,null,null,null,null,null,null,null,null,null,null,null,null,null,null,null,null,null,null,null,null,null,null,null,null,null,{"$f":"'I. Informacje ogólne o projekci'!$AH$2","v":"Ekspert od innowacyjności 1"},{"$f":"'I. Informacje ogólne o projekci'!$AI$2","v":"Ekspert od innowacyjności 2"},{"$f":"'I. Informacje ogólne o projekci'!$AJ$2","v":"Ekspert od innowacyjności 3"},{"$f":"'I. Informacje ogólne o projekci'!$AK$2","v":"Ekspert finansowy"},{"$f":"'I. Informacje ogólne o projekci'!$AL$2","v":"Uwagi MFiPR"}]
["1. Identyfikacja Wnioskodawcy"]
[]
["Nazwa Wnioskodawcy",null,null,null,null,null,null,null,null,null,null,null,null,null,"79."]
["Nazwa dokumentu rejestrowego ",null,null,null,null,null,null,null,null,null,null,null,null,null,"80."]
["Numer dokumentu rejestrowego",null,null,null,null,null,null,null,null,null,null,null,null,null,"81."]
["NIP Wnioskodawcy",null,null,null,null,null,null,null,null,null,null,null,null,null,"82."]
["REGON",null,null,null,null,null,null,null,null,null,null,null,null,null,"83."]
["Data rozpoczęcia działalności/rejestracji zgodnie z dokumentem rejestrowym",null,null,null,null,null,null,null,null,null,null,null,null,null,"84."]
["Forma prawna Wnioskodawcy",null,null,null,null,null,null,null,null,null,null,null,null,null,"85."]
["Forma własności",null,null,null,null,null,null,null,null,null,null,null,null,null,"86."]
["Kod PKD przeważającej działalności Wnioskodawcy",null,null,null,null,null,null,null,null,null,null,null,null,null,"87."]
["Kod PKD działalności, której dotyczy projekt",null,null,null,null,null,null,null,null,null,null,null,null,null,"88."]
["Kwalifikowalność VAT",null,null,null,null,null,null,null,null,null,null,null,null,null,"89."]
["Kraj pochodzenia kapitału zakładowego",null,null,null,null,null,null,null,null,null,null,null,null,null,"90."]
["Wnioskodawca jest od co najmniej 6 m-cy członkiem klastra, który uzyskał status Krajowego Klastra Kluczowego (KKK)",null,null,null,null,null,null,null,null,null,null,null,null,null,"91."]
["Data wstąpienia do KKK",null,null,null,null,null,null,null,null,null,null,null,null,null,"92.",{"$f":"IF($P$17=\"nie\",\"Nie dotyczy\",\" \")","v":" "}]
["Nazwa klastra:",null,null,null,null,"93.",{"$f":"IF($P$17=\"nie\",\"Nie dotyczy\",\" \")","v":" "}]
["Krótki opis Krajowego Klastra Kluczowego",null,null,null,null,"94.",{"$f":"IF($P$17=\"nie\",\"Nie dotyczy\",\" \")","v":" "}]
[]
[]
[]
[]
["2.  Status Wnioskodawcy"]
["Rodzaj przedsiębiorstwa",null,null,null,null,null,null,null,null,null,null,null,null,null,"95."]
["Status Wnioskodawcy",null,null,null,null,null,null,null,null,null,null,null,null,null,"96."]
[]
["3.  Adres siedziby"]
[]
["Województwo",null,null,null,null,null,"Powiat",null,null,null,null,null,"Gmina",null,null,null,null,"Miejscowość",null,null,null,null,"Kod pocztowy",null,null,null,null,"Poczta"]
["97.",null,null,null,null,null,"98.",null,null,null,null,null,"99.",null,null,null,null,"100.",null,null,null,null,"101.",null,null,null,null,"102."]
[]
["Ulica",null,null,null,null,null,"Nr budynku",null,null,null,null,null,"Nr lokalu",null,null,null,null,"Telefon",null,null,null,null,"Faks",null,null,null,null,"Adres e-mail"]
["103.",null,null,null,null,null,"104.",null,null,null,null,null,"105.",null,null,null,null,"106.",null,null,null,null,"107.",null,null,null,null,"108."]
[]
["Adres strony internetowej Wnioskodawcy",null,null,null,null,null,null,null,null,null,null,null,null,null,"109."]
[]
["4.  Reprezentacja Wnioskodawcy oraz dane do korespondencji"]
[]
["Osoba/y upoważniona/e do podpisania wniosku "]
["Liczba osób podpisujących wniosek o dofinansowanie",null,null,null,null,null,null,null,null,null,null,null,null,null,null,null,null,null,null,null,null,null,null,"110.",1]
["1. Imię i nazwisko",null,null,null,null,null,null,null,null,null,null,null,"Stanowisko ",null,null,null,null,null,null,null,null,null,null,null,"Numer telefonu"]
["111.",null,null,null,null,null,null,null,null,null,null,null,"112.",null,null,null,null,null,null,null,null,null,null,null,"113."]
["Numer faksu",null,null,null,null,null,null,null,null,null,null,null,"Adres e-mail"]
["114.",null,null,null,null,null,null,null,null,null,null,null,"115."]
["2. Imię i nazwisko",null,null,null,null,null,null,null,null,null,null,null,"Stanowisko ",null,null,null,null,null,null,null,null,null,null,null,"Numer telefonu"]
["116.",{"$f":"IF($Y$42=1,\"Nie dotyczy\",\" \")","v":"Nie dotyczy"},null,null,null,null,null,null,null,null,null,null,"117.",{"$f":"IF($Y$42=1,\"Nie dotyczy\",\" \")","v":"Nie dotyczy"},null,null,null,null,null,null,null,null,null,null,"118.",{"$f":"IF($Y$42=1,\"Nie dotyczy\",\" \")","v":"Nie dotyczy"}]
["Numer faksu",null,null,null,null,null,null,null,null,null,null,null,"Adres e-mail"]
["119.",{"$f":"IF($Y$42=1,\"Nie dotyczy\",\" \")","v":"Nie dotyczy"},null,null,null,null,null,null,null,null,null,null,"120.",{"$f":"IF($Y$42=1,\"Nie dotyczy\",\" \")","v":"Nie dotyczy"}]
["3. Imię i nazwisko",null,null,null,null,null,null,null,null,null,null,null,"Stanowisko ",null,null,null,null,null,null,null,null,null,null,null,"Numer telefonu"]
["121.",{"$f":"IF($Y$42=3,\" \",\"Nie dotyczy\")","v":"Nie dotyczy"},null,null,null,null,null,null,null,null,null,null,"122.",{"$f":"IF($Y$42=3,\" \",\"Nie dotyczy\")","v":"Nie dotyczy"},null,null,null,null,null,null,null,null,null,null,"123.",{"$f":"IF($Y$42=3,\" \",\"Nie dotyczy\")","v":"Nie dotyczy"}]
["Numer faksu",null,null,null,null,null,null,null,null,null,null,null,"Adres e-mail"]
["124.",{"$f":"IF($Y$42=3,\" \",\"Nie dotyczy\")","v":"Nie dotyczy"},null,null,null,null,null,null,null,null,null,null,"125.",{"$f":"IF($Y$42=3,\" \",\"Nie dotyczy\")","v":"Nie dotyczy"}]
[]
["Osoba/y upoważniona/e do kontaktu "]
["Liczba osób upoważnionych do kontaktu",null,null,null,null,null,null,null,null,null,null,null,null,null,null,null,null,null,null,null,null,null,null,"126.",1]
["1. Imię i nazwisko",null,null,null,null,null,null,null,null,null,null,null,"Stanowisko ",null,null,null,null,null,null,null,null,null,null,null,"Numer telefonu"]
["127.",null,null,null,null,null,null,null,null,null,null,null,"128.",null,null,null,null,null,null,null,null,null,null,null,"129."]
["Numer faksu",null,null,null,null,null,null,null,null,null,null,null,"Adres e-mail"]
["130.",null,null,null,null,null,null,null,null,null,null,null,"131."]
["2. Imię i nazwisko",null,null,null,null,null,null,null,null,null,null,null,"Stanowisko ",null,null,null,null,null,null,null,null,null,null,null,"Numer telefonu"]
["132.",{"$f":"IF($Y$57=1,\"Nie dotyczy\",\" \")","v":"Nie dotyczy"},null,null,null,null,null,null,null,null,null,null,"133.",{"$f":"IF($Y$57=1,\"Nie dotyczy\",\" \")","v":"Nie dotyczy"},null,null,null,null,null,null,null,null,null,null,"134.",{"$f":"IF($Y$57=1,\"Nie dotyczy\",\" \")","v":"Nie dotyczy"}]
["Numer faksu",null,null,null,null,null,null,null,null,null,null,null,"Adres e-mail"]
["135.",{"$f":"IF($Y$57=1,\"Nie dotyczy\",\" \")","v":"Nie dotyczy"},null,null,null,null,null,null,null,null,null,null,"136.",{"$f":"IF($Y$57=1,\"Nie dotyczy\",\" \")","v":"Nie dotyczy"}]
["3. Imię i nazwisko",null,null,null,null,null,null,null,null,null,null,null,"Stanowisko ",null,null,null,null,null,null,null,null,null,null,null,"Numer telefonu"]
["137.",{"$f":"IF($Y$57=3,\" \",\"Nie dotyczy\")","v":"Nie dotyczy"},null,null,null,null,null,null,null,null,null,null,"138.",{"$f":"IF($Y$57=3,\" \",\"Nie dotyczy\")","v":"Nie dotyczy"},null,null,null,null,null,null,null,null,null,null,"139.",{"$f":"IF($Y$57=3,\" \",\"Nie dotyczy\")","v":"Nie dotyczy"}]
["Numer faksu",null,null,null,null,null,null,null,null,null,null,null,"Adres e-mail"]
["140.",{"$f":"IF($Y$57=3,\" \",\"Nie dotyczy\")","v":"Nie dotyczy"},null,null,null,null,null,null,null,null,null,null,"141.",{"$f":"IF($Y$57=3,\" \",\"Nie dotyczy\")","v":"Nie dotyczy"}]
["Czy adres do korespondencji jest inny niż adres siedziby?",null,null,null,null,null,null,null,null,null,null,null,null,null,null,null,null,null,null,null,null,null,null,null,"142."]
["Adres korespondencyjny Wnioskodawcy (jeśli inny niż adres siedziby) "]
["Województwo",null,null,null,null,null,"Powiat",null,null,null,null,null,"Gmina",null,null,null,null,"Miejscowość",null,null,null,null,"Kod pocztowy",null,null,null,null,"Poczta"]
["143.",null,null,null,null,null,"144.",null,null,null,null,null,"145.",null,null,null,null,"146.",null,null,null,null,"147.",null,null,null,null,"148."]
[{"$f":"IF($Z$70=\"nie\",\"Nie dotyczy\",\" \")","v":" "},null,null,null,null,null,{"$f":"IF($Z$70=\"nie\",\"Nie dotyczy\",\" \")","v":" "},null,null,null,null,null,{"$f":"IF($Z$70=\"nie\",\"Nie dotyczy\",\" \")","v":" "},null,null,null,null,{"$f":"IF($Z$70=\"nie\",\"Nie dotyczy\",\" \")","v":" "},null,null,null,null,{"$f":"IF($Z$70=\"nie\",\"Nie dotyczy\",\" \")","v":" "},null,null,null,null,{"$f":"IF($Z$70=\"nie\",\"Nie dotyczy\",\" \")","v":" "}]
["Ulica",null,null,null,null,null,"Nr budynku",null,null,null,null,null,"Nr lokalu",null,null,null,null,"Telefon",null,null,null,null,"Faks",null,null,null,null,"Adres e-mail"]
["149.",null,null,null,null,null,"150.",null,null,null,null,null,"151.",null,null,null,null,"152.",null,null,null,null,"153.",null,null,null,null,"154."]
[{"$f":"IF($Z$70=\"nie\",\"Nie dotyczy\",\" \")","v":" "},null,null,null,null,null,{"$f":"IF($Z$70=\"nie\",\"Nie dotyczy\",\" \")","v":" "},null,null,null,null,null,{"$f":"IF($Z$70=\"nie\",\"Nie dotyczy\",\" \")","v":" "},null,null,null,null,{"$f":"IF($Z$70=\"nie\",\"Nie dotyczy\",\" \")","v":" "},null,null,null,null,{"$f":"IF($Z$70=\"nie\",\"Nie dotyczy\",\" \")","v":" "},null,null,null,null,{"$f":"IF($Z$70=\"nie\",\"Nie dotyczy\",\" \")","v":" "}]

{"sheet":"III. Cel i uzasadnienie realiza","index":5,"n_rows":180,"n_cols":38,"rows_kept":180,"cut":false,"hidden":false,"merged":[[134,6,147,8],[134,9,147,17],[134,18,147,21],[134,22,147,25],[134,26,147,28],[134,29,147,32],[134,33,147,33],[134,34,147,34],[134,35,147,35],[162,34,177,34],[162,35,177,35],[162,36,177,36],[178,34,192,34],[178,35,192,35],[178,36,192,36],[120,34,133,34],[120,35,133,35],[120,36,133,36],[148,34,161,34],[148,35,161,35],[148,36,161,36],[134,36,147,36],[20,34,36,34],[20,35,36,35],[20,36,36,36],[37,34,52,34],[37,35,52,35],[37,36,52,36],[106,33,119,33],[120,33,133,33],[148,33,161,33],[87,34,102,34],[87,35,102,35],[87,36,102,36],[106,34,119,34],[106,35,119,35],[106,36,119,36],[104,33,105,36],[53,34,67,34],[53,35,67,35],[53,36,67,36],[71,34,86,34],[71,35,86,35],[71,36,86,36],[68,33,70,36],[162,33,177,33],[178,33,192,33],[20,33,36,33],[37,33,52,33],[53,33,67,33],[71,33,86,33],[87,33,102,33],[6,0,19,32],[0,33,0,36],[4,33,19,33],[4,34,19,34],[4,35,19,35],[4,36,19,36],[2,33,3,36],[106,26,119,28],[106,29,119,32],[89,0,102,32],[73,0,86,32],[54,1,67,32],[54,0,67,0],[106,0,119,5],[106,6,119,8],[106,9,119,17],[106,18,119,21],[106,22,119,25],[179,1,192,32],[179,0,192,0],[164,1,177,32],[164,0,177,0],[148,0,161,5],[148,6,161,8],[148,9,161,17],[148,18,161,21],[148,22,161,25],[148,26,161,28],[148,29,161,32],[162,0,162,13],[162,15,162,32],[163,0,163,32],[178,0,178,32],[120,0,133,5],[120,6,133,8],[120,9,133,17],[120,18,133,21],[120,22,133,25],[120,26,133,28],[120,29,133,32],[134,0,147,5],[87,0,87,13],[88,1,88,32],[87,15,87,32],[71,15,71,32],[104,29,104,32],[105,0,105,5],[105,6,105,8],[105,9,105,17],[105,18,105,21],[105,22,105,25],[105,26,105,28],[105,29,105,32],[104,0,104,5],[104,6,104,8],[104,9,104,17],[104,18,104,21],[104,22,104,25],[104,26,104,28],[103,0,103,23],[103,25,103,32],[68,0,68,32],[69,0,69,32],[70,0,70,32],[71,0,71,13],[72,1,72,32],[0,0,0,32],[1,0,1,32],[2,0,2,32],[3,0,3,32],[4,0,4,13],[53,0,53,32],[5,1,5,32],[20,0,20,32],[21,0,21,13],[22,1,22,32],[37,0,37,13],[38,1,38,32],[39,0,52,32],[23,0,36,32],[4,15,4,32],[21,15,21,32],[37,15,37,32],[148,37,161,37],[162,37,177,37],[178,37,192,37],[4,37,19,37],[20,37,36,37],[37,37,52,37],[53,37,67,37],[71,37,86,37],[87,37,102,37],[106,37,119,37],[120,37,133,37],[134,37,147,37]]}
["III. CEL I UZASADNIENIE REALIZACJI PROJEKTU",null,null,null,null,null,null,null,null,null,null,null,null,null,null,null,null,null,null,null,null,null,null,null,null,null,null,null,null,null,null,null,null,"Uwagi/komentarze Ekspertów"]
[null,null,null,null,null,null,null,null,null,null,null,null,null,null,null,null,null,null,null,null,null,null,null,null,null,null,null,null,null,null,null,null,null,{"$f":"'I. Informacje ogólne o projekci'!$AH$2","v":"Ekspert od innowacyjności 1"},{"$f":"'I. Informacje ogólne o projekci'!$AI$2","v":"Ekspert od innowacyjności 2"},{"$f":"'I. Informacje ogólne o projekci'!$AJ$2","v":"Ekspert od innowacyjności 3"},{"$f":"'I. Informacje ogólne o projekci'!$AK$2","v":"Ekspert finansowy"},{"$f":"'I. Informacje ogólne o projekci'!$AL$2","v":"Uwagi MFiPR"}]
["1. Planowany rodzaj inwestycji"]
[]
["Rodzaj planowanej inwestycji",null,null,null,null,null,null,null,null,null,null,null,null,null,"155."]
["156.","Uzasadnienie/opis:"]
[]
[]
[]
[]
[]
[]
[]
[]
[]
[]
[]
[]
[]
[]
["Efekt realizacji agendy badawczej"]
["Innowacja produktowa",null,null,null,null,null,null,null,null,null,null,null,null,null,"157."]
["158.","Uzasadnienie/opis:"]
[{"$f":"IF($P$22=\"NIE\",\"Nie dotyczy\",\" \")","v":" "}]
[]
[]
[]
[]
[]
[]
[]
[]
[]
[]
[]
[]
[]
["Innowacja procesowa",null,null,null,null,null,null,null,null,null,null,null,null,null,"159."]
["160.","Uzasadnienie/opis:"]
[{"$f":"IF($P$38=\"NIE\",\"Nie dotyczy\",\" \")","v":" "}]
[]
[]
[]
[]
[]
[]
[]
[]
[]
[]
[]
[]
[]
["Cel i uzasadnienie realizacji projektu"]
["161."]
[]
[]
[]
[]
[]
[]
[]
[]
[]
[]
[]
[]
[]
[]
["2. Sposoby ochrony własności intelektualnej"]
[]
["Czy kwestia praw własności intelektualnej nie stanowi bariery do realizacji agendy badawczej?",null,null,null,null,null,null,null,null,null,null,null,null,null,"162."]
["163.","Uzasadnienie/opis:"]
[]
[]
[]
[]
[]
[]
[]
[]
[]
[]
[]
[]
[]
[]
["Czy do dnia złożenia wniosku zostały opublikowane przez inne podmioty lub Wnioskodawcę wyniki prac B+R/rozwiązania/technologie związane z przedmiotem projektu?",null,null,null,null,null,null,null,null,null,null,null,null,null,"164."]
["165.","Uzasadnienie/opis:"]
[]
[]
[]
[]
[]
[]
[]
[]
[]
[]
[]
[]
[]
[]
["Czy do realizacji zaplanowanych w agendzie prac B+R niezbędne jest dysponowanie prawami własności intelektualnej",null,null,null,null,null,null,null,null,null,null,null,null,null,null,null,null,null,null,null,null,null,null,null,"166."]
["Własność intelektualna niezbędna do realizacji zaplanowanych w agendzie prac B+R",null,null,null,null,null,"Status",null,null,"Opis przedmiotu objętego prawem własności intelektualnej",null,null,null,null,null,null,null,null,"Kraj zgłoszenia",null,null,null,"Kraj uzyskania",null,null,null,"Data",null,null,"Czy Wnioskodawca dysponuje wskazanym prawem własności intelektualnej?"]
["167.",null,null,null,null,null,"168.",null,null,"169.",null,null,null,null,null,null,null,null,"170.",null,null,null,"171.",null,null,null,"172.",null,null,"173."]
[{"$f":"IF($Z$104=\"nie\",\"nie jest konieczne dysponowanie prawami własności intelektualnej\",\" \")","v":" "},null,null,null,null,null,{"$f":"IF($A107=\"nie jest konieczne dysponowanie prawami własności intelektualnej\",\"Nie dotyczy\",\" \")","v":" "},null,null,{"$f":"IF($A107=\"nie jest konieczne dysponowanie prawami własności intelektualnej\",\"Nie dotyczy\",\" \")","v":" "},null,null,null,null,null,null,null,null,{"$f":"IF($A107=\"nie jest konieczne dysponowanie prawami własności intelektualnej\",\"Nie dotyczy\",\" \")","v":" "},null,null,null,{"$f":"IF($A107=\"nie jest konieczne dysponowanie prawami własności intelektualnej\",\"Nie dotyczy\",\" \")","v":" "},null,null,null,{"$f":"IF($A107=\"nie jest konieczne dysponowanie prawami własności intelektualnej\",\"Nie dotyczy\",\" \")","v":" "},null,null,{"$f":"IF($A107=\"nie jest konieczne dysponowanie prawami własności intelektualnej\",\"Nie dotyczy\",\" \")","v":" "}]
[]
[]
[]
[]
[]
[]
[]
[]
[]
[]
[]
[]
[]
[{"$f":"IF($Z$104=\"nie\",\"nie jest konieczne dysponowanie prawami własności intelektualnej\",\" \")","v":" "},null,null,null,null,null,{"$f":"IF($A121=\"nie jest konieczne dysponowanie prawami własności intelektualnej\",\"Nie dotyczy\",\" \")","v":" "},null,null,{"$f":"IF($A121=\"nie jest konieczne dysponowanie prawami własności intelektualnej\",\"Nie dotyczy\",\" \")","v":" "},null,null,null,null,null,null,null,null,{"$f":"IF($A121=\"nie jest konieczne dysponowanie prawami własności intelektualnej\",\"Nie dotyczy\",\" \")","v":" "},null,null,null,{"$f":"IF($A121=\"nie jest konieczne dysponowanie prawami własności intelektualnej\",\"Nie dotyczy\",\" \")","v":" "},null,null,null,{"$f":"IF($A121=\"nie jest konieczne dysponowanie prawami własności intelektualnej\",\"Nie dotyczy\",\" \")","v":" "},null,null,{"$f":"IF($A121=\"nie jest konieczne dysponowanie prawami własności intelektualnej\",\"Nie dotyczy\",\" \")","v":" "}]
[]
[]
[]
[]
[]
[]
[]
[]
[]
[]
[]
[]
[]
[{"$f":"IF($Z$104=\"nie\",\"nie jest konieczne dysponowanie prawami własności intelektualnej\",\" \")","v":" "},null,null,null,null,null,{"$f":"IF($A135=\"nie jest konieczne dysponowanie prawami własności intelektualnej\",\"Nie dotyczy\",\" \")","v":" "},null,null,{"$f":"IF($A135=\"nie jest konieczne dysponowanie prawami własności intelektualnej\",\"Nie dotyczy\",\" \")","v":" "},null,null,null,null,null,null,null,null,{"$f":"IF($A135=\"nie jest konieczne dysponowanie prawami własności intelektualnej\",\"Nie dotyczy\",\" \")","v":" "},null,null,null,{"$f":"IF($A135=\"nie jest konieczne dysponowanie prawami własności intelektualnej\",\"Nie dotyczy\",\" \")","v":" "},null,null,null,{"$f":"IF($A135=\"nie jest konieczne dysponowanie prawami własności intelektualnej\",\"Nie dotyczy\",\" \")","v":" "},null,null,{"$f":"IF($A135=\"nie jest konieczne dysponowanie prawami własności intelektualnej\",\"Nie dotyczy\",\" \")","v":" "}]
[]
[]
[]
[]
[]
[]
[]
[]
[]
[]
[]
[]
[]
[{"$f":"IF($Z$104=\"nie\",\"nie jest konieczne dysponowanie prawami własności intelektualnej\",\" \")","v":" "},null,null,null,null,null,{"$f":"IF($A149=\"nie jest konieczne dysponowanie prawami własności intelektualnej\",\"Nie dotyczy\",\" \")","v":" "},null,null,{"$f":"IF($A149=\"nie jest konieczne dysponowanie prawami własności intelektualnej\",\"Nie dotyczy\",\" \")","v":" "},null,null,null,null,null,null,null,null,{"$f":"IF($A149=\"nie jest konieczne dysponowanie prawami własności intelektualnej\",\"Nie dotyczy\",\" \")","v":" "},null,null,null,{"$f":"IF($A149=\"nie jest konieczne dysponowanie prawami własności intelektualnej\",\"Nie dotyczy\",\" \")","v":" "},null,null,null,{"$f":"IF($A149=\"nie jest konieczne dysponowanie prawami własności intelektualnej\",\"Nie dotyczy\",\" \")","v":" "},null,null,{"$f":"IF($A149=\"nie jest konieczne dysponowanie prawami własności intelektualnej\",\"Nie dotyczy\",\" \")","v":" "}]
[]
[]
[]
[]
[]
[]
[]
[]
[]
[]
[]
[]
[]
["Czy w projekcie przewidziano sposoby ochrony własności intelektualnej?",null,null,null,null,null,null,null,null,null,null,null,null,null,"174."]
["Przyjęty w projekcie sposób ochrony własności intelektualnej"]
["175.",{"$f":"IF($P$163=\"nie\",\"Nie dotyczy\",\" \")","v":" "}]
[]
[]
[]
[]
[]
[]
[]
[]
[]
[]
[]
[]
[]
["Strategia zarządzania własnością intelektualną w projekcie."]
["176.",{"$f":"IF($P$163=\"nie\",\"Nie dotyczy\",\" \")","v":" "}]

{"sheet":"IV. Zdolność do realizacji","index":6,"n_rows":784,"n_cols":39,"rows_kept":784,"cut":false,"hidden":false,"merged":[[646,9,652,13],[728,34,734,34],[707,33,708,33],[709,33,710,33],[711,33,712,33],[707,34,713,34],[705,21,705,26],[705,27,705,32],[704,0,704,32],[728,21,734,26],[707,0,713,3],[707,4,713,8],[707,9,713,13],[547,33,549,33],[550,33,552,33],[553,33,555,33],[621,33,622,33],[625,33,626,33],[627,33,628,33],[629,33,630,33],[706,9,706,13],[706,14,706,20],[706,21,706,26],[706,27,706,32],[653,21,659,26],[653,27,659,32],[632,0,638,3],[632,4,638,8],[632,9,638,13],[632,21,638,26],[624,27,624,32],[623,27,623,32],[623,0,623,3],[624,21,624,26],[625,15,625,20],[610,0,610,9],[610,10,610,18],[610,19,610,25],[610,26,610,32],[613,26,613,32],[611,0,611,9],[623,4,623,8],[624,4,624,8],[623,9,623,13],[624,9,624,13],[623,14,623,20],[624,14,624,20],[611,10,611,18],[611,19,611,25],[611,26,611,32],[618,0,618,32],[619,0,619,32],[575,1,586,32],[575,0,586,0],[569,0,569,32],[625,27,631,32],[620,0,620,32],[621,0,621,25],[621,27,621,32],[622,0,622,32],[612,0,612,9],[612,10,612,18],[612,19,612,25],[612,26,612,32],[613,0,613,9],[613,10,613,18],[613,19,613,25],[616,0,616,9],[616,10,616,18],[616,19,616,25],[616,26,616,32],[617,0,617,9],[617,10,617,18],[617,19,617,25],[617,26,617,32],[614,0,614,9],[614,10,614,18],[614,19,614,25],[614,26,614,32],[615,0,615,9],[615,10,615,18],[615,19,615,25],[615,26,615,32],[624,0,624,3],[590,0,601,32],[608,0,608,9],[608,10,608,18],[608,19,608,25],[608,26,608,32],[609,0,609,9],[609,10,609,18],[602,0,602,32],[587,0,587,25],[587,27,587,32],[588,0,588,32],[609,19,609,25],[603,0,603,32],[604,0,604,32],[605,0,605,25],[605,27,605,32],[607,0,607,32],[606,0,606,32],[609,26,609,32],[589,1,589,32],[574,0,574,32],[570,0,570,5],[570,6,570,14],[570,15,570,23],[570,24,570,32],[571,0,571,5],[571,7,571,14],[571,16,571,23],[571,25,571,32],[573,0,573,32],[568,0,568,5],[568,7,568,14],[568,16,568,23],[568,25,568,32],[565,0,565,32],[566,6,566,14],[566,15,566,23],[566,24,566,32],[566,0,566,5],[567,7,567,14],[567,16,567,23],[567,25,567,32],[567,0,567,5],[572,0,572,5],[572,7,572,14],[572,16,572,23],[572,25,572,32],[545,0,545,24],[545,26,545,32],[550,0,550,32],[551,0,551,11],[551,12,551,23],[551,24,551,32],[549,25,549,32],[564,13,564,23],[564,25,564,32],[558,1,558,11],[558,13,558,23],[564,1,564,11],[563,0,563,11],[563,12,563,23],[563,24,563,32],[552,25,552,32],[553,0,553,32],[554,0,554,11],[554,12,554,23],[561,13,561,23],[561,25,561,32],[562,0,562,32],[555,13,555,23],[555,25,555,32],[556,0,556,32],[557,0,557,11],[557,12,557,23],[557,24,557,32],[552,1,552,11],[552,13,552,23],[549,13,549,23],[516,8,516,11],[520,8,520,11],[521,8,521,11],[522,8,522,11],[523,8,523,11],[521,27,521,32],[513,12,513,14],[513,0,513,3],[523,27,523,32],[464,17,464,32],[332,0,332,32],[523,12,523,14],[516,15,516,26],[520,15,520,26],[521,15,521,26],[522,15,522,26],[523,15,523,26],[520,0,520,3],[520,27,520,32],[521,0,521,3],[510,0,511,3],[510,27,511,32],[510,4,510,11],[511,8,511,11],[345,0,345,32],[358,0,358,32],[346,0,357,0],[435,1,446,32],[462,0,462,32],[465,0,465,32],[478,0,478,32],[491,0,491,32],[510,15,511,26],[416,0,416,32],[466,0,477,0],[466,1,477,32],[359,0,370,0],[359,1,370,32],[506,0,506,32],[507,0,507,32],[508,0,508,32],[509,0,509,32],[196,1,196,15],[196,17,196,32],[197,0,197,32],[211,0,211,32],[479,1,490,32],[198,0,202,0],[198,1,202,32],[203,0,210,0],[203,1,210,32],[463,0,463,15],[463,16,463,32],[464,1,464,15],[283,1,283,32],[404,1,415,32],[417,1,417,32],[376,17,376,32],[511,4,511,7],[510,12,511,14],[504,0,504,32],[505,1,505,32],[241,0,241,15],[241,16,241,32],[195,0,195,15],[195,16,195,32],[163,0,163,15],[163,16,163,32],[164,1,164,15],[164,17,164,32],[165,0,165,32],[166,0,170,0],[224,0,224,32],[225,1,225,32],[5,0,5,32],[19,0,19,32],[32,0,32,32],[0,0,0,32],[1,0,1,32],[2,0,2,32],[3,0,3,15],[4,1,4,15],[4,17,4,32],[3,16,3,32],[6,0,10,0],[6,1,10,32],[11,0,18,0],[11,1,18,32],[20,1,31,32],[20,0,31,0],[130,0,130,32],[212,0,223,0],[212,1,223,32],[70,0,74,0],[70,1,74,32],[83,0,83,32],[0,34,1,37],[3,34,5,34],[3,35,5,35],[3,36,5,36],[3,37,5,37],[6,34,10,34],[11,34,18,34],[19,34,31,34],[32,34,33,34],[6,36,10,36],[6,37,10,37],[11,36,18,36],[11,37,18,37],[19,36,31,36],[19,37,31,37],[32,36,33,36],[32,37,33,37],[6,35,10,35],[11,35,18,35],[19,35,31,35],[32,35,33,35],[192,37,193,37],[160,35,161,35],[179,35,191,35],[33,1,33,32],[131,0,131,15],[131,16,131,32],[134,0,138,0],[134,1,138,32],[139,0,146,0],[139,1,146,32],[148,0,159,0],[148,1,159,32],[162,0,162,32],[132,1,132,15],[132,17,132,32],[133,0,133,32],[179,36,191,36],[171,34,178,34],[160,36,161,36],[160,37,161,37],[179,0,179,32],[192,0,192,32],[193,1,193,32],[130,34,130,37],[131,37,133,37],[134,35,138,35],[134,36,138,36],[134,37,138,37],[139,35,146,35],[139,36,146,36],[139,37,146,37],[147,35,159,35],[377,0,377,32],[403,0,403,32],[418,0,418,32],[421,0,421,32],[447,0,447,32],[284,0,284,32],[288,0,288,32],[314,0,314,32],[270,1,281,32],[435,0,446,0],[346,1,357,32],[285,0,285,32],[286,0,286,15],[286,16,286,32],[419,0,419,15],[419,16,419,32],[244,1,255,32],[244,0,255,0],[257,1,268,32],[257,0,268,0],[327,0,327,32],[330,16,330,32],[331,1,331,15],[331,17,331,32],[329,0,329,32],[371,0,371,32],[147,36,159,36],[147,37,159,37],[131,35,133,35],[166,1,170,32],[195,35,197,35],[179,34,191,34],[194,34,194,37],[131,34,133,34],[134,34,138,34],[139,34,146,34],[147,34,159,34],[131,36,133,36],[147,0,147,32],[160,0,160,32],[161,1,161,32],[171,0,178,0],[171,1,178,32],[180,0,191,0],[180,1,191,32],[194,0,194,32],[179,37,191,37],[192,35,193,35],[192,36,193,36],[163,35,165,35],[163,36,165,36],[163,37,165,37],[166,35,170,35],[166,36,170,36],[166,37,170,37],[171,35,178,35],[171,36,178,36],[171,37,178,37],[229,34,238,34],[229,35,238,35],[229,36,238,36],[229,37,238,37],[241,36,242,36],[241,37,242,37],[242,17,242,32],[282,0,282,32],[242,1,242,15],[229,0,229,32],[373,0,373,32],[256,37,268,37],[269,35,281,35],[243,35,255,35],[239,34,240,37],[289,0,300,0],[289,1,300,32],[301,0,301,32],[301,34,313,34],[301,35,313,35],[301,36,313,36],[301,37,313,37],[198,34,202,34],[419,34,420,34],[549,1,549,11],[492,0,503,0],[492,1,503,32],[513,27,513,32],[512,0,512,3],[512,27,512,32],[512,4,512,7],[513,4,513,7],[512,15,512,26],[513,15,513,26],[513,8,513,11],[512,8,512,11],[526,25,526,32],[514,0,514,3],[514,4,514,7],[515,4,515,7],[526,0,526,23],[514,15,514,26],[515,15,515,26],[525,0,525,23],[512,12,512,14],[514,8,514,11],[522,0,522,3],[522,27,522,32],[523,0,523,3],[516,4,516,7],[516,12,516,14],[515,8,515,11],[520,4,520,7],[521,4,521,7],[522,4,522,7],[523,4,523,7],[390,34,402,34],[230,1,230,32],[240,0,240,32],[374,0,374,32],[243,34,255,34],[256,34,268,34],[269,34,281,34],[282,34,283,34],[332,34,344,34],[345,34,357,34],[358,34,370,34],[371,34,372,34],[330,34,331,34],[270,0,281,0],[333,0,344,0],[329,34,329,37],[463,34,464,34],[371,37,372,37],[376,1,376,15],[377,36,389,36],[377,37,389,37],[373,34,374,37],[375,34,376,34],[375,35,376,35],[463,35,464,35],[463,36,464,36],[447,35,459,35],[447,36,459,36],[447,37,459,37],[460,34,461,34],[162,34,162,37],[160,34,161,34],[163,34,165,34],[166,34,170,34],[198,35,202,35],[198,36,202,36],[198,37,202,37],[192,34,193,34],[195,34,197,34],[203,35,210,35],[241,34,242,34],[241,35,242,35],[463,37,464,37],[269,36,281,36],[269,37,281,37],[282,35,283,35],[282,36,283,36],[371,36,372,36],[377,35,389,35],[377,34,389,34],[226,34,226,37],[462,34,462,37],[358,36,370,36],[358,37,370,37],[371,35,372,35],[330,35,331,35],[330,36,331,36],[330,37,331,37],[286,34,287,34],[286,35,287,35],[286,36,287,36],[286,37,287,37],[606,34,608,37],[602,34,604,37],[491,34,503,34],[460,35,461,35],[460,36,461,36],[460,37,461,37],[434,37,446,37],[418,34,418,37],[504,37,505,37],[465,35,477,35],[573,34,573,37],[574,36,586,36],[632,35,638,35],[632,36,638,36],[632,37,638,37],[639,35,645,35],[609,34,610,34],[588,34,601,34],[565,34,565,37],[546,34,546,37],[509,34,511,37],[512,35,513,35],[574,35,586,35],[506,34,506,37],[507,34,507,37],[508,34,508,37],[524,34,524,37],[491,36,503,36],[465,34,477,34],[531,35,543,35],[531,36,543,36],[531,37,543,37],[527,34,529,37],[491,35,503,35],[504,34,505,34],[512,34,513,34],[531,34,543,34],[512,36,513,36],[512,37,513,37],[465,36,477,36],[465,37,477,37],[478,35,490,35],[478,36,490,36],[478,37,490,37],[660,36,666,36],[660,37,666,37],[660,34,666,34],[660,35,666,35],[491,37,503,37],[504,35,505,35],[504,36,505,36],[574,34,586,34],[622,34,623,37],[618,34,620,37],[574,37,586,37],[569,34,570,37],[478,34,490,34],[588,35,601,35],[588,36,601,36],[588,37,601,37],[624,37,631,37],[624,34,631,34],[646,34,652,34],[653,34,659,34],[515,12,515,14],[527,0,527,32],[528,0,528,32],[529,0,529,32],[532,0,543,32],[544,26,544,32],[546,0,546,32],[524,0,524,11],[516,0,516,3],[516,27,516,32],[520,12,520,14],[521,12,521,14],[522,12,522,14],[624,35,631,35],[646,36,652,36],[646,37,652,37],[554,24,554,32],[559,0,559,32],[560,0,560,11],[632,27,638,32],[639,0,645,3],[639,4,645,8],[639,9,645,13],[639,21,645,26],[639,27,645,32],[632,34,638,34],[639,34,645,34],[646,0,652,3],[646,4,652,8],[609,35,610,35],[609,36,610,36],[609,37,610,37],[735,35,741,35],[735,36,741,36],[735,37,741,37],[742,35,748,35],[742,36,748,36],[742,37,748,37],[681,9,687,13],[681,21,687,26],[681,27,687,32],[702,0,702,32],[695,0,701,3],[695,4,701,8],[695,9,701,13],[695,21,701,26],[705,0,705,3],[705,4,705,8],[705,9,705,13],[705,14,705,20],[721,0,727,3],[721,27,727,32],[735,27,741,32],[714,0,720,3],[681,0,687,3],[706,0,706,3],[691,15,691,20],[692,15,692,20],[693,15,693,20],[694,15,694,20],[695,15,695,20],[696,15,696,20],[697,15,697,20],[698,15,698,20],[653,35,659,35],[653,36,659,36],[653,37,659,37],[646,35,652,35],[625,0,631,3],[625,4,631,8],[625,9,631,13],[625,21,631,26],[728,9,734,13],[742,0,748,3],[742,4,748,8],[742,9,748,13],[742,21,748,26],[742,27,748,32],[34,0,34,32],[34,34,34,37],[35,0,35,15],[35,16,35,32],[35,34,37,34],[35,35,37,35],[35,36,37,36],[35,37,37,37],[36,1,36,15],[36,17,36,32],[37,0,37,32],[38,0,42,0],[38,1,42,32],[38,34,42,34],[38,35,42,35],[38,36,42,36],[38,37,42,37],[43,1,50,32],[43,34,50,34],[43,35,50,35],[43,36,50,36],[646,21,652,26],[646,27,652,32],[639,36,645,36],[639,37,645,37],[624,36,631,36],[742,34,748,34],[707,35,713,35],[707,36,713,36],[43,37,50,37],[51,0,51,32],[51,34,63,34],[51,35,63,35],[51,36,63,36],[51,37,63,37],[52,0,63,0],[52,1,63,32],[519,0,519,3],[519,4,519,7],[519,8,519,11],[519,12,519,14],[519,15,519,26],[519,27,519,32],[43,0,50,0],[517,0,517,3],[517,4,517,7],[517,8,517,11],[517,12,517,14],[517,15,517,26],[517,27,517,32],[518,0,518,3],[518,4,518,7],[518,8,518,11],[518,12,518,14],[518,15,518,26],[518,27,518,32],[514,12,514,14],[728,0,734,3],[64,0,64,32],[64,34,65,34],[64,35,65,35],[64,36,65,36],[64,37,65,37],[65,1,65,32],[66,0,66,32],[66,34,66,37],[67,0,67,15],[67,16,67,32],[67,34,69,34],[67,35,69,35],[67,36,69,36],[67,37,69,37],[68,1,68,15],[68,17,68,32],[69,0,69,32],[83,34,95,34],[83,35,95,35],[83,36,95,36],[83,37,95,37],[84,0,95,0],[84,1,95,32],[96,0,96,32],[96,34,97,34],[96,35,97,35],[96,36,97,36],[96,37,97,37],[97,1,97,32],[70,36,74,36],[70,37,74,37],[75,0,82,0],[75,1,82,32],[75,34,82,34],[75,35,82,35],[75,36,82,36],[75,37,82,37],[70,34,74,34],[70,35,74,35],[102,0,106,0],[102,1,106,32],[102,34,106,34],[102,35,106,35],[102,36,106,36],[102,37,106,37],[195,36,197,36],[195,37,197,37],[107,0,114,0],[107,1,114,32],[107,34,114,34],[107,35,114,35],[107,36,114,36],[107,37,114,37],[98,0,98,32],[98,34,98,37],[99,0,99,15],[99,16,99,32],[99,34,101,34],[99,35,101,35],[99,36,101,36],[99,37,101,37],[100,1,100,15],[100,17,100,32],[101,0,101,32],[115,0,115,32],[115,34,127,34],[115,35,127,35],[115,36,127,36],[115,37,127,37],[116,0,127,0],[116,1,127,32],[128,0,128,32],[128,34,129,34],[128,35,129,35],[128,36,129,36],[128,37,129,37],[129,1,129,32],[203,34,210,34],[211,34,223,34],[203,36,210,36],[203,37,210,37],[211,35,223,35],[211,36,223,36],[228,0,228,32],[226,0,226,32],[239,0,239,32],[419,37,420,37],[420,1,420,15],[420,17,420,32],[403,34,415,34],[403,35,415,35],[403,36,415,36],[403,37,415,37],[404,0,415,0],[287,1,287,15],[287,17,287,32],[211,37,223,37],[224,35,225,35],[224,36,225,36],[224,37,225,37],[224,34,225,34],[243,36,255,36],[243,37,255,37],[256,35,268,35],[256,36,268,36],[288,34,300,34],[288,35,300,35],[288,36,300,36],[288,37,300,37],[227,34,227,37],[243,0,243,32],[256,0,256,32],[269,0,269,32],[231,1,238,32],[230,0,238,0],[227,0,227,32],[391,0,402,0],[391,1,402,32],[302,0,313,0],[302,1,313,32],[345,37,357,37],[390,35,402,35],[358,35,370,35],[375,0,375,15],[375,16,375,32],[372,1,372,32],[378,0,389,0],[378,1,389,32],[390,0,390,32],[390,36,402,36],[390,37,402,37],[375,36,376,36],[375,37,376,37],[282,37,283,37],[332,35,344,35],[332,36,344,36],[332,37,344,37],[345,35,357,35],[345,36,357,36],[284,34,285,37],[228,34,228,37],[461,1,461,32],[421,34,433,34],[421,35,433,35],[421,36,433,36],[421,37,433,37],[422,0,433,0],[422,1,433,32],[434,0,434,32],[434,34,446,34],[434,35,446,35],[434,36,446,36],[314,34,326,34],[314,35,326,35],[314,36,326,36],[314,37,326,37],[315,0,326,0],[315,1,326,32],[333,1,344,32],[330,0,330,15],[327,34,328,34],[327,35,328,35],[327,36,328,36],[327,37,328,37],[328,1,328,32],[416,34,417,34],[416,35,417,35],[416,36,417,36],[416,37,417,37],[447,34,459,34],[448,0,459,0],[448,1,459,32],[419,35,420,35],[419,36,420,36],[660,0,666,3],[660,4,666,8],[660,9,666,13],[660,21,666,26],[660,27,666,32],[623,21,623,26],[460,0,460,32],[524,12,524,14],[524,15,524,32],[514,27,514,32],[558,25,558,32],[515,0,515,3],[515,27,515,32],[530,0,530,25],[530,27,530,32],[531,1,531,32],[544,0,544,24],[547,0,547,32],[548,0,548,11],[548,12,548,23],[548,24,548,32],[525,25,525,32],[653,0,659,3],[653,4,659,8],[653,9,659,13],[479,0,490,0],[560,12,560,23],[560,24,560,32],[555,1,555,11],[561,1,561,11],[638,15,638,20],[667,34,673,34],[667,35,673,35],[704,34,705,37],[714,34,720,34],[721,34,727,34],[695,35,701,35],[695,36,701,36],[695,37,701,37],[626,15,626,20],[627,15,627,20],[628,15,628,20],[629,15,629,20],[630,15,630,20],[631,15,631,20],[695,27,701,32],[735,34,741,34],[728,4,734,8],[667,36,673,36],[667,37,673,37],[714,4,720,8],[714,9,720,13],[707,21,713,26],[707,27,713,32],[681,4,687,8],[706,4,706,8],[695,34,701,34],[632,15,632,20],[633,15,633,20],[634,15,634,20],[635,15,635,20],[636,15,636,20],[637,15,637,20],[674,0,680,3],[674,4,680,8],[674,9,680,13],[674,21,680,26],[674,27,680,32],[674,34,680,34],[674,35,680,35],[674,36,680,36],[674,37,680,37],[667,0,673,3],[667,4,673,8],[667,9,673,13],[667,21,673,26],[667,27,673,32],[680,15,680,20],[721,36,727,36],[714,21,720,26],[714,27,720,32],[681,34,687,34],[681,35,687,35],[681,36,687,36],[681,37,687,37],[688,0,694,3],[688,4,694,8],[688,9,694,13],[688,21,694,26],[688,27,694,32],[688,34,694,34],[688,35,694,35],[688,36,694,36],[688,37,694,37],[721,37,727,37],[749,0,755,3],[749,4,755,8],[749,9,755,13],[749,21,755,26],[749,27,755,32],[749,34,755,34],[749,35,755,35],[749,36,755,36],[749,37,755,37],[735,4,741,8],[735,0,741,3],[703,0,703,25],[703,27,703,32],[702,34,702,37],[721,4,727,8],[721,9,727,13],[721,21,727,26],[728,27,734,32],[728,35,734,35],[728,36,734,36],[728,37,734,37],[735,9,741,13],[735,21,741,26],[720,15,720,20],[721,15,721,20],[722,15,722,20],[723,15,723,20],[707,37,713,37],[714,35,720,35],[714,36,720,36],[714,37,720,37],[721,35,727,35],[777,0,783,3],[777,4,783,8],[777,9,783,13],[777,21,783,26],[777,27,783,32],[777,34,783,34],[777,35,783,35],[777,36,783,36],[777,37,783,37],[770,0,776,3],[770,4,776,8],[770,9,776,13]],"merged_total":1244,"flags":["merged_cut"]}
["IV. ZDOLNOŚĆ WNIOSKODAWCY DO REALIZACJI PROJEKTU",null,null,null,null,null,null,null,null,null,null,null,null,null,null,null,null,null,null,null,null,null,null,null,null,null,null,null,null,null,null,null,null,null,"Uwagi/komentarze Ekspertów"]
["1. Potencjał kadrowy B+R"]
["Kadra pozostająca w dyspozycji Wnioskodawcy",null,null,null,null,null,null,null,null,null,null,null,null,null,null,null,null,null,null,null,null,null,null,null,null,null,null,null,null,null,null,null,null,null,{"$f":"'I. Informacje ogólne o projekci'!$AH$2","v":"Ekspert od innowacyjności 1"},{"$f":"'I. Informacje ogólne o projekci'!$AI$2","v":"Ekspert od innowacyjności 2"},{"$f":"'I. Informacje ogólne o projekci'!$AJ$2","v":"Ekspert od innowacyjności 3"},{"$f":"'I. Informacje ogólne o projekci'!$AK$2","v":"Ekspert finansowy"},{"$f":"'I. Informacje ogólne o projekci'!$AL$2","v":"Uwagi MFiPR"}]
["Imię i Nazwisko",null,null,null,null,null,null,null,null,null,null,null,null,null,null,null,"Wykształcenie",null,null,null,null,null,null,null,null,null,null,null,null,null,null,null,null," "]
["177.",null,null,null,null,null,null,null,null,null,null,null,null,null,null,null,"178."]
["Doświadczenie zawodowe (szczególnie w pracach B+R)"]
["179."]
[]
[]
[]
[]
["180.","Publikacja 1\n\nPublikacja 2\n\nPublikacja 3"]
[]
[]
[]
[]
[]
[]
[]
["Rola w projekcie"]
["181."]
[]
[]
[]
[]
[]
[]
[]
[]
[]
[]
[]
["Forma zatrudnienia i wymiar zatrudnienia w CBR"]
["182."]
[]
["Imię i Nazwisko",null,null,null,null,null,null,null,null,null,null,null,null,null,null,null,"Wykształcenie"]
["177.",null,null,null,null,null,null,null,null,null,null,null,null,null,null,null,"178."]
["Doświadczenie zawodowe (szczególnie w pracach B+R)"]
["179."]
[]
[]
[]
[]
["180.","Publikacja 1\n\nPublikacja 2\n\nPublikacja 3"]
[]
[]
[]
[]
[]
[]
[]
["Rola w projekcie"]
["181."]
[]
[]
[]
[]
[]
[]
[]
[]
[]
[]
[]
["Forma zatrudnienia i wymiar zatrudnienia w CBR"]
["182."]
[]
["Imię i Nazwisko",null,null,null,null,null,null,null,null,null,null,null,null,null,null,null,"Wykształcenie"]
["177.",null,null,null,null,null,null,null,null,null,null,null,null,null,null,null,"178."]
["Doświadczenie zawodowe (szczególnie w pracach B+R)"]
["179."]
[]
[]
[]
[]
["180.","Publikacja 1\n\nPublikacja 2\n\nPublikacja 3"]
[]
[]
[]
[]
[]
[]
[]
["Rola w projekcie"]
["181."]
[]
[]
[]
[]
[]
[]
[]
[]
[]
[]
[]
["Forma zatrudnienia i wymiar zatrudnienia w CBR"]
["182."]
[]
["Imię i Nazwisko",null,null,null,null,null,null,null,null,null,null,null,null,null,null,null,"Wykształcenie"]
["177.",null,null,null,null,null,null,null,null,null,null,null,null,null,null,null,"178."]
["Doświadczenie zawodowe (szczególnie w pracach B+R)"]
["179."]
[]
[]
[]
[]
["180.","Publikacja 1\n\nPublikacja 2\n\nPublikacja 3"]
[]
[]
[]
[]
[]
[]
[]
["Rola w projekcie"]
["181."]
[]
[]
[]
[]
[]
[]
[]
[]
[]
[]
[]
["Forma zatrudnienia i wymiar zatrudnienia w CBR"]
["182."]
[]
["Imię i Nazwisko",null,null,null,null,null,null,null,null,null,null,null,null,null,null,null,"Wykształcenie"]
["177.",null,null,null,null,null,null,null,null,null,null,null,null,null,null,null,"178."]
["Doświadczenie zawodowe (szczególnie w pracach B+R)"]
["179."]
[]
[]
[]
[]
["180.","Publikacja 1\n\nPublikacja 2\n\nPublikacja 3"]
[]
[]
[]
[]
[]
[]
[]
["Rola w projekcie"]
["181."]
[]
[]
[]
[]
[]
[]
[]
[]
[]
[]
[]
["Forma zatrudnienia i wymiar zatrudnienia w CBR"]
["182."]
[]
["Imię i Nazwisko",null,null,null,null,null,null,null,null,null,null,null,null,null,null,null,"Wykształcenie"]
["177.",null,null,null,null,null,null,null,null,null,null,null,null,null,null,null,"178."]
["Doświadczenie zawodowe (szczególnie w pracach B+R)"]
["179."]
[]
[]
[]
[]
["180.","Publikacja 1\n\nPublikacja 2\n\nPublikacja 3"]
[]
[]
[]
[]
[]
[]
[]
["Rola w projekcie"]
["181."]
[]
[]
[]
[]
[]
[]
[]
[]
[]
[]
[]
["Forma zatrudnienia i wymiar zatrudnienia w CBR"]
["182."]
[]
["Imię i Nazwisko",null,null,null,null,null,null,null,null,null,null,null,null,null,null,null,"Wykształcenie"]
["177.",null,null,null,null,null,null,null,null,null,null,null,null,null,null,null,"178."]
["Doświadczenie zawodowe (szczególnie w pracach B+R)"]
["179."]
[]
[]
[]
[]
["180.","Publikacja 1\n\nPublikacja 2\n\nPublikacja 3"]
[]
[]
[]
[]
[]
[]
[]
["Rola w projekcie"]
["181."]
[]
[]
[]
[]
[]
[]
[]
[]
[]
[]
[]
["Forma zatrudnienia i wymiar zatrudnienia w CBR"]
["182."]
[]
["2. Kadra zarządzająca zaangażowana w projekt"]
[]
["Model zarządzania projektem"]
["183.","<opis modelu zarządzania projektem>"]
[]
[]
[]
[]
[]
[]
[]
[]
[]
["Kadra zarządzająca w dyspozycji Wnioskodawcy"]
["Imię i Nazwisko",null,null,null,null,null,null,null,null,null,null,null,null,null,null,null,"Wykształcenie"]
["184.",null,null,null,null,null,null,null,null,null,null,null,null,null,null,null,"185."]
["Doświadczenie zawodowe (szczególnie w zakresie kierowania pracami B+R)"]
["186."]
[]
[]
[]
[]
[]
[]
[]
[]
[]
[]
[]
["Rola w projekcie"]
["187."]
[]
[]
[]
[]
[]
[]
[]
[]
[]
[]
[]
["Podział zadań i obowiązków w realizacji projektu"]
["188."]
[]
[]
[]
[]
[]
[]
[]
[]
[]
[]
[]
["Forma zatrudnienia i wymiar zatrudnienia w CBR"]
["189."]
[]
["Kadra zarządzająca w dyspozycji Wnioskodawcy"]
["Imię i Nazwisko",null,null,null,null,null,null,null,null,null,null,null,null,null,null,null,"Wykształcenie"]
["184.",null,null,null,null,null,null,null,null,null,null,null,null,null,null,null,"185."]
["Doświadczenie zawodowe (szczególnie w zakresie kierowania pracami B+R)"]
["186."]
[]
[]
[]
[]
[]
[]
[]
[]
[]
[]
[]
["Rola w projekcie"]
["187."]
[]
[]
[]
[]
[]
[]
[]
[]
[]
[]
[]
["Podział zadań i obowiązków w realizacji projektu"]
["188."]
[]
[]
[]
[]
[]
[]
[]
[]
[]
[]
[]
["Forma zatrudnienia i wymiar zatrudnienia w CBR"]
["189."]
[]
["Imię i Nazwisko",null,null,null,null,null,null,null,null,null,null,null,null,null,null,null,"Wykształcenie"]
["184.",null,null,null,null,null,null,null,null,null,null,null,null,null,null,null,"185."]
["Doświadczenie zawodowe (szczególnie w zakresie kierowania pracami B+R)"]
["186."]
[]
[]
[]
[]
[]
[]
[]
[]
[]
[]
[]
["Rola w projekcie"]
["187."]
[]
[]
[]
[]
[]
[]
[]
[]
[]
[]
[]
["Podział zadań i obowiązków w realizacji projektu"]
["188."]
[]
[]
[]
[]
[]
[]
[]
[]
[]
[]
[]
["Forma zatrudnienia i wymiar zatrudnienia w CBR"]
["189."]
[]
["Kadra zarządzająca w dyspozycji Wnioskodawcy"]
["Imię i Nazwisko",null,null,null,null,null,null,null,null,null,null,null,null,null,null,null,"Wykształcenie"]
["184.",null,null,null,null,null,null,null,null,null,null,null,null,null,null,null,"185."]
["Doświadczenie zawodowe (szczególnie w zakresie kierowania pracami B+R)"]
["186."]
[]
[]
[]
[]
[]
[]
[]
[]
[]
[]
[]
["Rola w projekcie"]
["187."]
[]
[]
[]
[]
[]
[]
[]
[]
[]
[]
[]
["Podział zadań i obowiązków w realizacji projektu"]
["188."]
[]
[]
[]
[]
[]
[]
[]
[]
[]
[]
[]
["Forma zatrudnienia i wymiar zatrudnienia w CBR"]
["189."]
[]
["Imię i Nazwisko",null,null,null,null,null,null,null,null,null,null,null,null,null,null,null,"Wykształcenie"]
["184.",null,null,null,null,null,null,null,null,null,null,null,null,null,null,null,"185."]
["Doświadczenie zawodowe (szczególnie w zakresie kierowania pracami B+R)"]
["186."]
[]
[]
[]
[]
[]
[]
[]
[]
[]
[]
[]
["Rola w projekcie"]
["187."]
[]
[]
[]
[]
[]
[]
[]
[]
[]
[]
[]
["Podział zadań i obowiązków w realizacji projektu"]
["188."]
[]
[]
[]
[]
[]
[]
[]
[]
[]
[]
[]
["Forma zatrudnienia i wymiar zatrudnienia w CBR"]
["189."]
[]
["Imię i Nazwisko",null,null,null,null,null,null,null,null,null,null,null,null,null,null,null,"Wykształcenie"]
["184.",null,null,null,null,null,null,null,null,null,null,null,null,null,null,null,"185."]
["Doświadczenie zawodowe (szczególnie w zakresie kierowania pracami B+R)"]
["186."]
[]
[]
[]
[]
[]
[]
[]
[]
[]
[]
[]
["Rola w projekcie"]
["187."]
[]
[]
[]
[]
[]
[]
[]
[]
[]
[]
[]
["Podział zadań i obowiązków w realizacji projektu"]
["188."]
[]
[]
[]
[]
[]
[]
[]
[]
[]
[]
[]
["Forma zatrudnienia i wymiar zatrudnienia w CBR"]
["189."]
[]
["3. Nowe miejsca pracy w projekcie"]
[]
["Nowoutworzone miejsca pracy w projekcie dla pracowników B+R"]
["Stanowisko",null,null,null,"Wykształcenie",null,null,null,null,null,null,null,"Liczba miejsc pracy (osób)",null,null,"Uzasadnienie stworzenia miejsca pracy/rola w projekcie",null,null,null,null,null,null,null,null,null,null,null,"Forma zatrudnienia (umowa o pracę na czas nieokreślony, umowa o pracę na czas określony, inne)"]
[null,null,null,null,"Poziom",null,null,null,"Kierunek"]
["190.",null,null,null,"191.",null,null,null,"192.",null,null,null,"193.",null,null,"194.",null,null,null,null,null,null,null,null,null,null,null,"195."]
[null,null,null,null,{"$f":"IF($A514=\"nie dotyczy\",\"nie dotyczy\",\" \")","v":" "},null,null,null,{"$f":"IF($A514=\"nie dotyczy\",\"nie dotyczy\",\" \")","v":" "},null,null,null,{"$f":"IF($A514=\"nie dotyczy\",\"0\",\" \")","v":" "},null,null,{"$f":"IF($A514=\"nie dotyczy\",\"nie dotyczy\",\" \")","v":" "},null,null,null,null,null,null,null,null,null,null,null,{"$f":"IF($A514=\"nie dotyczy\",\"nie dotyczy\",\" \")","v":" "},null,null,null,null,null,"Przejdź do wskaźnika"]
[null,null,null,null,{"$f":"IF($A515=\"nie dotyczy\",\"nie dotyczy\",\" \")","v":" "},null,null,null,{"$f":"IF($A515=\"nie dotyczy\",\"nie dotyczy\",\" \")","v":" "},null,null,null,{"$f":"IF($A515=\"nie dotyczy\",\"0\",\" \")","v":" "},null,null,{"$f":"IF($A515=\"nie dotyczy\",\"nie dotyczy\",\" \")","v":" "},null,null,null,null,null,null,null,null,null,null,null," "]
[null,null,null,null," ",null,null,null," ",null,null,null," ",null,null," ",null,null,null,null,null,null,null,null,null,null,null," "]
[null,null,null,null," ",null,null,null," ",null,null,null," ",null,null," ",null,null,null,null,null,null,null,null,null,null,null," "]
[null,null,null,null," ",null,null,null," ",null,null,null," ",null,null," ",null,null,null,null,null,null,null,null,null,null,null," "]
[null,null,null,null," ",null,null,null," ",null,null,null," ",null,null," ",null,null,null,null,null,null,null,null,null,null,null," "]
[null,null,null,null," ",null,null,null," ",null,null,null," ",null,null," ",null,null,null,null,null,null,null,null,null,null,null," "]
[null,null,null,null," ",null,null,null," ",null,null,null," ",null,null," ",null,null,null,null,null,null,null,null,null,null,null," "]
[null,null,null,null," ",null,null,null," ",null,null,null," ",null,null," ",null,null,null,null,null,null,null,null,null,null,null," "]
[null,null,null,null," ",null,null,null," ",null,null,null," ",null,null," ",null,null,null,null,null,null,null,null,null,null,null," "]
[null,null,null,null," ",null,null,null," ",null,null,null," ",null,null," ",null,null,null,null,null,null,null,null,null,null,null," "]
["Razem:",null,null,null,null,null,null,null,null,null,null,null,{"$f":"SUM(M514:O524)","v":0},null,null,"x"]
["Łączna liczba nowych miejsc pracy dla pracowników B+R:",null,null,null,null,null,null,null,null,null,null,null,null,null,null,null,null,null,null,null,null,null,null,null,"196.",{"$f":"M525","v":0}]
[" - w tym z wykształceniem wyższym:",null,null,null,null,null,null,null,null,null,null,null,null,null,null,null,null,null,null,null,null,null,null,null,"197.",{"$f":"SUMIFS(M514:M524,E514:E524,Słowniki!K2)","v":0}]
[]
["4. Doświadczenie w działalności B+R"]
[]
["Czy Wnioskodawca posiada doświadczenie w działalności badawczo - rozwojowej?\n(należy opisać doświadczenie Wnioskodawcy oraz innych podmiotów, a także osób fizycznych w przypadku ich wsparcia przy realizacji projektu)",null,null,null,null,null,null,null,null,null,null,null,null,null,null,null,null,null,null,null,null,null,null,null,null,null,"198."]
["199.","Uzasadnienie:"]
[]
[]
[]
[]
[]
[]
[]
[]
[]
[]
[]
[]
["Liczba wszystkich pracowników na koniec ostatniego okresu sprawozdawczego (wraz z przedsiębiorstwami powiązanymi z terenu RP):",null,null,null,null,null,null,null,null,null,null,null,null,null,null,null,null,null,null,null,null,null,null,null,null,"200."]
["w tym pracowników realizujących prace badawczo- rozwojowe (wraz z przedsiębiorstwami powiązanymi z terenu RP):",null,null,null,null,null,null,null,null,null,null,null,null,null,null,null,null,null,null,null,null,null,null,null,null,"201."]
[]
["Nakłady Wnioskodawcy na działalność badawczo – rozwojową (PLN)",null,null,null,null,null,null,null,null,null,null,null,null,null,null,null,null,null,null,null,null,null,null,null,null,null,null,null,null,null,null,null,null,"Przejdź do wskaźnika"]
["3 lata przed złożeniem wniosku",null,null,null,null,null,null,null,null,null,null,null,"2 lata przed złożeniem wniosku",null,null,null,null,null,null,null,null,null,null,null,"rok przed złożeniem wniosku "]
["202.",null,null,null,null,null,null,null,null,null,null,null,"203.",null,null,null,null,null,null,null,null,null,null,null,"204."]
["Całkowite nakłady inwestycyjne (PLN)",null,null,null,null,null,null,null,null,null,null,null,null,null,null,null,null,null,null,null,null,null,null,null,null,null,null,null,null,null,null,null,null,"Przejdź do wskaźnika"]
["3 lata przed złożeniem wniosku",null,null,null,null,null,null,null,null,null,null,null,"2 lata przed złożeniem wniosku",null,null,null,null,null,null,null,null,null,null,null,"rok przed złożeniem wniosku "]
["205.",null,null,null,null,null,null,null,null,null,null,null,"206.",null,null,null,null,null,null,null,null,null,null,null,"207."]
["Udział nakładów na działalność B+R w całkowitych nakładach inwestycyjnych (%)",null,null,null,null,null,null,null,null,null,null,null,null,null,null,null,null,null,null,null,null,null,null,null,null,null,null,null,null,null,null,null,null,"Przejdź do wskaźnika"]
["3 lata przed złożeniem wniosku",null,null,null,null,null,null,null,null,null,null,null,"2 lata przed złożeniem wniosku",null,null,null,null,null,null,null,null,null,null,null,"rok przed złożeniem wniosku "]
["208.",{"$f":"IF(B553=0,0,B550/B553)","v":0},null,null,null,null,null,null,null,null,null,null,"209.",{"$f":"IF(N553=0,0,N550/N553)","v":0},null,null,null,null,null,null,null,null,null,null,"210.",{"$f":"IF(Z553=0,0,Z550/Z553)","v":0}]
["Nowe produkty/usługi wdrożone w wyniku działalności badawczo rozwojowej (szt.)"]
["3 lata przed złożeniem wniosku",null,null,null,null,null,null,null,null,null,null,null,"2 lata przed złożeniem wniosku",null,null,null,null,null,null,null,null,null,null,null,"rok przed złożeniem wniosku "]
["211.",null,null,null,null,null,null,null,null,null,null,null,"212.",null,null,null,null,null,null,null,null,null,null,null,"213."]
["Udział nowych produktów/usług w sprzedaży Wnioskodawcy  (%)"]
["3 lata przed złożeniem wniosku",null,null,null,null,null,null,null,null,null,null,null,"2 lata przed złożeniem wniosku",null,null,null,null,null,null,null,null,null,null,null,"rok przed złożeniem wniosku "]
["214.",null,null,null,null,null,null,null,null,null,null,null,"215.",null,null,null,null,null,null,null,null,null,null,null,"216."]
["Liczba nowych metod produkcji w wyniku prac B+R (szt.)"]
["3 lata przed złożeniem wniosku",null,null,null,null,null,null,null,null,null,null,null,"2 lata przed złożeniem wniosku",null,null,null,null,null,null,null,null,null,null,null,"rok przed złożeniem wniosku "]
["217.",null,null,null,null,null,null,null,null,null,null,null,"218.",null,null,null,null,null,null,null,null,null,null,null,"219."]
[]
["Patenty (szt.)",null,null,null,null,null,"3 lata przed złożeniem wniosku ",null,null,null,null,null,null,null,null,"2 lata przed złożeniem wniosku ",null,null,null,null,null,null,null,null,"rok przed złożeniem wniosku "]
["Zgłoszone",null,null,null,null,null,"220.",null,null,null,null,null,null,null,null,"221.",null,null,null,null,null,null,null,null,"222."]
["Uzyskane",null,null,null,null,null,"223.",null,null,null,null,null,null,null,null,"224.",null,null,null,null,null,null,null,null,"225."]
[]
["Wzory użytkowe (szt.)",null,null,null,null,null,"3 lata przed złożeniem wniosku ",null,null,null,null,null,null,null,null,"2 lata przed złożeniem wniosku ",null,null,null,null,null,null,null,null,"rok przed złożeniem wniosku "]
["Zgłoszone",null,null,null,null,null,"226.",null,null,null,null,null,null,null,null,"227.",null,null,null,null,null,null,null,null,"228."]
["Uzyskane",null,null,null,null,null,"229.",null,null,null,null,null,null,null,null,"230.",null,null,null,null,null,null,null,null,"231."]
[]
["Zrealizowane projekty badawczo – rozwojowe"]
["232."]
[]
[]
[]
[]
[]
[]
[]
[]
[]
[]
[]
["Czy Wnioskodawca posiada nie będącą przedmiotem wsparcia aparaturę naukowo-badawczą?",null,null,null,null,null,null,null,null,null,null,null,null,null,null,null,null,null,null,null,null,null,null,null,null,null,"233."]
["Posiadana aparatura naukowo-badawcza i inne wyposażenie umożliwiające prowadzenie prac B+R"]
["234.","Uzasadnienie/opis:"]
[{"$f":"IF($AB$588=\"nie\",\"Nie dotyczy\",\" \")","v":" "}]
[]
[]
[]
[]
[]
[]
[]
[]
[]
[]
[]
[]
["5. Przygotowanie Wnioskodawcy do realizacji inwestycji"]
[]
["Czy projekt wymaga pozwoleń, licencji, koncesji?",null,null,null,null,null,null,null,null,null,null,null,null,null,null,null,null,null,null,null,null,null,null,null,null,null,"235."]
[]
["Stan przygotowań – pozwolenia, licencje, koncesje"]
["Rodzaj dokumentu",null,null,null,null,null,null,null,null,null,"Status dokumentu",null,null,null,null,null,null,null,null,"Data wydania dokumentu",null,null,null,null,null,null,"Planowana data wydania dokumentu"]
["236.",null,null,null,null,null,null,null,null,null,"237.",null,null,null,null,null,null,null,null,"238.",null,null,null,null,null,null,"239."]
["Pozwolenie na budowę",null,null,null,null,null,null,null,null,null,{"$f":"IF($AB606=\"nie\",\"Nie dotyczy\",\" \")","v":" "},null,null,null,null,null,null,null,null,{"$f":"IF($K611=\"nie dotyczy\",\"Nie dotyczy\",\" \")","v":" "},null,null,null,null,null,null,{"$f":"IF($K611=\"nie dotyczy\",\"Nie dotyczy\",\" \")","v":" "}]
["Dokumentacja OOŚ",null,null,null,null,null,null,null,null,null,{"$f":"IF($AB606=\"nie\",\"Nie dotyczy\",\" \")","v":" "},null,null,null,null,null,null,null,null,{"$f":"IF($K612=\"nie dotyczy\",\"Nie dotyczy\",\" \")","v":" "},null,null,null,null,null,null,{"$f":"IF($K612=\"nie dotyczy\",\"Nie dotyczy\",\" \")","v":" "}]
[{"$f":"IF($AB$606=\"nie\",\"Nie dotyczy\",\" \")","v":" "},null,null,null,null,null,null,null,null,null,{"$f":"IF($A613=\"nie dotyczy\",\"Nie dotyczy\",\" \")","v":" "},null,null,null,null,null,null,null,null,{"$f":"IF($A613=\"nie dotyczy\",\"Nie dotyczy\",\" \")","v":" "},null,null,null,null,null,null,{"$f":"IF($A613=\"nie dotyczy\",\"Nie dotyczy\",\" \")","v":" "}]
[" ",null,null,null,null,null,null,null,null,null,{"$f":"IF($A614=\"nie dotyczy\",\"Nie dotyczy\",\" \")","v":" "},null,null,null,null,null,null,null,null," ",null,null,null,null,null,null," "]
[" ",null,null,null,null,null,null,null,null,null,{"$f":"IF($A615=\"nie dotyczy\",\"Nie dotyczy\",\" \")","v":" "},null,null,null,null,null,null,null,null,{"$f":"IF($A615=\"nie dotyczy\",\"Nie dotyczy\",\" \")","v":" "},null,null,null,null,null,null,{"$f":"IF($A615=\"nie dotyczy\",\"Nie dotyczy\",\" \")","v":" "}]
[" ",null,null,null,null,null,null,null,null,null,{"$f":"IF($A616=\"nie dotyczy\",\"Nie dotyczy\",\" \")","v":" "},null,null,null,null,null,null,null,null," ",null,null,null,null,null,null,{"$f":"IF($A616=\"nie dotyczy\",\"Nie dotyczy\",\" \")","v":" "}]
[" ",null,null,null,null,null,null,null,null,null,{"$f":"IF($A617=\"nie dotyczy\",\"Nie dotyczy\",\" \")","v":" "},null,null,null,null,null,null,null,null," ",null,null,null,null,null,null,{"$f":"IF($A617=\"nie dotyczy\",\"Nie dotyczy\",\" \")","v":" "}]
[" ",null,null,null,null,null,null,null,null,null,{"$f":"IF($A618=\"nie dotyczy\",\"Nie dotyczy\",\" \")","v":" "},null,null,null,null,null,null,null,null," ",null,null,null,null,null,null," "]
[]
["6. Współpraca w ramach projektu"]
[]
["Czy Wnioskodawca planuje nawiązanie współpracy z podmiotami z sektora MSP lub jednostkami naukowymi lub NGO? ",null,null,null,null,null,null,null,null,null,null,null,null,null,null,null,null,null,null,null,null,null,null,null,null,null,"240."]
["Planowana nowa współpraca z podmiotami z sektora MSP lub jednostkami naukowymi lub NGO "]
["Rodzaj podmiotu",null,null,null,"Nazwa podmiotu ",null,null,null,null,"Dokument potwierdzający współpracę np. umowa współpracy, list intencyjny",null,null,null,null,"Formy współpracy w ramach realizacji projektu",null,null,null,null,null,null,"Uzasadnienie współpracy z podmiotem",null,null,null,null,null,"Przewidywane rezultaty projektu w ramach rozwijanej współpracy (przewidywane efekty i korzyści wynikające ze współpracy)"]
["241.",null,null,null,"242.",null,null,null,null,"243.",null,null,null,null,"244.",null,null,null,null,null,null,"245.",null,null,null,null,null,"246."]
[{"$f":"IF($AB$622=\"nie\",\"Nie dotyczy\",\" \")","v":" "},null,null,null,{"$f":"IF($A626=\"Nie dotyczy\",\"Nie dotyczy\",\" \")","v":" "},null,null,null,null,{"$f":"IF($A626=\"Nie dotyczy\",\"Nie dotyczy\",\" \")","v":" "},null,null,null,null,"1.",{"$f":"IF(A626=\"nie dotyczy\",\"nie dotyczy\",\" \")","v":" "},null,null,null,null,null,{"$f":"IF($A626=\"Nie dotyczy\",\"Nie dotyczy\",\" \")","v":" "},null,null,null,null,null,{"$f":"IF($A626=\"Nie dotyczy\",\"Nie dotyczy\",\" \")","v":" "},null,null,null,null,null,"Przejdź do wskaźnika dla jednostek naukowych"]
[null,null,null,null,null,null,null,null,null,null,null,null,null,null,"2.",{"$f":"IF(A626=\"nie dotyczy\",\"nie dotyczy\",\" \")","v":" "}]
[null,null,null,null,null,null,null,null,null,null,null,null,null,null,"3.",{"$f":"IF(A626=\"nie dotyczy\",\"nie dotyczy\",\" \")","v":" "},null,null,null,null,null,null,null,null,null,null,null,null,null,null,null,null,null,"Przejdź do wskaźnika dla MSP"]
[null,null,null,null,null,null,null,null,null,null,null,null,null,null,"4.",{"$f":"IF(A626=\"nie dotyczy\",\"nie dotyczy\",\" \")","v":" "}]
[null,null,null,null,null,null,null,null,null,null,null,null,null,null,"5.",{"$f":"IF(A626=\"nie dotyczy\",\"nie dotyczy\",\" \")","v":" "},null,null,null,null,null,null,null,null,null,null,null,null,null,null,null,null,null,"Przejdź do wskaźnika dla NGO"]
[null,null,null,null,null,null,null,null,null,null,null,null,null,null,"6.",{"$f":"IF(A626=\"nie dotyczy\",\"nie dotyczy\",\" \")","v":" "}]
[null,null,null,null,null,null,null,null,null,null,null,null,null,null,"7.",{"$f":"IF(A626=\"nie dotyczy\",\"nie dotyczy\",\" \")","v":" "}]
[{"$f":"IF($AB$622=\"nie\",\"Nie dotyczy\",\" \")","v":" "},null,null,null,{"$f":"IF($A633=\"Nie dotyczy\",\"Nie dotyczy\",\" \")","v":" "},null,null,null,null,{"$f":"IF($A633=\"Nie dotyczy\",\"Nie dotyczy\",\" \")","v":" "},null,null,null,null,"1.",{"$f":"IF(A633=\"nie dotyczy\",\"nie dotyczy\",\" \")","v":" "},null,null,null,null,null,{"$f":"IF($A633=\"Nie dotyczy\",\"Nie dotyczy\",\" \")","v":" "},null,null,null,null,null,{"$f":"IF($A633=\"Nie dotyczy\",\"Nie dotyczy\",\" \")","v":" "}]
[null,null,null,null,null,null,null,null,null,null,null,null,null,null,"2.",{"$f":"IF(A633=\"nie dotyczy\",\"nie dotyczy\",\" \")","v":" "}]
[null,null,null,null,null,null,null,null,null,null,null,null,null,null,"3.",{"$f":"IF(A633=\"nie dotyczy\",\"nie dotyczy\",\" \")","v":" "}]
[null,null,null,null,null,null,null,null,null,null,null,null,null,null,"4.",{"$f":"IF(A633=\"nie dotyczy\",\"nie dotyczy\",\" \")","v":" "}]
[null,null,null,null,null,null,null,null,null,null,null,null,null,null,"5.",{"$f":"IF(A633=\"nie dotyczy\",\"nie dotyczy\",\" \")","v":" "}]
[null,null,null,null,null,null,null,null,null,null,null,null,null,null,"6.",{"$f":"IF(A633=\"nie dotyczy\",\"nie dotyczy\",\" \")","v":" "}]
[null,null,null,null,null,null,null,null,null,null,null,null,null,null,"7.",{"$f":"IF(A633=\"nie dotyczy\",\"nie dotyczy\",\" \")","v":" "}]
[{"$f":"IF($AB$622=\"nie\",\"Nie dotyczy\",\" \")","v":" "},null,null,null,{"$f":"IF($A640=\"Nie dotyczy\",\"Nie dotyczy\",\" \")","v":" "},null,null,null,null,{"$f":"IF($A640=\"Nie dotyczy\",\"Nie dotyczy\",\" \")","v":" "},null,null,null,null,"1.",{"$f":"IF(A640=\"nie dotyczy\",\"nie dotyczy\",\" \")","v":" "},null,null,null,null,null,{"$f":"IF($A640=\"Nie dotyczy\",\"Nie dotyczy\",\" \")","v":" "},null,null,null,null,null,{"$f":"IF($A640=\"Nie dotyczy\",\"Nie dotyczy\",\" \")","v":" "}]
[null,null,null,null,null,null,null,null,null,null,null,null,null,null,"2.",{"$f":"IF(A640=\"nie dotyczy\",\"nie dotyczy\",\" \")","v":" "}]
[null,null,null,null,null,null,null,null,null,null,null,null,null,null,"3.",{"$f":"IF(A640=\"nie dotyczy\",\"nie dotyczy\",\" \")","v":" "}]
[null,null,null,null,null,null,null,null,null,null,null,null,null,null,"4.",{"$f":"IF(A640=\"nie dotyczy\",\"nie dotyczy\",\" \")","v":" "}]
[null,null,null,null,null,null,null,null,null,null,null,null,null,null,"5.",{"$f":"IF(A640=\"nie dotyczy\",\"nie dotyczy\",\" \")","v":" "}]
[null,null,null,null,null,null,null,null,null,null,null,null,null,null,"6.",{"$f":"IF(A640=\"nie dotyczy\",\"nie dotyczy\",\" \")","v":" "}]
[null,null,null,null,null,null,null,null,null,null,null,null,null,null,"7.",{"$f":"IF(A640=\"nie dotyczy\",\"nie dotyczy\",\" \")","v":" "}]
[{"$f":"IF($AB$622=\"nie\",\"Nie dotyczy\",\" \")","v":" "},null,null,null,{"$f":"IF($A647=\"Nie dotyczy\",\"Nie dotyczy\",\" \")","v":" "},null,null,null,null,{"$f":"IF($A647=\"Nie dotyczy\",\"Nie dotyczy\",\" \")","v":" "},null,null,null,null,"1.",{"$f":"IF(A647=\"nie dotyczy\",\"nie dotyczy\",\" \")","v":" "},null,null,null,null,null,{"$f":"IF($A647=\"Nie dotyczy\",\"Nie dotyczy\",\" \")","v":" "},null,null,null,null,null,{"$f":"IF($A647=\"Nie dotyczy\",\"Nie dotyczy\",\" \")","v":" "}]
[null,null,null,null,null,null,null,null,null,null,null,null,null,null,"2.",{"$f":"IF(A647=\"nie dotyczy\",\"nie dotyczy\",\" \")","v":" "}]
[null,null,null,null,null,null,null,null,null,null,null,null,null,null,"3.",{"$f":"IF(A647=\"nie dotyczy\",\"nie dotyczy\",\" \")","v":" "}]
[null,null,null,null,null,null,null,null,null,null,null,null,null,null,"4.",{"$f":"IF(A647=\"nie dotyczy\",\"nie dotyczy\",\" \")","v":" "}]
[null,null,null,null,null,null,null,null,null,null,null,null,null,null,"5.",{"$f":"IF(A647=\"nie dotyczy\",\"nie dotyczy\",\" \")","v":" "}]
[null,null,null,null,null,null,null,null,null,null,null,null,null,null,"6.",{"$f":"IF(A647=\"nie dotyczy\",\"nie dotyczy\",\" \")","v":" "}]
[null,null,null,null,null,null,null,null,null,null,null,null,null,null,"7.",{"$f":"IF(A647=\"nie dotyczy\",\"nie dotyczy\",\" \")","v":" "}]
[{"$f":"IF($AB$622=\"nie\",\"Nie dotyczy\",\" \")","v":" "},null,null,null,{"$f":"IF($A654=\"Nie dotyczy\",\"Nie dotyczy\",\" \")","v":" "},null,null,null,null,{"$f":"IF($A654=\"Nie dotyczy\",\"Nie dotyczy\",\" \")","v":" "},null,null,null,null,"1.",{"$f":"IF(A654=\"nie dotyczy\",\"nie dotyczy\",\" \")","v":" "},null,null,null,null,null,{"$f":"IF($A654=\"Nie dotyczy\",\"Nie dotyczy\",\" \")","v":" "},null,null,null,null,null,{"$f":"IF($A654=\"Nie dotyczy\",\"Nie dotyczy\",\" \")","v":" "}]
[null,null,null,null,null,null,null,null,null,null,null,null,null,null,"2.",{"$f":"IF(A654=\"nie dotyczy\",\"nie dotyczy\",\" \")","v":" "}]
[null,null,null,null,null,null,null,null,null,null,null,null,null,null,"3.",{"$f":"IF(A654=\"nie dotyczy\",\"nie dotyczy\",\" \")","v":" "}]
[null,null,null,null,null,null,null,null,null,null,null,null,null,null,"4.",{"$f":"IF(A654=\"nie dotyczy\",\"nie dotyczy\",\" \")","v":" "}]
[null,null,null,null,null,null,null,null,null,null,null,null,null,null,"5.",{"$f":"IF(A654=\"nie dotyczy\",\"nie dotyczy\",\" \")","v":" "}]
[null,null,null,null,null,null,null,null,null,null,null,null,null,null,"6.",{"$f":"IF(A654=\"nie dotyczy\",\"nie dotyczy\",\" \")","v":" "}]
[null,null,null,null,null,null,null,null,null,null,null,null,null,null,"7.",{"$f":"IF(A654=\"nie dotyczy\",\"nie dotyczy\",\" \")","v":" "}]
[{"$f":"IF($AB$622=\"nie\",\"Nie dotyczy\",\" \")","v":" "},null,null,null,{"$f":"IF($A661=\"Nie dotyczy\",\"Nie dotyczy\",\" \")","v":" "},null,null,null,null,{"$f":"IF($A661=\"Nie dotyczy\",\"Nie dotyczy\",\" \")","v":" "},null,null,null,null,"1.",{"$f":"IF(A661=\"nie dotyczy\",\"nie dotyczy\",\" \")","v":" "},null,null,null,null,null,{"$f":"IF($A661=\"Nie dotyczy\",\"Nie dotyczy\",\" \")","v":" "},null,null,null,null,null,{"$f":"IF($A661=\"Nie dotyczy\",\"Nie dotyczy\",\" \")","v":" "}]
[null,null,null,null,null,null,null,null,null,null,null,null,null,null,"2.",{"$f":"IF(A661=\"nie dotyczy\",\"nie dotyczy\",\" \")","v":" "}]
[null,null,null,null,null,null,null,null,null,null,null,null,null,null,"3.",{"$f":"IF(A661=\"nie dotyczy\",\"nie dotyczy\",\" \")","v":" "}]
[null,null,null,null,null,null,null,null,null,null,null,null,null,null,"4.",{"$f":"IF(A661=\"nie dotyczy\",\"nie dotyczy\",\" \")","v":" "}]
[null,null,null,null,null,null,null,null,null,null,null,null,null,null,"5.",{"$f":"IF(A661=\"nie dotyczy\",\"nie dotyczy\",\" \")","v":" "}]
[null,null,null,null,null,null,null,null,null,null,null,null,null,null,"6.",{"$f":"IF(A661=\"nie dotyczy\",\"nie dotyczy\",\" \")","v":" "}]
[null,null,null,null,null,null,null,null,null,null,null,null,null,null,"7.",{"$f":"IF(A661=\"nie dotyczy\",\"nie dotyczy\",\" \")","v":" "}]
[{"$f":"IF($AB$622=\"nie\",\"Nie dotyczy\",\" \")","v":" "},null,null,null,{"$f":"IF($A668=\"Nie dotyczy\",\"Nie dotyczy\",\" \")","v":" "},null,null,null,null,{"$f":"IF($A668=\"Nie dotyczy\",\"Nie dotyczy\",\" \")","v":" "},null,null,null,null,"1.",{"$f":"IF(A668=\"nie dotyczy\",\"nie dotyczy\",\" \")","v":" "},null,null,null,null,null,{"$f":"IF($A668=\"Nie dotyczy\",\"Nie dotyczy\",\" \")","v":" "},null,null,null,null,null,{"$f":"IF($A668=\"Nie dotyczy\",\"Nie dotyczy\",\" \")","v":" "}]
[null,null,null,null,null,null,null,null,null,null,null,null,null,null,"2.",{"$f":"IF(A668=\"nie dotyczy\",\"nie dotyczy\",\" \")","v":" "}]
[null,null,null,null,null,null,null,null,null,null,null,null,null,null,"3.",{"$f":"IF(A668=\"nie dotyczy\",\"nie dotyczy\",\" \")","v":" "}]
[null,null,null,null,null,null,null,null,null,null,null,null,null,null,"4.",{"$f":"IF(A668=\"nie dotyczy\",\"nie dotyczy\",\" \")","v":" "}]
[null,null,null,null,null,null,null,null,null,null,null,null,null,null,"5.",{"$f":"IF(A668=\"nie dotyczy\",\"nie dotyczy\",\" \")","v":" "}]
[null,null,null,null,null,null,null,null,null,null,null,null,null,null,"6.",{"$f":"IF(A668=\"nie dotyczy\",\"nie dotyczy\",\" \")","v":" "}]
[null,null,null,null,null,null,null,null,null,null,null,null,null,null,"7.",{"$f":"IF(A668=\"nie dotyczy\",\"nie dotyczy\",\" \")","v":" "}]
[{"$f":"IF($AB$622=\"nie\",\"Nie dotyczy\",\" \")","v":" "},null,null,null,{"$f":"IF($A675=\"Nie dotyczy\",\"Nie dotyczy\",\" \")","v":" "},null,null,null,null,{"$f":"IF($A675=\"Nie dotyczy\",\"Nie dotyczy\",\" \")","v":" "},null,null,null,null,"1.",{"$f":"IF(A675=\"nie dotyczy\",\"nie dotyczy\",\" \")","v":" "},null,null,null,null,null,{"$f":"IF($A675=\"Nie dotyczy\",\"Nie dotyczy\",\" \")","v":" "},null,null,null,null,null,{"$f":"IF($A675=\"Nie dotyczy\",\"Nie dotyczy\",\" \")","v":" "}]
[null,null,null,null,null,null,null,null,null,null,null,null,null,null,"2.",{"$f":"IF(A675=\"nie dotyczy\",\"nie dotyczy\",\" \")","v":" "}]
[null,null,null,null,null,null,null,null,null,null,null,null,null,null,"3.",{"$f":"IF(A675=\"nie dotyczy\",\"nie dotyczy\",\" \")","v":" "}]
[null,null,null,null,null,null,null,null,null,null,null,null,null,null,"4.",{"$f":"IF(A675=\"nie dotyczy\",\"nie dotyczy\",\" \")","v":" "}]
[null,null,null,null,null,null,null,null,null,null,null,null,null,null,"5.",{"$f":"IF(A675=\"nie dotyczy\",\"nie dotyczy\",\" \")","v":" "}]
[null,null,null,null,null,null,null,null,null,null,null,null,null,null,"6.",{"$f":"IF(A675=\"nie dotyczy\",\"nie dotyczy\",\" \")","v":" "}]
[null,null,null,null,null,null,null,null,null,null,null,null,null,null,"7.",{"$f":"IF(A675=\"nie dotyczy\",\"nie dotyczy\",\" \")","v":" "}]
[{"$f":"IF($AB$622=\"nie\",\"Nie dotyczy\",\" \")","v":" "},null,null,null,{"$f":"IF($A682=\"Nie dotyczy\",\"Nie dotyczy\",\" \")","v":" "},null,null,null,null,{"$f":"IF($A682=\"Nie dotyczy\",\"Nie dotyczy\",\" \")","v":" "},null,null,null,null,"1.",{"$f":"IF(A682=\"nie dotyczy\",\"nie dotyczy\",\" \")","v":" "},null,null,null,null,null,{"$f":"IF($A682=\"Nie dotyczy\",\"Nie dotyczy\",\" \")","v":" "},null,null,null,null,null,{"$f":"IF($A682=\"Nie dotyczy\",\"Nie dotyczy\",\" \")","v":" "}]
[null,null,null,null,null,null,null,null,null,null,null,null,null,null,"2.",{"$f":"IF(A682=\"nie dotyczy\",\"nie dotyczy\",\" \")","v":" "}]
[null,null,null,null,null,null,null,null,null,null,null,null,null,null,"3.",{"$f":"IF(A682=\"nie dotyczy\",\"nie dotyczy\",\" \")","v":" "}]
[null,null,null,null,null,null,null,null,null,null,null,null,null,null,"4.",{"$f":"IF(A682=\"nie dotyczy\",\"nie dotyczy\",\" \")","v":" "}]
[null,null,null,null,null,null,null,null,null,null,null,null,null,null,"5.",{"$f":"IF(A682=\"nie dotyczy\",\"nie dotyczy\",\" \")","v":" "}]
[null,null,null,null,null,null,null,null,null,null,null,null,null,null,"6.",{"$f":"IF(A682=\"nie dotyczy\",\"nie dotyczy\",\" \")","v":" "}]
[null,null,null,null,null,null,null,null,null,null,null,null,null,null,"7.",{"$f":"IF(A682=\"nie dotyczy\",\"nie dotyczy\",\" \")","v":" "}]
[{"$f":"IF($AB$622=\"nie\",\"Nie dotyczy\",\" \")","v":" "},null,null,null,{"$f":"IF($A689=\"Nie dotyczy\",\"Nie dotyczy\",\" \")","v":" "},null,null,null,null,{"$f":"IF($A689=\"Nie dotyczy\",\"Nie dotyczy\",\" \")","v":" "},null,null,null,null,"1.",{"$f":"IF(A689=\"nie dotyczy\",\"nie dotyczy\",\" \")","v":" "},null,null,null,null,null,{"$f":"IF($A689=\"Nie dotyczy\",\"Nie dotyczy\",\" \")","v":" "},null,null,null,null,null,{"$f":"IF($A689=\"Nie dotyczy\",\"Nie dotyczy\",\" \")","v":" "}]
[null,null,null,null,null,null,null,null,null,null,null,null,null,null,"2.",{"$f":"IF(A689=\"nie dotyczy\",\"nie dotyczy\",\" \")","v":" "}]
[null,null,null,null,null,null,null,null,null,null,null,null,null,null,"3.",{"$f":"IF(A689=\"nie dotyczy\",\"nie dotyczy\",\" \")","v":" "}]
[null,null,null,null,null,null,null,null,null,null,null,null,null,null,"4.",{"$f":"IF(A689=\"nie dotyczy\",\"nie dotyczy\",\" \")","v":" "}]
[null,null,null,null,null,null,null,null,null,null,null,null,null,null,"5.",{"$f":"IF(A689=\"nie dotyczy\",\"nie dotyczy\",\" \")","v":" "}]
[null,null,null,null,null,null,null,null,null,null,null,null,null,null,"6.",{"$f":"IF(A689=\"nie dotyczy\",\"nie dotyczy\",\" \")","v":" "}]
[null,null,null,null,null,null,null,null,null,null,null,null,null,null,"7.",{"$f":"IF(A689=\"nie dotyczy\",\"nie dotyczy\",\" \")","v":" "}]
[{"$f":"IF($AB$622=\"nie\",\"Nie dotyczy\",\" \")","v":" "},null,null,null,{"$f":"IF($A696=\"Nie dotyczy\",\"Nie dotyczy\",\" \")","v":" "},null,null,null,null,{"$f":"IF($A696=\"Nie dotyczy\",\"Nie dotyczy\",\" \")","v":" "},null,null,null,null,"1.",{"$f":"IF(A696=\"nie dotyczy\",\"nie dotyczy\",\" \")","v":" "},null,null,null,null,null,{"$f":"IF($A696=\"Nie dotyczy\",\"Nie dotyczy\",\" \")","v":" "},null,null,null,null,null,{"$f":"IF($A696=\"Nie dotyczy\",\"Nie dotyczy\",\" \")","v":" "}]
[null,null,null,null,null,null,null,null,null,null,null,null,null,null,"2.",{"$f":"IF(A696=\"nie dotyczy\",\"nie dotyczy\",\" \")","v":" "}]
[null,null,null,null,null,null,null,null,null,null,null,null,null,null,"3.",{"$f":"IF(A696=\"nie dotyczy\",\"nie dotyczy\",\" \")","v":" "}]
[null,null,null,null,null,null,null,null,null,null,null,null,null,null,"4.",{"$f":"IF(A696=\"nie dotyczy\",\"nie dotyczy\",\" \")","v":" "}]
[null,null,null,null,null,null,null,null,null,null,null,null,null,null,"5.",{"$f":"IF(A696=\"nie dotyczy\",\"nie dotyczy\",\" \")","v":" "}]
[null,null,null,null,null,null,null,null,null,null,null,null,null,null,"6.",{"$f":"IF(A696=\"nie dotyczy\",\"nie dotyczy\",\" \")","v":" "}]
[null,null,null,null,null,null,null,null,null,null,null,null,null,null,"7.",{"$f":"IF(A696=\"nie dotyczy\",\"nie dotyczy\",\" \")","v":" "}]
[]
["Czy Wnioskodawca planuje rozwój dotychczasowej współpracy z podmiotami z sektora MSP lub jednostkami naukowymi lub NGO? ",null,null,null,null,null,null,null,null,null,null,null,null,null,null,null,null,null,null,null,null,null,null,null,null,null,"247."]
["Rozwój dotychczasowej współpracy z podmiotami z sektora MSP lub jednostkami naukowymi lub NGO "]
["Rodzaj podmiotu",null,null,null,"Nazwa podmiotu ",null,null,null,null,"Dokument potwierdzający współpracę np. umowa współpracy, list intencyjny",null,null,null,null,"Formy współpracy w ramach realizacji projektu",null,null,null,null,null,null,"Uzasadnienie współpracy z podmiotem",null,null,null,null,null,"Przewidywane rezultaty projektu w ramach rozwijanej współpracy (przewidywane efekty i korzyści wynikające ze współpracy)"]
["248.",null,null,null,"249.",null,null,null,null,"250.",null,null,null,null,"251.",null,null,null,null,null,null,"252.",null,null,null,null,null,"253."]
[{"$f":"IF($AB$704=\"nie\",\"Nie dotyczy\",\" \")","v":" "},null,null,null,{"$f":"IF($A708=\"Nie dotyczy\",\"Nie dotyczy\",\" \")","v":" "},null,null,null,null,{"$f":"IF($A708=\"Nie dotyczy\",\"Nie dotyczy\",\" \")","v":" "},null,null,null,null,"1.",{"$f":"IF(A708=\"nie dotyczy\",\"nie dotyczy\",\" \")","v":" "},null,null,null,null,null,{"$f":"IF($A708=\"Nie dotyczy\",\"Nie dotyczy\",\" \")","v":" "},null,null,null,null,null,{"$f":"IF($A708=\"Nie dotyczy\",\"Nie dotyczy\",\" \")","v":" "},null,null,null,null,null,"Przejdź do wskaźnika dla jednostek naukowych"]
[null,null,null,null,null,null,null,null,null,null,null,null,null,null,"2.",{"$f":"IF(A708=\"nie dotyczy\",\"nie dotyczy\",\" \")","v":" "}]
[null,null,null,null,null,null,null,null,null,null,null,null,null,null,"3.",{"$f":"IF(A708=\"nie dotyczy\",\"nie dotyczy\",\" \")","v":" "},null,null,null,null,null,null,null,null,null,null,null,null,null,null,null,null,null,"Przejdź do wskaźnika dla MSP"]
[null,null,null,null,null,null,null,null,null,null,null,null,null,null,"4.",{"$f":"IF(A708=\"nie dotyczy\",\"nie dotyczy\",\" \")","v":" "}]
[null,null,null,null,null,null,null,null,null,null,null,null,null,null,"5.",{"$f":"IF(A708=\"nie dotyczy\",\"nie dotyczy\",\" \")","v":" "},null,null,null,null,null,null,null,null,null,null,null,null,null,null,null,null,null,"Przejdź do wskaźnika dla NGO"]
[null,null,null,null,null,null,null,null,null,null,null,null,null,null,"6.",{"$f":"IF(A708=\"nie dotyczy\",\"nie dotyczy\",\" \")","v":" "}]
[null,null,null,null,null,null,null,null,null,null,null,null,null,null,"7.",{"$f":"IF(A708=\"nie dotyczy\",\"nie dotyczy\",\" \")","v":" "}]
[{"$f":"IF($AB$704=\"nie\",\"Nie dotyczy\",\" \")","v":" "},null,null,null," ",null,null,null,null," ",null,null,null,null,"1.",{"$f":"IF(A715=\"nie dotyczy\",\"nie dotyczy\",\" \")","v":" "},null,null,null,null,null," ",null,null,null,null,null," "]
[null,null,null,null,null,null,null,null,null,null,null,null,null,null,"2.",{"$f":"IF(A715=\"nie dotyczy\",\"nie dotyczy\",\" \")","v":" "}]
[null,null,null,null,null,null,null,null,null,null,null,null,null,null,"3.",{"$f":"IF(A715=\"nie dotyczy\",\"nie dotyczy\",\" \")","v":" "}]
[null,null,null,null,null,null,null,null,null,null,null,null,null,null,"4.",{"$f":"IF(A715=\"nie dotyczy\",\"nie dotyczy\",\" \")","v":" "}]
[null,null,null,null,null,null,null,null,null,null,null,null,null,null,"5.",{"$f":"IF(A715=\"nie dotyczy\",\"nie dotyczy\",\" \")","v":" "}]
[null,null,null,null,null,null,null,null,null,null,null,null,null,null,"6.",{"$f":"IF(A715=\"nie dotyczy\",\"nie dotyczy\",\" \")","v":" "}]
[null,null,null,null,null,null,null,null,null,null,null,null,null,null,"7.",{"$f":"IF(A715=\"nie dotyczy\",\"nie dotyczy\",\" \")","v":" "}]
[{"$f":"IF($AB$704=\"nie\",\"Nie dotyczy\",\" \")","v":" "},null,null,null," ",null,null,null,null," ",null,null,null,null,"1.",{"$f":"IF(A722=\"nie dotyczy\",\"nie dotyczy\",\" \")","v":" "},null,null,null,null,null," ",null,null,null,null,null," "]
[null,null,null,null,null,null,null,null,null,null,null,null,null,null,"2.",{"$f":"IF(A722=\"nie dotyczy\",\"nie dotyczy\",\" \")","v":" "}]
[null,null,null,null,null,null,null,null,null,null,null,null,null,null,"3.",{"$f":"IF(A722=\"nie dotyczy\",\"nie dotyczy\",\" \")","v":" "}]
[null,null,null,null,null,null,null,null,null,null,null,null,null,null,"4.",{"$f":"IF(A722=\"nie dotyczy\",\"nie dotyczy\",\" \")","v":" "}]
[null,null,null,null,null,null,null,null,null,null,null,null,null,null,"5.",{"$f":"IF(A722=\"nie dotyczy\",\"nie dotyczy\",\" \")","v":" "}]
[null,null,null,null,null,null,null,null,null,null,null,null,null,null,"6.",{"$f":"IF(A722=\"nie dotyczy\",\"nie dotyczy\",\" \")","v":" "}]
[null,null,null,null,null,null,null,null,null,null,null,null,null,null,"7.",{"$f":"IF(A722=\"nie dotyczy\",\"nie dotyczy\",\" \")","v":" "}]
[{"$f":"IF($AB$704=\"nie\",\"Nie dotyczy\",\" \")","v":" "},null,null,null," ",null,null,null,null," ",null,null,null,null,"1.",{"$f":"IF(A729=\"nie dotyczy\",\"nie dotyczy\",\" \")","v":" "},null,null,null,null,null," ",null,null,null,null,null," "]
[null,null,null,null,null,null,null,null,null,null,null,null,null,null,"2.",{"$f":"IF(A729=\"nie dotyczy\",\"nie dotyczy\",\" \")","v":" "}]
[null,null,null,null,null,null,null,null,null,null,null,null,null,null,"3.",{"$f":"IF(A729=\"nie dotyczy\",\"nie dotyczy\",\" \")","v":" "}]
[null,null,null,null,null,null,null,null,null,null,null,null,null,null,"4.",{"$f":"IF(A729=\"nie dotyczy\",\"nie dotyczy\",\" \")","v":" "}]
[null,null,null,null,null,null,null,null,null,null,null,null,null,null,"5.",{"$f":"IF(A729=\"nie dotyczy\",\"nie dotyczy\",\" \")","v":" "}]
[null,null,null,null,null,null,null,null,null,null,null,null,null,null,"6.",{"$f":"IF(A729=\"nie dotyczy\",\"nie dotyczy\",\" \")","v":" "}]
[null,null,null,null,null,null,null,null,null,null,null,null,null,null,"7.",{"$f":"IF(A729=\"nie dotyczy\",\"nie dotyczy\",\" \")","v":" "}]
[{"$f":"IF($AB$704=\"nie\",\"Nie dotyczy\",\" \")","v":" "},null,null,null," ",null,null,null,null," ",null,null,null,null,"1.",{"$f":"IF(A736=\"nie dotyczy\",\"nie dotyczy\",\" \")","v":" "},null,null,null,null,null," ",null,null,null,null,null," "]
[null,null,null,null,null,null,null,null,null,null,null,null,null,null,"2.",{"$f":"IF(A736=\"nie dotyczy\",\"nie dotyczy\",\" \")","v":" "}]
[null,null,null,null,null,null,null,null,null,null,null,null,null,null,"3.",{"$f":"IF(A736=\"nie dotyczy\",\"nie dotyczy\",\" \")","v":" "}]
[null,null,null,null,null,null,null,null,null,null,null,null,null,null,"4.",{"$f":"IF(A736=\"nie dotyczy\",\"nie dotyczy\",\" \")","v":" "}]
[null,null,null,null,null,null,null,null,null,null,null,null,null,null,"5.",{"$f":"IF(A736=\"nie dotyczy\",\"nie dotyczy\",\" \")","v":" "}]
[null,null,null,null,null,null,null,null,null,null,null,null,null,null,"6.",{"$f":"IF(A736=\"nie dotyczy\",\"nie dotyczy\",\" \")","v":" "}]
[null,null,null,null,null,null,null,null,null,null,null,null,null,null,"7.",{"$f":"IF(A736=\"nie dotyczy\",\"nie dotyczy\",\" \")","v":" "}]
[{"$f":"IF($AB$704=\"nie\",\"Nie dotyczy\",\" \")","v":" "},null,null,null," ",null,null,null,null," ",null,null,null,null,"1.",{"$f":"IF(A743=\"nie dotyczy\",\"nie dotyczy\",\" \")","v":" "},null,null,null,null,null," ",null,null,null,null,null," "]
[null,null,null,null,null,null,null,null,null,null,null,null,null,null,"2.",{"$f":"IF(A743=\"nie dotyczy\",\"nie dotyczy\",\" \")","v":" "}]
[null,null,null,null,null,null,null,null,null,null,null,null,null,null,"3.",{"$f":"IF(A743=\"nie dotyczy\",\"nie dotyczy\",\" \")","v":" "}]
[null,null,null,null,null,null,null,null,null,null,null,null,null,null,"4.",{"$f":"IF(A743=\"nie dotyczy\",\"nie dotyczy\",\" \")","v":" "}]
[null,null,null,null,null,null,null,null,null,null,null,null,null,null,"5.",{"$f":"IF(A743=\"nie dotyczy\",\"nie dotyczy\",\" \")","v":" "}]
[null,null,null,null,null,null,null,null,null,null,null,null,null,null,"6.",{"$f":"IF(A743=\"nie dotyczy\",\"nie dotyczy\",\" \")","v":" "}]
[null,null,null,null,null,null,null,null,null,null,null,null,null,null,"7.",{"$f":"IF(A743=\"nie dotyczy\",\"nie dotyczy\",\" \")","v":" "}]
[{"$f":"IF($AB$704=\"nie\",\"Nie dotyczy\",\" \")","v":" "},null,null,null," ",null,null,null,null," ",null,null,null,null,"1.",{"$f":"IF(A750=\"nie dotyczy\",\"nie dotyczy\",\" \")","v":" "},null,null,null,null,null," ",null,null,null,null,null," "]
[null,null,null,null,null,null,null,null,null,null,null,null,null,null,"2.",{"$f":"IF(A750=\"nie dotyczy\",\"nie dotyczy\",\" \")","v":" "}]
[null,null,null,null,null,null,null,null,null,null,null,null,null,null,"3.",{"$f":"IF(A750=\"nie dotyczy\",\"nie dotyczy\",\" \")","v":" "}]
[null,null,null,null,null,null,null,null,null,null,null,null,null,null,"4.",{"$f":"IF(A750=\"nie dotyczy\",\"nie dotyczy\",\" \")","v":" "}]
[null,null,null,null,null,null,null,null,null,null,null,null,null,null,"5.",{"$f":"IF(A750=\"nie dotyczy\",\"nie dotyczy\",\" \")","v":" "}]
[null,null,null,null,null,null,null,null,null,null,null,null,null,null,"6.",{"$f":"IF(A750=\"nie dotyczy\",\"nie dotyczy\",\" \")","v":" "}]
[null,null,null,null,null,null,null,null,null,null,null,null,null,null,"7.",{"$f":"IF(A750=\"nie dotyczy\",\"nie dotyczy\",\" \")","v":" "}]
[{"$f":"IF($AB$704=\"nie\",\"Nie dotyczy\",\" \")","v":" "},null,null,null," ",null,null,null,null," ",null,null,null,null,"1.",{"$f":"IF(A757=\"nie dotyczy\",\"nie dotyczy\",\" \")","v":" "},null,null,null,null,null," ",null,null,null,null,null," "]
[null,null,null,null,null,null,null,null,null,null,null,null,null,null,"2.",{"$f":"IF(A757=\"nie dotyczy\",\"nie dotyczy\",\" \")","v":" "}]
[null,null,null,null,null,null,null,null,null,null,null,null,null,null,"3.",{"$f":"IF(A757=\"nie dotyczy\",\"nie dotyczy\",\" \")","v":" "}]
[null,null,null,null,null,null,null,null,null,null,null,null,null,null,"4.",{"$f":"IF(A757=\"nie dotyczy\",\"nie dotyczy\",\" \")","v":" "}]
[null,null,null,null,null,null,null,null,null,null,null,null,null,null,"5.",{"$f":"IF(A757=\"nie dotyczy\",\"nie dotyczy\",\" \")","v":" "}]
[null,null,null,null,null,null,null,null,null,null,null,null,null,null,"6.",{"$f":"IF(A757=\"nie dotyczy\",\"nie dotyczy\",\" \")","v":" "}]
[null,null,null,null,null,null,null,null,null,null,null,null,null,null,"7.",{"$f":"IF(A757=\"nie dotyczy\",\"nie dotyczy\",\" \")","v":" "}]
[{"$f":"IF($AB$704=\"nie\",\"Nie dotyczy\",\" \")","v":" "},null,null,null," ",null,null,null,null," ",null,null,null,null,"1.",{"$f":"IF(A764=\"nie dotyczy\",\"nie dotyczy\",\" \")","v":" "},null,null,null,null,null," ",null,null,null,null,null," "]
[null,null,null,null,null,null,null,null,null,null,null,null,null,null,"2.",{"$f":"IF(A764=\"nie dotyczy\",\"nie dotyczy\",\" \")","v":" "}]
[null,null,null,null,null,null,null,null,null,null,null,null,null,null,"3.",{"$f":"IF(A764=\"nie dotyczy\",\"nie dotyczy\",\" \")","v":" "}]
[null,null,null,null,null,null,null,null,null,null,null,null,null,null,"4.",{"$f":"IF(A764=\"nie dotyczy\",\"nie dotyczy\",\" \")","v":" "}]
[null,null,null,null,null,null,null,null,null,null,null,null,null,null,"5.",{"$f":"IF(A764=\"nie dotyczy\",\"nie dotyczy\",\" \")","v":" "}]
[null,null,null,null,null,null,null,null,null,null,null,null,null,null,"6.",{"$f":"IF(A764=\"nie dotyczy\",\"nie dotyczy\",\" \")","v":" "}]
[null,null,null,null,null,null,null,null,null,null,null,null,null,null,"7.",{"$f":"IF(A764=\"nie dotyczy\",\"nie dotyczy\",\" \")","v":" "}]
[{"$f":"IF($AB$704=\"nie\",\"Nie dotyczy\",\" \")","v":" "},null,null,null," ",null,null,null,null," ",null,null,null,null,"1.",{"$f":"IF(A771=\"nie dotyczy\",\"nie dotyczy\",\" \")","v":" "},null,null,null,null,null," ",null,null,null,null,null," "]
[null,null,null,null,null,null,null,null,null,null,null,null,null,null,"2.",{"$f":"IF(A771=\"nie dotyczy\",\"nie dotyczy\",\" \")","v":" "}]
[null,null,null,null,null,null,null,null,null,null,null,null,null,null,"3.",{"$f":"IF(A771=\"nie dotyczy\",\"nie dotyczy\",\" \")","v":" "}]
[null,null,null,null,null,null,null,null,null,null,null,null,null,null,"4.",{"$f":"IF(A771=\"nie dotyczy\",\"nie dotyczy\",\" \")","v":" "}]
[null,null,null,null,null,null,null,null,null,null,null,null,null,null,"5.",{"$f":"IF(A771=\"nie dotyczy\",\"nie dotyczy\",\" \")","v":" "}]
[null,null,null,null,null,null,null,null,null,null,null,null,null,null,"6.",{"$f":"IF(A771=\"nie dotyczy\",\"nie dotyczy\",\" \")","v":" "}]
[null,null,null,null,null,null,null,null,null,null,null,null,null,null,"7.",{"$f":"IF(A771=\"nie dotyczy\",\"nie dotyczy\",\" \")","v":" "}]
[{"$f":"IF($AB$704=\"nie\",\"Nie dotyczy\",\" \")","v":" "},null,null,null,{"$f":"IF($A778=\"Nie dotyczy\",\"Nie dotyczy\",\" \")","v":" "},null,null,null,null,{"$f":"IF($A778=\"Nie dotyczy\",\"Nie dotyczy\",\" \")","v":" "},null,null,null,null,"1.",{"$f":"IF(A778=\"nie dotyczy\",\"nie dotyczy\",\" \")","v":" "},null,null,null,null,null,{"$f":"IF($A778=\"Nie dotyczy\",\"Nie dotyczy\",\" \")","v":" "},null,null,null,null,null,{"$f":"IF($A778=\"Nie dotyczy\",\"Nie dotyczy\",\" \")","v":" "}]
[null,null,null,null,null,null,null,null,null,null,null,null,null,null,"2.",{"$f":"IF(A778=\"nie dotyczy\",\"nie dotyczy\",\" \")","v":" "}]
[null,null,null,null,null,null,null,null,null,null,null,null,null,null,"3.",{"$f":"IF(A778=\"nie dotyczy\",\"nie dotyczy\",\" \")","v":" "}]
[null,null,null,null,null,null,null,null,null,null,null,null,null,null,"4.",{"$f":"IF(A778=\"nie dotyczy\",\"nie dotyczy\",\" \")","v":" "}]
[null,null,null,null,null,null,null,null,null,null,null,null,null,null,"5.",{"$f":"IF(A778=\"nie dotyczy\",\"nie dotyczy\",\" \")","v":" "}]
[null,null,null,null,null,null,null,null,null,null,null,null,null,null,"6.",{"$f":"IF(A778=\"nie dotyczy\",\"nie dotyczy\",\" \")","v":" "}]
[null,null,null,null,null,null,null,null,null,null,null,null,null,null,"7.",{"$f":"IF(A778=\"nie dotyczy\",\"nie dotyczy\",\" \")","v":" "}]

{"sheet":"V. Aspekty Finansowe","index":7,"n_rows":56,"n_cols":38,"rows_kept":56,"cut":false,"hidden":false,"merged":[[55,1,55,32],[14,17,14,26],[14,28,14,32],[14,0,14,11],[14,13,14,16],[15,0,15,32],[13,23,13,32],[51,1,51,32],[52,1,52,32],[23,0,23,32],[25,26,25,32],[25,19,25,25],[25,0,25,18],[53,1,53,32],[31,3,31,18],[46,1,46,32],[36,27,36,32],[0,0,0,32],[1,0,1,32],[4,22,4,32],[4,17,4,21],[4,12,4,16],[4,0,4,11],[10,13,10,16],[10,17,10,26],[10,28,10,32],[3,0,3,32],[6,0,6,11],[6,17,6,26],[6,28,6,32],[7,0,7,32],[8,0,8,11],[5,13,5,16],[5,18,5,21],[5,23,5,32],[5,1,5,11],[6,13,6,16],[8,12,8,16],[8,17,8,21],[8,22,8,32],[9,13,9,16],[45,1,45,32],[41,0,41,18],[41,20,41,25],[41,27,41,32],[42,0,42,18],[42,20,42,25],[42,27,42,32],[44,19,44,25],[44,26,44,32],[54,1,54,32],[28,0,28,18],[28,20,28,25],[28,27,28,32],[29,0,29,18],[29,20,29,25],[29,27,29,32],[49,1,49,32],[50,1,50,32],[33,0,33,18],[33,20,33,25],[33,27,33,32],[34,0,34,18],[34,20,34,25],[34,27,34,32],[30,0,30,18],[30,20,30,25],[37,0,37,18],[38,0,38,18],[38,20,38,25],[38,27,38,32],[47,1,47,32],[48,1,48,32],[35,0,35,18],[0,33,1,36],[3,33,6,33],[3,34,6,34],[3,35,6,35],[3,36,6,36],[7,33,10,33],[39,0,39,18],[40,20,40,25],[40,27,40,32],[40,3,40,18],[27,0,27,18],[27,20,27,25],[27,27,27,32],[30,27,30,32],[31,20,31,25],[31,27,31,32],[9,1,9,11],[12,12,12,16],[12,17,12,21],[12,22,12,32],[13,1,13,11],[13,13,13,16],[13,18,13,21],[35,20,35,32],[43,19,43,25],[43,26,43,32],[40,0,40,1],[39,20,39,32],[36,0,36,18],[36,20,36,25],[37,20,37,32],[16,0,16,18],[17,0,17,18],[18,0,18,18],[19,0,19,18],[20,0,20,18],[21,0,21,18],[16,20,16,32],[17,20,17,32],[18,20,18,32],[19,20,19,32],[20,20,20,32],[21,20,21,32],[22,0,22,32],[24,0,24,32],[3,37,6,37],[7,37,10,37],[11,37,14,37],[31,0,31,1],[26,0,26,18],[26,19,26,25],[26,26,26,32],[32,0,32,18],[32,19,32,25],[32,26,32,32],[11,33,14,33],[7,34,10,34],[7,35,10,35],[7,36,10,36],[11,34,14,34],[11,35,14,35],[11,36,14,36],[15,33,15,36],[22,33,24,36],[9,18,9,21],[9,23,9,32],[10,0,10,11],[11,0,11,32],[12,0,12,11]]}
["V. ASPEKTY FINANSOWE",null,null,null,null,null,null,null,null,null,null,null,null,null,null,null,null,null,null,null,null,null,null,null,null,null,null,null,null,null,null,null,null,"Uwagi/komentarze Ekspertów"]
["1. Planowane kwoty wydatków wg. rodzajów pomocy"]
[null,null,null,null,null,null,null,null,null,null,null,null,null,null,null,null,null,null,null,null,null,null,null,null,null,null,null,null,null,null,null,null,null,{"$f":"'I. Informacje ogólne o projekci'!$AH$2","v":"Ekspert od innowacyjności 1"},{"$f":"'I. Informacje ogólne o projekci'!$AI$2","v":"Ekspert od innowacyjności 2"},{"$f":"'I. Informacje ogólne o projekci'!$AJ$2","v":"Ekspert od innowacyjności 3"},{"$f":"'I. Informacje ogólne o projekci'!$AK$2","v":"Ekspert finansowy"},{"$f":"'I. Informacje ogólne o projekci'!$AL$2","v":"Uwagi MFiPR"}]
["Pomoc regionalna"]
["Wydatki całkowite (w PLN)",null,null,null,null,null,null,null,null,null,null,null,"Stawka VAT",null,null,null,null,"Czy VAT jest kwalifikowany?",null,null,null,null,"Wydatki kwalifikowane (w PLN)"]
["254.",null,null,null,null,null,null,null,null,null,null,null,"255.",null,null,null,null,"256.",null,null,null,null,"257."]
["Wielkość dofinansowania w % 2",null,null,null,null,null,null,null,null,null,null,null,"258.",null,null,null,null,"Wnioskowana kwota dofinansowania 3",null,null,null,null,null,null,null,null,null,"259.",{"$f":"$X$6*$N$7","v":0}]
["Pomoc na projekty badawczo-rozwojowe"]
["Wydatki całkowite (w PLN)",null,null,null,null,null,null,null,null,null,null,null,"Stawka VAT",null,null,null,null,"Czy VAT jest kwalifikowany?",null,null,null,null,"Wydatki kwalifikowane (w PLN)"]
["260.",null,null,null,null,null,null,null,null,null,null,null,"261.",null,null,null,null,"262.",null,null,null,null,"263.",{"$f":"IF(B10=0,0,\" \")","v":0}]
["Wielkość dofinansowania w % 4",null,null,null,null,null,null,null,null,null,null,null,"264.",{"$f":"IF(X10=0,\"n/d\",\" \")","v":"n/d"},"n/d","n/d","n/d","Wnioskowana kwota dofinansowania 5",null,null,null,null,null,null,null,null,null,"265.",{"$f":"$X$10*IF($N$11=\"n/d\",0,$N$11)","v":0}]
["Pomoc de minimis"]
["Wydatki całkowite (w PLN)",null,null,null,null,null,null,null,null,null,null,null,"Stawka VAT",null,null,null,null,"Czy VAT jest kwalifikowany?",null,null,null,null,"Wydatki kwalifikowane (w PLN)"]
["266.",null,null,null,null,null,null,null,null,null,null,null,"267.",null,null,null,null,"268.",null,null,null,null,"269.",{"$f":"IF($B$14=0,0,\" \")","v":0}]
["Wielkość dofinansowania w % 6",null,null,null,null,null,null,null,null,null,null,null,"270.",{"$f":"IF(X14=0,\"n/d\",\" \")","v":"n/d"},"n/d","n/d","n/d","Wnioskowana kwota dofinansowania 7",null,null,null,null,null,null,null,null,null,"271.",{"$f":"$X$14*IF($N$15=\"n/d\",0,$N$15)","v":0}]
["Podsumowanie budżetu"]
["Łączna wartość wydatków całkowitych na realizację projektu (w PLN) 8",null,null,null,null,null,null,null,null,null,null,null,null,null,null,null,null,null,null,"272.",{"$f":"$B$6+$B$10+$B$14","v":0}]
["wartość podatku VAT",null,null,null,null,null,null,null,null,null,null,null,null,null,null,null,null,null,null,"273."]
["Łączna wartość wydatków kwalifikowanych (w PLN) 9",null,null,null,null,null,null,null,null,null,null,null,null,null,null,null,null,null,null,"274.",{"$f":"$X$6+$X$10+$X$14","v":0}]
["wartość podatku VAT 10",null,null,null,null,null,null,null,null,null,null,null,null,null,null,null,null,null,null,"275."]
["Wnioskowana kwota dofinansowania (w PLN) 11",null,null,null,null,null,null,null,null,null,null,null,null,null,null,null,null,null,null,"276.",{"$f":"$AC$7+$AC$11+$AC$15","v":0}]
["wartość podatku VAT 12",null,null,null,null,null,null,null,null,null,null,null,null,null,null,null,null,null,null,"277."]
[{"$f":"IF($U$19=0,\" \",IF($U$19<=2000000,\"Założenia finansowe nie spełniają kryterium w zakresie minimalnej wielkości sumy kosztów kwalifikowanych. Zgodnie z RK minimalna wartość sumy kosztów kwalifikowanych to 2.000.000 PLN\",\" \"))","v":" "}]
["2. Zdolność finansowa Wnioskodawcy"]
[]
["Źródła finansowania projektu",null,null,null,null,null,null,null,null,null,null,null,null,null,null,null,null,null,null,"Wydatki\ncałkowite \n(w PLN)",null,null,null,null,null,null,"Wydatki kwalifikowane \n(w PLN)"]
["I. Środki publiczne, w tym:",null,null,null,null,null,null,null,null,null,null,null,null,null,null,null,null,null,null,{"$f":"SUM(U28:Z32)","v":0},null,null,null,null,null,null,{"$f":"SUM(AB28:AG32)","v":0}]
["1. Wnioskowana kwota dofinansowania w ramach działania ",null,null,null,null,null,null,null,null,null,null,null,null,null,null,null,null,null,null,"278.",{"$f":"$U$21","v":0},null,null,null,null,null,"279.",{"$f":"$U$21","v":0}]
["2. Inne środki publiczne stanowiące pomoc państwa, w tym:",null,null,null,null,null,null,null,null,null,null,null,null,null,null,null,null,null,null,"280.",{"$f":"U30+U31+U32","v":0},null,null,null,null,null,"281.",{"$f":"AB30+AB31+AB32","v":0}]
["a) budżet państwa",null,null,null,null,null,null,null,null,null,null,null,null,null,null,null,null,null,null,"282.",null,null,null,null,null,null,"283."]
["b) budżet jednostek samorządu terytorialnego",null,null,null,null,null,null,null,null,null,null,null,null,null,null,null,null,null,null,"284.",null,null,null,null,null,null,"285."]
["c) inne:",null,"286.",{"$f":"IF(U32+AB32<>0,\"Uzupełnij\",\"Nie dotyczy\")","v":"Nie dotyczy"},null,null,null,null,null,null,null,null,null,null,null,null,null,null,null,"287.",null,null,null,null,null,null,"288."]
["II. Źródła finansowania inne niż środki publiczne, w tym:",null,null,null,null,null,null,null,null,null,null,null,null,null,null,null,null,null,null,{"$f":"SUM(U34,U35,U37,U39,U41)","v":0},null,null,null,null,null,null,{"$f":"SUM(AB34,AB35,AB37,AB39,AB41)","v":0}]
["1. Własne",null,null,null,null,null,null,null,null,null,null,null,null,null,null,null,null,null,null,"289.",null,null,null,null,null,null,"290."]
["2. Kredyt inwestycyjny",null,null,null,null,null,null,null,null,null,null,null,null,null,null,null,null,null,null,"291.",null,null,null,null,null,null,"292."]
["Nazwa instytucji finansującej kredyt inwestycyjny",null,null,null,null,null,null,null,null,null,null,null,null,null,null,null,null,null,null,"293.",{"$f":"IF(U35+AB35<>0,\"Uzupełnij\",\"Nie dotyczy\")","v":"Nie dotyczy"}]
["3. Leasing",null,null,null,null,null,null,null,null,null,null,null,null,null,null,null,null,null,null,"294.",null,null,null,null,null,null,"295."]
["Nazwa instytucji finansującej leasing",null,null,null,null,null,null,null,null,null,null,null,null,null,null,null,null,null,null,"296.",{"$f":"IF(U37+AB37<>0,\"Uzupełnij\",\"Nie dotyczy\")","v":"Nie dotyczy"}]
["4. Fundusz inwestycyjny ",null,null,null,null,null,null,null,null,null,null,null,null,null,null,null,null,null,null,"297.",null,null,null,null,null,null,"298."]
["Nazwa funduszu inwestycyjnego",null,null,null,null,null,null,null,null,null,null,null,null,null,null,null,null,null,null,"299.",{"$f":"IF(U39+AB39<>0,\"Uzupełnij\",\"Nie dotyczy\")","v":"Nie dotyczy"}]
["5. Inne: ",null,"300.",{"$f":"IF(U41+AB41<>0,\"Uzupełnij\",\"Nie dotyczy\")","v":"Nie dotyczy"},null,null,null,null,null,null,null,null,null,null,null,null,null,null,null,"301.",null,null,null,null,null,null,"302."]
["III. Razem (suma poz. I. Pkt 1 i 2 oraz poz. II pkt 1-5)",null,null,null,null,null,null,null,null,null,null,null,null,null,null,null,null,null,null,"303.",{"$f":"$U$17","v":0},null,null,null,null,null,"304.",{"$f":"$U$19","v":0}]
["Udział kredytu ze środków EBI  w środkach gwarantowanych przez Wnioskodawcę (w PLN)",null,null,null,null,null,null,null,null,null,null,null,null,null,null,null,null,null,null,"305.",null,null,null,null,null,null,"306."]
[null,null,null,null,null,null,null,null,null,null,null,null,null,null,null,null,null,null,null,{"$f":"IF($T$27+$T$33=$U$42,\" \",\"Pozostało do rozdysponowania\")","v":" "},null,null,null,null,null,null,{"$f":"IF($AA$27+$AA$33=$AB$42,\" \",\"Pozostało do rozdysponowania\")","v":" "}]
[null,null,null,null,null,null,null,null,null,null,null,null,null,null,null,null,null,null,null,{"$f":"IF($T$44<>\" \",$U$42-$T$33-$T$27,\" \")","v":" "},null,null,null,null,null,null,{"$f":"IF($AA$44<>\" \",$AB$42-$AA$33-$AA$27,\" \")","v":" "}]
[2,"Należy podać intensywność regionalnej pomocy inwestycyjnej zgodnie z rozporządzeniem Rady Ministrów z dnia 30 czerwca 2014 r. w sprawie ustalenia mapy pomocy regionalnej na lata 2014–2020 (Dz. U. poz. 878)."]
[3,"Iloczyn wartości wskazanych w kolumnie: „Wydatki kwalifikowane (w PLN)” i „Wielkość dofinansowania w %”."]
[4,"Należy podać intensywność pomocy na projekt badawczo-rozwojowy zgodnie z pułapami wskazanymi w kryteriach wyboru projektów/instrukcji wypełniania wniosku."]
[5,"Iloczyn wartości wskazanych w kolumnie: „Wydatki kwalifikowane (w PLN)” i „Wielkość dofinansowania w %”."]
[6,"Należy podać intensywność pomocy de minimis zgodnie z pułapami wskazanymi w kryteriach wyboru projektów/instrukcji wypełniania wniosku."]
[7,"Iloczyn wartości wskazanych w kolumnie: „Wydatki kwalifikowane (w PLN)” i „Wielkość dofinansowania w %”."]
[8,"Suma wydatków całkowitych wskazanych w poszczególnych rodzajach pomocy: pomocy regionalnej, pomocy na projekt badawczo-rozwojowy, pomocy de minimis."]
[9,"  Suma wydatków kwalifikowanych wyliczonych w ramach poszczególnych rodzajów pomocy: pomocy regionalnej, pomocy na projekt badawczo-rozwojowy oraz pomocy de minimis."]
[10,"Podać wyłącznie wówczas gdy podatek VAT jest kwalifikowany."]
[11,"Suma wnioskowanej kwoty dofinansowania wyliczonej w ramach poszczególnych rodzajów pomocy: pomocy regionalnej, pomocy na projekt badawczo-rozwojowy oraz pomocy de minimis."]
[12,"Podać wyłącznie wówczas gdy podatek VAT jest kwalifikowany."]

{"sheet":"Słowniki","index":8,"n_rows":770,"n_cols":21,"rows_kept":770,"cut":false,"hidden":true,"merged":[]}
["Krajowa Inteligentna Specjalizacja",null,null,null,null,null,"Zakres Interwencji",null,"Województwo",null,"Wykształcenie",null,"Nie dotyczy",null,"formwsp"]
["KIS 1. ZDROWE SPOŁECZEŃSTWO",null,"utworzenie CBR",null,"Formy zatrudnienia",null,"056 – Inwestycje w infrastrukturę, zdolności i wyposażenie w MŚP, związane bezpośrednio z działaniami badawczymi i innowacyjnymi","dolnośląskie","dolnośląskie",null,"wykształcenie wyższe",null,"Pozyskany",null,"współpraca w ramach umowy wieloletniej",null,"KIS 1. ZDROWE SPOŁECZEŃSTWO",null,"nie uwzględnia przedsięwzięć mogących znacząco oddziaływać na środowisko, dla których, wymagane jest lub może być wymagane sporządzenie raportu o oddziaływaniu na środowisko, ani przedsięwzięć mogących znacząco oddziaływać na wyznaczony lub potencjalny obszar Natura 2000",null,"nie ma prawnej możliwości odzyskania lub odliczenia poniesionego ostatecznie kosztu podatku VAT i w związku z tym wnioskuje o refundację części poniesionego w ramach projektu podatku VAT. Jednocześnie zobowiązuję się do zwrotu zrefundowanej w ramach projektu części poniesionego podatku VAT, jeżeli zainstnieją przesłanki umożliwiające odzyskanie lub odliczenie tego podatku"]
["KIS 2. INNOWACYJNE TECHNOLOGIE, PROCESY I PRODUKTY SEKTORA ROLNO-SPOŻYWCZEGO I LEŚNO-DRZEWNEGO",null,"rozwój CBR",null,"umowa o prace na czas nieokreślony",null,"057 – Inwestycje w infrastrukturę, zdolności i wyposażenie w dużych przedsiębiorstwach, związane bezpośrednio z działaniami badawczymi i innowacyjnymi","kujawsko-pomorskie","kujawsko-pomorskie",null,"brak wyższego wykształcenia",null,"W trakcie pozyskiwania",null,"współpraca w określonym czasie na potrzeby realizacji projektu",null,"KIS 2. INNOWACYJNE TECHNOLOGIE, PROCESY I PRODUKTY SEKTORA ROLNO-SPOŻYWCZEGO I LEŚNO-DRZEWNEGO",null,"uwzględnia przedsięwzięcia mogące znacząco oddziaływać na środowisko, dla których, wymagane jest sporządzenie raportu o oddziaływaniu na środowisko",null,"nie ma prawnej możliwości odzyskania lub odliczenia poniesionego ostatecznie kosztu podatku VAT , jednak nie wnioskuje oraz nie będzie w przyszłości wnioskować o refundację jakiejkolwiek części poniesionego w ramach projektu podatku VAT"]
["KIS 3. BIOTECHNOLOGICZNE I CHEMICZNE PROCESY, BIOPRODUKTY I PRODUKTY CHEMII SPECJALISTYCZNEJ ORAZ INŻYNIERII ŚRODOWISKA",null,null,null,"umowa o prace na czas okreslony",null,"065 - Infrastruktura na potrzeby badań i rozwoju, transfer technologii i współpraca w przedsiębiorstwach koncentrujących się na gospodarce niskoemisyjnej i odporności na zmiany klimatu","lubelskie","lubelskie",null,null,null,null,null,"płatny staż pracownika B+R z danej jednostki naukowej",null,"KIS 3. BIOTECHNOLOGICZNE I CHEMICZNE PROCESY, BIOPRODUKTY  I PRODUKTY CHEMII SPECJALISTYCZNEJ ORAZ INŻYNIERII ŚRODOWISKA",null,"uwzględnia przedsięwzięcia mogące potencjalnie znacząco oddziaływać na środowisko, dla których, sporządzenie raportu o oddziaływaniu na środowisko może być wymagane",null,"będzie mógł odzyskać lub odliczyć koszt podatku VAT poniesiony w związku z realizacją działań objętych wnioskiem"]
["KIS 4. WYSOKOSPRAWNE, NISKOEMISYJNE I ZINTEGROWANE UKŁADY WYTWARZANIA, MAGAZYNOWANIA, PRZESYŁU I DYSTRYBUCJI ENERGII",null,"TAK, stanowią barierę",null,"umowa na czas wykonywania określonej pracy",null,null,"lubuskie","lubuskie",null,"Rodzaj podmiotu OB.",null,null,null,"zakup usług B+R",null,"KIS 4. WYSOKOSPRAWNE, NISKOEMISYJNE I ZINTEGROWANE UKŁADY WYTWARZANIA, MAGAZYNOWANIA, PRZESYŁU I DYSTRYBUCJI ENERGII ",null,"uwzględnia przedsięwzięcia mogące znacząco oddziaływać na obszar Natura 2000",null,"jest małym podatnikiem rozliczającym się kasowo"]
["KIS 5. INTELIGENTNE I ENERGOOSZCZĘDNE BUDOWNICTWO",null,"NIE, nie stanowią bariery",null,"umowa zlecenie",null,"Własność intelektualna","łódzkie","łódzkie",null,"organizacja badawcza/ jednostka naukowa",null,null,null,"usługi na wykonanie określonego zadania prowadzącego do praktycznych rezultatów",null,"KIS 5. INTELIGENTNE I ENERGOOSZCZĘDNE BUDOWNICTWO",null,"uwzględnia przedsięwzięcia mogące znacząco oddziaływać na potencjalny obszar Natura 2000"]
["KIS 6. ROZWIĄZANIA TRANSPORTOWE PRZYJAZNE ŚRODOWISKU",null,null,null,"umowa o dzieło",null,"patent na wynalazek","małopolskie","małopolskie",null,"MSP",null,null,null,"nie dotyczy",null,"KIS 6. ROZWIĄZANIA TRANSPORTOWE PRZYJAZNE ŚRODOWISKU"]
["KIS 7. GOSPODARKA O OBIEGU ZAMKNIĘTYM – WODA, SUROWCE KOPALNE, ODPADY",null,"NEUTRALNY",null,"kontrakt",null,"prawo ochronne na wzór użytkowy","mazowieckie","mazowieckie",null,"NGO",null,null,null,null,null,"KIS 7. GOSPODARKA O OBIEGU ZAMKNIĘTYM – WODA, SUROWCE KOPALNE, ODPADY"]
["KIS 8. WIELOFUNKCYJNE MATERIAŁY I KOMPOZYTY O ZAAWANSOWANYCH WŁAŚCIWOŚCIACH, W TYM NANOPROCESY I NANOPRODUKTY ",null,"POZYTYWNY",null,"inne",null,"prawo używania oznaczenia geograficznego","opolskie","opolskie",null,"Nie dotyczy",null,null,null,null,null,"KIS 8. WIELOFUNKCYJNE MATERIAŁY I KOMPOZYTY O ZAAWANSOWANYCH WŁAŚCIWOŚCIACH, W TYM NANOPROCESY I NANOPRODUKTY "]
["KIS 9. SENSORY (W TYM BIOSENSORY) I INTELIGENTNE SIECI SENSOROWE",null,null,null,null,null,"prawa autorskie","podkarpackie","podkarpackie",null,null,null,null,null,null,null,"KIS 9.  ELEKTRONIKA I FOTONIKA"]
["KIS 10. INTELIGENTNE SIECI I TECHNOLOGIE INFORMACYJNO-KOMUNIKACYJNE ORAZ GEOINFORMACYJNE",null,null,null,null,null,"nie jest konieczne dysponowanie prawami własności intelektualnej","podlaskie","podlaskie",null,null,null,null,null,null,null,"KIS 10. INTELIGENTNE SIECI I TECHNOLOGIE INFORMACYJNO-KOMUNIKACYJNE ORAZ GEOINFORMACYJNE"]
["KIS 11. ELEKTRONIKA DRUKOWANA, ORGANICZNA I ELASTYCZNA",null,null,null,null,null,null,"pomorskie","pomorskie",null,"Rodzaj przedsiębiorstwa",null,null,null,null,null,"KIS 11. ELEKTRONIKA DRUKOWANA, ORGANICZNA I ELASTYCZNA"]
["KIS 12. AUTOMATYZACJA I ROBOTYKA PROCESÓW TECHNOLOGICZNYCH",null,null,null,null,null,null,"śląskie","śląskie",null,"samodzielne",null,null,null,null,null,"KIS 12. AUTOMATYZACJA I ROBOTYKA PROCESÓW TECHNOLOGICZNYCH  "]
["KIS 13. FOTONIKA",null,"TAK/NIE/N/d",null,"Dokument rejestrowy",null,"Rodzaje płatnosci","świętokrzyskie","świętokrzyskie",null,"partnerskie",null,null,null,null,null,"KIS 13. INTELIGENTNE TECHNOLOGIE KREACYJNE"]
["KIS 14. INTELIGENTNE TECHNOLOGIE KREACYJNE",null,"TAK","TAK","Dokument rejestrowy KRS",null,"R","warmińsko-mazurskie","warmińsko-mazurskie",null,"powiązane",null,null,null,null,null,"KIS 14. INNOWACYJNE TECHNOLOGIE MORSKIE W ZAKRESIE SPECJALISTYCZNYCH JEDNOSTEK PŁYWAJĄCYCH, KONSTRUKCJI MORSKICH I PRZYBRZEŻNYCH ORAZ LOGISTYKI OPARTEJ O TRANSPORT MORSKI I ŚRÓDLĄDOWY"]
["KIS 15. INNOWACYJNE TECHNOLOGIE MORSKIE W ZAKRESIE SPECJALISTYCZNYCH JEDNOSTEK PŁYWAJĄCYCH, KONSTRUKCJI MORSKICH I PRZYBRZEŻNYCH ORAZ LOGISTYKI OPARTEJ O TRANSPORT MORSKI I ŚRÓDLĄDOWY",null,"NIE","NIE","Dokument rejestrowy CEiDG",null,"Z","wielkopolskie","wielkopolskie",null,"mikro"]
[null,null,"N/d","N/d",null,null,"RZ","zachodniopomorskie","zachodniopomorskie",null,"małe"]
["SOR",null,null,null,null,null,null,null,"Nie dotyczy",null,"średnie"]
["SEKTOR PRODUKCJI ŚRODKÓW TRANSPORTU (NP. E-BUSY, POJAZDY SZYNOWE, STATKI SPECJALISTYCZNE)",null,null,null,null,null,null,null,null,null,"inne niż MSP"]
["ELEKTRONIKA PROFESJONALNA (NP. INTELIGENTNE LICZNIKI ENERGII, FALOWNIK, ŁADOWARKI DO SAMOCHODÓW, SENSORY)",null,"NUTS 3",null,"Formy współpracy z jednostkami badawczymi",null,"miejski"]
["SEKTOR SPECJALISTYCZNYCH TECHNOLOGII TELEINFORMATYCZNYCH (NP. FINTECH, AUTOMATYKA MASZYN I BUDYNKÓW, CYBERBEZPIECZEŃSTWO, GRY KOMPUTEROWE, BIOINFORMATYKA)",null,"Bialski - PL811",null,"współpraca w ramach umowy wieloletniej",null,"wiejski",null,"TAK",null,1]
["SEKTOR LOTNICZO-KOSMICZNY (NP. DRONY,ELEMENTY SATELITÓW)",null,"Białostocki - PL841",null,"współpraca w określonym czasie na potrzeby realizacji wspólnego projektu",null,"miejsko-wiejski",null,"NIE",null,2]
["SEKTOR PRODUKCJI LEKÓW, WYROBÓW MEDYCZNYCH I NOWOCZESNYCH USŁUG MEDYCZNYCH (NP. E- MEDYCYNA, WYROBY MEDYCZNE, TERAPIE, LEKI BIOPODOBNE)",null,"Bielski - PL225",null,"płatny staż pracownika B+R z danej jednostki naukowej",null,"Nie dotyczy",null,"CZĘŚCIOWO",null,3]
["SEKTOR SYSTEMÓW WYDOBYWCZYCH (NP. INTELIGENTNA KOPALNIA)",null,"Bydgosko-toruński - PL613",null,"zakup usług B+R w jednostkach naukowych"]
["SEKTOR ODZYSKU MATERIAŁOWEGO SUROWCÓW",null,"Bytomski - PL228",null,"usługi na wykonanie określonego zadania prowadzącego do praktycznych rezultatów"]
["SEKTOR EKOBUDOWNICTWA (NP. BUDYNKI PASYWNE, PIKOENERGETYKA, BUDOWNICTWO DREWNIANE)",null,"Chełmsko-zamojski - PL812",null,"Nie dotyczy"]
["SEKTOR ŻYWNOŚCI WYSOKIEJ JAKOŚCI",null,"Chojnicki - PL637"]
["Nie dotyczy",null,"Ciechanowski - PL922"]
[null,null,"Częstochowski - PL224"]
["DZIAŁALNOŚĆ GOSPODARCZA",null,"Elbląski - PL621"]
["1 - Rolnictwo i leśnictwo",null,"Ełcki - PL623"]
["2 - Rybołówstwo i akwakultura",null,"Gdański - PL634"]
["3 - Produkcja artykułów spożywczych i napojów",null,"Gliwicki - PL229"]
["4 - Wytwarzanie tekstyliów i wyrobów włókienniczych",null,"Gorzowski - PL431"]
["5 - Produkcja sprzętu transportowego",null,"Grudziądzki - PL616"]
["6 - Produkcja komputerów, wyrobów elektronicznych i optycznych",null,"Inowrocławski - PL617"]
["7 - Pozostałe nieokreślone branże przemysłu wytwórczego",null,"Jeleniogórski - PL515"]
["8 - Budownictwo",null,"Kaliski - PL416"]
["9 - Górnictwo i kopalnictwo (w tym wydobycie surowców energetycznych)",null,"Katowicki - PL22A"]
["10 - Energia elektryczna, paliwa gazowe, para wodna, gorąca woda i powietrze do układów klimatyzacyjnych",null,"Kielecki - PL721"]
["11 - Dostawa wody, gospodarowanie ściekami i odpadami oraz działalność związana z rekultywacją",null,"Koniński - PL414"]
["12 - Transport i składowanie",null,"Koszaliński - PL426"]
["13 - Działania informacyjno-komunikacyjne, w tym telekomunikacja, usługi informacyjne, programowanie, doradztwo i działalność pokrewna",null,"Krakowski - PL214"]
["14 - Handel hurtowy i detaliczny",null,"Krośnieński - PL821"]
["15 - Turystyka oraz działalność związana z zakwaterowaniem i usługami gastronomicznymi",null,"Legnicko-głogowski - PL516"]
["16 - Działalność finansowa i ubezpieczeniowa",null,"Leszczyński - PL417"]
["17 - Obsługa nieruchomości, wynajem i usługi związane z prowadzeniem działalności gospodarczej",null,"Lubelski - PL814"]
["18 - Administracja publiczna",null,"Łomżyński - PL842"]
["19 - Edukacja",null,"Łódzki - PL712"]
["20 - Opieka zdrowotna",null,"Miasto Kraków - PL213"]
["21 - Działalność w zakresie opieki społecznej, usługi komunalne, społeczne i indywidualne",null,"Miasto Łódź - PL711"]
["22 - Działalność związana ze środowiskiem naturalnym i zmianami klimatu",null,"Miasto Poznań - PL415"]
["23 - Sztuka, rozrywka, sektor kreatywny i rekreacja",null,"Miasto Szczecin - PL424"]
["24 - Inne niewyszczególnione usługi",null,"Miasto Warszawa - PL911"]
[null,null,"Miasto Wrocław - PL514"]
["PKD",null,"Nowosądecki - PL218"]
["01.11.Z - Uprawa zbóż, roślin strączkowych i roślin oleistych na nasiona, z wyłączeniem ryżu",null,"Nowotarski - PL219"]
["01.12.Z - Uprawa ryżu",null,"Nyski - PL523"]
["01.13.Z - Uprawa warzyw, włączając melony oraz uprawa roślin korzeniowych i roślin bulwiastych",null,"Olsztyński - PL622"]
["01.14.Z - Uprawa trzciny cukrowej",null,"Opolski - PL524"]
["01.15.Z - Uprawa tytoniu",null,"Ostrołęcki - PL924"]
["01.16.Z - Uprawa roślin włóknistych",null,"Oświęcimski - PL21A"]
["01.19.Z - Pozostałe uprawy rolne inne niż wieloletnie",null,"Pilski - PL411"]
["01.21.Z - Uprawa winogron",null,"Piotrkowski - PL713"]
["01.22.Z - Uprawa drzew i krzewów owocowych tropikalnych i podzwrotnikowych",null,"Płocki - PL923"]
["01.23.Z - Uprawa drzew i krzewów owocowych cytrusowych",null,"Poznański - PL418"]
["01.24.Z - Uprawa drzew i krzewów owocowych ziarnkowych i pestkowych",null,"Przemyski - PL822"]
["01.25.Z - Uprawa pozostałych drzew i krzewów owocowych oraz orzechów",null,"Puławski - PL815"]
["01.26.Z - Uprawa drzew oleistych",null,"Radomski - PL921"]
["01.27.Z - Uprawa roślin wykorzystywanych do produkcji napojów",null,"Rybnicki - PL227"]
["01.28.Z - Uprawa roślin przyprawowych i aromatycznych oraz roślin wykorzystywanych do produkcji leków i wyrobów farmaceutycznych",null,"Rzeszowski - PL823"]
["01.29.Z - Uprawa pozostałych roślin wieloletnich",null,"Sandomiersko-jędrzejowski - PL722"]
["01.30.Z - Rozmnażanie roślin",null,"Siedlecki - PL925"]
["01.41.Z - Chów i hodowla bydła mlecznego",null,"Sieradzki - PL714"]
["01.42.Z - Chów i hodowla pozostałego bydła i bawołów",null,"Skierniewicki - PL715"]
["01.43.Z - Chów i hodowla koni i pozostałych zwierząt koniowatych",null,"Słupski - PL636"]
["01.44.Z - Chów i hodowla wielbłądów i zwierząt wielbłądowatych",null,"Sosnowiecki - PL22B"]
["01.45.Z - Chów i hodowla owiec i kóz",null,"Starogardzki - PL638"]
["01.46.Z - Chów i hodowla świń",null,"Suwalski - PL843"]
["01.47.Z - Chów i hodowla drobiu",null,"Szczecinecko-pyrzycki - PL427"]
["01.49.Z - Chów i hodowla pozostałych zwierząt",null,"Szczeciński - PL428"]
["01.50.Z - Uprawy rolne połączone z chowem i hodowlą zwierząt (działalność mieszana)",null,"Świecki - PL618"]
["01.61.Z - Działalność usługowa wspomagająca produkcję roślinną",null,"Tarnobrzeski - PL824"]
["01.62.Z - Działalność usługowa wspomagająca chów i hodowlę zwierząt gospodarskich",null,"Tarnowski - PL217"]
["01.63.Z - Działalność usługowa następująca po zbiorach",null,"Trójmiejski - PL633"]
["01.64.Z - Obróbka nasion dla celów rozmnażania roślin",null,"Tyski - PL22C"]
["01.70.Z - Łowiectwo i pozyskiwanie zwierząt łownych, włączając działalność usługową",null,"Wałbrzyski - PL517"]
["02.10.Z - Gospodarka leśna i pozostała działalność leśna, z wyłączeniem pozyskiwania produktów leśnych",null,"Warszawski wschodni - PL912"]
["02.20.Z - Pozyskiwanie drewna",null,"Warszawski zachodni - PL913"]
["02.30.Z - Pozyskiwanie dziko rosnących produktów leśnych, z wyłączeniem drewna",null,"Włocławski - PL619"]
["02.40.Z - Działalność usługowa związana z leśnictwem",null,"Wrocławski - PL518"]
["03.11.Z - Rybołówstwo w wodach morskich",null,"Zielonogórski - PL432"]
["03.12.Z - Rybołówstwo w wodach śródlądowych",null,"Żyrardowski - PL926"]
["03.21.Z - Chów i hodowla ryb oraz pozostałych organizmów wodnych w wodach morskich",null,"Nie dotyczy"]
["03.22.Z - Chów i hodowla ryb oraz pozostałych organizmów wodnych w wodach śródlądowych"]
["05.10.Z - Wydobywanie węgla kamiennego"]
["05.20.Z - Wydobywanie węgla brunatnego (lignitu)"]
["06.10.Z - Górnictwo ropy naftowej"]
["06.20.Z - Górnictwo gazu ziemnego"]
["07.10.Z - Górnictwo rud żelaza"]
["07.21.Z - Górnictwo rud uranu i toru"]
["07.29.Z - Górnictwo pozostałych rud metali nieżelaznych"]
["08.11.Z - Wydobywanie kamieni ozdobnych oraz kamienia dla potrzeb budownictwa, skał wapiennych, gipsu, kredy i łupków"]
["08.12.Z - Wydobywanie żwiru i piasku; wydobywanie gliny i kaolinu"]
["08.91.Z - Wydobywanie minerałów dla przemysłu chemicznego oraz do produkcji nawozów"]
["08.92.Z - Wydobywanie torfu"]
["08.93.Z - Wydobywanie soli"]
["08.99.Z - Pozostałe górnictwo i wydobywanie, gdzie indziej niesklasyfikowane"]
["09.10.Z - Działalność usługowa wspomagająca eksploatację złóż ropy naftowej i gazu ziemnego"]
["09.90.Z - Działalność usługowa wspomagająca pozostałe górnictwo i wydobywanie"]
["10.11.Z - Przetwarzanie i konserwowanie mięsa, z wyłączeniem mięsa z drobiu"]
["10.12.Z - Przetwarzanie i konserwowanie mięsa z drobiu"]
["10.13.Z - Produkcja wyrobów z mięsa, włączając wyroby z mięsa drobiowego"]
["10.20.Z - Przetwarzanie i konserwowanie ryb, skorupiaków i mięczaków"]
["10.31.Z - Przetwarzanie i konserwowanie ziemniaków"]
["10.32.Z - Produkcja soków z owoców i warzyw"]
["10.39.Z - Pozostałe przetwarzanie i konserwowanie owoców i warzyw"]
["10.41.Z - Produkcja olejów i pozostałych tłuszczów płynnych"]
["10.42.Z - Produkcja margaryny i podobnych tłuszczów jadalnych"]
["10.51.Z - Przetwórstwo mleka i wyrób serów"]
["10.52.Z - Produkcja lodów"]
["10.61.Z - Wytwarzanie produktów przemiału zbóż"]
["10.62.Z - Wytwarzanie skrobi i wyrobów skrobiowych"]
["10.71.Z - Produkcja pieczywa; produkcja świeżych wyrobów ciastkarskich i ciastek"]
["10.72.Z - Produkcja sucharów i herbatników; produkcja konserwowanych wyrobów ciastkarskich i ciastek"]
["10.73.Z - Produkcja makaronów, klusek, kuskusu i podobnych wyrobów mącznych"]
["10.81.Z - Produkcja cukru"]
["10.82.Z - Produkcja kakao, czekolady i wyrobów cukierniczych"]
["10.83.Z - Przetwórstwo herbaty i kawy"]
["10.84.Z - Produkcja przypraw"]
["10.85.Z - Wytwarzanie gotowych posiłków i dań"]
["10.86.Z - Produkcja artykułów spożywczych homogenizowanych i żywności dietetycznej"]
["10.89.Z - Produkcja pozostałych artykułów spożywczych, gdzie indziej niesklasyfikowana"]
["10.91.Z - Produkcja gotowej paszy dla zwierząt gospodarskich"]
["10.92.Z - Produkcja gotowej karmy dla zwierząt domowych"]
["11.01.Z - Destylowanie, rektyfikowanie i mieszanie alkoholi"]
["11.02.Z - Produkcja win gronowych"]
["11.03.Z - Produkcja cydru i pozostałych win owocowych"]
["11.04.Z - Produkcja pozostałych niedestylowanych napojów fermentowanych"]
["11.05.Z - Produkcja piwa"]
["11.06.Z - Produkcja słodu"]
["11.07.Z - Produkcja napojów bezalkoholowych; produkcja wód mineralnych i pozostałych wód butelkowanych"]
["12.00.Z - PRODUKCJA WYROBÓW TYTONIOWYCH"]
["13.10.A - Produkcja przędzy bawełnianej"]
["13.10.B - Produkcja przędzy wełnianej"]
["13.10.C - Produkcja przędzy z włókien chemicznych"]
["13.10.D - Produkcja przędzy z pozostałych włókien tekstylnych, włączając produkcję nici"]
["13.20.A - Produkcja tkanin bawełnianych"]
["13.20.B - Produkcja tkanin wełnianych"]
["13.20.C - Produkcja tkanin z włókien chemicznych"]
["13.20.D - Produkcja pozostałych tkanin"]
["13.30.Z - Wykończanie wyrobów włókienniczych"]
["13.91.Z - Produkcja dzianin metrażowych"]
["13.92.Z - Produkcja gotowych wyrobów tekstylnych"]
["13.93.Z - Produkcja dywanów i chodników"]
["13.94.Z - Produkcja wyrobów powroźniczych, lin, szpagatów i wyrobów sieciowych"]
["13.95.Z - Produkcja włóknin i wyrobów wykonanych z włóknin, z wyłączeniem odzieży"]
["13.96.Z - Produkcja pozostałych technicznych i przemysłowych wyrobów tekstylnych"]
["13.99.Z - Produkcja pozostałych wyrobów tekstylnych, gdzie indziej niesklasyfikowana"]
["14.11.Z - Produkcja odzieży skórzanej"]
["14.12.Z - Produkcja odzieży roboczej"]
["14.13.Z - Produkcja pozostałej odzieży wierzchniej"]
["14.14.Z - Produkcja bielizny"]
["14.19.Z - Produkcja pozostałej odzieży i dodatków do odzieży"]
["14.20.Z - Produkcja wyrobów futrzarskich"]
["14.31.Z - Produkcja wyrobów pończoszniczych"]
["14.39.Z - Produkcja pozostałej odzieży dzianej"]
["15.11.Z - Wyprawa skór, garbowanie; wyprawa i barwienie skór futerkowych"]
["15.12.Z - Produkcja toreb bagażowych, toreb ręcznych i podobnych wyrobów kaletniczych; produkcja wyrobów rymarskich"]
["15.20.Z - Produkcja obuwia"]
["16.10.Z - Produkcja wyrobów tartacznych"]
["16.21.Z - Produkcja arkuszy fornirowych i płyt wykonanych na bazie drewna"]
["16.22.Z - Produkcja gotowych parkietów podłogowych"]
["16.23.Z - Produkcja pozostałych wyrobów stolarskich i ciesielskich dla budownictwa"]
["16.24.Z - Produkcja opakowań drewnianych"]
["16.29.Z - Produkcja pozostałych wyrobów z drewna; produkcja wyrobów z korka, słomy i materiałów używanych do wyplatania"]
["17.11.Z - Produkcja masy włóknistej"]
["17.12.Z - Produkcja papieru i tektury"]
["17.21.Z - Produkcja papieru falistego i tektury falistej oraz opakowań z papieru i tektury"]
["17.22.Z - Produkcja artykułów gospodarstwa domowego, toaletowych i sanitarnych"]
["17.23.Z - Produkcja artykułów piśmiennych"]
["17.24.Z - Produkcja tapet"]
["17.29.Z - Produkcja pozostałych wyrobów z papieru i tektury"]
["18.11.Z - Drukowanie gazet"]
["18.12.Z - Pozostałe drukowanie"]
["18.13.Z - Działalność usługowa związana z przygotowywaniem do druku"]
["18.14.Z - Introligatorstwo i podobne usługi"]
["18.20.Z - Reprodukcja zapisanych nośników informacji"]
["19.10.Z - Wytwarzanie i przetwarzanie koksu"]
["19.20.Z - Wytwarzanie i przetwarzanie produktów rafinacji ropy naftowej"]
["20.11.Z - Produkcja gazów technicznych"]
["20.12.Z - Produkcja barwników i pigmentów"]
["20.13.Z - Produkcja pozostałych podstawowych chemikaliów nieorganicznych"]
["20.14.Z - Produkcja pozostałych podstawowych chemikaliów organicznych"]
["20.15.Z - Produkcja nawozów i związków azotowych"]
["20.16.Z - Produkcja tworzyw sztucznych w formach podstawowych"]
["20.17.Z - Produkcja kauczuku syntetycznego w formach podstawowych"]
["20.20.Z - Produkcja pestycydów i pozostałych środków agrochemicznych"]
["20.30.Z - Produkcja farb, lakierów i podobnych powłok, farb drukarskich i mas uszczelniających"]
["20.41.Z - Produkcja mydła i detergentów, środków myjących i czyszczących"]
["20.42.Z - Produkcja wyrobów kosmetycznych i toaletowych"]
["20.51.Z - Produkcja materiałów wybuchowych"]
["20.52.Z - Produkcja klejów"]
["20.53.Z - Produkcja olejków eterycznych"]
["20.59.Z - Produkcja pozostałych wyrobów chemicznych, gdzie indziej niesklasyfikowana"]
["20.60.Z - Produkcja włókien chemicznych"]
["21.10.Z - Produkcja podstawowych substancji farmaceutycznych"]
["21.20.Z - Produkcja leków i pozostałych wyrobów farmaceutycznych"]
["22.11.Z - Produkcja opon i dętek z gumy; bieżnikowanie i regenerowanie opon z gumy"]
["22.19.Z - Produkcja pozostałych wyrobów z gumy"]
["22.21.Z - Produkcja płyt, arkuszy, rur i kształtowników z tworzyw sztucznych"]
["22.22.Z - Produkcja opakowań z tworzyw sztucznych"]
["22.23.Z - Produkcja wyrobów dla budownictwa z tworzyw sztucznych"]
["22.29.Z - Produkcja pozostałych wyrobów z tworzyw sztucznych"]
["23.11.Z - Produkcja szkła płaskiego"]
["23.12.Z - Kształtowanie i obróbka szkła płaskiego"]
["23.13.Z - Produkcja szkła gospodarczego"]
["23.14.Z - Produkcja włókien szklanych"]
["23.19.Z - Produkcja i obróbka pozostałego szkła, włączając szkło techniczne"]
["23.20.Z - Produkcja wyrobów ogniotrwałych"]
["23.31.Z - Produkcja ceramicznych kafli i płytek"]
["23.32.Z - Produkcja cegieł, dachówek i materiałów budowlanych, z wypalanej gliny"]
["23.41.Z - Produkcja ceramicznych wyrobów stołowych i ozdobnych"]
["23.42.Z - Produkcja ceramicznych wyrobów sanitarnych"]
["23.43.Z - Produkcja ceramicznych izolatorów i osłon izolacyjnych"]
["23.44.Z - Produkcja pozostałych technicznych wyrobów ceramicznych"]
["23.49.Z - Produkcja pozostałych wyrobów ceramicznych"]
["23.51.Z - Produkcja cementu"]
["23.52.Z - Produkcja wapna i gipsu"]
["23.61.Z - Produkcja wyrobów budowlanych z betonu"]
["23.62.Z - Produkcja wyrobów budowlanych z gipsu"]
["23.63.Z - Produkcja masy betonowej prefabrykowanej"]
["23.64.Z - Produkcja zaprawy murarskiej"]
["23.65.Z - Produkcja cementu wzmocnionego włóknem"]
["23.69.Z - Produkcja pozostałych wyrobów z betonu, gipsu i cementu"]
["23.70.Z - Cięcie, formowanie i wykańczanie kamienia"]
["23.91.Z - Produkcja wyrobów ściernych"]
["23.99.Z - Produkcja pozostałych wyrobów z mineralnych surowców niemetalicznych, gdzie indziej niesklasyfikowana"]
["24.10.Z - Produkcja surówki, żelazostopów, żeliwa i stali oraz wyrobów hutniczych"]
["24.20.Z - Produkcja rur, przewodów, kształtowników zamkniętych i łączników, ze stali"]
["24.31.Z - Produkcja prętów ciągnionych na zimno"]
["24.32.Z - Produkcja wyrobów płaskich walcowanych na zimno"]
["24.33.Z - Produkcja wyrobów formowanych na zimno"]
["24.34.Z - Produkcja drutu"]
["24.41.Z - Produkcja metali szlachetnych"]
["24.42.A - Produkcja aluminium hutniczego"]
["24.42.B - Produkcja wyrobów z aluminium i stopów aluminium"]
["24.43.Z - Produkcja ołowiu, cynku i cyny"]
["24.44.Z - Produkcja miedzi"]
["24.45.Z - Produkcja pozostałych metali nieżelaznych"]
["24.46.Z - Wytwarzanie paliw jądrowych"]
["24.51.Z - Odlewnictwo żeliwa"]
["24.52.Z - Odlewnictwo staliwa"]
["24.53.Z - Odlewnictwo metali lekkich"]
["24.54.A - Odlewnictwo miedzi i stopów miedzi"]
["24.54.B - Odlewnictwo pozostałych metali nieżelaznych, gdzie indziej niesklasyfikowane"]
["25.11.Z - Produkcja konstrukcji metalowych i ich części"]
["25.12.Z - Produkcja metalowych elementów stolarki budowlanej"]
["25.21.Z - Produkcja grzejników i kotłów centralnego ogrzewania"]
["25.29.Z - Produkcja pozostałych zbiorników, cystern i pojemników metalowych"]
["25.30.Z - Produkcja wytwornic pary, z wyłączeniem kotłów do centralnego ogrzewania gorącą wodą"]
["25.40.Z - Produkcja broni i amunicji"]
["25.50.Z - Kucie, prasowanie, wytłaczanie i walcowanie metali; metalurgia proszków"]
["25.61.Z - Obróbka metali i nakładanie powłok na metale"]
["25.62.Z - Obróbka mechaniczna elementów metalowych"]
["25.71.Z - Produkcja wyrobów nożowniczych i sztućców"]
["25.72.Z - Produkcja zamków i zawiasów"]
["25.73.Z - Produkcja narzędzi"]
["25.91.Z - Produkcja pojemników metalowych"]
["25.92.Z - Produkcja opakowań z metali "]
["25.93.Z - Produkcja wyrobów z drutu, łańcuchów i sprężyn"]
["25.94.Z - Produkcja złączy i śrub"]
["25.99.Z - Produkcja pozostałych gotowych wyrobów metalowych, gdzie indziej niesklasyfikowana"]
["26.11.Z - Produkcja elementów elektronicznych"]
["26.12.Z - Produkcja elektronicznych obwodów drukowanych"]
["26.20.Z - Produkcja komputerów i urządzeń peryferyjnych"]
["26.30.Z - Produkcja sprzętu (tele)komunikacyjnego"]
["26.40.Z - Produkcja elektronicznego sprzętu powszechnego użytku"]
["26.51.Z - Produkcja instrumentów i przyrządów pomiarowych, kontrolnych i nawigacyjnych"]
["26.52.Z - Produkcja zegarków i zegarów"]
["26.60.Z - Produkcja urządzeń napromieniowujących, sprzętu elektromedycznego i elektroterapeutycznego"]
["26.70.Z - Produkcja instrumentów optycznych i sprzętu fotograficznego"]
["26.80.Z - Produkcja magnetycznych i optycznych niezapisanych nośników informacji"]
["27.11.Z - Produkcja elektrycznych silników, prądnic i transformatorów"]
["27.12.Z - Produkcja aparatury rozdzielczej i sterowniczej energii elektrycznej"]
["27.20.Z - Produkcja baterii i akumulatorów"]
["27.31.Z - Produkcja kabli światłowodowych"]
["27.32.Z - Produkcja pozostałych elektronicznych i elektrycznych przewodów i kabli"]
["27.33.Z - Produkcja sprzętu instalacyjnego"]
["27.40.Z - Produkcja elektrycznego sprzętu oświetleniowego"]
["27.51.Z - Produkcja elektrycznego sprzętu gospodarstwa domowego"]
["27.52.Z - Produkcja nieelektrycznego sprzętu gospodarstwa domowego"]
["27.90.Z - Produkcja pozostałego sprzętu elektrycznego"]
["28.11.Z - Produkcja silników i turbin, z wyłączeniem silników lotniczych, samochodowych i motocyklowych"]
["28.12.Z - Produkcja sprzętu i wyposażenia do napędu hydraulicznego i pneumatycznego"]
["28.13.Z - Produkcja pozostałych pomp i sprężarek"]
["28.14.Z - Produkcja pozostałych kurków i zaworów"]
["28.15.Z - Produkcja łożysk, kół zębatych, przekładni zębatych i elementów napędowych"]
["28.21.Z - Produkcja pieców, palenisk i palników piecowych"]
["28.22.Z - Produkcja urządzeń dźwigowych i chwytaków"]
["28.23.Z - Produkcja maszyn i sprzętu biurowego, z wyłączeniem komputerów i urządzeń peryferyjnych"]
["28.24.Z - Produkcja narzędzi ręcznych mechanicznych"]
["28.25.Z - Produkcja przemysłowych urządzeń chłodniczych i wentylacyjnych"]
["28.29.Z - Produkcja pozostałych maszyn ogólnego przeznaczenia, gdzie indziej niesklasyfikowana"]
["28.30.Z - Produkcja maszyn dla rolnictwa i leśnictwa"]
["28.41.Z - Produkcja maszyn do obróbki metalu"]
["28.49.Z - Produkcja pozostałych narzędzi mechanicznych"]
["28.91.Z - Produkcja maszyn dla metalurgii"]
["28.92.Z - Produkcja maszyn dla górnictwa i do wydobywania oraz budownictwa"]
["28.93.Z - Produkcja maszyn stosowanych w przetwórstwie żywności, tytoniu i produkcji napojów"]
["28.94.Z - Produkcja maszyn dla przemysłu tekstylnego, odzieżowego i skórzanego"]
["28.95.Z - Produkcja maszyn dla przemysłu papierniczego"]
["28.96.Z - Produkcja maszyn do obróbki gumy lub tworzyw sztucznych oraz wytwarzania wyrobów z tych materiałów"]
["28.99.Z - Produkcja pozostałych maszyn specjalnego przeznaczenia, gdzie indziej niesklasyfikowana"]
["29.10.A - Produkcja silników do pojazdów samochodowych (z wyłączeniem motocykli) oraz do ciągników rolniczych"]
["29.10.B - Produkcja samochodów osobowych"]
["29.10.C - Produkcja autobusów"]
["29.10.D - Produkcja pojazdów samochodowych przeznaczonych do przewozu towarów"]
["29.10.E - Produkcja pozostałych pojazdów samochodowych, z wyłączeniem motocykli"]
["29.20.Z - Produkcja nadwozi do pojazdów silnikowych; produkcja przyczep i naczep"]
["29.31.Z - Produkcja wyposażenia elektrycznego i elektronicznego do pojazdów silnikowych"]
["29.32.Z - Produkcja pozostałych części i akcesoriów do pojazdów silnikowych, z wyłączeniem motocykli"]
["30.11.Z - Produkcja statków i konstrukcji pływających"]
["30.12.Z - Produkcja łodzi wycieczkowych i sportowych"]
["30.20.Z - Produkcja lokomotyw kolejowych oraz taboru szynowego"]
["30.30.Z - Produkcja statków powietrznych, statków kosmicznych i podobnych maszyn"]
["30.40.Z - Produkcja wojskowych pojazdów bojowych"]
["30.91.Z - Produkcja motocykli"]
["30.92.Z - Produkcja rowerów i wózków inwalidzkich"]
["30.99.Z - Produkcja pozostałego sprzętu transportowego, gdzie indziej niesklasyfikowana"]
["31.01.Z - Produkcja mebli biurowych i sklepowych"]
["31.02.Z - Produkcja mebli kuchennych"]
["31.03.Z - Produkcja materaców"]
["31.09.Z - Produkcja pozostałych mebli"]
["32.11.Z - Produkcja monet"]
["32.12.Z - Produkcja wyrobów jubilerskich i podobnych"]
["32.13.Z - Produkcja sztucznej biżuterii i wyrobów podobnych"]
["32.20.Z - Produkcja instrumentów muzycznych"]
["32.30.Z - Produkcja sprzętu sportowego"]
["32.40.Z - Produkcja gier i zabawek"]
["32.50.Z - Produkcja urządzeń, instrumentów oraz wyrobów medycznych, włączając dentystyczne"]
["32.91.Z - Produkcja mioteł, szczotek i pędzli"]
["32.99.Z - Produkcja pozostałych wyrobów, gdzie indziej niesklasyfikowana"]
["33.11.Z - Naprawa i konserwacja metalowych wyrobów gotowych"]
["33.12.Z - Naprawa i konserwacja maszyn"]
["33.13.Z - Naprawa i konserwacja urządzeń elektronicznych i optycznych"]
["33.14.Z - Naprawa i konserwacja urządzeń elektrycznych"]
["33.15.Z - Naprawa i konserwacja statków i łodzi"]
["33.16.Z - Naprawa i konserwacja statków powietrznych i statków kosmicznych"]
["33.17.Z - Naprawa i konserwacja pozostałego sprzętu transportowego"]
["33.19.Z - Naprawa i konserwacja pozostałego sprzętu i wyposażenia"]
["33.20.Z - Instalowanie maszyn przemysłowych, sprzętu i wyposażenia"]
["35.11.Z - Wytwarzanie energii elektrycznej"]
["35.12.Z - Przesyłanie energii elektrycznej"]
["35.13.Z - Dystrybucja energii elektrycznej"]
["35.14.Z - Handel energią elektryczną"]
["35.21.Z - Wytwarzanie paliw gazowych"]
["35.22.Z - Dystrybucja paliw gazowych w systemie sieciowym"]
["35.23.Z - Handel paliwami gazowymi w systemie sieciowym"]
["35.30.Z - Wytwarzanie i zaopatrywanie w parę wodną, gorącą wodę i powietrze do układów klimatyzacyjnych"]
["36.00.Z - POBÓR, UZDATNIANIE I DOSTARCZANIE WODY"]
["37.00.Z - ODPROWADZANIE I OCZYSZCZANIE ŚCIEKÓW"]
["38.11.Z - Zbieranie odpadów innych niż niebezpieczne"]
["38.12.Z - Zbieranie odpadów niebezpiecznych"]
["38.21.Z - Obróbka i usuwanie odpadów innych niż niebezpieczne"]
["38.22.Z - Przetwarzanie i unieszkodliwianie odpadów niebezpiecznych"]
["38.31.Z - Demontaż wyrobów zużytych"]
["38.32.Z - Odzysk surowców z materiałów segregowanych"]
["39.00.Z - DZIAŁALNOŚĆ ZWIĄZANA Z REKULTYWACJĄ I POZOSTAŁA DZIAŁALNOŚĆ USŁUGOWA ZWIĄZANA Z GOSPODARKĄ ODPADAMI"]
["41.10.Z - Realizacja projektów budowlanych związanych ze wznoszeniem budynków"]
["41.20.Z - Roboty budowlane związane ze wznoszeniem budynków mieszkalnych i niemieszkalnych"]
["42.11.Z - Roboty związane z budową dróg i autostrad"]
["42.12.Z - Roboty związane z budową dróg szynowych i kolei podziemnej"]
["42.13.Z - Roboty związane z budową mostów i tuneli"]
["42.21.Z - Roboty związane z budową rurociągów przesyłowych i sieci rozdzielczych"]
["42.22.Z - Roboty związane z budową linii telekomunikacyjnych i elektroenergetycznych"]
["42.91.Z - Roboty związane z budową obiektów inżynierii wodnej"]
["42.99.Z - Roboty związane z budową pozostałych obiektów inżynierii lądowej i wodnej, gdzie indziej niesklasyfikowane"]
["43.11.Z - Rozbiórka i burzenie obiektów budowlanych"]
["43.12.Z - Przygotowanie terenu pod budowę"]
["43.13.Z - Wykonywanie wykopów i wierceń geologiczno-inżynierskich"]
["43.21.Z - Wykonywanie instalacji elektrycznych"]
["43.22.Z - Wykonywanie instalacji wodno-kanalizacyjnych, cieplnych, gazowych i klimatyzacyjnych"]
["43.29.Z - Wykonywanie pozostałych instalacji budowlanych"]
["43.31.Z - Tynkowanie"]
["43.32.Z - Zakładanie stolarki budowlanej"]
["43.33.Z - Posadzkarstwo; tapetowanie i oblicowywanie ścian"]
["43.34.Z - Malowanie i szklenie"]
["43.39.Z - Wykonywanie pozostałych robót budowlanych wykończeniowych"]
["43.91.Z - Wykonywanie konstrukcji i pokryć dachowych"]
["43.99.Z - Pozostałe specjalistyczne roboty budowlane, gdzie indziej niesklasyfikowane"]
["45.11.Z - Sprzedaż hurtowa i detaliczna samochodów osobowych i furgonetek"]
["45.19.Z - Sprzedaż hurtowa i detaliczna pozostałych pojazdów samochodowych, z wyłączeniem motocykli"]
["45.20.Z - Konserwacja i naprawa pojazdów samochodowych, z wyłączeniem motocykli"]
["45.31.Z - Sprzedaż hurtowa części i akcesoriów do pojazdów samochodowych, z wyłączeniem motocykli"]
["45.32.Z - Sprzedaż detaliczna części i akcesoriów do pojazdów samochodowych, z wyłączeniem motocykli"]
["45.40.Z - Sprzedaż hurtowa i detaliczna motocykli, ich naprawa i konserwacja oraz sprzedaż hurtowa i detaliczna części i akcesoriów do nich"]
["46.11.Z - Działalność agentów zajmujących się sprzedażą płodów rolnych, żywych zwierząt, surowców dla przemysłu tekstylnego i półproduktów"]
["46.12.Z - Działalność agentów zajmujących się sprzedażą paliw, rud, metali i chemikaliów przemysłowych"]
["46.13.Z - Działalność agentów zajmujących się sprzedażą drewna i materiałów budowlanych"]
["46.14.Z - Działalność agentów zajmujących się sprzedażą maszyn, urządzeń przemysłowych, statków i samolotów"]
["46.15.Z - Działalność agentów zajmujących się sprzedażą mebli, artykułów gospodarstwa domowego i drobnych wyrobów metalowych"]
["46.16.Z - Działalność agentów zajmujących się sprzedażą wyrobów tekstylnych, odzieży, wyrobów futrzarskich, obuwia i artykułów skórzanych"]
["46.17.Z - Działalność agentów zajmujących się sprzedażą żywności, napojów i wyrobów tytoniowych"]
["46.18.Z - Działalność agentów specjalizujących się w sprzedaży pozostałych określonych towarów"]
["46.19.Z - Działalność agentów zajmujących się sprzedażą towarów różnego rodzaju"]
["46.21.Z - Sprzedaż hurtowa zboża, nieprzetworzonego tytoniu, nasion i pasz dla zwierząt"]
["46.22.Z - Sprzedaż hurtowa kwiatów i roślin"]
["46.23.Z - Sprzedaż hurtowa żywych zwierząt"]
["46.24.Z - Sprzedaż hurtowa skór"]
["46.31.Z - Sprzedaż hurtowa owoców i warzyw"]
["46.32.Z - Sprzedaż hurtowa mięsa i wyrobów z mięsa"]
["46.33.Z - Sprzedaż hurtowa mleka, wyrobów mleczarskich, jaj, olejów i tłuszczów jadalnych"]
["46.34.A - Sprzedaż hurtowa napojów alkoholowych"]
["46.34.B - Sprzedaż hurtowa napojów bezalkoholowych"]
["46.35.Z - Sprzedaż hurtowa wyrobów tytoniowych"]
["46.36.Z - Sprzedaż hurtowa cukru, czekolady, wyrobów cukierniczych i piekarskich"]
["46.37.Z - Sprzedaż hurtowa herbaty, kawy, kakao i przypraw"]
["46.38.Z - Sprzedaż hurtowa pozostałej żywności, włączając ryby, skorupiaki i mięczaki"]
["46.39.Z - Sprzedaż hurtowa niewyspecjalizowana żywności, napojów i wyrobów tytoniowych"]
["46.41.Z - Sprzedaż hurtowa wyrobów tekstylnych"]
["46.42.Z - Sprzedaż hurtowa odzieży i obuwia"]
["46.43.Z - Sprzedaż hurtowa elektrycznych artykułów użytku domowego"]
["46.44.Z - Sprzedaż hurtowa wyrobów porcelanowych, ceramicznych i szklanych oraz środków czyszczących"]
["46.45.Z - Sprzedaż hurtowa perfum i kosmetyków"]
["46.46.Z - Sprzedaż hurtowa wyrobów farmaceutycznych i medycznych"]
["46.47.Z - Sprzedaż hurtowa mebli, dywanów i sprzętu oświetleniowego"]
["46.48.Z - Sprzedaż hurtowa zegarków, zegarów i biżuterii"]
["46.49.Z - Sprzedaż hurtowa pozostałych artykułów użytku domowego"]
["46.51.Z - Sprzedaż hurtowa komputerów, urządzeń peryferyjnych i oprogramowania"]
["46.52.Z - Sprzedaż hurtowa sprzętu elektronicznego i telekomunikacyjnego oraz części do niego"]
["46.61.Z - Sprzedaż hurtowa maszyn i urządzeń rolniczych oraz dodatkowego wyposażenia"]
["46.62.Z - Sprzedaż hurtowa obrabiarek"]
["46.63.Z - Sprzedaż hurtowa maszyn wykorzystywanych w górnictwie, budownictwie oraz inżynierii lądowej i wodnej"]
["46.64.Z - Sprzedaż hurtowa maszyn dla przemysłu tekstylnego oraz maszyn do szycia i maszyn dziewiarskich"]
["46.65.Z - Sprzedaż hurtowa mebli biurowych"]
["46.66.Z - Sprzedaż hurtowa pozostałych maszyn i urządzeń biurowych"]
["46.69.Z - Sprzedaż hurtowa pozostałych maszyn i urządzeń"]
["46.71.Z - Sprzedaż hurtowa paliw i produktów pochodnych"]
["46.72.Z - Sprzedaż hurtowa metali i rud metali"]
["46.73.Z - Sprzedaż hurtowa drewna, materiałów budowlanych i wyposażenia sanitarnego"]
["46.74.Z - Sprzedaż hurtowa wyrobów metalowych oraz sprzętu i dodatkowego wyposażenia hydraulicznego i grzejnego"]
["46.75.Z - Sprzedaż hurtowa wyrobów chemicznych"]
["46.76.Z - Sprzedaż hurtowa pozostałych półproduktów"]
["46.77.Z - Sprzedaż hurtowa odpadów i złomu"]
["46.90.Z - Sprzedaż hurtowa niewyspecjalizowana"]
["47.11.Z - Sprzedaż detaliczna prowadzona w niewyspecjalizowanych sklepach z przewagą żywności, napojów i wyrobów tytoniowych"]
["47.19.Z - Pozostała sprzedaż detaliczna prowadzona w niewyspecjalizowanych sklepach"]
["47.21.Z - Sprzedaż detaliczna owoców i warzyw prowadzona w wyspecjalizowanych sklepach"]
["47.22.Z - Sprzedaż detaliczna mięsa i wyrobów z mięsa prowadzona w wyspecjalizowanych sklepach"]
["47.23.Z - Sprzedaż detaliczna ryb, skorupiaków i mięczaków prowadzona w wyspecjalizowanych sklepach"]
["47.24.Z - Sprzedaż detaliczna pieczywa, ciast, wyrobów ciastkarskich i cukierniczych prowadzona w wyspecjalizowanych sklepach"]
["47.25.Z - Sprzedaż detaliczna napojów alkoholowych i bezalkoholowych prowadzona w wyspecjalizowanych sklepach"]
["47.26.Z - Sprzedaż detaliczna wyrobów tytoniowych prowadzona w wyspecjalizowanych sklepach"]
["47.29.Z - Sprzedaż detaliczna pozostałej żywności prowadzona w wyspecjalizowanych sklepach"]
["47.30.Z - Sprzedaż detaliczna paliw do pojazdów silnikowych na stacjach paliw"]
["47.41.Z - Sprzedaż detaliczna komputerów, urządzeń peryferyjnych i oprogramowania prowadzona w wyspecjalizowanych sklepach"]
["47.42.Z - Sprzedaż detaliczna sprzętu telekomunikacyjnego prowadzona w wyspecjalizowanych sklepach"]
["47.43.Z - Sprzedaż detaliczna sprzętu audiowizualnego prowadzona w wyspecjalizowanych sklepach"]
["47.51.Z - Sprzedaż detaliczna wyrobów tekstylnych prowadzona w wyspecjalizowanych sklepach"]
["47.52.Z - Sprzedaż detaliczna drobnych wyrobów metalowych, farb i szkła prowadzona w wyspecjalizowanych sklepach"]
["47.53.Z - Sprzedaż detaliczna dywanów, chodników i innych pokryć podłogowych oraz pokryć ściennych prowadzona w wyspecjalizowanych sklepach"]
["47.54.Z - Sprzedaż detaliczna elektrycznego sprzętu gospodarstwa domowego prowadzona w wyspecjalizowanych sklepach"]
["47.59.Z - Sprzedaż detaliczna mebli, sprzętu oświetleniowego i pozostałych artykułów użytku domowego prowadzona w wyspecjalizowanych sklepach"]
["47.61.Z - Sprzedaż detaliczna książek prowadzona w wyspecjalizowanych sklepach"]
["47.62.Z - Sprzedaż detaliczna gazet i artykułów piśmiennych prowadzona w wyspecjalizowanych sklepach"]
["47.63.Z - Sprzedaż detaliczna nagrań dźwiękowych i audiowizualnych prowadzona w wyspecjalizowanych sklepach"]
["47.64.Z - Sprzedaż detaliczna sprzętu sportowego prowadzona w wyspecjalizowanych sklepach"]
["47.65.Z - Sprzedaż detaliczna gier i zabawek prowadzona w wyspecjalizowanych sklepach"]
["47.71.Z - Sprzedaż detaliczna odzieży prowadzona w wyspecjalizowanych sklepach"]
["47.72.Z - Sprzedaż detaliczna obuwia i wyrobów skórzanych prowadzona w wyspecjalizowanych sklepach"]
["47.73.Z - Sprzedaż detaliczna wyrobów farmaceutycznych prowadzona w wyspecjalizowanych sklepach"]
["47.74.Z - Sprzedaż detaliczna wyrobów medycznych, włączając ortopedyczne, prowadzona w wyspecjalizowanych sklepach"]
["47.75.Z - Sprzedaż detaliczna kosmetyków i artykułów toaletowych prowadzona w wyspecjalizowanych sklepach"]
["47.76.Z - Sprzedaż detaliczna kwiatów, roślin, nasion, nawozów, żywych zwierząt domowych, karmy dla zwierząt domowych prowadzona w wyspecjalizowanych sklepach"]
["47.77.Z - Sprzedaż detaliczna zegarków, zegarów i biżuterii prowadzona w wyspecjalizowanych sklepach"]
["47.78.Z - Sprzedaż detaliczna pozostałych nowych wyrobów prowadzona w wyspecjalizowanych sklepach"]
["47.79.Z - Sprzedaż detaliczna artykułów używanych prowadzona w wyspecjalizowanych sklepach"]
["47.81.Z - Sprzedaż detaliczna żywności, napojów i wyrobów tytoniowych prowadzona na straganach i targowiskach"]
["47.82.Z - Sprzedaż detaliczna wyrobów tekstylnych, odzieży i obuwia prowadzona na straganach i targowiskach"]
["47.89.Z - Sprzedaż detaliczna pozostałych wyrobów prowadzona na straganach i targowiskach"]
["47.91.Z - Sprzedaż detaliczna prowadzona przez domy sprzedaży wysyłkowej lub Internet"]
["47.99.Z - Pozostała sprzedaż detaliczna prowadzona poza siecią sklepową, straganami i targowiskami"]
["49.10.Z - Transport kolejowy pasażerski międzymiastowy"]
["49.20.Z - Transport kolejowy towarów"]
["49.31.Z - Transport lądowy pasażerski, miejski i podmiejski"]
["49.32.Z - Działalność taksówek osobowych"]
["49.39.Z - Pozostały transport lądowy pasażerski, gdzie indziej niesklasyfikowany"]
["49.41.Z - Transport drogowy towarów"]
["49.42.Z - Działalność usługowa związana z przeprowadzkami"]
["49.50.A - Transport rurociągami paliw gazowych"]
["49.50.B - Transport rurociągowy pozostałych towarów"]
["50.10.Z - Transport morski i przybrzeżny pasażerski"]
["50.20.Z - Transport morski i przybrzeżny towarów"]
["50.30.Z - Transport wodny śródlądowy pasażerski "]
["50.40.Z - Transport wodny śródlądowy towarów"]
["51.10.Z - Transport lotniczy pasażerski"]
["51.21.Z - Transport lotniczy towarów"]
["51.22.Z - Transport kosmiczny"]
["52.10.A - Magazynowanie i przechowywanie paliw gazowych"]
["52.10.B - Magazynowanie i przechowywanie pozostałych towarów"]
["52.21.Z - Działalność usługowa wspomagająca transport lądowy"]
["52.22.A - Działalność usługowa wspomagająca transport morski"]
["52.22.B - Działalność usługowa wspomagająca transport śródlądowy"]
["52.23.Z - Działalność usługowa wspomagająca transport lotniczy"]
["52.24.A - Przeładunek towarów w portach morskich"]
["52.24.B - Przeładunek towarów w portach śródlądowych"]
["52.24.C - Przeładunek towarów w pozostałych punktach przeładunkowych"]
["52.29.A - Działalność morskich agencji transportowych"]
["52.29.B - Działalność śródlądowych agencji transportowych"]
["52.29.C - Działalność pozostałych agencji transportowych"]
["53.10.Z - Działalność pocztowa objęta obowiązkiem świadczenia usług powszechnych (operatora publicznego)"]
["53.20.Z - Pozostała działalność pocztowa i kurierska"]
["55.10.Z - Hotele i podobne obiekty zakwaterowania"]
["55.20.Z - Obiekty noclegowe turystyczne i miejsca krótkotrwałego zakwaterowania"]
["55.30.Z - Pola kempingowe (włączając pola dla pojazdów kempingowych) i pola namiotowe"]
["55.90.Z - Pozostałe zakwaterowanie"]
["56.10.A - Restauracje i inne stałe placówki gastronomiczne"]
["56.10.B - Ruchome placówki gastronomiczne"]
["56.21.Z - Przygotowywanie i dostarczanie żywności dla odbiorców zewnętrznych (katering)"]
["56.29.Z - Pozostała usługowa działalność gastronomiczna"]
["56.30.Z - Przygotowywanie i podawanie napojów"]
["58.11.Z - Wydawanie książek"]
["58.12.Z - Wydawanie wykazów oraz list (np. adresowych, telefonicznych)"]
["58.13.Z - Wydawanie gazet"]
["58.14.Z - Wydawanie czasopism i pozostałych periodyków"]
["58.19.Z - Pozostała działalność wydawnicza"]
["58.21.Z - Działalność wydawnicza w zakresie gier komputerowych"]
["58.29.Z - Działalność wydawnicza w zakresie pozostałego oprogramowania"]
["59.11.Z - Działalność związana z produkcją filmów, nagrań wideo i programów telewizyjnych"]
["59.12.Z - Działalność postprodukcyjna związana z filmami, nagraniami wideo i programami telewizyjnymi"]
["59.13.Z - Działalność związana z dystrybucją filmów, nagrań wideo i programów telewizyjnych"]
["59.14.Z - Działalność związana z projekcją filmów"]
["59.20.Z - Działalność w zakresie nagrań dźwiękowych i muzycznych"]
["60.10.Z - Nadawanie programów radiofonicznych"]
["60.20.Z - Nadawanie programów telewizyjnych ogólnodostępnych i abonamentowych"]
["61.10.Z - Działalność w zakresie telekomunikacji przewodowej"]
["61.20.Z - Działalność w zakresie telekomunikacji bezprzewodowej, z wyłączeniem telekomunikacji satelitarnej"]
["61.30.Z - Działalność w zakresie telekomunikacji satelitarnej"]
["61.90.Z - Działalność w zakresie pozostałej telekomunikacji"]
["62.01.Z - Działalność związana z oprogramowaniem"]
["62.02.Z - Działalność związana z doradztwem w zakresie informatyki"]
["62.03.Z - Działalność związana z zarządzaniem urządzeniami informatycznymi"]
["62.09.Z - Pozostała działalność usługowa w zakresie technologii informatycznych i komputerowych"]
["63.11.Z - Przetwarzanie danych; zarządzanie stronami internetowymi (hosting) i podobna działalność"]
["63.12.Z - Działalność portali internetowych"]
["63.91.Z - Działalność agencji informacyjnych"]
["63.99.Z - Pozostała działalność usługowa w zakresie informacji, gdzie indziej niesklasyfikowana"]
["64.11.Z - Działalność banku centralnego"]
["64.19.Z - Pozostałe pośrednictwo pieniężne"]
["64.20.Z - Działalność holdingów finansowych"]
["64.30.Z - Działalność trustów, funduszów i podobnych instytucji finansowych"]
["64.91.Z - Leasing finansowy"]
["64.92.Z - Pozostałe formy udzielania kredytów"]
["64.99.Z - Pozostała finansowa działalność usługowa, gdzie indziej niesklasyfikowana, z wyłączeniem ubezpieczeń i funduszów emerytalnych"]
["65.11.Z - Ubezpieczenia na życie"]
["65.12.Z - Pozostałe ubezpieczenia osobowe oraz ubezpieczenia majątkowe"]
["65.20.Z - Reasekuracja"]
["65.30.Z - Fundusze emerytalne"]
["66.11.Z - Zarządzanie rynkami finansowymi"]
["66.12.Z - Działalność maklerska związana z rynkiem papierów wartościowych i towarów giełdowych"]
["66.19.Z - Pozostała działalność wspomagająca usługi finansowe, z wyłączeniem ubezpieczeń i funduszów emerytalnych"]
["66.21.Z - Działalność związana z oceną ryzyka i szacowaniem poniesionych strat"]
["66.22.Z - Działalność agentów i brokerów ubezpieczeniowych"]
["66.29.Z - Pozostała działalność wspomagająca ubezpieczenia i fundusze emerytalne"]
["66.30.Z - Działalność związana z zarządzaniem funduszami"]
["68.10.Z - Kupno i sprzedaż nieruchomości na własny rachunek"]
["68.20.Z - Wynajem i zarządzanie nieruchomościami własnymi lub dzierżawionymi"]
["68.31.Z - Pośrednictwo w obrocie nieruchomościami"]
["68.32.Z - Zarządzanie nieruchomościami wykonywane na zlecenie"]
["69.10.Z - Działalność prawnicza"]
["69.20.Z - Działalność rachunkowo-księgowa; doradztwo podatkowe"]
["70.10.Z - Działalność firm centralnych (head offices) i holdingów, z wyłączeniem holdingów finansowych"]
["70.21.Z - Stosunki międzyludzkie (public relations) i komunikacja"]
["70.22.Z - Pozostałe doradztwo w zakresie prowadzenia działalności gospodarczej i zarządzania"]
["71.11.Z - Działalność w zakresie architektury"]
["71.12.Z - Działalność w zakresie inżynierii i związane z nią doradztwo techniczne"]
["71.20.A - Badania i analizy związane z jakością żywności"]
["71.20.B - Pozostałe badania i analizy techniczne"]
["72.11.Z - Badania naukowe i prace rozwojowe w dziedzinie biotechnologii"]
["72.19.Z - Badania naukowe i prace rozwojowe w dziedzinie pozostałych nauk przyrodniczych i technicznych"]
["72.20.Z - Badania naukowe i prace rozwojowe w dziedzinie nauk społecznych i humanistycznych"]
["73.11.Z - Działalność agencji reklamowych"]
["73.12.A - Pośrednictwo w sprzedaży czasu i miejsca na cele reklamowe w radio i telewizji"]
["73.12.B - Pośrednictwo w sprzedaży miejsca na cele reklamowe w mediach drukowanych"]
["73.12.C - Pośrednictwo w sprzedaży miejsca na cele reklamowe w mediach elektronicznych (Internet)"]
["73.12.D - Pośrednictwo w sprzedaży miejsca na cele reklamowe w pozostałych mediach"]
["73.20.Z - Badanie rynku i opinii publicznej"]
["74.10.Z - Działalność w zakresie specjalistycznego projektowania"]
["74.20.Z - Działalność fotograficzna"]
["74.30.Z - Działalność związana z tłumaczeniami"]
["74.90.Z - Pozostała działalność profesjonalna, naukowa i techniczna, gdzie indziej niesklasyfikowana"]
["75.00.Z - DZIAŁALNOŚĆ WETERYNARYJNA"]
["77.11.Z - Wynajem i dzierżawa samochodów osobowych i furgonetek"]
["77.12.Z - Wynajem i dzierżawa pozostałych pojazdów samochodowych, z wyłączeniem motocykli"]
["77.21.Z - Wypożyczanie i dzierżawa sprzętu rekreacyjnego i sportowego"]
["77.22.Z - Wypożyczanie kaset wideo, płyt CD, DVD itp."]
["77.29.Z - Wypożyczanie i dzierżawa pozostałych artykułów użytku osobistego i domowego"]
["77.31.Z - Wynajem i dzierżawa maszyn i urządzeń rolniczych"]
["77.32.Z - Wynajem i dzierżawa maszyn i urządzeń budowlanych"]
["77.33.Z - Wynajem i dzierżawa maszyn i urządzeń biurowych, włączając komputery"]
["77.34.Z - Wynajem i dzierżawa środków transportu wodnego"]
["77.35.Z - Wynajem i dzierżawa środków transportu lotniczego"]
["77.39.Z - Wynajem i dzierżawa pozostałych maszyn, urządzeń oraz dóbr materialnych, gdzie indziej niesklasyfikowane"]
["77.40.Z - Dzierżawa własności intelektualnej i podobnych produktów, z wyłączeniem prac chronionych prawem autorskim"]
["78.10.Z - Działalność związana z wyszukiwaniem miejsc pracy i pozyskiwaniem pracowników"]
["78.20.Z - Działalność agencji pracy tymczasowej"]
["78.30.Z - Pozostała działalność związana z udostępnianiem pracowników"]
["79.11.A - Działalność agentów turystycznych"]
["79.11.B - Działalność pośredników turystycznych"]
["79.12.Z - Działalność organizatorów turystyki"]
["79.90.A - Działalność pilotów wycieczek i przewodników turystycznych"]
["79.90.B - Działalność w zakresie informacji turystycznej"]
["79.90.C - Pozostała działalność usługowa w zakresie rezerwacji, gdzie indziej niesklasyfikowana"]
["80.10.Z - Działalność ochroniarska, z wyłączeniem obsługi systemów bezpieczeństwa"]
["80.20.Z - Działalność ochroniarska w zakresie obsługi systemów bezpieczeństwa"]
["80.30.Z - Działalność detektywistyczna"]
["81.10.Z - Działalność pomocnicza związana z utrzymaniem porządku w budynkach"]
["81.21.Z - Niespecjalistyczne sprzątanie budynków i obiektów przemysłowych"]
["81.22.Z - Specjalistyczne sprzątanie budynków i obiektów przemysłowych"]
["81.29.Z - Pozostałe sprzątanie"]
["81.30.Z - Działalność usługowa związana z zagospodarowaniem terenów zieleni"]
["82.11.Z - Działalność usługowa związana z administracyjną obsługą biura"]
["82.19.Z - Wykonywanie fotokopii, przygotowywanie dokumentów i pozostała specjalistyczna działalność wspomagająca prowadzenie biura"]
["82.20.Z - Działalność centrów telefonicznych (call center)"]
["82.30.Z - Działalność związana z organizacją targów, wystaw i kongresów"]
["82.91.Z - Działalność świadczona przez agencje inkasa i biura kredytowe"]
["82.92.Z - Działalność związana z pakowaniem"]
["82.99.Z - Pozostała działalność wspomagająca prowadzenie działalności gospodarczej, gdzie indziej niesklasyfikowana"]
["84.11.Z - Kierowanie podstawowymi rodzajami działalności publicznej"]
["84.12.Z - Kierowanie w zakresie działalności związanej z ochroną zdrowia, edukacją, kulturą oraz pozostałymi usługami społecznymi, z wyłączeniem zabezpieczeń społecznych"]
["84.13.Z - Kierowanie w zakresie efektywności gospodarowania"]
["84.21.Z - Sprawy zagraniczne"]
["84.22.Z - Obrona narodowa"]
["84.23.Z - Wymiar sprawiedliwości"]
["84.24.Z - Bezpieczeństwo państwa, porządek i bezpieczeństwo publiczne"]
["84.25.Z - Ochrona przeciwpożarowa"]
["84.30.Z - Obowiązkowe zabezpieczenia społeczne"]
["85.10.Z - Placówki wychowania przedszkolnego"]
["85.20.Z - Szkoły podstawowe"]
["85.31.A - Gimnazja"]
["85.31.B - Licea ogólnokształcące"]
["85.32.A - Technika"]
["85.32.B - Branżowe szkoły I stopnia"]
["85.32.C - Szkoły specjalne przysposabiające do pracy"]
["85.32.D - Branżowe szkoły II stopnia"]
["85.41.A - Szkoły policealne"]
["85.41.B - Kolegia pracowników służb społecznych"]
["85.41.C - Placówki doskonalenia nauczycieli"]
["85.42.Z - Szkoły wyższe"]
["85.51.Z - Pozaszkolne formy edukacji sportowej oraz zajęć sportowych i rekreacyjnych"]
["85.52.Z - Pozaszkolne formy edukacji artystycznej"]
["85.53.Z - Pozaszkolne formy edukacji z zakresu nauki jazdy i pilotażu"]
["85.59.A - Nauka języków obcych"]
["85.59.B - Pozostałe pozaszkolne formy edukacji, gdzie indziej niesklasyfikowane"]
["85.60.Z - Działalność wspomagająca edukację"]
["86.10.Z - Działalność szpitali"]
["86.21.Z - Praktyka lekarska ogólna"]
["86.22.Z - Praktyka lekarska specjalistyczna"]
["86.23.Z - Praktyka lekarska dentystyczna"]
["86.90.A - Działalność fizjoterapeutyczna"]
["86.90.B - Działalność pogotowia ratunkowego"]
["86.90.C - Praktyka pielęgniarek i położnych"]
["86.90.D - Działalność paramedyczna"]
["86.90.E - Pozostała działalność w zakresie opieki zdrowotnej, gdzie indziej niesklasyfikowana"]
["87.10.Z - Pomoc społeczna z zakwaterowaniem zapewniająca opiekę pielęgniarską"]
["87.20.Z - Pomoc społeczna z zakwaterowaniem dla osób z zaburzeniami psychicznymi"]
["87.30.Z - Pomoc społeczna z zakwaterowaniem dla osób w podeszłym wieku i osób niepełnosprawnych"]
["87.90.Z - Pozostała pomoc społeczna z zakwaterowaniem"]
["88.10.Z - Pomoc społeczna bez zakwaterowania dla osób w podeszłym wieku i osób niepełnosprawnych"]
["88.91.Z - Opieka dzienna nad dziećmi"]
["88.99.Z - Pozostała pomoc społeczna bez zakwaterowania, gdzie indziej niesklasyfikowana"]
["90.01.Z - Działalność związana z wystawianiem przedstawień artystycznych"]
["90.02.Z - Działalność wspomagająca wystawianie przedstawień artystycznych"]
["90.03.Z - Artystyczna i literacka działalność twórcza"]
["90.04.Z - Działalność obiektów kulturalnych"]
["91.01.A - Działalność bibliotek"]
["91.01.B - Działalność archiwów"]
["91.02.Z - Działalność muzeów"]
["91.03.Z - Działalność historycznych miejsc i budynków oraz podobnych atrakcji turystycznych"]
["91.04.Z - Działalność ogrodów botanicznych i zoologicznych oraz obszarów i obiektów ochrony przyrody"]
["92.00.Z - DZIAŁALNOŚĆ ZWIĄZANA Z GRAMI LOSOWYMI I ZAKŁADAMI WZAJEMNYMI"]
["93.11.Z - Działalność obiektów sportowych"]
["93.12.Z - Działalność klubów sportowych"]
["93.13.Z - Działalność obiektów służących poprawie kondycji fizycznej"]
["93.19.Z - Pozostała działalność związana ze sportem"]
["93.21.Z - Działalność wesołych miasteczek i parków rozrywki"]
["93.29.Z - Pozostała działalność rozrywkowa i rekreacyjna"]
["94.11.Z - Działalność organizacji komercyjnych i pracodawców"]
["94.12.Z - Działalność organizacji profesjonalnych"]
["94.20.Z - Działalność związków zawodowych"]
["94.91.Z - Działalność organizacji religijnych"]
["94.92.Z - Działalność organizacji politycznych"]
["94.99.Z - Działalność pozostałych organizacji członkowskich, gdzie indziej niesklasyfikowana"]
["95.11.Z - Naprawa i konserwacja komputerów i urządzeń peryferyjnych"]
["95.12.Z - Naprawa i konserwacja sprzętu (tele)komunikacyjnego"]
["95.21.Z - Naprawa i konserwacja elektronicznego sprzętu powszechnego użytku"]
["95.22.Z - Naprawa i konserwacja urządzeń gospodarstwa domowego oraz sprzętu użytku domowego i ogrodniczego"]
["95.23.Z - Naprawa obuwia i wyrobów skórzanych"]
["95.24.Z - Naprawa i konserwacja mebli i wyposażenia domowego"]
["95.25.Z - Naprawa zegarów, zegarków oraz biżuterii"]
["95.29.Z - Naprawa pozostałych artykułów użytku osobistego i domowego"]
["96.01.Z - Pranie i czyszczenie wyrobów włókienniczych i futrzarskich"]
["96.02.Z - Fryzjerstwo i pozostałe zabiegi kosmetyczne"]
["96.03.Z - Pogrzeby i działalność pokrewna"]
["96.04.Z - Działalność usługowa związana z poprawą kondycji fizycznej"]
["96.09.Z - Pozostała działalność usługowa, gdzie indziej niesklasyfikowana"]
["97.00.Z - GOSPODARSTWA DOMOWE ZATRUDNIAJĄCE PRACOWNIKÓW"]
["98.10.Z - Gospodarstwa domowe produkujące wyroby na własne potrzeby"]
["98.20.Z - Gospodarstwa domowe świadczące usługi na własne potrzeby"]
["99.00.Z - ORGANIZACJE I ZESPOŁY EKSTERYTORIALNE"]
[]
["Forma Własności"]
["Własność Skarbu Państwa"]
["Własność państwowych osób prawnych"]
["Własność jednostek samorządu terytorialnego lub samorządowych osób prawnych"]
["Własność krajowych osób fizycznych"]
["Własność pozostałych krajowych jednostek prywatnych"]
["Własność osób zagranicznych"]
[]
["Krajowe klastry kluczowe","KKK 2020"]
["Klaster Lifescience Kraków, reprezentowany przez Fundację Klaster LifeScience Kraków","Klaster Dolina Lotnicza, reprezentowany przez Stowarzyszenie Grupy Przedsiębiorców Przemysłu Lotniczego „Dolina Lotnicza”"]
["MedSilesie - Śląska Sieć Wyrobów Medycznych, reprezentowany przez Górnośląską Agencję Przedsiębiorczości i Rozwoju Sp. z o.o.","Klaster Obróbki Metali, reprezentowany przez Centrum Promocji Innowacji i Rozwoju"]
["NUTRIBIOMED Klaster, reprezentowany przez Wrocławski Park Technologiczny S. A.","Mazowiecki Klaster ICT, reprezentowany przez Stowarzyszenie Rozwoju Społeczno-Gospodarczego „Wiedza”"]
["Śląski Klaster Lotniczy, reprezentowany przez Federację Firm Lotniczych Bielsko","Polski Klaster Budowlany, reprezentowany przez Polskie Stowarzyszenie Doradcze i Konsultingowe"]
["Wschodni Klaster ICT, reprezentowany przez Wschodnią Agencję Rozwoju Sp. z o.o.","Bydgoski Klaster Przemysłowy, reprezentowany przez Bydgoski Klaster Przemysłowy"]
["Klaster Gospodarki Odpadowej i Recyklingu, reprezentowany przez Centrum Kooperacji Recyklingu - not for profit system Sp. z o.o.","Klaster \"Polska Grupa Motoryzacyjna\", reprezentowany przez Stowarzyszenie Polska Grupa Motoryzacyjna"]
["Klaster Zrównoważona Infrastruktura, reprezentowany przez Instytut Doradztwa Sp. z.o.o.","Klaster Gospodarki Odpadowej i Recyklingu, reprezentowany przez Centrum Kooperacji Recyklingu - not for profit system Sp. z o.o."]
["Klaster Logistyczno-Transportowy Północ-Południe, reprezentowany przez Zarząd Nadbałtyckich Inicjatyw Klastrowych Sp. z o.o.","Klaster LifeScience Kraków, reprezentowany przez Fundację Klaster LifeScience Kraków"]
["Bydgoski Klaster Przemysłowy, reprezentowany przez Bydgoski Klaster Przemysłowy","Klaster Logistyczno Transportowy Północ-Południe, reprezentowany przez Zarząd Nadbałtyckich Inicjatyw Klastrowych Sp. z o.o."]
["Klaster Dolina Lotnicza, reprezentowany przez Stowarzyszenie Grupy Przedsiębiorców Przemysłu Lotniczego „Dolina Lotnicza”","Klaster Zrównoważona Infrastruktura, reprezentowany przez Instytut Doradztwa Sp. z o.o."]
["Klaster Obróbki Metali, reprezentowany przez Centrum Promocji Innowacji i Rozwoju","Pomorski Klaster ICT Interizon, reprezentowany przez Fundację Interizon"]
["Mazowiecki Klaster ICT, reprezentowany przez Stowarzyszenie Rozwoju Społeczno-Gospodarczego „Wiedza”","Silesia Automotive & Advanced Manufacturing, reprezentowany przez Katowicką Specjalną Strefę Ekonomiczną S.A."]
["Polski Klaster Budowlany, reprezentowany przez Polskie Stowarzyszenie Doradcze i Konsultingowe","Śląski Klaster Lotniczy, reprezentowany przez Federację Firm Lotniczych BIELSKO"]
["Nie dotyczy","Wschodni Klaster ICT, reprezentowany przez Wschodnią Agencję Rozwoju Sp. z o.o."]
[null,"Zachodniopomorski Klaster Chemiczny Zielona Chemia, reprezentowany przez  Stowarzyszenie Zachodniopomorski Klaster Chemiczny Zielona Chemia"]
["Nazwa zadania","Nie dotyczy"]
["Nabycie albo wytworzenie środków trwałych innych niż prawo użytkowania wieczystego gruntu oraz nieruchomości"]
["Nabycie wartości niematerialnych i prawnych"]
["Nabycie robót i materiałów budowlanych"]
["Koszt nabycia nieruchomości zabudowanych i niezabudowanych"]
["Raty spłaty kapitału nieruchomości zabudowanych i niezabudowanych"]
["Raty spłaty kapitału środków trwałych innych niż nieruchomości "]
["Usługi doradcze"]
["Koszty wiedzy technicznej"]
["Koszty Materiałów"]
[]
["Kategoria kosztów"]
["Nabycie albo wytworzenie środków trwałych innych niż prawo użytkowania wieczystego gruntu oraz nieruchomości - regiony słabiej rozwinięte"]
["Nabycie wartości niematerialnych i prawnych - regiony słabiej rozwinięte"]
["Nabycie robót i materiałów budowlanych - regiony słabiej rozwinięte"]
["Koszt nabycia nieruchomości zabudowanych i niezabudowanych - regiony słabiej rozwinięte"]
["Raty spłaty kapitału nieruchomości zabudowanych i niezabudowanych - regiony słabiej rozwinięte"]
["Raty spłaty kapitału środków trwałych innych niż nieruchomości  - regiony słabiej rozwinięte"]
["Usługi doradcze - regiony słabiej rozwinięte"]
["Koszty wiedzy technicznej - regiony słabiej rozwinięte"]
["Koszty Materiałów - regiony słabiej rozwinięte"]
["Nabycie albo wytworzenie środków trwałych innych niż prawo użytkowania wieczystego gruntu oraz nieruchomości - regiony lepiej rozwinięte"]
["Nabycie wartości niematerialnych i prawnych - regiony lepiej rozwinięte"]
["Nabycie robót i materiałów budowlanych - regiony lepiej rozwinięte"]
["Koszt nabycia nieruchomości zabudowanych i niezabudowanych - regiony lepiej rozwinięte"]
["Raty spłaty kapitału nieruchomości zabudowanych i niezabudowanych - regiony lepiej rozwinięte"]
["Raty spłaty kapitału środków trwałych innych niż nieruchomości  - regiony lepiej rozwinięte"]
["Usługi doradcze - regiony lepiej rozwinięte"]
["Koszty wiedzy technicznej - regiony lepiej rozwinięte"]
["Koszty Materiałów - regiony lepiej rozwinięte"]
[]
["Kolumna1"]
["T"]
["N"]

{"sheet":"VI. Harmonogram płatności","index":9,"n_rows":39,"n_cols":39,"rows_kept":39,"cut":false,"hidden":false,"merged":[[0,0,0,32],[38,1,38,32],[0,34,1,37],[3,0,3,5],[3,6,3,11],[3,12,3,17],[3,18,3,22],[3,23,3,27],[3,28,3,32],[1,0,1,32],[2,0,2,5],[2,6,2,11],[2,12,2,17],[2,18,2,22],[2,23,2,27],[2,28,2,32],[3,34,3,37],[36,6,36,11],[36,12,36,17],[36,18,36,22],[35,0,35,5],[35,6,35,11],[35,12,35,17],[35,18,35,22],[4,28,4,32],[5,23,5,27],[5,28,5,32],[33,23,33,27],[32,1,32,5],[32,6,32,11],[37,12,37,17],[37,18,37,22],[37,6,37,11],[5,6,5,11],[5,12,5,17],[5,18,5,22],[33,18,33,22],[32,12,32,17],[32,18,32,22],[24,18,24,22],[35,23,35,27],[35,28,35,32],[34,1,34,5],[34,6,34,11],[34,12,34,17],[34,18,34,22],[34,23,34,27],[34,28,34,32],[4,1,4,5],[4,6,4,11],[4,12,4,17],[4,18,4,22],[5,1,5,5],[33,1,33,5],[33,6,33,11],[33,12,33,17],[4,23,4,27],[32,23,32,27],[22,1,22,5],[22,6,22,11],[22,12,22,17],[22,18,22,22],[22,23,22,27],[10,12,10,17],[10,18,10,22],[10,23,10,27],[25,1,25,5],[25,6,25,11],[25,12,25,17],[25,18,25,22],[25,23,25,27],[12,1,12,5],[32,28,32,32],[31,1,31,5],[31,6,31,11],[31,12,31,17],[31,18,31,22],[31,23,31,27],[31,28,31,32],[33,28,33,32],[30,28,30,32],[30,1,30,5],[30,6,30,11],[30,12,30,17],[30,18,30,22],[30,23,30,27],[22,28,22,32],[23,1,23,5],[23,6,23,11],[23,12,23,17],[23,18,23,22],[23,23,23,27],[23,28,23,32],[24,1,24,5],[24,6,24,11],[24,12,24,17],[24,23,24,27],[24,28,24,32],[21,28,21,32],[20,1,20,5],[20,6,20,11],[20,12,20,17],[20,18,20,22],[20,23,20,27],[20,28,20,32],[21,1,21,5],[21,6,21,11],[21,12,21,17],[21,18,21,22],[21,23,21,27],[19,28,19,32],[18,1,18,5],[18,6,18,11],[18,12,18,17],[18,18,18,22],[18,23,18,27],[18,28,18,32],[19,1,19,5],[19,6,19,11],[19,12,19,17],[19,18,19,22],[19,23,19,27],[17,28,17,32],[16,1,16,5],[16,6,16,11],[16,12,16,17],[16,18,16,22],[16,23,16,27],[16,28,16,32],[17,1,17,5],[17,6,17,11],[17,12,17,17],[17,18,17,22],[17,23,17,27],[15,28,15,32],[14,1,14,5],[14,6,14,11],[14,12,14,17],[14,18,14,22],[14,23,14,27],[14,28,14,32],[15,1,15,5],[15,6,15,11],[15,12,15,17],[15,18,15,22],[15,23,15,27],[12,6,12,11],[12,12,12,17],[12,18,12,22],[12,23,12,27],[12,28,12,32],[13,1,13,5],[13,6,13,11],[13,12,13,17],[13,18,13,22],[13,23,13,27],[6,1,6,5],[6,6,6,11],[6,12,6,17],[6,18,6,22],[6,23,6,27],[6,28,6,32],[7,1,7,5],[7,6,7,11],[7,12,7,17],[7,18,7,22],[7,23,7,27],[25,28,25,32],[7,28,7,32],[9,28,9,32],[8,1,8,5],[8,6,8,11],[8,12,8,17],[8,18,8,22],[8,23,8,27],[8,28,8,32],[9,1,9,5],[9,6,9,11],[9,12,9,17],[9,18,9,22],[9,23,9,27],[11,28,11,32],[10,1,10,5],[10,6,10,11],[10,28,10,32],[11,1,11,5],[11,6,11,11],[11,12,11,17],[11,18,11,22],[11,23,11,27],[13,28,13,32],[26,28,26,32],[27,1,27,5],[27,6,27,11],[27,12,27,17],[27,18,27,22],[27,23,27,27],[27,28,27,32],[26,1,26,5],[26,6,26,11],[26,12,26,17],[26,18,26,22],[26,23,26,27],[28,28,28,32],[29,1,29,5],[29,6,29,11],[29,12,29,17],[29,18,29,22],[29,23,29,27],[29,28,29,32],[28,1,28,5],[28,6,28,11],[28,12,28,17],[28,18,28,22],[28,23,28,27]]}
["VI. HARMONOGRAM PŁATNOŚCI",null,null,null,null,null,null,null,null,null,null,null,null,null,null,null,null,null,null,null,null,null,null,null,null,null,null,null,null,null,null,null,null,null,"Uwagi/komentarze Ekspertów"]
[]
["Przewidywana data złożenia wniosku o płatność",null,null,null,null,null,"Kwota poniesionych wydatków całkowitych \n(w PLN)\n",null,null,null,null,null,"Kwota poniesionych wydatków kwalifikowanych \n(w PLN)\n",null,null,null,null,null,"Wartość wnioskowanego dofinansowania \n(w PLN)\n",null,null,null,null,"Oznaczenie rodzaju wniosku o płatność 13",null,null,null,null,"% wnioskowanego dofinansowania (wykazać tylko dla zaliczki)",null,null,null,null,null,{"$f":"'I. Informacje ogólne o projekci'!$AH$2","v":"Ekspert od innowacyjności 1"},{"$f":"'I. Informacje ogólne o projekci'!$AI$2","v":"Ekspert od innowacyjności 2"},{"$f":"'I. Informacje ogólne o projekci'!$AJ$2","v":"Ekspert od innowacyjności 3"},{"$f":"'I. Informacje ogólne o projekci'!$AK$2","v":"Ekspert finansowy"},{"$f":"'I. Informacje ogólne o projekci'!$AL$2","v":"Uwagi MFiPR"}]
["307.",null,null,null,null,null,"308.",null,null,null,null,null,"309.",null,null,null,null,null,"310.",null,null,null,null,"311.",null,null,null,null,"312."]
[1,null,null,null,null,null,null,null,null,null,null,null,null,null,null,null,null,null,null,null,null,null,null,null,null,null,null,null,{"$f":"IF(X5=\"Z\",$S5/$S$36,\" \")","v":" "}]
[null,null,null,null,null,null,null,null,null,null,null,null,null,null,null,null,null,null,null,null,null,null,null,null,null,null,null,null," "]
[null,null,null,null,null,null,null,null,null,null,null,null,null,null,null,null,null,null,null,null,null,null,null,null,null,null,null,null," "]
[null,null,null,null,null,null,null,null,null,null,null,null,null,null,null,null,null,null,null,null,null,null,null,null,null,null,null,null," "]
[null,null,null,null,null,null,null,null,null,null,null,null,null,null,null,null,null,null,null,null,null,null,null,null,null,null,null,null," "]
[null,null,null,null,null,null,null,null,null,null,null,null,null,null,null,null,null,null,null,null,null,null,null,null,null,null,null,null," "]
[null,null,null,null,null,null,null,null,null,null,null,null,null,null,null,null,null,null,null,null,null,null,null,null,null,null,null,null," "]
[null,null,null,null,null,null,null,null,null,null,null,null,null,null,null,null,null,null,null,null,null,null,null,null,null,null,null,null," "]
[null,null,null,null,null,null,null,null,null,null,null,null,null,null,null,null,null,null,null,null,null,null,null,null,null,null,null,null," "]
[null,null,null,null,null,null,null,null,null,null,null,null,null,null,null,null,null,null,null,null,null,null,null,null,null,null,null,null," "]
[null,null,null,null,null,null,null,null,null,null,null,null,null,null,null,null,null,null,null,null,null,null,null,null,null,null,null,null," "]
[null,null,null,null,null,null,null,null,null,null,null,null,null,null,null,null,null,null,null,null,null,null,null,null,null,null,null,null," "]
[null,null,null,null,null,null,null,null,null,null,null,null,null,null,null,null,null,null,null,null,null,null,null,null,null,null,null,null," "]
[null,null,null,null,null,null,null,null,null,null,null,null,null,null,null,null,null,null,null,null,null,null,null,null,null,null,null,null," "]
[null,null,null,null,null,null,null,null,null,null,null,null,null,null,null,null,null,null,null,null,null,null,null,null,null,null,null,null," "]
[null,null,null,null,null,null,null,null,null,null,null,null,null,null,null,null,null,null,null,null,null,null,null,null,null,null,null,null," "]
[null,null,null,null,null,null,null,null,null,null,null,null,null,null,null,null,null,null,null,null,null,null,null,null,null,null,null,null," "]
[null,null,null,null,null,null,null,null,null,null,null,null,null,null,null,null,null,null,null,null,null,null,null,null,null,null,null,null," "]
[null,null,null,null,null,null,null,null,null,null,null,null,null,null,null,null,null,null,null,null,null,null,null,null,null,null,null,null," "]
[null,null,null,null,null,null,null,null,null,null,null,null,null,null,null,null,null,null,null,null,null,null,null,null,null,null,null,null," "]
[null,null,null,null,null,null,null,null,null,null,null,null,null,null,null,null,null,null,null,null,null,null,null,null,null,null,null,null," "]
[null,null,null,null,null,null,null,null,null,null,null,null,null,null,null,null,null,null,null,null,null,null,null,null,null,null,null,null," "]
[null,null,null,null,null,null,null,null,null,null,null,null,null,null,null,null,null,null,null,null,null,null,null,null,null,null,null,null," "]
[null,null,null,null,null,null,null,null,null,null,null,null,null,null,null,null,null,null,null,null,null,null,null,null,null,null,null,null," "]
[null,null,null,null,null,null,null,null,null,null,null,null,null,null,null,null,null,null,null,null,null,null,null,null,null,null,null,null," "]
[null,null,null,null,null,null,null,null,null,null,null,null,null,null,null,null,null,null,null,null,null,null,null,null,null,null,null,null," "]
[null,null,null,null,null,null,null,null,null,null,null,null,null,null,null,null,null,null,null,null,null,null,null,null,null,null,null,null," "]
[null,null,null,null,null,null,null,null,null,null,null,null,null,null,null,null,null,null,null,null,null,null,null,null,null,null,null,null," "]
[null,null,null,null,null,null,null,null,null,null,null,null,null,null,null,null,null,null,null,null,null,null,null,null,null,null,null,null," "]
[null,null,null,null,null,null,null,null,null,null,null,null,null,null,null,null,null,null,null,null,null,null,null,null,null,null,null,null," "]
[null,{"$f":"'Fiszka projektu'!K58","v":"00:00:00"},null,null,null,null,null,null,null,null,null,null,null,null,null,null,null,null,null,null,null,null,null,"PK"]
["RAZEM",null,null,null,null,null,{"$f":"'V. Aspekty Finansowe'!U17","v":0},null,null,null,null,null,{"$f":"'V. Aspekty Finansowe'!U19","v":0},null,null,null,null,null,{"$f":"'V. Aspekty Finansowe'!U21","v":0},null,null,null,null,"n/d",null,null,null,null,{"$f":"SUM(AC5:AG35)","v":0}]
[null,null,null,null,null,null,{"$f":"IF(SUM(G5:L35)=G36,\" \",\"POZOSTAŁO DO ROZDYSPONOWANIA\")","v":" "},null,null,null,null,null,{"$f":"IF(SUM(M5:R35)=M36,\" \",\"POZOSTAŁO DO ROZDYSPONOWANIA\")","v":" "},null,null,null,null,null,{"$f":"IF(SUM(S5:W35)=S36,\" \",\"POZOSTAŁO DO ROZDYSPONOWANIA\")","v":" "}]
[null,null,null,null,null,null,{"$f":"IF(G37=\"POZOSTAŁO DO ROZDYSPONOWANIA\",G36-SUM(G5:L35),\" \")","v":" "},null,null,null,null,null,{"$f":"IF(M37=\"POZOSTAŁO DO ROZDYSPONOWANIA\",M36-SUM(M5:R35),\" \")","v":" "},null,null,null,null,null,{"$f":"IF(S37=\"POZOSTAŁO DO ROZDYSPONOWANIA\",S36-SUM(S5:W35),\" \")","v":" "}]
[13,"Należy wpisać: refundacja (R), zaliczka (Z), rozliczenie zaliczki (RZ), płatność końcowa (PK)."]

{"sheet":"VII. Zgodność projektu","index":10,"n_rows":70,"n_cols":39,"rows_kept":70,"cut":false,"hidden":false,"merged":[[28,37,36,37],[29,0,36,32],[26,0,26,13],[26,15,26,32],[27,0,27,13],[27,15,27,32],[28,1,28,32],[68,33,76,33],[41,33,52,33],[65,15,65,32],[52,0,52,13],[52,15,52,32],[3,33,13,33],[0,0,0,32],[1,0,1,32],[3,1,3,32],[4,0,11,32],[13,0,13,13],[13,15,13,32],[2,0,2,32],[79,0,85,32],[69,0,76,32],[56,0,63,32],[42,0,49,32],[17,0,24,32],[39,0,39,13],[39,15,39,32],[53,0,53,13],[53,15,53,32],[66,0,66,13],[66,15,66,32],[67,0,67,13],[67,15,67,32],[68,1,68,32],[51,0,51,32],[65,0,65,13],[68,34,76,34],[68,35,76,35],[68,36,76,36],[68,37,76,37],[55,34,63,34],[55,35,63,35],[55,36,63,36],[55,37,63,37],[3,35,11,35],[3,36,11,36],[3,37,11,37],[0,34,0,37],[41,34,49,34],[41,35,49,35],[41,36,49,36],[41,37,49,37],[16,34,24,34],[16,35,24,35],[16,36,24,36],[16,37,24,37],[3,34,11,34],[28,34,36,34],[28,35,36,35],[28,36,36,36],[16,1,16,32],[14,0,14,13],[14,15,14,32],[15,0,15,13],[15,15,15,32],[16,33,25,33],[12,0,12,32],[37,0,37,32],[50,0,50,32],[64,0,64,32],[55,33,65,33],[55,1,55,32],[38,0,38,13],[38,15,38,32],[41,1,41,32],[40,0,40,13],[40,15,40,32],[54,0,54,13],[54,15,54,32],[25,0,25,13],[25,15,25,32],[68,38,76,38],[3,38,11,38],[16,38,24,38],[28,38,36,38],[41,38,49,38],[55,38,63,38]]}
["VII. ZGODNOŚĆ PROJEKTU Z POLITYKAMI HORYZONTALNYMI UNII EUROPEJSKIEJ",null,null,null,null,null,null,null,null,null,null,null,null,null,null,null,null,null,null,null,null,null,null,null,null,null,null,null,null,null,null,null,null,null,"Uwagi/komentarze Ekspertów"]
[null,null,null,null,null,null,null,null,null,null,null,null,null,null,null,null,null,null,null,null,null,null,null,null,null,null,null,null,null,null,null,null,null,null,{"$f":"'I. Informacje ogólne o projekci'!$AH$2","v":"Ekspert od innowacyjności 1"},{"$f":"'I. Informacje ogólne o projekci'!$AI$2","v":"Ekspert od innowacyjności 2"},{"$f":"'I. Informacje ogólne o projekci'!$AJ$2","v":"Ekspert od innowacyjności 3"},{"$f":"'I. Informacje ogólne o projekci'!$AK$2","v":"Ekspert finansowy"},{"$f":"'I. Informacje ogólne o projekci'!$AL$2","v":"Uwagi MFiPR"}]
["Wpływ projektu na realizację zasady równości szans i niedyskryminacji, w tym dostępności dla osób z niepełnosprawnościami "]
["313.","Uzasadnienie pozytywnego wpływu projektu na realizację zasady równości szans i niedyskryminacji, w tym dostępności dla osób z niepełnosprawnościami:"]
[]
[]
[]
[]
[]
[]
[]
[]
[]
["Czy produkty/rezultaty projektu będą dostępne dla osób z niepełnosprawnościami?\n",null,null,null,null,null,null,null,null,null,null,null,null,null,"314."]
["Nazwa wskaźnika nr 1",null,null,null,null,null,null,null,null,null,null,null,null,null,"315.",{"$f":"IF($P$14=\"tak\",\"Uzupełnij nazwę wskaźnika\",\"Nie dotyczy\")","v":"Nie dotyczy"},null,null,null,null,null,null,null,null,null,null,null,null,null,null,null,null,null,"Przejdź do wskaźnika"]
["Nazwa wskaźnika nr 2",null,null,null,null,null,null,null,null,null,null,null,null,null,"316.",{"$f":"IF($P$14=\"tak\",\"Uzupełnij nazwę wskaźnika\",\"Nie dotyczy\")","v":"Nie dotyczy"},null,null,null,null,null,null,null,null,null,null,null,null,null,null,null,null,null,"Przejdź do wskaźnika"]
["317.","Uzasadnienie dostępności produkty/rezultaty/infrastruktura dla osób z niepełnosprawnościami:"]
[{"$f":"IF($P$14=\"tak\",\"Uzupełnij uzasadnienie, jednostkę miary i wartości wskaźnika w arkuszu VIII. Wskaźniki rezultatu\",\"Nie dotyczy\")","v":"Nie dotyczy"}]
[]
[]
[]
[]
[]
[]
[]
["Czy w ramach realizacji projektu planowana jest budowa lub adaptacja budynku, na cele CBR, spełniajacego standard architektoniczny stanowiący załącznik nr 2 do Wytycznych w zakresie realizacji zasady równości szans i niedyskryminacji, w tym dostępności dla osób z niepełnosprawnościami oraz zasady równości szans kobiet i mężczyzn w ramach Funduszy Unijnych na lata 2014-2020?\n",null,null,null,null,null,null,null,null,null,null,null,null,null,"318."]
["Nazwa wskaźnika nr 1",null,null,null,null,null,null,null,null,null,null,null,null,null,"319.",{"$f":"IF($P$26=\"tak\",\"Uzupełnij nazwę wskaźnika\",\"Nie dotyczy\")","v":"Nie dotyczy"},null,null,null,null,null,null,null,null,null,null,null,null,null,null,null,null,null,"Przejdź do wskaźnika"]
["Nazwa wskaźnika nr 2",null,null,null,null,null,null,null,null,null,null,null,null,null,"320.",{"$f":"IF($P$26=\"tak\",\"Uzupełnij nazwę wskaźnika\",\"Nie dotyczy\")","v":"Nie dotyczy"},null,null,null,null,null,null,null,null,null,null,null,null,null,null,null,null,null,"Przejdź do wskaźnika"]
["321.","Uzasadnienie spełniania standardu architektonicznego: "]
[{"$f":"IF($P$26=\"tak\",\"Uzupełnij uzasadnienie, jednostkę miary i wartości wskaźnika w arkuszu VIII. Wskaźniki rezultatu\",\"Nie dotyczy\")","v":"Nie dotyczy"}]
[]
[]
[]
[]
[]
[]
[]
[]
["Wpływ projektu na realizację zasady równości szans kobiet i mężczyzn",null,null,null,null,null,null,null,null,null,null,null,null,null,"322."]
["Nazwa wskaźnika nr 1",null,null,null,null,null,null,null,null,null,null,null,null,null,"323.",{"$f":"IF($P$39=\"pozytywny\",\"Uzupełnij nazwę wskaźnika\",\"Nie dotyczy\")","v":"Nie dotyczy"},null,null,null,null,null,null,null,null,null,null,null,null,null,null,null,null,null,"Przejdź do wskaźnika"]
["Nazwa wskaźnika nr 2",null,null,null,null,null,null,null,null,null,null,null,null,null,"324.",{"$f":"IF($P$39=\"pozytywny\",\"Uzupełnij nazwę wskaźnika\",\"Nie dotyczy\")","v":"Nie dotyczy"},null,null,null,null,null,null,null,null,null,null,null,null,null,null,null,null,null,"Przejdź do wskaźnika"]
["325.","Uzasadnienie wpływu projektu na realizację zasady równości szans kobiet i mężczyzn: "]
[{"$f":"IF($P$39=\"pozytywny\",\"Uzupełnij uzasadnienie, jednostkę miary i wartości wskaźnika w arkuszu VIII. Wskaźniki rezultatu\",\"Nie dotyczy\")","v":"Nie dotyczy"}]
[]
[]
[]
[]
[]
[]
[]
[]
["Wpływ projektu na realizację zasady zrównoważonego rozwoju"]
["Projekt będzie miał pozytywny wpływ na realizację zasady zrównoważonego rozwoju poprzez sposób realizacji projektu ",null,null,null,null,null,null,null,null,null,null,null,null,null,"326."]
["Nazwa wskaźnika nr 1",null,null,null,null,null,null,null,null,null,null,null,null,null,"327.",{"$f":"IF($P$53=\"tak\",\"Uzupełnij nazwę wskaźnika\",\"Nie dotyczy\")","v":"Nie dotyczy"},null,null,null,null,null,null,null,null,null,null,null,null,null,null,null,null,null,"Przejdź do wskaźnika"]
["Nazwa wskaźnika nr 2",null,null,null,null,null,null,null,null,null,null,null,null,null,"328.",{"$f":"IF($P$53=\"tak\",\"Uzupełnij nazwę wskaźnika\",\"Nie dotyczy\")","v":"Nie dotyczy"},null,null,null,null,null,null,null,null,null,null,null,null,null,null,null,null,null,"Przejdź do wskaźnika"]
["329.","Uzasadnienie:"]
[{"$f":"IF($P$53=\"tak\",\"Uzupełnij uzasadnienie, jednostkę miary i wartości wskaźnika w arkuszu VIII. Wskaźniki rezultatu\",\"Nie dotyczy\")","v":"Nie dotyczy"}]
[]
[]
[]
[]
[]
[]
[]
[]
["Projekt będzie miał pozytywny wpływ na realizację zasady zrównoważonego rozwoju poprzez rezultat projektu ",null,null,null,null,null,null,null,null,null,null,null,null,null,"330."]
["Nazwa wskaźnika nr 1",null,null,null,null,null,null,null,null,null,null,null,null,null,"331.",{"$f":"IF($P$66=\"tak\",\"Uzupełnij nazwę wskaźnika\",\"Nie dotyczy\")","v":"Nie dotyczy"},null,null,null,null,null,null,null,null,null,null,null,null,null,null,null,null,null,"Przejdź do wskaźnika"]
["Nazwa wskaźnika nr 2",null,null,null,null,null,null,null,null,null,null,null,null,null,"332.",{"$f":"IF($P$66=\"tak\",\"Uzupełnij nazwę wskaźnika\",\"Nie dotyczy\")","v":"Nie dotyczy"},null,null,null,null,null,null,null,null,null,null,null,null,null,null,null,null,null,"Przejdź do wskaźnika"]
["333.","Uzasadnienie:"]
[{"$f":"IF($P$66=\"tak\",\"Uzupełnij uzasadnienie, jednostkę miary i wartości wskaźnika w arkuszu VIII. Wskaźniki rezultatu\",\"Nie dotyczy\")","v":"Nie dotyczy"}]

{"sheet":"VIII. Wskaźniki produktu","index":11,"n_rows":117,"n_cols":25,"rows_kept":117,"cut":false,"hidden":false,"merged":[[0,0,0,5],[23,1,23,5],[40,1,40,5],[25,1,25,5],[33,4,33,5],[30,0,30,5],[28,1,28,5],[29,1,29,5],[31,3,31,5],[31,0,31,1],[32,0,32,5],[3,4,3,5],[11,1,11,5],[36,1,36,5],[37,1,37,5],[39,1,39,5],[35,4,35,5],[38,4,38,5],[4,8,6,8],[4,9,6,9],[13,7,15,7],[16,7,18,7],[13,8,15,8],[13,9,15,9],[26,1,26,5],[17,1,17,5],[18,1,18,5],[14,1,14,5],[15,1,15,5],[22,1,22,5],[6,1,6,5],[5,1,5,5],[8,1,8,5],[12,1,12,5],[9,1,9,5],[38,6,40,6],[0,7,2,10],[38,10,40,10],[38,8,40,8],[38,9,40,9],[27,8,29,8],[27,9,29,9],[27,10,29,10],[27,7,29,7],[24,7,26,7],[24,10,26,10],[19,9,23,9],[19,10,23,10],[19,7,23,7],[19,8,23,8],[13,10,15,10],[4,10,6,10],[7,8,9,8],[7,9,9,9],[7,10,9,10],[38,7,40,7],[4,7,6,7],[7,7,9,7],[10,7,12,7],[35,10,37,10],[10,10,12,10],[24,9,26,9],[16,8,18,8],[16,9,18,9],[16,10,18,10],[24,8,26,8],[10,8,12,8],[10,9,12,9],[50,7,52,7],[50,8,52,8],[50,9,52,9],[50,10,52,10],[51,1,51,5],[52,1,52,5],[50,4,50,5],[53,7,55,7],[53,8,55,8],[53,9,55,9],[53,10,55,10],[54,1,54,5],[55,1,55,5],[53,4,53,5],[35,7,37,7],[41,4,41,5],[44,4,44,5],[47,4,47,5],[41,7,43,7],[41,8,43,8],[41,9,43,9],[41,10,43,10],[42,1,42,5],[43,1,43,5],[44,7,46,7],[44,8,46,8],[44,9,46,9],[44,10,46,10],[45,1,45,5],[46,1,46,5],[47,7,49,7],[47,8,49,8],[47,9,49,9],[47,10,49,10],[48,1,48,5],[49,1,49,5],[35,8,37,8],[35,9,37,9],[38,11,40,11],[41,11,43,11],[44,11,46,11],[47,11,49,11],[50,11,52,11],[53,11,55,11],[4,11,6,11],[7,11,9,11],[10,11,12,11],[13,11,15,11],[16,11,18,11],[19,11,23,11],[24,11,26,11],[27,11,29,11],[35,11,37,11]]}
["VIII. WSKAŹNIKI REALIZACJI PROJEKTU",null,null,null,null,null,null,"Uwagi/komentarze Ekspertów"]
[]
[null,"Wskaźniki produktu"]
[null,"Nazwa wskaźnika ","Jednostka miary","Wartość bazowa","Wartość docelowa",null,null,{"$f":"'I. Informacje ogólne o projekci'!$AH$2","v":"Ekspert od innowacyjności 1"},{"$f":"'I. Informacje ogólne o projekci'!$AI$2","v":"Ekspert od innowacyjności 2"},{"$f":"'I. Informacje ogólne o projekci'!$AJ$2","v":"Ekspert od innowacyjności 3"},{"$f":"'I. Informacje ogólne o projekci'!$AK$2","v":"Ekspert finansowy"},{"$f":"'I. Informacje ogólne o projekci'!$AL$2","v":"Uwagi MFiPR"}]
[null,"Liczba przedsiębiorstw otrzymujących wsparcie (CI 1)","Szt. ",0,"334."]
["335.","Uzasadnienie dla doboru wskaźnika produktu, sposób obliczania oraz uzasadnienie wartości docelowej:"]
[]
[null,"Liczba przedsiębiorstw otrzymujących dotacje (CI 2)","Szt. ",0,"336."]
["337.","Uzasadnienie dla doboru wskaźnika produktu, sposób obliczania oraz uzasadnienie wartości docelowej:"]
[]
[null,"Liczba wspartych labolatoriów badawczych","Szt. ",0,"338."]
["339.","Uzasadnienie dla doboru wskaźnika produktu, sposób obliczania oraz uzasadnienie wartości docelowej:"]
[]
[null,"Liczba przedsiębiorstw ponoszących nakłady inwestycyjne na działalność B+R","Szt. ",0,"340."]
["341.","Uzasadnienie dla doboru wskaźnika produktu, sposób obliczania oraz uzasadnienie wartości docelowej:"]
[]
[null,"Inwestycje prywatne uzupełniające wsparcie publiczne dla przedsiębiorstw (dotacje)","PLN",0,"342.",{"$f":"'V. Aspekty Finansowe'!$U$17-'V. Aspekty Finansowe'!$U$21","v":0}]
["343.","Uzasadnienie dla doboru wskaźnika produktu, sposób obliczania oraz uzasadnienie wartości docelowej:"]
[]
[null,"Nakłady inwestycyjne na zakup aparatury naukowo-badawczej, w tym:","PLN",{"$f":"SUM(D21:D22)","v":0},"344.",{"$f":"SUM(F21:F22)","v":0}]
[null,"środki trwałe","PLN",0,"345."]
[null,"wartości niematerialne i prawne","PLN",0,"346."]
["347.","Uzasadnienie dla doboru wskaźnika produktu, sposób obliczania oraz uzasadnienie wartości docelowej:"]
[]
[null,"Liczba zakupionych środków trwałych","Szt. ",0,"348."]
["349.","Uzasadnienie dla doboru wskaźnika produktu, sposób obliczania oraz uzasadnienie wartości docelowej:"]
[]
[null,"Liczba zakupionych wartości niematerialnych i prawnych","Szt. ",0,"350."]
["351.","Uzasadnienie dla doboru wskaźnika produktu, sposób obliczania oraz uzasadnienie wartości docelowej:"]
[]
[]
["Czy chcesz dodać inne wskaźniki produktu?",null,"352."]
["Inne wskaźniki produktu"]
[null,"Nazwa wskaźnika ","Jednostka miary","Wartość bazowa","Wartość docelowa"]
["353.",null,"354.","355.","356."]
[null,{"$f":"IF($D$32=\"tak\",\"Uzupełnij nazwę wskaźnika\",\"Nie dotyczy\")","v":"Nie dotyczy"},{"$f":"IF(B$36=\"nie dotyczy\",\"Nie dotyczy  \",\"Uzupełnij jednostkę miary\")","v":"Nie dotyczy  "},{"$f":"IF($B36=\"nie dotyczy\",\"Nie dotyczy \",\"Uzupełnij wartość bazową\")","v":"Nie dotyczy "},{"$f":"IF($B36=\"nie dotyczy\",\"Nie dotyczy \",\"Uzupełnij wartość docelową\")","v":"Nie dotyczy "}]
[null,"Uzasadnienie dla doboru wskaźnika produktu, sposób obliczania oraz uzasadnienie wartości docelowej:"]
[null,{"$f":"IF($B36=\"nie dotyczy\",\"Nie dotyczy\",\"Uzupełnij uzasadnienie\")","v":"Nie dotyczy"},{"$f":"IF($B$36<>0,\"  \",\"Nie dotyczy\")","v":"  "},{"$f":"IF($B$36<>0,\"  \",\"Nie dotyczy\")","v":"  "},{"$f":"IF($B$36<>0,\"  \",\"Nie dotyczy\")","v":"  "},{"$f":"IF($B$36<>0,\"  \",\"Nie dotyczy\")","v":"  "}]
[null,{"$f":"IF($D$32=\"tak\",\"Uzupełnij nazwę wskaźnika\",\"Nie dotyczy\")","v":"Nie dotyczy"},{"$f":"IF(B39=\"nie dotyczy\",\"Nie dotyczy  \",\"Uzupełnij jednostkę miary\")","v":"Nie dotyczy  "},{"$f":"IF($B39=\"nie dotyczy\",\"Nie dotyczy \",\"Uzupełnij wartość bazową\")","v":"Nie dotyczy "},{"$f":"IF($B39=\"nie dotyczy\",\"Nie dotyczy \",\"Uzupełnij wartość docelową\")","v":"Nie dotyczy "}]
[null,"Uzasadnienie dla doboru wskaźnika produktu, sposób obliczania oraz uzasadnienie wartości docelowej:"]
[null,{"$f":"IF($B39=\"nie dotyczy\",\"Nie dotyczy\",\"Uzupełnij uzasadnienie\")","v":"Nie dotyczy"},{"$f":"IF($B$36<>0,\"  \",\"Nie dotyczy\")","v":"  "},{"$f":"IF($B$36<>0,\"  \",\"Nie dotyczy\")","v":"  "},{"$f":"IF($B$36<>0,\"  \",\"Nie dotyczy\")","v":"  "},{"$f":"IF($B$36<>0,\"  \",\"Nie dotyczy\")","v":"  "}]
[null,{"$f":"IF($D$32=\"tak\",\"Uzupełnij nazwę wskaźnika\",\"Nie dotyczy\")","v":"Nie dotyczy"},{"$f":"IF(B$36=\"nie dotyczy\",\"Nie dotyczy  \",\"Uzupełnij jednostkę miary\")","v":"Nie dotyczy  "},{"$f":"IF($B42=\"nie dotyczy\",\"Nie dotyczy \",\"Uzupełnij wartość bazową\")","v":"Nie dotyczy "},{"$f":"IF($B42=\"nie dotyczy\",\"Nie dotyczy \",\"Uzupełnij wartość docelową\")","v":"Nie dotyczy "}]
[null,"Uzasadnienie dla doboru wskaźnika produktu, sposób obliczania oraz uzasadnienie wartości docelowej:"]
[null,{"$f":"IF($B42=\"nie dotyczy\",\"Nie dotyczy\",\"Uzupełnij uzasadnienie\")","v":"Nie dotyczy"},{"$f":"IF($B$36<>0,\"  \",\"Nie dotyczy\")","v":"  "},{"$f":"IF($B$36<>0,\"  \",\"Nie dotyczy\")","v":"  "},{"$f":"IF($B$36<>0,\"  \",\"Nie dotyczy\")","v":"  "},{"$f":"IF($B$36<>0,\"  \",\"Nie dotyczy\")","v":"  "}]
[null,{"$f":"IF($D$32=\"tak\",\"Uzupełnij nazwę wskaźnika\",\"Nie dotyczy\")","v":"Nie dotyczy"},{"$f":"IF(B$36=\"nie dotyczy\",\"Nie dotyczy  \",\"Uzupełnij jednostkę miary\")","v":"Nie dotyczy  "},{"$f":"IF($B45=\"nie dotyczy\",\"Nie dotyczy \",\"Uzupełnij wartość bazową\")","v":"Nie dotyczy "},{"$f":"IF($B45=\"nie dotyczy\",\"Nie dotyczy \",\"Uzupełnij wartość docelową\")","v":"Nie dotyczy "}]
[null,"Uzasadnienie dla doboru wskaźnika produktu, sposób obliczania oraz uzasadnienie wartości docelowej:"]
[null,{"$f":"IF($B45=\"nie dotyczy\",\"Nie dotyczy\",\"Uzupełnij uzasadnienie\")","v":"Nie dotyczy"},{"$f":"IF($B$36<>0,\"  \",\"Nie dotyczy\")","v":"  "},{"$f":"IF($B$36<>0,\"  \",\"Nie dotyczy\")","v":"  "},{"$f":"IF($B$36<>0,\"  \",\"Nie dotyczy\")","v":"  "},{"$f":"IF($B$36<>0,\"  \",\"Nie dotyczy\")","v":"  "}]
[null,{"$f":"IF($D$32=\"tak\",\"Uzupełnij nazwę wskaźnika\",\"Nie dotyczy\")","v":"Nie dotyczy"},{"$f":"IF(B$36=\"nie dotyczy\",\"Nie dotyczy  \",\"Uzupełnij jednostkę miary\")","v":"Nie dotyczy  "},{"$f":"IF($B48=\"nie dotyczy\",\"Nie dotyczy \",\"Uzupełnij wartość bazową\")","v":"Nie dotyczy "},{"$f":"IF($B48=\"nie dotyczy\",\"Nie dotyczy \",\"Uzupełnij wartość docelową\")","v":"Nie dotyczy "}]
[null,"Uzasadnienie dla doboru wskaźnika produktu, sposób obliczania oraz uzasadnienie wartości docelowej:"]
[null,{"$f":"IF($B48=\"nie dotyczy\",\"Nie dotyczy\",\"Uzupełnij uzasadnienie\")","v":"Nie dotyczy"},{"$f":"IF($B$36<>0,\"  \",\"Nie dotyczy\")","v":"  "},{"$f":"IF($B$36<>0,\"  \",\"Nie dotyczy\")","v":"  "},{"$f":"IF($B$36<>0,\"  \",\"Nie dotyczy\")","v":"  "},{"$f":"IF($B$36<>0,\"  \",\"Nie dotyczy\")","v":"  "}]
[null,{"$f":"IF($D$32=\"tak\",\"Uzupełnij nazwę wskaźnika\",\"Nie dotyczy\")","v":"Nie dotyczy"},{"$f":"IF(B$36=\"nie dotyczy\",\"Nie dotyczy  \",\"Uzupełnij jednostkę miary\")","v":"Nie dotyczy  "},{"$f":"IF($B51=\"nie dotyczy\",\"Nie dotyczy \",\"Uzupełnij wartość bazową\")","v":"Nie dotyczy "},{"$f":"IF($B51=\"nie dotyczy\",\"Nie dotyczy \",\"Uzupełnij wartość docelową\")","v":"Nie dotyczy "}]
[null,"Uzasadnienie dla doboru wskaźnika produktu, sposób obliczania oraz uzasadnienie wartości docelowej:"]
[null,{"$f":"IF($B51=\"nie dotyczy\",\"Nie dotyczy\",\"Uzupełnij uzasadnienie\")","v":"Nie dotyczy"},{"$f":"IF($B$36<>0,\"  \",\"Nie dotyczy\")","v":"  "},{"$f":"IF($B$36<>0,\"  \",\"Nie dotyczy\")","v":"  "},{"$f":"IF($B$36<>0,\"  \",\"Nie dotyczy\")","v":"  "},{"$f":"IF($B$36<>0,\"  \",\"Nie dotyczy\")","v":"  "}]
[null,{"$f":"IF($D$32=\"tak\",\"Uzupełnij nazwę wskaźnika\",\"Nie dotyczy\")","v":"Nie dotyczy"},{"$f":"IF(B$36=\"nie dotyczy\",\"Nie dotyczy  \",\"Uzupełnij jednostkę miary\")","v":"Nie dotyczy  "},{"$f":"IF($B54=\"nie dotyczy\",\"Nie dotyczy \",\"Uzupełnij wartość bazową\")","v":"Nie dotyczy "},{"$f":"IF($B54=\"nie dotyczy\",\"Nie dotyczy \",\"Uzupełnij wartość docelową\")","v":"Nie dotyczy "}]
[null,"Uzasadnienie dla doboru wskaźnika produktu, sposób obliczania oraz uzasadnienie wartości docelowej:"]
[null,{"$f":"IF($B54=\"nie dotyczy\",\"Nie dotyczy\",\"Uzupełnij uzasadnienie\")","v":"Nie dotyczy"},{"$f":"IF($B$36<>0,\"  \",\"Nie dotyczy\")","v":"  "},{"$f":"IF($B$36<>0,\"  \",\"Nie dotyczy\")","v":"  "},{"$f":"IF($B$36<>0,\"  \",\"Nie dotyczy\")","v":"  "},{"$f":"IF($B$36<>0,\"  \",\"Nie dotyczy\")","v":"  "}]
[]
[]
[]
[]
[]
[]
[]
[]
[]
[]
[]
[]
[]
[]
[]
[]
[]
[]
[]
[]
[]
[]
[]
[]
[]
[]
[]
[]
[]
[]
[]
[]
[]
[]
[]
[]
[]
[]
[]
[]
[]
[]
[]
[]
[]
[]
[]
[]
[]
[]
[]
[]
[]
[]
[]
[]
[]
[]
[]
[]
[null,null,null,null,null,null,null,null,null,null,null,null,null,null,null,null,null,null,null,null,null,null,null,null,2]

{"sheet":"VIII. Wskaźniki rezultatu","index":12,"n_rows":113,"n_cols":46,"rows_kept":113,"cut":false,"hidden":false,"merged":[[83,44,85,44],[86,41,88,41],[86,42,88,42],[86,43,88,43],[86,44,88,44],[6,3,6,5],[54,44,56,44],[57,41,59,41],[57,42,59,42],[57,44,59,44],[63,41,65,41],[63,42,65,42],[63,43,65,43],[54,40,56,40],[54,41,56,41],[54,42,56,42],[54,43,56,43],[60,41,62,41],[60,42,62,42],[60,43,62,43],[60,44,62,44],[63,44,65,44],[57,40,59,40],[60,40,62,40],[51,40,53,40],[51,37,51,38],[95,43,97,43],[71,2,71,38],[82,2,82,38],[78,2,78,38],[94,2,94,38],[88,2,88,38],[85,2,85,38],[92,43,94,43],[89,41,91,41],[89,42,91,42],[92,41,94,41],[92,42,94,42],[93,0,93,38],[95,30,95,32],[95,33,95,35],[95,40,97,40],[92,39,94,39],[95,39,97,39],[96,0,96,38],[95,15,95,17],[95,24,95,26],[95,27,95,29],[95,4,95,5],[95,37,95,38],[95,0,95,1],[95,6,95,8],[89,0,89,38],[92,4,92,5],[89,43,91,43],[89,44,91,44],[95,44,97,44],[92,44,94,44],[92,37,92,38],[95,21,95,23],[95,9,95,11],[95,12,95,14],[72,33,72,35],[83,41,85,41],[83,42,85,42],[87,0,87,38],[92,30,92,32],[92,33,92,35],[92,40,94,40],[91,0,91,38],[92,6,92,8],[92,24,92,26],[92,27,92,29],[92,18,92,20],[92,21,92,23],[92,9,92,11],[92,12,92,14],[92,15,92,17],[90,0,90,8],[90,10,90,38],[86,9,86,11],[86,12,86,14],[86,15,86,17],[86,18,86,20],[86,21,86,23],[86,24,86,26],[66,44,68,44],[69,41,71,41],[69,42,71,42],[69,43,71,43],[70,0,70,38],[69,33,69,35],[69,6,69,8],[69,40,71,40],[69,9,69,11],[66,41,68,41],[66,42,68,42],[66,43,68,43],[66,21,66,23],[67,0,67,38],[66,24,66,26],[66,27,66,29],[66,30,66,32],[39,41,41,41],[39,42,41,42],[57,43,59,43],[39,43,41,43],[95,41,97,41],[95,42,97,42],[75,3,76,3],[75,9,76,11],[75,12,76,14],[75,41,77,41],[75,42,77,42],[72,41,74,41],[72,42,74,42],[97,2,97,38],[48,40,50,40],[48,41,50,41],[48,42,50,42],[48,43,50,43],[49,1,49,38],[50,2,50,38],[51,41,53,41],[51,42,53,42],[51,43,53,43],[51,30,51,32],[45,41,47,41],[45,42,47,42],[45,43,47,43],[45,44,47,44],[33,41,35,41],[33,42,35,42],[33,43,35,43],[118,41,120,41],[118,42,120,42],[118,43,120,43],[118,44,120,44],[113,41,114,41],[113,42,114,42],[113,43,114,43],[113,44,114,44],[115,41,117,41],[115,42,117,42],[115,43,117,43],[115,44,117,44],[69,44,71,44],[72,44,74,44],[75,44,77,44],[75,43,77,43],[72,43,74,43],[48,44,50,44],[51,44,53,44],[42,41,44,41],[42,42,44,42],[42,43,44,43],[42,44,44,44],[21,43,23,43],[21,44,23,44],[16,0,16,38],[18,41,20,41],[18,42,20,42],[18,43,20,43],[18,44,20,44],[15,41,17,41],[15,42,17,42],[15,43,17,43],[15,44,17,44],[15,40,17,40],[39,44,41,44],[33,44,35,44],[36,41,38,41],[36,42,38,42],[36,43,38,43],[36,44,38,44],[6,36,6,38],[5,33,5,35],[5,27,5,29],[5,15,5,17],[5,18,5,20],[7,0,7,38],[8,2,8,38],[5,42,8,42],[5,43,8,43],[6,33,6,35],[9,42,11,42],[9,43,11,43],[9,44,11,44],[18,4,18,5],[18,37,18,38],[13,0,13,38],[10,0,10,38],[12,42,14,42],[12,43,14,43],[12,44,14,44],[12,41,14,41],[12,0,12,1],[9,12,9,14],[9,15,9,17],[9,33,9,35],[12,40,14,40],[18,33,18,35],[18,18,18,20],[18,21,18,23],[29,41,32,41],[29,42,32,42],[28,41,28,44],[18,40,20,40],[29,44,32,44],[24,41,26,41],[24,42,26,42],[24,43,26,43],[24,44,26,44],[21,41,23,41],[21,42,23,42],[24,40,26,40],[21,40,23,40],[5,44,8,44],[5,40,8,40],[29,43,32,43],[29,40,32,40],[30,9,30,11],[30,12,30,14],[30,15,30,17],[29,9,29,11],[29,12,29,14],[29,15,29,17],[29,18,29,20],[30,33,30,35],[32,2,32,38],[29,6,29,8],[29,27,29,29],[9,9,9,11],[12,4,12,5],[15,27,15,29],[27,0,27,38],[30,18,30,20],[30,21,30,23],[30,30,30,32],[30,37,30,38],[30,24,30,26],[20,2,20,38],[17,2,17,38],[29,4,29,5],[28,0,28,38],[12,37,12,38],[12,24,12,26],[12,12,12,14],[12,27,12,29],[12,30,12,32],[15,21,15,23],[14,2,14,38],[15,12,15,14],[12,15,12,17],[12,18,12,20],[12,21,12,23],[12,33,12,35],[12,9,12,11],[26,2,26,38],[23,2,23,38],[24,37,24,38],[19,0,19,38],[21,30,21,32],[29,0,29,1],[21,24,21,26],[83,30,83,32],[83,33,83,35],[83,4,83,5],[83,37,83,38],[83,0,83,1],[86,33,86,35],[86,37,86,38],[86,4,86,5],[86,6,86,8],[83,9,83,11],[83,12,83,14],[83,15,83,17],[77,0,77,38],[86,30,86,32],[79,2,80,2],[79,3,80,3],[79,4,80,5],[79,6,80,8],[60,4,60,5],[60,6,60,8],[60,9,60,11],[60,12,60,14],[68,2,68,38],[63,0,63,1],[64,0,64,38],[63,27,63,29],[63,9,63,11],[63,12,63,14],[66,4,66,5],[66,6,66,8],[66,0,66,1],[66,15,66,17],[66,18,66,20],[60,27,60,29],[63,6,63,8],[63,4,63,5],[86,40,88,40],[84,0,84,38],[83,6,83,8],[83,24,83,26],[83,27,83,29],[83,18,83,20],[83,21,83,23],[69,37,69,38],[69,30,69,32],[72,0,72,1],[72,4,72,5],[72,6,72,8],[72,37,72,38],[72,40,74,40],[73,0,73,38],[74,2,74,38],[72,9,72,11],[72,12,72,14],[72,15,72,17],[72,18,72,20],[72,21,72,23],[72,24,72,26],[72,27,72,29],[72,30,72,32],[63,40,65,40],[65,2,65,38],[69,0,69,1],[69,24,69,26],[69,27,69,29],[69,18,69,20],[79,37,80,38],[81,0,81,38],[75,40,78,40],[79,40,82,40],[79,27,80,29],[79,30,80,32],[79,33,80,35],[75,2,76,2],[75,36,76,36],[75,37,76,38],[66,37,66,38],[66,33,66,35],[66,9,66,11],[66,12,66,14],[69,15,69,17],[69,21,69,23],[63,30,63,32],[63,33,63,35],[79,36,80,36],[79,9,80,11],[79,12,80,14],[79,15,80,17],[79,18,80,20],[79,21,80,23],[79,24,80,26],[95,18,95,20],[54,4,54,5],[54,27,54,29],[57,15,57,17],[57,24,57,26],[57,9,57,11],[57,12,57,14],[57,6,57,8],[63,15,63,17],[63,24,63,26],[61,0,61,38],[57,27,57,29],[57,18,57,20],[57,21,57,23],[57,30,57,32],[57,33,57,35],[62,2,62,38],[45,33,45,35],[92,0,92,1],[75,21,76,23],[75,24,76,26],[75,27,76,29],[86,0,86,1],[86,27,86,29],[75,6,76,8],[76,0,76,1],[75,30,76,32],[75,33,76,35],[75,18,76,20],[75,4,76,5],[69,4,69,5],[75,15,76,17],[60,15,60,17],[60,18,60,20],[60,21,60,23],[60,24,60,26],[60,30,60,32],[60,33,60,35],[60,0,60,1],[54,0,54,1],[54,6,54,8],[54,30,54,32],[54,33,54,35],[54,9,54,11],[54,12,54,14],[54,15,54,17],[54,18,54,20],[51,33,51,35],[51,15,51,17],[53,2,53,38],[54,37,54,38],[36,15,36,17],[36,24,36,26],[36,37,36,38],[33,18,33,20],[33,30,33,32],[33,33,33,35],[33,24,33,26],[33,27,33,29],[38,2,38,38],[39,4,39,5],[39,40,41,40],[39,9,39,11],[39,12,39,14],[39,15,39,17],[45,40,47,40],[45,9,45,11],[45,12,45,14],[45,15,45,17],[45,24,45,26],[44,2,44,38],[41,2,41,38],[45,6,45,8],[45,4,45,5],[45,30,45,32],[45,27,45,29],[45,18,45,20],[45,21,45,23],[40,0,40,38],[45,0,45,1],[46,0,46,38],[39,27,39,29],[39,37,39,38],[47,2,47,38],[36,0,36,1],[42,40,44,40],[43,1,43,38],[42,9,42,11],[42,12,42,14],[42,15,42,17],[42,24,42,26],[42,27,42,29],[42,18,42,20],[42,21,42,23],[42,0,42,1],[42,30,42,32],[42,33,42,35],[36,18,36,20],[36,21,36,23],[39,30,39,32],[39,33,39,35],[42,4,42,5],[42,37,42,38],[39,6,39,8],[42,6,42,8],[36,33,36,35],[39,21,39,23],[39,0,39,1],[51,0,51,1],[52,0,52,38],[51,24,51,26],[48,0,48,1],[48,4,48,5],[48,6,48,8],[48,9,48,11],[48,12,48,14],[48,15,48,17],[48,18,48,20],[48,21,48,23],[48,24,48,26],[48,27,48,29],[48,30,48,32],[51,21,51,23],[51,12,51,14],[51,6,51,8],[51,4,51,5],[51,9,51,11],[48,33,48,35],[48,37,48,38],[0,41,1,44],[9,18,9,20],[9,21,9,23],[9,24,9,26],[9,27,9,29],[9,30,9,32],[4,0,4,38],[6,9,6,11],[6,12,6,14],[2,21,2,23],[2,24,2,26],[2,27,2,29],[2,30,2,32],[2,33,2,35],[2,36,3,38],[2,3,3,5],[2,9,2,11],[2,12,2,14],[9,40,11,40],[5,9,5,11],[5,0,6,1],[9,0,9,1],[5,41,8,41],[9,41,11,41],[30,0,30,1],[31,0,31,38],[9,37,9,38],[9,4,9,5],[22,0,22,38],[30,4,30,5],[30,27,30,29],[2,15,2,17],[2,18,2,20],[11,2,11,38],[21,18,21,20],[15,4,15,5],[15,37,15,38],[15,9,15,11],[24,33,24,35],[21,4,21,5],[21,37,21,38],[21,15,21,17],[24,24,24,26],[21,21,21,23],[5,36,5,38],[6,15,6,17],[6,18,6,20],[21,27,21,29],[24,30,24,32],[24,27,24,29],[18,0,18,1],[15,6,15,8],[3,6,3,8],[2,6,2,8],[9,6,9,8],[5,12,5,14],[6,21,6,23],[6,24,6,26],[6,27,6,29],[6,30,6,32],[21,6,21,8],[24,18,24,20],[24,21,24,23],[5,21,5,23],[5,2,6,2],[5,30,5,32],[18,30,18,32],[18,9,18,11],[18,12,18,14],[18,15,18,17],[15,15,15,17],[15,24,15,26],[83,40,85,40],[29,37,29,38],[24,9,24,11],[24,12,24,14],[24,15,24,17],[29,24,29,26],[63,18,63,20],[63,21,63,23],[63,37,63,38],[66,40,68,40],[45,37,45,38],[39,18,39,20],[39,24,39,26],[57,37,57,38],[55,1,55,38],[56,2,56,38],[33,40,35,40],[33,9,33,11],[33,12,33,14],[33,15,33,17],[36,4,36,5],[36,40,38,40],[36,9,36,11],[36,12,36,14],[59,2,59,38],[57,4,57,5],[57,0,57,1],[58,0,58,38],[60,37,60,38],[0,0,0,38],[1,0,1,38],[2,41,3,41],[2,42,3,42],[3,9,3,11],[3,12,3,14],[3,15,3,17],[3,18,3,20],[3,21,3,23],[3,24,3,26],[3,27,3,29],[3,30,3,32],[3,33,3,35],[15,30,15,32],[15,33,15,35],[21,0,21,1],[24,4,24,5],[21,33,21,35],[21,9,21,11],[2,43,3,43],[2,44,3,44],[30,6,30,8],[51,27,51,29],[51,18,51,20],[2,2,3,2],[6,6,6,8],[5,24,5,26],[2,0,3,1],[12,6,12,8],[29,21,29,23],[18,24,18,26],[25,0,25,38],[18,27,18,29],[24,6,24,8],[24,0,24,1],[29,33,29,35],[29,30,29,32],[33,6,33,8],[36,6,36,8],[21,12,21,14],[15,18,15,20],[15,0,15,1],[18,6,18,8],[110,44,112,44],[111,0,111,38],[112,2,112,38],[83,43,85,43],[78,41,82,41],[78,42,82,42],[78,43,82,43],[78,44,82,44],[2,40,3,40],[54,21,54,23],[54,24,54,26],[36,27,36,29],[37,0,37,38],[36,30,36,32],[33,21,33,23],[34,0,34,38],[33,0,33,1],[33,4,33,5],[33,37,33,38],[35,2,35,38],[79,0,79,1],[80,0,80,1],[75,0,75,1],[69,12,69,14],[110,27,110,29],[110,30,110,32],[110,33,110,35],[110,37,110,38],[110,39,112,39],[110,40,112,40],[110,41,112,41],[110,42,112,42],[110,43,112,43],[110,0,110,1],[110,4,110,5],[110,6,110,8],[110,9,110,11],[110,12,110,14],[110,15,110,17],[110,18,110,20],[110,21,110,23],[110,24,110,26],[107,0,107,1],[107,4,107,5],[107,6,107,8],[107,9,107,11],[107,12,107,14],[107,15,107,17],[107,18,107,20],[107,21,107,23],[107,24,107,26],[107,27,107,29],[107,30,107,32],[107,33,107,35],[107,37,107,38],[107,39,109,39],[107,40,109,40],[107,41,109,41],[107,42,109,42],[107,43,109,43],[107,44,109,44],[108,0,108,38],[109,2,109,38],[104,0,104,1],[104,4,104,5],[104,6,104,8],[104,9,104,11],[104,12,104,14],[104,15,104,17],[104,18,104,20],[104,21,104,23],[104,24,104,26],[104,27,104,29],[104,30,104,32],[104,33,104,35],[104,37,104,38],[104,39,106,39],[104,40,106,40],[104,41,106,41],[104,42,106,42],[104,43,106,43],[104,44,106,44],[105,0,105,38],[106,2,106,38],[101,0,101,1],[101,4,101,5],[101,6,101,8],[101,9,101,11],[101,12,101,14],[101,15,101,17],[101,18,101,20],[101,21,101,23],[101,24,101,26],[101,27,101,29],[101,30,101,32],[101,33,101,35],[101,37,101,38],[101,39,103,39],[101,40,103,40],[101,41,103,41],[101,42,103,42],[101,43,103,43],[101,44,103,44],[102,0,102,38],[103,2,103,38],[98,0,98,1],[98,4,98,5],[98,6,98,8],[98,9,98,11],[98,12,98,14],[98,15,98,17],[98,18,98,20],[98,21,98,23],[98,24,98,26],[98,27,98,29],[98,30,98,32],[98,33,98,35],[98,37,98,38],[98,39,100,39],[98,40,100,40],[98,41,100,41],[98,42,100,42],[98,43,100,43],[98,44,100,44],[99,0,99,38],[100,2,100,38],[2,45,3,45],[5,45,8,45],[9,45,11,45],[12,45,14,45],[15,45,17,45],[18,45,20,45],[21,45,23,45],[24,45,26,45],[29,45,32,45],[33,45,35,45],[36,45,38,45],[39,45,41,45],[42,45,44,45],[45,45,47,45],[48,45,50,45],[51,45,53,45],[54,45,56,45],[57,45,59,45],[60,45,62,45],[63,45,65,45],[66,45,68,45],[69,45,71,45],[72,45,74,45],[75,45,77,45],[78,45,82,45],[83,45,85,45],[86,45,88,45],[115,45,117,45],[118,45,120,45],[89,45,91,45],[92,45,94,45],[95,45,97,45],[98,45,100,45],[101,45,103,45],[104,45,106,45],[107,45,109,45],[110,45,112,45],[113,45,114,45]]}
["Wskaźniki rezultatu",null,null,null,null,null,null,null,null,null,null,null,null,null,null,null,null,null,null,null,null,null,null,null,null,null,null,null,null,null,null,null,null,null,null,null,null,null,null,null,null,"Uwagi/komentarze Ekspertów"]
["Wskaźniki należy wykazywać w wartości bazowej, w latach realizacji projektu i w latach trwałości oraz wartości docelowej!\nWskaźniki rezultatu, z wyjątkiem wskaźników: Wartość nakładów na działalność B+R, Wartość całkowitych nakładów inwestycyjnych, Udział nakładów na działalność B+R w całkowitych nakładach inwestycyjnych wyliczane są w sposób narastający!"]
["Nazwa wskaźnika",null,"Jednostka miary","Wartość bazowa",null,null,"n-4",null,null,"n-3",null,null,"n-2",null,null,"n-1",null,null,"w roku zakończenia projektu (n)",null,null,"rok po zakończeniu projektu (n+1)",null,null,"2 lata po zakończeniu projektu (n+2)",null,null,"3 lata po zakończeniu projektu (n+3)",null,null,"4 lata po zakończeniu projektu (n+4)",null,null,"5 lat po zakończeniu projektu (n+5)",null,null,"Wartość docelowa",null,null,null,"Uwagi dodatkowe",{"$f":"'I. Informacje ogólne o projekci'!$AH$2","v":"Ekspert od innowacyjności 1"},{"$f":"'I. Informacje ogólne o projekci'!$AI$2","v":"Ekspert od innowacyjności 2"},{"$f":"'I. Informacje ogólne o projekci'!$AJ$2","v":"Ekspert od innowacyjności 3"},{"$f":"'I. Informacje ogólne o projekci'!$AK$2","v":"Ekspert finansowy"},{"$f":"'I. Informacje ogólne o projekci'!$AL$2","v":"Uwagi MFiPR"}]
[null,null,null,null,null,null,{"$f":"IF($S$4-4<2019,\"Nie dotyczy\",$S$4-4)","v":"Nie dotyczy"},null,null,{"$f":"IF($S$4-3<2019,\"Nie dotyczy\",$S$4-3)","v":"Nie dotyczy"},null,null,{"$f":"IF($S$4-2<2019,\"Nie dotyczy\",$S$4-2)","v":"Nie dotyczy"},null,null,{"$f":"IF($S$4-1<2019,\"Nie dotyczy\",$S$4-1)","v":"Nie dotyczy"},null,null,{"$f":"'I. Informacje ogólne o projekci'!Z110","v":0},null,null,{"$f":"S4+1","v":1},null,null,{"$f":"S4+2","v":2},null,null,{"$f":"S4+3","v":3},null,null,{"$f":"IF('II. Identyfikacja Wnioskodawcy'!$P$27<>Słowniki!$K$19,\"Nie dotyczy\",S4+4)","v":"Nie dotyczy"},null,null,{"$f":"IF('II. Identyfikacja Wnioskodawcy'!$P$27<>Słowniki!$K$19,\"Nie dotyczy\",S4+5)","v":"Nie dotyczy"},null,null,null,null,null,null,null,{"$f":"'I. Informacje ogólne o projekci'!$AH$2","v":"Ekspert od innowacyjności 1"},{"$f":"'I. Informacje ogólne o projekci'!$AI$2","v":"Ekspert od innowacyjności 2"},{"$f":"'I. Informacje ogólne o projekci'!$AJ$2","v":"Ekspert od innowacyjności 3"},{"$f":"'I. Informacje ogólne o projekci'!$AK$2","v":"Ekspert finansowy"},{"$f":"'I. Informacje ogólne o projekci'!$AK$2","v":"Ekspert finansowy"}]
["Wskaźniki obligatoryjne dla każdego wnioskodawcy"]
["Wzrost zatrudnienia we wspieranych przedsiębiorstwach",null,"EPC","357.\n",null,null,null,null,null,null,null,null,null,null,null,null,null,null,null,null,null,null,null,null,null,null,null,null,null,null,null,null,null,null,null,null,"358."]
[null,null,null,{"$f":"E7+F7","v":0},null,null,{"$f":"IF(G$4=\"Nie dotyczy\",0,\" \")","v":0},null,null,{"$f":"IF(J$4=\"Nie dotyczy\",0,\" \")","v":0},null,null,{"$f":"IF(M$4=\"Nie dotyczy\",0,\" \")","v":0},null,null,{"$f":"IF(P$4=\"Nie dotyczy\",0,\" \")","v":0},null,null,{"$f":"IF(S$4=\"Nie dotyczy\",0,\" \")","v":" "},null,null,{"$f":"IF(V$4=\"Nie dotyczy\",0,\" \")","v":" "},null,null,{"$f":"IF(Y$4=\"Nie dotyczy\",0,\" \")","v":" "},null,null,{"$f":"IF(AB$4=\"Nie dotyczy\",0,\" \")","v":" "},null,null,{"$f":"IF(AE$4=\"Nie dotyczy\",0,\" \")","v":0},null,null,{"$f":"IF(AH$4=\"Nie dotyczy\",0,\" \")","v":0}]
["Uzasadnienie dla doboru wskaźnika rezultatu, (metodologia, sposób obliczenia oraz uzasadnienie i weryfikacja wartości docelowych dla wskaźnika rezultatu. Należy wskazać również nazwę dokumentu źródłowego dostępnego u przedsiębiorcy na podstawie, którego wnioskodawca przedstawił wartość bazową wskaźnika)"]
["359.","Uzasadnienie:"]
["Liczba naukowców pracujacych w ulepszonych obiektach infrastruktury badawczej.",null,"EPC","360.",0,null,{"$f":"IF(G$4=\"Nie dotyczy\",0,\" \")","v":0},null,null,{"$f":"IF(J$4=\"Nie dotyczy\",0,\" \")","v":0},null,null,{"$f":"IF(M$4=\"Nie dotyczy\",0,\" \")","v":0},null,null,0,null,null," ",null,null,{"$f":"IF(V$4=\"Nie dotyczy\",0,\" \")","v":" "},null,null,{"$f":"IF(Y$4=\"Nie dotyczy\",0,\" \")","v":" "},null,null,{"$f":"IF(AB$4=\"Nie dotyczy\",0,\" \")","v":" "},null,null,{"$f":"IF(AE$4=\"Nie dotyczy\",0,\" \")","v":0},null,null,{"$f":"IF(AH$4=\"Nie dotyczy\",0,\" \")","v":0},null,null,"361."]
["Uzasadnienie dla doboru wskaźnika rezultatu, (metodologia, sposób obliczenia oraz uzasadnienie i weryfikacja wartości docelowych dla wskaźnika rezultatu. Należy wskazać również nazwę dokumentu źródłowego dostępnego u przedsiębiorcy na podstawie, którego wnioskodawca przedstawił wartość bazową wskaźnika)"]
["362.",{"$f":"$B$9","v":"Uzasadnienie:"}]
["Liczba przedsiębiorstw korzystających ze wspartej infrastruktury badawczej.",null,"szt.","363.",0,null,{"$f":"IF(G$4=\"Nie dotyczy\",0,\" \")","v":0},null,null,{"$f":"IF(J$4=\"Nie dotyczy\",0,\" \")","v":0},null,null,{"$f":"IF(M$4=\"Nie dotyczy\",0,\" \")","v":0},null,null,{"$f":"IF(P$4=\"Nie dotyczy\",0,\" \")","v":0},null,null,{"$f":"IF(S$4=\"Nie dotyczy\",0,\" \")","v":" "},null,null,{"$f":"IF(V$4=\"Nie dotyczy\",0,\" \")","v":" "},null,null,{"$f":"IF(Y$4=\"Nie dotyczy\",0,\" \")","v":" "},null,null,{"$f":"IF(AB$4=\"Nie dotyczy\",0,\" \")","v":" "},null,null,{"$f":"IF(AE$4=\"Nie dotyczy\",0,\" \")","v":0},null,null,{"$f":"IF(AH$4=\"Nie dotyczy\",0,\" \")","v":0},null,null,"364."]
["Uzasadnienie dla doboru wskaźnika rezultatu, (metodologia, sposób obliczenia oraz uzasadnienie i weryfikacja wartości docelowych dla wskaźnika rezultatu. Należy wskazać również nazwę dokumentu źródłowego dostępnego u przedsiębiorcy na podstawie, którego wnioskodawca przedstawił wartość bazową wskaźnika)"]
["365.",{"$f":"$B$9","v":"Uzasadnienie:"}]
["Liczba projektów B+R realizowanych przy wykorzystaniu wspartej infrastruktury badawczej.",null,"szt.","366.",0,null,{"$f":"IF(G$4=\"Nie dotyczy\",0,\" \")","v":0},null,null,{"$f":"IF(J$4=\"Nie dotyczy\",0,\" \")","v":0},null,null,{"$f":"IF(M$4=\"Nie dotyczy\",0,\" \")","v":0},null,null,{"$f":"IF(P$4=\"Nie dotyczy\",0,\" \")","v":0},null,null,{"$f":"IF(S$4=\"Nie dotyczy\",0,\" \")","v":" "},null,null,{"$f":"IF(V$4=\"Nie dotyczy\",0,\" \")","v":" "},null,null,{"$f":"IF(Y$4=\"Nie dotyczy\",0,\" \")","v":" "},null,null,{"$f":"IF(AB$4=\"Nie dotyczy\",0,\" \")","v":" "},null,null,{"$f":"IF(AE$4=\"Nie dotyczy\",0,\" \")","v":0},null,null,{"$f":"IF(AH$4=\"Nie dotyczy\",0,\" \")","v":0},null,null,"367."]
["Uzasadnienie dla doboru wskaźnika rezultatu, (metodologia, sposób obliczenia oraz uzasadnienie i weryfikacja wartości docelowych dla wskaźnika rezultatu. Należy wskazać również nazwę dokumentu źródłowego dostępnego u przedsiębiorcy na podstawie, którego wnioskodawca przedstawił wartość bazową wskaźnika)"]
["368.",{"$f":"$B$9","v":"Uzasadnienie:"}]
["Wartość nakładów na działalność B+R. (wskaźnik nie jest prezentowany narastająco)",null,"PLN","369.",null,null,{"$f":"IF(G$4=\"nie dotyczy\",0,\" \")","v":0},null,null,{"$f":"IF(J$4=\"nie dotyczy\",0,\" \")","v":0},null,null,{"$f":"IF(M$4=\"nie dotyczy\",0,\" \")","v":0},null,null,{"$f":"IF(P$4=\"nie dotyczy\",0,\" \")","v":0},null,null,{"$f":"IF(S$4=\"nie dotyczy\",0,\" \")","v":" "},null,null,{"$f":"IF(V$4=\"nie dotyczy\",0,\" \")","v":" "},null,null,{"$f":"IF(Y$4=\"nie dotyczy\",0,\" \")","v":" "},null,null,{"$f":"IF(AB$4=\"nie dotyczy\",0,\" \")","v":" "},null,null,{"$f":"IF(AE$4=\"nie dotyczy\",0,\" \")","v":0},null,null,{"$f":"IF(AH$4=\"nie dotyczy\",0,\" \")","v":0},null,null,"370.",{"$f":"E19+IF(G19<>\" \",G19,0)+IF(J19<>\" \",J19,0)+IF(M19<>\" \",M19,0)+IF(P19<>\" \",P19,0)+IF(S19<>\" \",S19,0)+IF(V19<>\" \",V19,0)+IF(Y19<>\" \",Y19,0)+IF(AB19<>\" \",AB19,0)+IF(AE19<>\" \",AE19,0)+IF(AH19<>\" \",AH19,0)","v":0},null,"Powrót do cz. IV Zdolność do realizacji"]
["Uzasadnienie dla doboru wskaźnika rezultatu, (metodologia, sposób obliczenia oraz uzasadnienie i weryfikacja wartości docelowych dla wskaźnika rezultatu. Należy wskazać również nazwę dokumentu źródłowego dostępnego u przedsiębiorcy na podstawie, którego wnioskodawca przedstawił wartość bazową wskaźnika)"]
["371.",{"$f":"$B$9","v":"Uzasadnienie:"}]
["Wartość całkowitych nakładów inwestycyjnych. (wskaźnik nie jest prezentowany narastająco)",null,"PLN","372.",null,null,{"$f":"IF(G$4=\"nie dotyczy\",0,\" \")","v":0},null,null,{"$f":"IF(J$4=\"nie dotyczy\",0,\" \")","v":0},null,null,{"$f":"IF(M$4=\"nie dotyczy\",0,\" \")","v":0},null,null,{"$f":"IF(P$4=\"nie dotyczy\",0,\" \")","v":0},null,null,{"$f":"IF(S$4=\"nie dotyczy\",0,\" \")","v":" "},null,null,{"$f":"IF(V$4=\"nie dotyczy\",0,\" \")","v":" "},null,null,{"$f":"IF(Y$4=\"nie dotyczy\",0,\" \")","v":" "},null,null,{"$f":"IF(AB$4=\"nie dotyczy\",0,\" \")","v":" "},null,null,{"$f":"IF(AE$4=\"nie dotyczy\",0,\" \")","v":0},null,null,{"$f":"IF(AH$4=\"nie dotyczy\",0,\" \")","v":0},null,null,"373.",{"$f":"E22+IF(G22<>\" \",G22,0)+IF(J22<>\" \",J22,0)+IF(M22<>\" \",M22,0)+IF(P22<>\" \",P22,0)+IF(S22<>\" \",S22,0)+IF(V22<>\" \",V22,0)+IF(Y22<>\" \",Y22,0)+IF(AB22<>\" \",AB22,0)+IF(AE22<>\" \",AE22,0)+IF(AH22<>\" \",AH22,0)","v":0},null,"Powrót do cz. IV Zdolność do realizacji"]
["Uzasadnienie dla doboru wskaźnika rezultatu, (metodologia, sposób obliczenia oraz uzasadnienie i weryfikacja wartości docelowych dla wskaźnika rezultatu. Należy wskazać również nazwę dokumentu źródłowego dostępnego u przedsiębiorcy na podstawie, którego wnioskodawca przedstawił wartość bazową wskaźnika)"]
["374.",{"$f":"$B$9","v":"Uzasadnienie:"}]
["Udział nakładów na działalność B+R w całkowitych nakładach inwestycyjnych. (wskaźnik nie jest prezentowany narastająco)",null,"%","375.",{"$f":"IF(E22>0,E19/E22,0)","v":0},null,{"$f":"IF(G22<>\" \",IF(G19<>\" \",IF(G22>0,G19/G22,0),0),0)","v":0},null,null,{"$f":"IF(J22<>\" \",IF(J19<>\" \",IF(J22>0,J19/J22,0),0),0)","v":0},null,null,{"$f":"IF(M22<>\" \",IF(M19<>\" \",IF(M22>0,M19/M22,0),0),0)","v":0},null,null,{"$f":"IF(P22<>\" \",IF(P19<>\" \",IF(P22>0,P19/P22,0),0),0)","v":0},null,null,{"$f":"IF(S22<>\" \",IF(S19<>\" \",IF(S22>0,S19/S22,0),0),0)","v":0},null,null,{"$f":"IF(V22<>\" \",IF(V19<>\" \",IF(V22>0,V19/V22,0),0),0)","v":0},null,null,{"$f":"IF(Y22<>\" \",IF(Y19<>\" \",IF(Y22>0,Y19/Y22,0),0),0)","v":0},null,null,{"$f":"IF(AB22<>\" \",IF(AB19<>\" \",IF(AB22>0,AB19/AB22,0),0),0)","v":0},null,null,{"$f":"IF(AE22<>\" \",IF(AE19<>\" \",IF(AE22>0,AE19/AE22,0),0),0)","v":0},null,null,{"$f":"IF(AH22<>\" \",IF(AH19<>\" \",IF(AH22>0,AH19/AH22,0),0),0)","v":0},null,null,"376.",{"$f":"IF(AL22>0,AL19/AL22,0)","v":0},null,"Powrót do cz. IV Zdolność do realizacji"]
["Uzasadnienie dla doboru wskaźnika rezultatu, (metodologia, sposób obliczenia oraz uzasadnienie i weryfikacja wartości docelowych dla wskaźnika rezultatu. Należy wskazać również nazwę dokumentu źródłowego dostępnego u przedsiębiorcy na podstawie, którego wnioskodawca przedstawił wartość bazową wskaźnika)"]
["377.",{"$f":"$B$9","v":"Uzasadnienie:"}]
[]
["Inne wskaźniki rezultatu"]
["Liczba nowych miejsc pracy dla pracowników B+R:",null,"osoby","378.",{"$f":"'IV. Zdolność do realizacji'!$AA$546","v":0},null,{"$f":"IF(G$4=\"Nie dotyczy\",0,\" \")","v":0},null,null,{"$f":"IF(J$4=\"Nie dotyczy\",0,\" \")","v":0},null,null,{"$f":"IF(M$4=\"Nie dotyczy\",0,\" \")","v":0},null,null,{"$f":"IF(P$4=\"Nie dotyczy\",0,\" \")","v":0},null,null,{"$f":"IF(S$4=\"Nie dotyczy\",0,\" \")","v":" "},null,null,{"$f":"IF(V$4=\"Nie dotyczy\",0,\" \")","v":" "},null,null,{"$f":"IF(Y$4=\"Nie dotyczy\",0,\" \")","v":" "},null,null,{"$f":"IF(AB$4=\"Nie dotyczy\",0,\" \")","v":" "},null,null,{"$f":"IF(AE$4=\"Nie dotyczy\",0,\" \")","v":0},null,null,{"$f":"IF(AH$4=\"Nie dotyczy\",0,\" \")","v":0},null,null,"379.",{"$f":"'IV. Zdolność do realizacji'!$Z$526+$E$30","v":0},null,"Powrót do cz. IV Zdolność do realizacji","Wskaźnik obligatoryjny dla Wnioskodawców deklarujących utworzenie nowych miejsc pracy dla pracowników B+R. W sytuacji gdy Wnioskodawca nie planuje utworzyć nowych miejsc pracy dla pracowników B+R należy wpisać w poszczególne lata oraz w kolumnie „wartość docelowa” wartości zerowe"]
["w tym z wyższym wykształceniem",null,"osoby","380.",null,null,{"$f":"IF(G$4=\"Nie dotyczy\",0,\" \")","v":0},null,null,{"$f":"IF(J$4=\"Nie dotyczy\",0,\" \")","v":0},null,null,{"$f":"IF(M$4=\"Nie dotyczy\",0,\" \")","v":0},null,null,{"$f":"IF(P$4=\"Nie dotyczy\",0,\" \")","v":0},null,null,{"$f":"IF(S$4=\"Nie dotyczy\",0,\" \")","v":" "},null,null,{"$f":"IF(V$4=\"Nie dotyczy\",0,\" \")","v":" "},null,null,{"$f":"IF(Y$4=\"Nie dotyczy\",0,\" \")","v":" "},null,null,{"$f":"IF(AB$4=\"Nie dotyczy\",0,\" \")","v":" "},null,null,{"$f":"IF(AE$4=\"Nie dotyczy\",0,\" \")","v":0},null,null,{"$f":"IF(AH$4=\"Nie dotyczy\",0,\" \")","v":0},null,null,"381.",{"$f":"'IV. Zdolność do realizacji'!$Z$527+$E$31","v":0}]
["Uzasadnienie dla doboru wskaźnika rezultatu, (metodologia, sposób obliczenia oraz uzasadnienie i weryfikacja wartości docelowych dla wskaźnika rezultatu. Należy wskazać również nazwę dokumentu źródłowego dostępnego u przedsiębiorcy na podstawie, którego wnioskodawca przedstawił wartość bazową wskaźnika)"]
["382.",{"$f":"$B$9","v":"Uzasadnienie:"}]
["Liczba jednostek naukowych z którymi Wnioskodawca nawiąże współpracę w ramach projektu",null,"Szt.","383.",null,null,{"$f":"IF(G$4=\"Nie dotyczy\",0,\" \")","v":0},null,null,{"$f":"IF(J$4=\"Nie dotyczy\",0,\" \")","v":0},null,null,{"$f":"IF(M$4=\"Nie dotyczy\",0,\" \")","v":0},null,null,{"$f":"IF(P$4=\"Nie dotyczy\",0,\" \")","v":0},null,null,{"$f":"IF(S$4=\"Nie dotyczy\",0,\" \")","v":" "},null,null,{"$f":"IF(V$4=\"Nie dotyczy\",0,\" \")","v":" "},null,null,{"$f":"IF(Y$4=\"Nie dotyczy\",0,\" \")","v":" "},null,null,{"$f":"IF(AB$4=\"Nie dotyczy\",0,\" \")","v":" "},null,null,{"$f":"IF(AE$4=\"Nie dotyczy\",0,\" \")","v":0},null,null,{"$f":"IF(AH$4=\"Nie dotyczy\",0,\" \")","v":0},null,null,"384.",null,null,"Powrót do cz. IV Zdolność do realizacji","Wskaźnik obligatoryjny w przypadku deklaracji nawiązania współpracy z jednostką naukową. W sytuacji gdy nie zostanie nawiązania współpraca z jednostką naukową należy wpisać \nw poszczególne lata oraz w kolumnie „wartość docelowa” wartości zerowe.\n"]
["Uzasadnienie dla doboru wskaźnika rezultatu, (metodologia, sposób obliczenia oraz uzasadnienie i weryfikacja wartości docelowych dla wskaźnika rezultatu. Należy wskazać również nazwę dokumentu źródłowego dostępnego u przedsiębiorcy na podstawie, którego wnioskodawca przedstawił wartość bazową wskaźnika)"]
["385.",{"$f":"$B$9","v":"Uzasadnienie:"}]
["Liczba form współpracy z jednostkami naukowymi (w ramach nawiązania nowej współpracy)",null,"Szt.","386.",null,null,{"$f":"IF(G$4=\"Nie dotyczy\",0,\" \")","v":0},null,null,{"$f":"IF(J$4=\"Nie dotyczy\",0,\" \")","v":0},null,null,{"$f":"IF(M$4=\"Nie dotyczy\",0,\" \")","v":0},null,null,{"$f":"IF(P$4=\"Nie dotyczy\",0,\" \")","v":0},null,null,{"$f":"IF(S$4=\"Nie dotyczy\",0,\" \")","v":" "},null,null,{"$f":"IF(V$4=\"Nie dotyczy\",0,\" \")","v":" "},null,null,{"$f":"IF(Y$4=\"Nie dotyczy\",0,\" \")","v":" "},null,null,{"$f":"IF(AB$4=\"Nie dotyczy\",0,\" \")","v":" "},null,null,{"$f":"IF(AE$4=\"Nie dotyczy\",0,\" \")","v":0},null,null,{"$f":"IF(AH$4=\"Nie dotyczy\",0,\" \")","v":0},null,null,"387.",null,null,null,"  Wskaźnik obligatoryjny w przypadku deklaracji nawiązania współpracy z jednostką naukową. W sytuacji gdy nie zostanie nawiązana współpraca z jednostką naukową należy wpisać \nw poszczególne lata oraz w kolumnie „wartość docelowa” wartości zerowe.\n"]
["Uzasadnienie dla doboru wskaźnika rezultatu, (metodologia, sposób obliczenia oraz uzasadnienie i weryfikacja wartości docelowych dla wskaźnika rezultatu. Należy wskazać również nazwę dokumentu źródłowego dostępnego u przedsiębiorcy na podstawie, którego wnioskodawca przedstawił wartość bazową wskaźnika)"]
["388.",{"$f":"$B$9","v":"Uzasadnienie:"}]
["Liczba jednostek naukowych z którymi Wnioskodawca rozwinie współpracę w ramach projektu",null,"Szt.","389.",null,null,{"$f":"IF(G$4=\"Nie dotyczy\",0,\" \")","v":0},null,null,{"$f":"IF(J$4=\"Nie dotyczy\",0,\" \")","v":0},null,null,{"$f":"IF(M$4=\"Nie dotyczy\",0,\" \")","v":0},null,null,{"$f":"IF(P$4=\"Nie dotyczy\",0,\" \")","v":0},null,null,{"$f":"IF(S$4=\"Nie dotyczy\",0,\" \")","v":" "},null,null,{"$f":"IF(V$4=\"Nie dotyczy\",0,\" \")","v":" "},null,null,{"$f":"IF(Y$4=\"Nie dotyczy\",0,\" \")","v":" "},null,null,{"$f":"IF(AB$4=\"Nie dotyczy\",0,\" \")","v":" "},null,null,{"$f":"IF(AE$4=\"Nie dotyczy\",0,\" \")","v":0},null,null,{"$f":"IF(AH$4=\"Nie dotyczy\",0,\" \")","v":0},null,null,"390.",null,null,"Powrót do cz. IV Zdolność do realizacji","Wskaźnik obligatoryjny w przypadku deklaracji rozwinięcia współpracy z jednostką naukową. W sytuacji gdy nie zostanie rozwijana współpraca z jednostką naukową należy wpisać \nw poszczególne lata oraz w kolumnie „wartość docelowa” wartości zerowe.\n"]
["Uzasadnienie dla doboru wskaźnika rezultatu, (metodologia, sposób obliczenia oraz uzasadnienie i weryfikacja wartości docelowych dla wskaźnika rezultatu. Należy wskazać również nazwę dokumentu źródłowego dostępnego u przedsiębiorcy na podstawie, którego wnioskodawca przedstawił wartość bazową wskaźnika)"]
["391.",{"$f":"$B$9","v":"Uzasadnienie:"}]
["Liczba form współpracy z jednostkami naukowymi (w ramach rozwoju dotychczasowej współpracy)",null,"Szt.","392.",null,null,{"$f":"IF(G$4=\"Nie dotyczy\",0,\" \")","v":0},null,null,{"$f":"IF(J$4=\"Nie dotyczy\",0,\" \")","v":0},null,null,{"$f":"IF(M$4=\"Nie dotyczy\",0,\" \")","v":0},null,null,{"$f":"IF(P$4=\"Nie dotyczy\",0,\" \")","v":0},null,null,{"$f":"IF(S$4=\"Nie dotyczy\",0,\" \")","v":" "},null,null,{"$f":"IF(V$4=\"Nie dotyczy\",0,\" \")","v":" "},null,null,{"$f":"IF(Y$4=\"Nie dotyczy\",0,\" \")","v":" "},null,null,{"$f":"IF(AB$4=\"Nie dotyczy\",0,\" \")","v":" "},null,null,{"$f":"IF(AE$4=\"Nie dotyczy\",0,\" \")","v":0},null,null,{"$f":"IF(AH$4=\"Nie dotyczy\",0,\" \")","v":0},null,null,"393.",null,null,null,"Wskaźnik obligatoryjny dla Wnioskodawców deklarujących rozwijanie współpracy z jednostką naukową. W sytuacji gdy nie zostanie rozwijana współpraca z jednostką naukową należy wpisać w poszczególne lata oraz w kolumnie „wartość docelowa” wartości zerowe."]
[null,"Uzasadnienie dla doboru wskaźnika rezultatu, (metodologia, sposób obliczenia oraz uzasadnienie i weryfikacja wartości docelowych dla wskaźnika rezultatu. Należy wskazać również nazwę dokumentu źródłowego dostępnego u przedsiębiorcy na podstawie, którego wnioskodawca przedstawił wartość bazową wskaźnika)"]
["394.",{"$f":"$B$9","v":"Uzasadnienie:"}]
["Liczba podmiotów z sektora MSP z którymi Wnioskodawca nawiąże/rozwinie współpracę w ramach projektu",null,"Szt.","395.",null,null,{"$f":"IF(G$4=\"Nie dotyczy\",0,\" \")","v":0},null,null,{"$f":"IF(J$4=\"Nie dotyczy\",0,\" \")","v":0},null,null,{"$f":"IF(M$4=\"Nie dotyczy\",0,\" \")","v":0},null,null,{"$f":"IF(P$4=\"Nie dotyczy\",0,\" \")","v":0},null,null,{"$f":"IF(S$4=\"Nie dotyczy\",0,\" \")","v":" "},null,null,{"$f":"IF(V$4=\"Nie dotyczy\",0,\" \")","v":" "},null,null,{"$f":"IF(Y$4=\"Nie dotyczy\",0,\" \")","v":" "},null,null,{"$f":"IF(AB$4=\"Nie dotyczy\",0,\" \")","v":" "},null,null,{"$f":"IF(AE$4=\"Nie dotyczy\",0,\" \")","v":0},null,null,{"$f":"IF(AH$4=\"Nie dotyczy\",0,\" \")","v":0},null,null,"396.",null,null,"Powrót do cz. IV Zdolność do realizacji (nawiązanie współpracy)","Wskaźnik obligatoryjny dla Wnioskodawców w sytuacji deklaracji nawiązania/rozwijania współpracy z podmiotami z sektora MSP. W przypadku gdy nie zostanie podjęta współpraca z podmiotami z sektora MSP w ramach projektu należy wpisać w poszczególne lata oraz w kolumnie „wartość docelowa” wartości zerowe.\n"]
["Uzasadnienie dla doboru wskaźnika rezultatu, (metodologia, sposób obliczenia oraz uzasadnienie i weryfikacja wartości docelowych dla wskaźnika rezultatu. Należy wskazać również nazwę dokumentu źródłowego dostępnego u przedsiębiorcy na podstawie, którego wnioskodawca przedstawił wartość bazową wskaźnika)"]
["397.",{"$f":"$B$9","v":"Uzasadnienie:"}]
["Liczba form współpracy z podmiotami sektora MSP w ramach nawiązania/rozwoju współpracy",null,"Szt.","398.",null,null,{"$f":"IF(G$4=\"Nie dotyczy\",0,\" \")","v":0},null,null,{"$f":"IF(J$4=\"Nie dotyczy\",0,\" \")","v":0},null,null,{"$f":"IF(M$4=\"Nie dotyczy\",0,\" \")","v":0},null,null,{"$f":"IF(P$4=\"Nie dotyczy\",0,\" \")","v":0},null,null,{"$f":"IF(S$4=\"Nie dotyczy\",0,\" \")","v":" "},null,null,{"$f":"IF(V$4=\"Nie dotyczy\",0,\" \")","v":" "},null,null,{"$f":"IF(Y$4=\"Nie dotyczy\",0,\" \")","v":" "},null,null,{"$f":"IF(AB$4=\"Nie dotyczy\",0,\" \")","v":" "},null,null,{"$f":"IF(AE$4=\"Nie dotyczy\",0,\" \")","v":0},null,null,{"$f":"IF(AH$4=\"Nie dotyczy\",0,\" \")","v":0},null,null,"399.",null,null,"Powrót do cz. IV Zdolność do realizacji (rozwój współpracy)","Wskaźnik obligatoryjny dla Wnioskodawców deklarujących nawiązanie/rozwijanie współpracy z podmiotami sektora MSP. W sytuacji gdy nie zostanie nawiązana/rozwijana współpraca z podmiotem sektora MSP należy wpisać w poszczególne lata oraz w kolumnie „wartość docelowa” wartości zerowe."]
[null,"Uzasadnienie dla doboru wskaźnika rezultatu, (metodologia, sposób obliczenia oraz uzasadnienie i weryfikacja wartości docelowych dla wskaźnika rezultatu. Należy wskazać również nazwę dokumentu źródłowego dostępnego u przedsiębiorcy na podstawie, którego wnioskodawca przedstawił wartość bazową wskaźnika)"]
["400.",{"$f":"$B$9","v":"Uzasadnienie:"}]
["Liczba organizacji pozarządowych (NGO) z którymi Wnioskodawca nawiąże/rozwinie współpracę w ramach projektu",null,"Szt.","401.",null,null,{"$f":"IF(G$4=\"Nie dotyczy\",0,\" \")","v":0},null,null,{"$f":"IF(J$4=\"Nie dotyczy\",0,\" \")","v":0},null,null,{"$f":"IF(M$4=\"Nie dotyczy\",0,\" \")","v":0},null,null,{"$f":"IF(P$4=\"Nie dotyczy\",0,\" \")","v":0},null,null,{"$f":"IF(S$4=\"Nie dotyczy\",0,\" \")","v":" "},null,null,{"$f":"IF(V$4=\"Nie dotyczy\",0,\" \")","v":" "},null,null,{"$f":"IF(Y$4=\"Nie dotyczy\",0,\" \")","v":" "},null,null,{"$f":"IF(AB$4=\"Nie dotyczy\",0,\" \")","v":" "},null,null,{"$f":"IF(AE$4=\"Nie dotyczy\",0,\" \")","v":0},null,null,{"$f":"IF(AH$4=\"Nie dotyczy\",0,\" \")","v":0},null,null,"402.",null,null,"Powrót do cz. IV Zdolność do realizacji (nawiązanie współpracy)","Wskaźnik obligatoryjny dla Wnioskodawców w sytuacji deklaracji nawiązania/rozwijania współpracy z organizacjami pozarządowymi (NGO). W przypadku braku deklaracji nawiązania/rozwijania współpracy z NGO należy wpisać w poszczególne lata oraz w kolumnie „wartość docelowa” wartości zerowe."]
["Uzasadnienie dla doboru wskaźnika rezultatu, (metodologia, sposób obliczenia oraz uzasadnienie i weryfikacja wartości docelowych dla wskaźnika rezultatu. Należy wskazać również nazwę dokumentu źródłowego dostępnego u przedsiębiorcy na podstawie, którego wnioskodawca przedstawił wartość bazową wskaźnika)"]
["403.",{"$f":"$B$9","v":"Uzasadnienie:"}]
["Liczba form współpracy z organizacjami pozarządowymi (NGO) w ramach nawiązania/rozwoju współpracy",null,"Szt.","404.",null,null,{"$f":"IF(G$4=\"Nie dotyczy\",0,\" \")","v":0},null,null,{"$f":"IF(J$4=\"Nie dotyczy\",0,\" \")","v":0},null,null,{"$f":"IF(M$4=\"Nie dotyczy\",0,\" \")","v":0},null,null,{"$f":"IF(P$4=\"Nie dotyczy\",0,\" \")","v":0},null,null,{"$f":"IF(S$4=\"Nie dotyczy\",0,\" \")","v":" "},null,null,{"$f":"IF(V$4=\"Nie dotyczy\",0,\" \")","v":" "},null,null,{"$f":"IF(Y$4=\"Nie dotyczy\",0,\" \")","v":" "},null,null,{"$f":"IF(AB$4=\"Nie dotyczy\",0,\" \")","v":" "},null,null,{"$f":"IF(AE$4=\"Nie dotyczy\",0,\" \")","v":0},null,null,{"$f":"IF(AH$4=\"Nie dotyczy\",0,\" \")","v":0},null,null,"405.",null,null,"Powrót do cz. IV Zdolność do realizacji (rozwój współpracy)","Wskaźnik obligatoryjny dla Wnioskodawców deklarujących nawiązanie/rozwijanie współpracy z organizacją pozarządową (NGO). W sytuacji gdy nie zostanie nawiązana/rozwijana współpraca z organizacja pozarządową (NGO) należy wpisać w poszczególne lata oraz w kolumnie „wartość docelowa” wartości zerowe."]
[null,"Uzasadnienie dla doboru wskaźnika rezultatu, (metodologia, sposób obliczenia oraz uzasadnienie i weryfikacja wartości docelowych dla wskaźnika rezultatu. Należy wskazać również nazwę dokumentu źródłowego dostępnego u przedsiębiorcy na podstawie, którego wnioskodawca przedstawił wartość bazową wskaźnika)"]
["406.",{"$f":"$B$9","v":"Uzasadnienie:"}]
[{"$f":"CONCATENATE('VII. Zgodność projektu'!$P$54,\" (Wskaźnik obrazujący pozytywny wpływ projektu na środowisko i klimat poprzez sposób realizacji projektu.)\")","v":"Nie dotyczy (Wskaźnik obrazujący pozytywny wpływ projektu na środowisko i klimat poprzez sposób realizacji projektu.)"},null,{"$f":"IF('VII. Zgodność projektu'!$P$54=\"nie dotyczy\",\"Nie dotyczy\",\"Uzupełnij jednostkę miary\")","v":"Nie dotyczy"},"407.",{"$f":"IF('VII. Zgodność projektu'!$P$54=\"Nie dotyczy\",0,\" \")","v":0},null,{"$f":"IF('VII. Zgodność projektu'!$P$54=\"Nie dotyczy\",0,IF(G$4=\"nie dotyczy\",0,\" \"))","v":0},null,null,{"$f":"IF('VII. Zgodność projektu'!$P$54=\"Nie dotyczy\",0,IF(J$4=\"nie dotyczy\",0,\" \"))","v":0},null,null,{"$f":"IF('VII. Zgodność projektu'!$P$54=\"Nie dotyczy\",0,IF(M$4=\"nie dotyczy\",0,\" \"))","v":0},null,null,{"$f":"IF('VII. Zgodność projektu'!$P$54=\"Nie dotyczy\",0,IF(P$4=\"nie dotyczy\",0,\" \"))","v":0},null,null,{"$f":"IF('VII. Zgodność projektu'!$P$54=\"Nie dotyczy\",0,IF(S$4=\"nie dotyczy\",0,\" \"))","v":0},null,null,{"$f":"IF('VII. Zgodność projektu'!$P$54=\"Nie dotyczy\",0,IF(V$4=\"nie dotyczy\",0,\" \"))","v":0},null,null,{"$f":"IF('VII. Zgodność projektu'!$P$54=\"Nie dotyczy\",0,IF(Y$4=\"nie dotyczy\",0,\" \"))","v":0},null,null,{"$f":"IF('VII. Zgodność projektu'!$P$54=\"Nie dotyczy\",0,IF(AB$4=\"nie dotyczy\",0,\" \"))","v":0},null,null,{"$f":"IF('VII. Zgodność projektu'!$P$54=\"Nie dotyczy\",0,IF(AE$4=\"nie dotyczy\",0,\" \"))","v":0},null,null,{"$f":"IF('VII. Zgodność projektu'!$P$54=\"Nie dotyczy\",0,IF(AH$4=\"nie dotyczy\",0,\" \"))","v":0},null,null,"408.",{"$f":"IF('VII. Zgodność projektu'!$P$54=\"Nie dotyczy\",0,\" \")","v":0},null,"Powrót do cz. VII Zgodność projektu","Wskaźnik obligatoryjny w przypadku deklaracji pozytywnego wpływu projektu na realizację zasady zrównoważonego rozwoju odpowiednio poprzez sposób realizacji projektu. Wnioskodawca wpisuje wskaźnik, który jest najbardziej odpowiedni z punktu widzenia wpływu projektu na środowisko i klimat. Należy wypełnić albo wpisać w poszczególne lata oraz \nw kolumnie „wartość docelowa” wartości zerowe.\n"]
["Uzasadnienie dla doboru wskaźnika rezultatu, (metodologia, sposób obliczenia oraz uzasadnienie i weryfikacja wartości docelowych dla wskaźnika rezultatu. Należy wskazać również nazwę dokumentu źródłowego dostępnego u przedsiębiorcy na podstawie, którego wnioskodawca przedstawił wartość bazową wskaźnika)"]
["409.",{"$f":"$B$9","v":"Uzasadnienie:"},{"$f":"IF('VII. Zgodność projektu'!$P$54=\"nie dotyczy\",\"Nie dotyczy\",\" \")","v":"Nie dotyczy"}]
[{"$f":"CONCATENATE('VII. Zgodność projektu'!$P$55,\" (Wskaźnik obrazujący pozytywny wpływ projektu na środowisko i klimat poprzez sposób realizacji projektu.)\")","v":"Nie dotyczy (Wskaźnik obrazujący pozytywny wpływ projektu na środowisko i klimat poprzez sposób realizacji projektu.)"},null,{"$f":"IF('VII. Zgodność projektu'!$P$55=\"nie dotyczy\",\"Nie dotyczy\",\"Uzupełnij jednostkę miary\")","v":"Nie dotyczy"},"410.",{"$f":"IF('VII. Zgodność projektu'!$P$55=\"Nie dotyczy\",0,\" \")","v":0},null,{"$f":"IF('VII. Zgodność projektu'!$P$55=\"Nie dotyczy\",0,IF(G$4=\"nie dotyczy\",0,\" \"))","v":0},null,null,{"$f":"IF('VII. Zgodność projektu'!$P$55=\"Nie dotyczy\",0,IF(J$4=\"nie dotyczy\",0,\" \"))","v":0},null,null,{"$f":"IF('VII. Zgodność projektu'!$P$55=\"Nie dotyczy\",0,IF(M$4=\"nie dotyczy\",0,\" \"))","v":0},null,null,{"$f":"IF('VII. Zgodność projektu'!$P$55=\"Nie dotyczy\",0,IF(P$4=\"nie dotyczy\",0,\" \"))","v":0},null,null,{"$f":"IF('VII. Zgodność projektu'!$P$55=\"Nie dotyczy\",0,IF(S$4=\"nie dotyczy\",0,\" \"))","v":0},null,null,{"$f":"IF('VII. Zgodność projektu'!$P$55=\"Nie dotyczy\",0,IF(V$4=\"nie dotyczy\",0,\" \"))","v":0},null,null,{"$f":"IF('VII. Zgodność projektu'!$P$55=\"Nie dotyczy\",0,IF(Y$4=\"nie dotyczy\",0,\" \"))","v":0},null,null,{"$f":"IF('VII. Zgodność projektu'!$P$55=\"Nie dotyczy\",0,IF(AB$4=\"nie dotyczy\",0,\" \"))","v":0},null,null,{"$f":"IF('VII. Zgodność projektu'!$P$55=\"Nie dotyczy\",0,IF(AE$4=\"nie dotyczy\",0,\" \"))","v":0},null,null,{"$f":"IF('VII. Zgodność projektu'!$P$55=\"Nie dotyczy\",0,IF(AH$4=\"nie dotyczy\",0,\" \"))","v":0},null,null,"411.",{"$f":"IF('VII. Zgodność projektu'!$P$55=\"Nie dotyczy\",0,\" \")","v":0},null,"Powrót do cz. VII Zgodność projektu","Wskaźnik obligatoryjny w przypadku deklaracji pozytywnego wpływu projektu na realizację zasady zrównoważonego rozwoju odpowiednio poprzez sposób realizacji projektu. Wnioskodawca wpisuje wskaźnik, który jest najbardziej odpowiedni z punktu widzenia wpływu projektu na środowisko i klimat. Należy wypełnić albo wpisać w poszczególne lata oraz \nw kolumnie „wartość docelowa” wartości zerowe.\n"]
["Uzasadnienie dla doboru wskaźnika rezultatu, (metodologia, sposób obliczenia oraz uzasadnienie i weryfikacja wartości docelowych dla wskaźnika rezultatu. Należy wskazać również nazwę dokumentu źródłowego dostępnego u przedsiębiorcy na podstawie, którego wnioskodawca przedstawił wartość bazową wskaźnika)"]
["412.",{"$f":"$B$9","v":"Uzasadnienie:"},{"$f":"IF('VII. Zgodność projektu'!$P$55=\"nie dotyczy\",\"Nie dotyczy\",\" \")","v":"Nie dotyczy"}]
[{"$f":"CONCATENATE('VII. Zgodność projektu'!$P$67,\" (Wskaźnik obrazujący pozytywny wpływ projektu na środowisko i klimat poprzez rezultat projektu.)\")","v":"Nie dotyczy (Wskaźnik obrazujący pozytywny wpływ projektu na środowisko i klimat poprzez rezultat projektu.)"},null,{"$f":"IF('VII. Zgodność projektu'!$P$67=\"nie dotyczy\",\"Nie dotyczy\",\"Uzupełnij jednostkę miary\")","v":"Nie dotyczy"},"413.",{"$f":"IF('VII. Zgodność projektu'!$P$67=\"Nie dotyczy\",0,\" \")","v":0},null,{"$f":"IF('VII. Zgodność projektu'!$P$67=\"Nie dotyczy\",0,IF(G$4=\"nie dotyczy\",0,\" \"))","v":0},null,null,{"$f":"IF('VII. Zgodność projektu'!$P$67=\"Nie dotyczy\",0,IF(J$4=\"nie dotyczy\",0,\" \"))","v":0},null,null,{"$f":"IF('VII. Zgodność projektu'!$P$67=\"Nie dotyczy\",0,IF(M$4=\"nie dotyczy\",0,\" \"))","v":0},null,null,{"$f":"IF('VII. Zgodność projektu'!$P$67=\"Nie dotyczy\",0,IF(P$4=\"nie dotyczy\",0,\" \"))","v":0},null,null,{"$f":"IF('VII. Zgodność projektu'!$P$67=\"Nie dotyczy\",0,IF(S$4=\"nie dotyczy\",0,\" \"))","v":0},null,null,{"$f":"IF('VII. Zgodność projektu'!$P$67=\"Nie dotyczy\",0,IF(V$4=\"nie dotyczy\",0,\" \"))","v":0},null,null,{"$f":"IF('VII. Zgodność projektu'!$P$67=\"Nie dotyczy\",0,IF(Y$4=\"nie dotyczy\",0,\" \"))","v":0},null,null,{"$f":"IF('VII. Zgodność projektu'!$P$67=\"Nie dotyczy\",0,IF(AB$4=\"nie dotyczy\",0,\" \"))","v":0},null,null,{"$f":"IF('VII. Zgodność projektu'!$P$67=\"Nie dotyczy\",0,IF(AE$4=\"nie dotyczy\",0,\" \"))","v":0},null,null,{"$f":"IF('VII. Zgodność projektu'!$P$67=\"Nie dotyczy\",0,IF(AH$4=\"nie dotyczy\",0,\" \"))","v":0},null,null,"414.",{"$f":"IF('VII. Zgodność projektu'!$P$67=\"Nie dotyczy\",0,\" \")","v":0},null,"Powrót do cz. VII Zgodność projektu","Wskaźnik obligatoryjny w przypadku deklaracji pozytywnego wpływu projektu na realizację zasady zrównoważonego rozwoju odpowiednio poprzez rezultat projektu. Wnioskodawca wpisuje wskaźnik, który jest najbardziej odpowiedni z punktu widzenia wpływu projektu na środowisko i klimat. Należy wypełnić albo wpisać w poszczególne lata oraz w kolumnie „wartość docelowa” wartości zerowe."]
["Uzasadnienie dla doboru wskaźnika rezultatu, (metodologia, sposób obliczenia oraz uzasadnienie i weryfikacja wartości docelowych dla wskaźnika rezultatu. Należy wskazać również nazwę dokumentu źródłowego dostępnego u przedsiębiorcy na podstawie, którego wnioskodawca przedstawił wartość bazową wskaźnika)"]
["415.",{"$f":"$B$9","v":"Uzasadnienie:"},{"$f":"IF('VII. Zgodność projektu'!$P$67=\"nie dotyczy\",\"Nie dotyczy\",\" \")","v":"Nie dotyczy"}]
[{"$f":"CONCATENATE('VII. Zgodność projektu'!$P$68,\" (Wskaźnik obrazujący pozytywny wpływ projektu na środowisko i klimat poprzez rezultat projektu.)\")","v":"Nie dotyczy (Wskaźnik obrazujący pozytywny wpływ projektu na środowisko i klimat poprzez rezultat projektu.)"},null,{"$f":"IF('VII. Zgodność projektu'!$P$68=\"nie dotyczy\",\"Nie dotyczy\",\"Uzupełnij jednostkę miary\")","v":"Nie dotyczy"},"416.",{"$f":"IF('VII. Zgodność projektu'!$P$68=\"Nie dotyczy\",0,\" \")","v":0},null,{"$f":"IF('VII. Zgodność projektu'!$P$68=\"Nie dotyczy\",0,IF(G$4=\"nie dotyczy\",0,\" \"))","v":0},null,null,{"$f":"IF('VII. Zgodność projektu'!$P$68=\"Nie dotyczy\",0,IF(J$4=\"nie dotyczy\",0,\" \"))","v":0},null,null,{"$f":"IF('VII. Zgodność projektu'!$P$68=\"Nie dotyczy\",0,IF(M$4=\"nie dotyczy\",0,\" \"))","v":0},null,null,{"$f":"IF('VII. Zgodność projektu'!$P$68=\"Nie dotyczy\",0,IF(P$4=\"nie dotyczy\",0,\" \"))","v":0},null,null,{"$f":"IF('VII. Zgodność projektu'!$P$68=\"Nie dotyczy\",0,IF(S$4=\"nie dotyczy\",0,\" \"))","v":0},null,null,{"$f":"IF('VII. Zgodność projektu'!$P$68=\"Nie dotyczy\",0,IF(V$4=\"nie dotyczy\",0,\" \"))","v":0},null,null,{"$f":"IF('VII. Zgodność projektu'!$P$68=\"Nie dotyczy\",0,IF(Y$4=\"nie dotyczy\",0,\" \"))","v":0},null,null,{"$f":"IF('VII. Zgodność projektu'!$P$68=\"Nie dotyczy\",0,IF(AB$4=\"nie dotyczy\",0,\" \"))","v":0},null,null,{"$f":"IF('VII. Zgodność projektu'!$P$68=\"Nie dotyczy\",0,IF(AE$4=\"nie dotyczy\",0,\" \"))","v":0},null,null,{"$f":"IF('VII. Zgodność projektu'!$P$68=\"Nie dotyczy\",0,IF(AH$4=\"nie dotyczy\",0,\" \"))","v":0},null,null,"417.",{"$f":"IF('VII. Zgodność projektu'!$P$68=\"Nie dotyczy\",0,\" \")","v":0},null,"Powrót do cz. VII Zgodność projektu","Wskaźnik obligatoryjny w przypadku deklaracji pozytywnego wpływu projektu na realizację zasady zrównoważonego rozwoju odpowiednio poprzez rezultat projektu. Wnioskodawca wpisuje wskaźnik, który jest najbardziej odpowiedni z punktu widzenia wpływu projektu na środowisko i klimat. Należy wypełnić albo wpisać w poszczególne lata oraz w kolumnie „wartość docelowa” wartości zerowe."]
["Uzasadnienie dla doboru wskaźnika rezultatu, (metodologia, sposób obliczenia oraz uzasadnienie i weryfikacja wartości docelowych dla wskaźnika rezultatu. Należy wskazać również nazwę dokumentu źródłowego dostępnego u przedsiębiorcy na podstawie, którego wnioskodawca przedstawił wartość bazową wskaźnika)"]
["418.",{"$f":"$B$9","v":"Uzasadnienie:"},{"$f":"IF('VII. Zgodność projektu'!$P$68=\"nie dotyczy\",\"Nie dotyczy\",\" \")","v":"Nie dotyczy"}]
[{"$f":"CONCATENATE('VII. Zgodność projektu'!$P$15,\" (Wskaźnik obrazujący dostępność produktów/ rezultatów projektu dla osób z niepełnosprawnościami)\")","v":"Nie dotyczy (Wskaźnik obrazujący dostępność produktów/ rezultatów projektu dla osób z niepełnosprawnościami)"},null,{"$f":"IF('VII. Zgodność projektu'!$P$15=\"nie dotyczy\",\"Nie dotyczy\",\"Uzupełnij jednostkę miary\")","v":"Nie dotyczy"},"419.",{"$f":"IF('VII. Zgodność projektu'!$P$15=\"Nie dotyczy\",0,\" \")","v":0},null,{"$f":"IF('VII. Zgodność projektu'!$P$15=\"Nie dotyczy\",0,IF(G$4=\"nie dotyczy\",0,\" \"))","v":0},null,null,{"$f":"IF('VII. Zgodność projektu'!$P$15=\"Nie dotyczy\",0,IF(J$4=\"nie dotyczy\",0,\" \"))","v":0},null,null,{"$f":"IF('VII. Zgodność projektu'!$P$15=\"Nie dotyczy\",0,IF(M$4=\"nie dotyczy\",0,\" \"))","v":0},null,null,{"$f":"IF('VII. Zgodność projektu'!$P$15=\"Nie dotyczy\",0,IF(P$4=\"nie dotyczy\",0,\" \"))","v":0},null,null,{"$f":"IF('VII. Zgodność projektu'!$P$15=\"Nie dotyczy\",0,IF(S$4=\"nie dotyczy\",0,\" \"))","v":0},null,null,{"$f":"IF('VII. Zgodność projektu'!$P$15=\"Nie dotyczy\",0,IF(V$4=\"nie dotyczy\",0,\" \"))","v":0},null,null,{"$f":"IF('VII. Zgodność projektu'!$P$15=\"Nie dotyczy\",0,IF(Y$4=\"nie dotyczy\",0,\" \"))","v":0},null,null,{"$f":"IF('VII. Zgodność projektu'!$P$15=\"Nie dotyczy\",0,IF(AB$4=\"nie dotyczy\",0,\" \"))","v":0},null,null,{"$f":"IF('VII. Zgodność projektu'!$P$15=\"Nie dotyczy\",0,IF(AE$4=\"nie dotyczy\",0,\" \"))","v":0},null,null,{"$f":"IF('VII. Zgodność projektu'!$P$15=\"Nie dotyczy\",0,IF(AH$4=\"nie dotyczy\",0,\" \"))","v":0},null,null,"420.",{"$f":"IF('VII. Zgodność projektu'!$P$15=\"Nie dotyczy\",0,\" \")","v":0},null,"Powrót do cz. VII Zgodność projektu","Wskaźnik obligatoryjny w przypadku deklaracji dostępności dla osób niepełnosprawnych. Wnioskodawca wpisuje wskaźnik samodzielnie. Należy wypełnić albo wpisać w poszczególne lata oraz w kolumnie „wartość docelowa” wartości zerowe."]
["Uzasadnienie dla doboru wskaźnika rezultatu, (metodologia, sposób obliczenia oraz uzasadnienie i weryfikacja wartości docelowych dla wskaźnika rezultatu. Należy wskazać również nazwę dokumentu źródłowego dostępnego u przedsiębiorcy na podstawie, którego wnioskodawca przedstawił wartość bazową wskaźnika)"]
["421.",{"$f":"$B$9","v":"Uzasadnienie:"},{"$f":"IF('VII. Zgodność projektu'!$P$15=\"nie dotyczy\",\"Nie dotyczy\",\" \")","v":"Nie dotyczy"}]
[{"$f":"CONCATENATE('VII. Zgodność projektu'!$P$16,\" (Wskaźnik obrazujący dostępność produktów/ rezultatów projektu dla osób z niepełnosprawnościami)\")","v":"Nie dotyczy (Wskaźnik obrazujący dostępność produktów/ rezultatów projektu dla osób z niepełnosprawnościami)"},null,{"$f":"IF('VII. Zgodność projektu'!$P$16=\"nie dotyczy\",\"Nie dotyczy\",\"Uzupełnij jednostkę miary\")","v":"Nie dotyczy"},"422.",{"$f":"IF('VII. Zgodność projektu'!$P$16=\"Nie dotyczy\",0,\" \")","v":0},null,{"$f":"IF('VII. Zgodność projektu'!$P$16=\"Nie dotyczy\",0,IF(G$4=\"nie dotyczy\",0,\" \"))","v":0},null,null,{"$f":"IF('VII. Zgodność projektu'!$P$16=\"Nie dotyczy\",0,IF(J$4=\"nie dotyczy\",0,\" \"))","v":0},null,null,{"$f":"IF('VII. Zgodność projektu'!$P$16=\"Nie dotyczy\",0,IF(M$4=\"nie dotyczy\",0,\" \"))","v":0},null,null,{"$f":"IF('VII. Zgodność projektu'!$P$16=\"Nie dotyczy\",0,IF(P$4=\"nie dotyczy\",0,\" \"))","v":0},null,null,{"$f":"IF('VII. Zgodność projektu'!$P$16=\"Nie dotyczy\",0,IF(S$4=\"nie dotyczy\",0,\" \"))","v":0},null,null,{"$f":"IF('VII. Zgodność projektu'!$P$16=\"Nie dotyczy\",0,IF(V$4=\"nie dotyczy\",0,\" \"))","v":0},null,null,{"$f":"IF('VII. Zgodność projektu'!$P$16=\"Nie dotyczy\",0,IF(Y$4=\"nie dotyczy\",0,\" \"))","v":0},null,null,{"$f":"IF('VII. Zgodność projektu'!$P$16=\"Nie dotyczy\",0,IF(AB$4=\"nie dotyczy\",0,\" \"))","v":0},null,null,{"$f":"IF('VII. Zgodność projektu'!$P$16=\"Nie dotyczy\",0,IF(AE$4=\"nie dotyczy\",0,\" \"))","v":0},null,null,{"$f":"IF('VII. Zgodność projektu'!$P$16=\"Nie dotyczy\",0,IF(AH$4=\"nie dotyczy\",0,\" \"))","v":0},null,null,"423.",{"$f":"IF('VII. Zgodność projektu'!$P$16=\"Nie dotyczy\",0,\" \")","v":0},null,"Powrót do cz. VII Zgodność projektu","Wskaźnik obligatoryjny w przypadku deklaracji dostępności dla osób niepełnosprawnych. Wnioskodawca wpisuje wskaźnik samodzielnie. Należy wypełnić albo wpisać w poszczególne lata oraz w kolumnie „wartość docelowa” wartości zerowe."]
["Uzasadnienie dla doboru wskaźnika rezultatu, (metodologia, sposób obliczenia oraz uzasadnienie i weryfikacja wartości docelowych dla wskaźnika rezultatu. Należy wskazać również nazwę dokumentu źródłowego dostępnego u przedsiębiorcy na podstawie, którego wnioskodawca przedstawił wartość bazową wskaźnika)"]
["424.",{"$f":"$B$9","v":"Uzasadnienie:"},{"$f":"IF('VII. Zgodność projektu'!$P$16=\"nie dotyczy\",\"Nie dotyczy\",\" \")","v":"Nie dotyczy"}]
[{"$f":"'VII. Zgodność projektu'!$P$27","v":"Nie dotyczy"},null,{"$f":"IF($A$76=\"nie dotyczy\",\"Nie dotyczy\",\"Uzupełnij jednostkę miary\")","v":"Nie dotyczy"},"425.",{"$f":"IF($A$76=\"nie dotyczy\",0,\" \")","v":0},null,{"$f":"IF($A$76=\"nie dotyczy\",0,IF(G$4=\"nie dotyczy\",0,\" \"))","v":0},null,null,{"$f":"IF($A$76=\"nie dotyczy\",0,IF(J$4=\"nie dotyczy\",0,\" \"))","v":0},null,null,{"$f":"IF($A$76=\"nie dotyczy\",0,IF(M$4=\"nie dotyczy\",0,\" \"))","v":0},null,null,{"$f":"IF($A$76=\"nie dotyczy\",0,IF(P$4=\"nie dotyczy\",0,\" \"))","v":0},null,null,{"$f":"IF($A$76=\"nie dotyczy\",0,IF(S$4=\"nie dotyczy\",0,\" \"))","v":0},null,null,{"$f":"IF($A$76=\"nie dotyczy\",0,IF(V$4=\"nie dotyczy\",0,\" \"))","v":0},null,null,{"$f":"IF($A$76=\"nie dotyczy\",0,IF(Y$4=\"nie dotyczy\",0,\" \"))","v":0},null,null,{"$f":"IF($A$76=\"nie dotyczy\",0,IF(AB$4=\"nie dotyczy\",0,\" \"))","v":0},null,null,{"$f":"IF($A$76=\"nie dotyczy\",0,IF(AE$4=\"nie dotyczy\",0,\" \"))","v":0},null,null,{"$f":"IF($A$76=\"nie dotyczy\",0,IF(AH$4=\"nie dotyczy\",0,\" \"))","v":0},null,null,"426.",{"$f":"IF($A$76=\"nie dotyczy\",0,\" \")","v":0},null,null,"Wskaźnik obligatoryjny w przypadku budowy CBR lub adaptacji budynku na cele CBR. Wnioskodawca wpisuje wskaźnik samodzielnie. Należy wypełnić albo wpisać w poszczególne lata oraz w kolumnie „wartość docelowa” wartości zerowe.\n"]
["(Wskaźnik obrazujący spełnienie standardu architektonicznego stanowiącego załącznik nr 2 do Wytycznych w zakresie realizacji zasady równości szans i niedyskryminacji, w tym dostępności dla osób z niepełnosprawnościami oraz zasady równości szans kobiet i mężczyzn w ramach Funduszy Unijnych na lata 2014-2020.)",null,null,null,null,null,null,null,null,null,null,null,null,null,null,null,null,null,null,null,null,null,null,null,null,null,null,null,null,null,null,null,null,null,null,null,null,null,null,"Powrót do cz. VII Zgodność projektu"]
["Uzasadnienie dla doboru wskaźnika rezultatu, (metodologia, sposób obliczenia oraz uzasadnienie i weryfikacja wartości docelowych dla wskaźnika rezultatu. Należy wskazać również nazwę dokumentu źródłowego dostępnego u przedsiębiorcy na podstawie, którego wnioskodawca przedstawił wartość bazową wskaźnika)"]
["427.",{"$f":"$B$9","v":"Uzasadnienie:"},{"$f":"IF($A$76=\"nie dotyczy\",\"Nie dotyczy\",\" \")","v":"Nie dotyczy"}]
[{"$f":"'VII. Zgodność projektu'!$P$28","v":"Nie dotyczy"},null,{"$f":"IF($A$80=\"nie dotyczy\",\"Nie dotyczy\",\"Uzupełnij jednostkę miary\")","v":"Nie dotyczy"},"428.",{"$f":"IF($A$80=\"nie dotyczy\",0,\" \")","v":0},null,{"$f":"IF($A$80=\"nie dotyczy\",0,IF(G$4=\"nie dotyczy\",0,\" \"))","v":0},null,null,{"$f":"IF($A$80=\"nie dotyczy\",0,IF(J$4=\"nie dotyczy\",0,\" \"))","v":0},null,null,{"$f":"IF($A$80=\"nie dotyczy\",0,IF(M$4=\"nie dotyczy\",0,\" \"))","v":0},null,null,{"$f":"IF($A$80=\"nie dotyczy\",0,IF(P$4=\"nie dotyczy\",0,\" \"))","v":0},null,null,{"$f":"IF($A$80=\"nie dotyczy\",0,IF(S$4=\"nie dotyczy\",0,\" \"))","v":0},null,null,{"$f":"IF($A$80=\"nie dotyczy\",0,IF(V$4=\"nie dotyczy\",0,\" \"))","v":0},null,null,{"$f":"IF($A$80=\"nie dotyczy\",0,IF(Y$4=\"nie dotyczy\",0,\" \"))","v":0},null,null,{"$f":"IF($A$80=\"nie dotyczy\",0,IF(AB$4=\"nie dotyczy\",0,\" \"))","v":0},null,null,{"$f":"IF($A$80=\"nie dotyczy\",0,IF(AE$4=\"nie dotyczy\",0,\" \"))","v":0},null,null,{"$f":"IF($A$80=\"nie dotyczy\",0,IF(AH$4=\"nie dotyczy\",0,\" \"))","v":0},null,null,"429.",{"$f":"IF($A$80=\"nie dotyczy\",0,\" \")","v":0},null,null,"Wskaźnik obligatoryjny w przypadku budowy CBR lub adaptacji budynku na cele CBR. Wnioskodawca wpisuje wskaźnik samodzielnie. Należy wypełnić albo wpisać w poszczególne lata oraz w kolumnie „wartość docelowa” wartości zerowe.\n"]
["(Wskaźnik obrazujący spełnienie standardu architektonicznego stanowiącego załącznik nr 2 do Wytycznych w zakresie realizacji zasady równości szans i niedyskryminacji, w tym dostępności dla osób z niepełnosprawnościami oraz zasady równości szans kobiet i mężczyzn w ramach Funduszy Unijnych na lata 2014-2020.)",null,null,null,null,null,null,null,null,null,null,null,null,null,null,null,null,null,null,null,null,null,null,null,null,null,null,null,null,null,null,null,null,null,null,null,null,null,null,"Powrót do cz. VII Zgodność projektu"]
["Uzasadnienie dla doboru wskaźnika rezultatu, (metodologia, sposób obliczenia oraz uzasadnienie i weryfikacja wartości docelowych dla wskaźnika rezultatu. Należy wskazać również nazwę dokumentu źródłowego dostępnego u przedsiębiorcy na podstawie, którego wnioskodawca przedstawił wartość bazową wskaźnika)"]
["430.",{"$f":"$B$9","v":"Uzasadnienie:"},{"$f":"IF($A$80=\"nie dotyczy\",\"Nie dotyczy\",\" \")","v":"Nie dotyczy"}]
[{"$f":"CONCATENATE('VII. Zgodność projektu'!$P$40,\" (Wskaźnik projektu na realizację zasady równości szans  kobiet i mężczyzn)\")","v":"Nie dotyczy (Wskaźnik projektu na realizację zasady równości szans  kobiet i mężczyzn)"},null,{"$f":"IF('VII. Zgodność projektu'!$P$40=\"nie dotyczy\",\"Nie dotyczy\",\"Uzupełnij jednostkę miary\")","v":"Nie dotyczy"},"431.",{"$f":"IF('VII. Zgodność projektu'!$P$40=\"Nie dotyczy\",0,\" \")","v":0},null,{"$f":"IF('VII. Zgodność projektu'!$P$40=\"Nie dotyczy\",0,IF(G$4=\"nie dotyczy\",0,\" \"))","v":0},null,null,{"$f":"IF('VII. Zgodność projektu'!$P$40=\"Nie dotyczy\",0,IF(J$4=\"nie dotyczy\",0,\" \"))","v":0},null,null,{"$f":"IF('VII. Zgodność projektu'!$P$40=\"Nie dotyczy\",0,IF(M$4=\"nie dotyczy\",0,\" \"))","v":0},null,null,{"$f":"IF('VII. Zgodność projektu'!$P$40=\"Nie dotyczy\",0,IF(P$4=\"nie dotyczy\",0,\" \"))","v":0},null,null,{"$f":"IF('VII. Zgodność projektu'!$P$40=\"Nie dotyczy\",0,IF(S$4=\"nie dotyczy\",0,\" \"))","v":0},null,null,{"$f":"IF('VII. Zgodność projektu'!$P$40=\"Nie dotyczy\",0,IF(V$4=\"nie dotyczy\",0,\" \"))","v":0},null,null,{"$f":"IF('VII. Zgodność projektu'!$P$40=\"Nie dotyczy\",0,IF(Y$4=\"nie dotyczy\",0,\" \"))","v":0},null,null,{"$f":"IF('VII. Zgodność projektu'!$P$40=\"Nie dotyczy\",0,IF(AB$4=\"nie dotyczy\",0,\" \"))","v":0},null,null,{"$f":"IF('VII. Zgodność projektu'!$P$40=\"Nie dotyczy\",0,IF(AE$4=\"nie dotyczy\",0,\" \"))","v":0},null,null,{"$f":"IF('VII. Zgodność projektu'!$P$40=\"Nie dotyczy\",0,IF(AH$4=\"nie dotyczy\",0,\" \"))","v":0},null,null,"432.",{"$f":"IF('VII. Zgodność projektu'!$P$40=\"Nie dotyczy\",0,\" \")","v":0},null,"Powrót do cz. VII Zgodność projektu","Wskaźnik obligatoryjny w przypadku deklaracji pozytywnego wpływu projektu na realizację zasady równości szans kobiet i mężczyzn . Należy wypełnić albo wpisać w poszczególne lata oraz w kolumnie „wartość docelowa” wartości zerowe."]
["Uzasadnienie dla doboru wskaźnika rezultatu, (metodologia, sposób obliczenia oraz uzasadnienie i weryfikacja wartości docelowych dla wskaźnika rezultatu. Należy wskazać również nazwę dokumentu źródłowego dostępnego u przedsiębiorcy na podstawie, którego wnioskodawca przedstawił wartość bazową wskaźnika)"]
["433.",{"$f":"$B$9","v":"Uzasadnienie:"},{"$f":"IF('VII. Zgodność projektu'!$P$40=\"nie dotyczy\",\"Nie dotyczy\",\" \")","v":"Nie dotyczy"}]
[{"$f":"CONCATENATE('VII. Zgodność projektu'!$P$41,\" (Wskaźnik projektu na realizację zasady równości szans  kobiet i mężczyzn)\")","v":"Nie dotyczy (Wskaźnik projektu na realizację zasady równości szans  kobiet i mężczyzn)"},null,{"$f":"IF('VII. Zgodność projektu'!$P$41=\"nie dotyczy\",\"Nie dotyczy\",\"Uzupełnij jednostkę miary\")","v":"Nie dotyczy"},"434.",{"$f":"IF('VII. Zgodność projektu'!$P$41=\"Nie dotyczy\",0,\" \")","v":0},null,{"$f":"IF('VII. Zgodność projektu'!$P$41=\"Nie dotyczy\",0,IF(G$4=\"nie dotyczy\",0,\" \"))","v":0},null,null,{"$f":"IF('VII. Zgodność projektu'!$P$41=\"Nie dotyczy\",0,IF(J$4=\"nie dotyczy\",0,\" \"))","v":0},null,null,{"$f":"IF('VII. Zgodność projektu'!$P$41=\"Nie dotyczy\",0,IF(M$4=\"nie dotyczy\",0,\" \"))","v":0},null,null,{"$f":"IF('VII. Zgodność projektu'!$P$41=\"Nie dotyczy\",0,IF(P$4=\"nie dotyczy\",0,\" \"))","v":0},null,null,{"$f":"IF('VII. Zgodność projektu'!$P$41=\"Nie dotyczy\",0,IF(S$4=\"nie dotyczy\",0,\" \"))","v":0},null,null,{"$f":"IF('VII. Zgodność projektu'!$P$41=\"Nie dotyczy\",0,IF(V$4=\"nie dotyczy\",0,\" \"))","v":0},null,null,{"$f":"IF('VII. Zgodność projektu'!$P$41=\"Nie dotyczy\",0,IF(Y$4=\"nie dotyczy\",0,\" \"))","v":0},null,null,{"$f":"IF('VII. Zgodność projektu'!$P$41=\"Nie dotyczy\",0,IF(AB$4=\"nie dotyczy\",0,\" \"))","v":0},null,null,{"$f":"IF('VII. Zgodność projektu'!$P$41=\"Nie dotyczy\",0,IF(AE$4=\"nie dotyczy\",0,\" \"))","v":0},null,null,{"$f":"IF('VII. Zgodność projektu'!$P$41=\"Nie dotyczy\",0,IF(AH$4=\"nie dotyczy\",0,\" \"))","v":0},null,null,"435.",{"$f":"IF('VII. Zgodność projektu'!$P$41=\"Nie dotyczy\",0,\" \")","v":0},null,"Powrót do cz. VII Zgodność projektu","Wskaźnik obligatoryjny w przypadku deklaracji pozytywnego wpływu projektu na realizację zasady równości szans kobiet i mężczyzn . Należy wypełnić albo wpisać w poszczególne lata oraz w kolumnie „wartość docelowa” wartości zerowe."]
["Uzasadnienie dla doboru wskaźnika rezultatu, (metodologia, sposób obliczenia oraz uzasadnienie i weryfikacja wartości docelowych dla wskaźnika rezultatu. Należy wskazać również nazwę dokumentu źródłowego dostępnego u przedsiębiorcy na podstawie, którego wnioskodawca przedstawił wartość bazową wskaźnika)"]
["436.",{"$f":"$B$9","v":"Uzasadnienie:"},{"$f":"IF('VII. Zgodność projektu'!$P$41=\"nie dotyczy\",\"Nie dotyczy\",\" \")","v":"Nie dotyczy"}]
[]
["Czy chcesz dodać inne wskaźniki rezultatu?",null,null,null,null,null,null,null,null,"437."]
["Wskaźniki fakultatywne"]
[{"$f":"IF($K$91=\"tak\",\"Uzupełnij nazwę wskaźnika\",\"Nie dotyczy\")","v":"Nie dotyczy"},null,{"$f":"IF($A$93=\"nie dotyczy\",\"Nie dotyczy\",\"Uzupełnij jednostkę miary\")","v":"Nie dotyczy"},"438.",{"$f":"IF($A$93=\"nie dotyczy\",0,\" \")","v":0},null,{"$f":"IF($A$93=\"nie dotyczy\",0,IF(G$4=\"nie dotyczy\",0,\" \"))","v":0},null,null,{"$f":"IF($A$93=\"nie dotyczy\",0,IF(J$4=\"nie dotyczy\",0,\" \"))","v":0},null,null,{"$f":"IF($A$93=\"nie dotyczy\",0,IF(M$4=\"nie dotyczy\",0,\" \"))","v":0},null,null,{"$f":"IF($A$93=\"nie dotyczy\",0,IF(P$4=\"nie dotyczy\",0,\" \"))","v":0},null,null,{"$f":"IF($A$93=\"nie dotyczy\",0,IF(S$4=\"nie dotyczy\",0,\" \"))","v":0},null,null,{"$f":"IF($A$93=\"nie dotyczy\",0,IF(V$4=\"nie dotyczy\",0,\" \"))","v":0},null,null,{"$f":"IF($A$93=\"nie dotyczy\",0,IF(Y$4=\"nie dotyczy\",0,\" \"))","v":0},null,null,{"$f":"IF($A$93=\"nie dotyczy\",0,IF(AB$4=\"nie dotyczy\",0,\" \"))","v":0},null,null,{"$f":"IF($A$93=\"nie dotyczy\",0,IF(AE$4=\"nie dotyczy\",0,\" \"))","v":0},null,null,{"$f":"IF($A$93=\"nie dotyczy\",0,IF(AH$4=\"nie dotyczy\",0,\" \"))","v":0},null,null,"439.",{"$f":"IF($A$93=\"nie dotyczy\",0,\" \")","v":0},null,null,"Należy wskazać nazwę wskaźnika, określić jednostkę miary, wartości wskaźnika oraz podać uzasadnienie."]
["Uzasadnienie dla doboru wskaźnika rezultatu, (metodologia, sposób obliczenia oraz uzasadnienie i weryfikacja wartości docelowych dla wskaźnika rezultatu. Należy wskazać również nazwę dokumentu źródłowego dostępnego u przedsiębiorcy na podstawie, którego wnioskodawca przedstawił wartość bazową wskaźnika)"]
["440.",{"$f":"$B$9","v":"Uzasadnienie:"},{"$f":"IF($A$93=\"nie dotyczy\",\"Nie dotyczy\",\" \")","v":"Nie dotyczy"}]
[{"$f":"IF($K$91=\"tak\",\"Uzupełnij nazwę wskaźnika\",\"Nie dotyczy\")","v":"Nie dotyczy"},null,{"$f":"IF($A$96=\"nie dotyczy\",\"Nie dotyczy\",\"Uzupełnij jednostkę miary\")","v":"Nie dotyczy"},"441.",{"$f":"IF($A$96=\"nie dotyczy\",0,\" \")","v":0},null,{"$f":"IF($A$96=\"nie dotyczy\",0,IF(G$4=\"nie dotyczy\",0,\" \"))","v":0},null,null,{"$f":"IF($A$96=\"nie dotyczy\",0,IF(J$4=\"nie dotyczy\",0,\" \"))","v":0},null,null,{"$f":"IF($A$96=\"nie dotyczy\",0,IF(M$4=\"nie dotyczy\",0,\" \"))","v":0},null,null,{"$f":"IF($A$96=\"nie dotyczy\",0,IF(P$4=\"nie dotyczy\",0,\" \"))","v":0},null,null,{"$f":"IF($A$96=\"nie dotyczy\",0,IF(S$4=\"nie dotyczy\",0,\" \"))","v":0},null,null,{"$f":"IF($A$96=\"nie dotyczy\",0,IF(V$4=\"nie dotyczy\",0,\" \"))","v":0},null,null,{"$f":"IF($A$96=\"nie dotyczy\",0,IF(Y$4=\"nie dotyczy\",0,\" \"))","v":0},null,null,{"$f":"IF($A$96=\"nie dotyczy\",0,IF(AB$4=\"nie dotyczy\",0,\" \"))","v":0},null,null,{"$f":"IF($A$96=\"nie dotyczy\",0,IF(AE$4=\"nie dotyczy\",0,\" \"))","v":0},null,null,{"$f":"IF($A$96=\"nie dotyczy\",0,IF(AH$4=\"nie dotyczy\",0,\" \"))","v":0},null,null,"442.",{"$f":"IF($A$96=\"nie dotyczy\",0,\" \")","v":0},null,null,{"$f":"AO93","v":"Należy wskazać nazwę wskaźnika, określić jednostkę miary, wartości wskaźnika oraz podać uzasadnienie."}]
["Uzasadnienie dla doboru wskaźnika rezultatu, (metodologia, sposób obliczenia oraz uzasadnienie i weryfikacja wartości docelowych dla wskaźnika rezultatu. Należy wskazać również nazwę dokumentu źródłowego dostępnego u przedsiębiorcy na podstawie, którego wnioskodawca przedstawił wartość bazową wskaźnika)"]
["443.",{"$f":"$B$9","v":"Uzasadnienie:"},{"$f":"IF($A$96=\"nie dotyczy\",\"Nie dotyczy\",\" \")","v":"Nie dotyczy"}]
[{"$f":"IF($K$91=\"tak\",\"Uzupełnij nazwę wskaźnika\",\"Nie dotyczy\")","v":"Nie dotyczy"},null,{"$f":"IF($A$93=\"nie dotyczy\",\"Nie dotyczy\",\"Uzupełnij jednostkę miary\")","v":"Nie dotyczy"},"444.",{"$f":"IF($A$93=\"nie dotyczy\",0,\" \")","v":0},null,{"$f":"IF($A$93=\"nie dotyczy\",0,IF(G$4=\"nie dotyczy\",0,\" \"))","v":0},null,null,{"$f":"IF($A$93=\"nie dotyczy\",0,IF(J$4=\"nie dotyczy\",0,\" \"))","v":0},null,null,{"$f":"IF($A$93=\"nie dotyczy\",0,IF(M$4=\"nie dotyczy\",0,\" \"))","v":0},null,null,{"$f":"IF($A$93=\"nie dotyczy\",0,IF(P$4=\"nie dotyczy\",0,\" \"))","v":0},null,null,{"$f":"IF($A$93=\"nie dotyczy\",0,IF(S$4=\"nie dotyczy\",0,\" \"))","v":0},null,null,{"$f":"IF($A$93=\"nie dotyczy\",0,IF(V$4=\"nie dotyczy\",0,\" \"))","v":0},null,null,{"$f":"IF($A$93=\"nie dotyczy\",0,IF(Y$4=\"nie dotyczy\",0,\" \"))","v":0},null,null,{"$f":"IF($A$93=\"nie dotyczy\",0,IF(AB$4=\"nie dotyczy\",0,\" \"))","v":0},null,null,{"$f":"IF($A$93=\"nie dotyczy\",0,IF(AE$4=\"nie dotyczy\",0,\" \"))","v":0},null,null,{"$f":"IF($A$93=\"nie dotyczy\",0,IF(AH$4=\"nie dotyczy\",0,\" \"))","v":0},null,null,"445.",{"$f":"IF($A$93=\"nie dotyczy\",0,\" \")","v":0},null,null,"Należy wskazać nazwę wskaźnika, określić jednostkę miary, wartości wskaźnika oraz podać uzasadnienie."]
["Uzasadnienie dla doboru wskaźnika rezultatu, (metodologia, sposób obliczenia oraz uzasadnienie i weryfikacja wartości docelowych dla wskaźnika rezultatu. Należy wskazać również nazwę dokumentu źródłowego dostępnego u przedsiębiorcy na podstawie, którego wnioskodawca przedstawił wartość bazową wskaźnika)"]
["446.",{"$f":"$B$9","v":"Uzasadnienie:"},{"$f":"IF($A$93=\"nie dotyczy\",\"Nie dotyczy\",\" \")","v":"Nie dotyczy"}]
[{"$f":"IF($K$91=\"tak\",\"Uzupełnij nazwę wskaźnika\",\"Nie dotyczy\")","v":"Nie dotyczy"},null,{"$f":"IF($A$93=\"nie dotyczy\",\"Nie dotyczy\",\"Uzupełnij jednostkę miary\")","v":"Nie dotyczy"},"444.",{"$f":"IF($A$93=\"nie dotyczy\",0,\" \")","v":0},null,{"$f":"IF($A$93=\"nie dotyczy\",0,IF(G$4=\"nie dotyczy\",0,\" \"))","v":0},null,null,{"$f":"IF($A$93=\"nie dotyczy\",0,IF(J$4=\"nie dotyczy\",0,\" \"))","v":0},null,null,{"$f":"IF($A$93=\"nie dotyczy\",0,IF(M$4=\"nie dotyczy\",0,\" \"))","v":0},null,null,{"$f":"IF($A$93=\"nie dotyczy\",0,IF(P$4=\"nie dotyczy\",0,\" \"))","v":0},null,null,{"$f":"IF($A$93=\"nie dotyczy\",0,IF(S$4=\"nie dotyczy\",0,\" \"))","v":0},null,null,{"$f":"IF($A$93=\"nie dotyczy\",0,IF(V$4=\"nie dotyczy\",0,\" \"))","v":0},null,null,{"$f":"IF($A$93=\"nie dotyczy\",0,IF(Y$4=\"nie dotyczy\",0,\" \"))","v":0},null,null,{"$f":"IF($A$93=\"nie dotyczy\",0,IF(AB$4=\"nie dotyczy\",0,\" \"))","v":0},null,null,{"$f":"IF($A$93=\"nie dotyczy\",0,IF(AE$4=\"nie dotyczy\",0,\" \"))","v":0},null,null,{"$f":"IF($A$93=\"nie dotyczy\",0,IF(AH$4=\"nie dotyczy\",0,\" \"))","v":0},null,null,"445.",{"$f":"IF($A$93=\"nie dotyczy\",0,\" \")","v":0},null,null,"Należy wskazać nazwę wskaźnika, określić jednostkę miary, wartości wskaźnika oraz podać uzasadnienie."]
["Uzasadnienie dla doboru wskaźnika rezultatu, (metodologia, sposób obliczenia oraz uzasadnienie i weryfikacja wartości docelowych dla wskaźnika rezultatu. Należy wskazać również nazwę dokumentu źródłowego dostępnego u przedsiębiorcy na podstawie, którego wnioskodawca przedstawił wartość bazową wskaźnika)"]
["446.",{"$f":"$B$9","v":"Uzasadnienie:"},{"$f":"IF($A$93=\"nie dotyczy\",\"Nie dotyczy\",\" \")","v":"Nie dotyczy"}]
[{"$f":"IF($K$91=\"tak\",\"Uzupełnij nazwę wskaźnika\",\"Nie dotyczy\")","v":"Nie dotyczy"},null,{"$f":"IF($A$93=\"nie dotyczy\",\"Nie dotyczy\",\"Uzupełnij jednostkę miary\")","v":"Nie dotyczy"},"444.",{"$f":"IF($A$93=\"nie dotyczy\",0,\" \")","v":0},null,{"$f":"IF($A$93=\"nie dotyczy\",0,IF(G$4=\"nie dotyczy\",0,\" \"))","v":0},null,null,{"$f":"IF($A$93=\"nie dotyczy\",0,IF(J$4=\"nie dotyczy\",0,\" \"))","v":0},null,null,{"$f":"IF($A$93=\"nie dotyczy\",0,IF(M$4=\"nie dotyczy\",0,\" \"))","v":0},null,null,{"$f":"IF($A$93=\"nie dotyczy\",0,IF(P$4=\"nie dotyczy\",0,\" \"))","v":0},null,null,{"$f":"IF($A$93=\"nie dotyczy\",0,IF(S$4=\"nie dotyczy\",0,\" \"))","v":0},null,null,{"$f":"IF($A$93=\"nie dotyczy\",0,IF(V$4=\"nie dotyczy\",0,\" \"))","v":0},null,null,{"$f":"IF($A$93=\"nie dotyczy\",0,IF(Y$4=\"nie dotyczy\",0,\" \"))","v":0},null,null,{"$f":"IF($A$93=\"nie dotyczy\",0,IF(AB$4=\"nie dotyczy\",0,\" \"))","v":0},null,null,{"$f":"IF($A$93=\"nie dotyczy\",0,IF(AE$4=\"nie dotyczy\",0,\" \"))","v":0},null,null,{"$f":"IF($A$93=\"nie dotyczy\",0,IF(AH$4=\"nie dotyczy\",0,\" \"))","v":0},null,null,"445.",{"$f":"IF($A$93=\"nie dotyczy\",0,\" \")","v":0},null,null,"Należy wskazać nazwę wskaźnika, określić jednostkę miary, wartości wskaźnika oraz podać uzasadnienie."]
["Uzasadnienie dla doboru wskaźnika rezultatu, (metodologia, sposób obliczenia oraz uzasadnienie i weryfikacja wartości docelowych dla wskaźnika rezultatu. Należy wskazać również nazwę dokumentu źródłowego dostępnego u przedsiębiorcy na podstawie, którego wnioskodawca przedstawił wartość bazową wskaźnika)"]
["446.",{"$f":"$B$9","v":"Uzasadnienie:"},{"$f":"IF($A$93=\"nie dotyczy\",\"Nie dotyczy\",\" \")","v":"Nie dotyczy"}]
[{"$f":"IF($K$91=\"tak\",\"Uzupełnij nazwę wskaźnika\",\"Nie dotyczy\")","v":"Nie dotyczy"},null,{"$f":"IF($A$93=\"nie dotyczy\",\"Nie dotyczy\",\"Uzupełnij jednostkę miary\")","v":"Nie dotyczy"},"444.",{"$f":"IF($A$93=\"nie dotyczy\",0,\" \")","v":0},null,{"$f":"IF($A$93=\"nie dotyczy\",0,IF(G$4=\"nie dotyczy\",0,\" \"))","v":0},null,null,{"$f":"IF($A$93=\"nie dotyczy\",0,IF(J$4=\"nie dotyczy\",0,\" \"))","v":0},null,null,{"$f":"IF($A$93=\"nie dotyczy\",0,IF(M$4=\"nie dotyczy\",0,\" \"))","v":0},null,null,{"$f":"IF($A$93=\"nie dotyczy\",0,IF(P$4=\"nie dotyczy\",0,\" \"))","v":0},null,null,{"$f":"IF($A$93=\"nie dotyczy\",0,IF(S$4=\"nie dotyczy\",0,\" \"))","v":0},null,null,{"$f":"IF($A$93=\"nie dotyczy\",0,IF(V$4=\"nie dotyczy\",0,\" \"))","v":0},null,null,{"$f":"IF($A$93=\"nie dotyczy\",0,IF(Y$4=\"nie dotyczy\",0,\" \"))","v":0},null,null,{"$f":"IF($A$93=\"nie dotyczy\",0,IF(AB$4=\"nie dotyczy\",0,\" \"))","v":0},null,null,{"$f":"IF($A$93=\"nie dotyczy\",0,IF(AE$4=\"nie dotyczy\",0,\" \"))","v":0},null,null,{"$f":"IF($A$93=\"nie dotyczy\",0,IF(AH$4=\"nie dotyczy\",0,\" \"))","v":0},null,null,"445.",{"$f":"IF($A$93=\"nie dotyczy\",0,\" \")","v":0},null,null,"Należy wskazać nazwę wskaźnika, określić jednostkę miary, wartości wskaźnika oraz podać uzasadnienie."]
["Uzasadnienie dla doboru wskaźnika rezultatu, (metodologia, sposób obliczenia oraz uzasadnienie i weryfikacja wartości docelowych dla wskaźnika rezultatu. Należy wskazać również nazwę dokumentu źródłowego dostępnego u przedsiębiorcy na podstawie, którego wnioskodawca przedstawił wartość bazową wskaźnika)"]
["446.",{"$f":"$B$9","v":"Uzasadnienie:"},{"$f":"IF($A$93=\"nie dotyczy\",\"Nie dotyczy\",\" \")","v":"Nie dotyczy"}]
[{"$f":"IF($K$91=\"tak\",\"Uzupełnij nazwę wskaźnika\",\"Nie dotyczy\")","v":"Nie dotyczy"},null,{"$f":"IF($A$93=\"nie dotyczy\",\"Nie dotyczy\",\"Uzupełnij jednostkę miary\")","v":"Nie dotyczy"},"444.",{"$f":"IF($A$93=\"nie dotyczy\",0,\" \")","v":0},null,{"$f":"IF($A$93=\"nie dotyczy\",0,IF(G$4=\"nie dotyczy\",0,\" \"))","v":0},null,null,{"$f":"IF($A$93=\"nie dotyczy\",0,IF(J$4=\"nie dotyczy\",0,\" \"))","v":0},null,null,{"$f":"IF($A$93=\"nie dotyczy\",0,IF(M$4=\"nie dotyczy\",0,\" \"))","v":0},null,null,{"$f":"IF($A$93=\"nie dotyczy\",0,IF(P$4=\"nie dotyczy\",0,\" \"))","v":0},null,null,{"$f":"IF($A$93=\"nie dotyczy\",0,IF(S$4=\"nie dotyczy\",0,\" \"))","v":0},null,null,{"$f":"IF($A$93=\"nie dotyczy\",0,IF(V$4=\"nie dotyczy\",0,\" \"))","v":0},null,null,{"$f":"IF($A$93=\"nie dotyczy\",0,IF(Y$4=\"nie dotyczy\",0,\" \"))","v":0},null,null,{"$f":"IF($A$93=\"nie dotyczy\",0,IF(AB$4=\"nie dotyczy\",0,\" \"))","v":0},null,null,{"$f":"IF($A$93=\"nie dotyczy\",0,IF(AE$4=\"nie dotyczy\",0,\" \"))","v":0},null,null,{"$f":"IF($A$93=\"nie dotyczy\",0,IF(AH$4=\"nie dotyczy\",0,\" \"))","v":0},null,null,"445.",{"$f":"IF($A$93=\"nie dotyczy\",0,\" \")","v":0},null,null,"Należy wskazać nazwę wskaźnika, określić jednostkę miary, wartości wskaźnika oraz podać uzasadnienie."]
["Uzasadnienie dla doboru wskaźnika rezultatu, (metodologia, sposób obliczenia oraz uzasadnienie i weryfikacja wartości docelowych dla wskaźnika rezultatu. Należy wskazać również nazwę dokumentu źródłowego dostępnego u przedsiębiorcy na podstawie, którego wnioskodawca przedstawił wartość bazową wskaźnika)"]
["446.",{"$f":"$B$9","v":"Uzasadnienie:"},{"$f":"IF($A$93=\"nie dotyczy\",\"Nie dotyczy\",\" \")","v":"Nie dotyczy"}]

{"sheet":"IX. Powiazanie projektu","index":13,"n_rows":32,"n_cols":38,"rows_kept":32,"cut":false,"hidden":false,"merged":[[2,0,2,22],[2,24,2,32],[0,0,0,32],[1,0,1,32],[3,0,3,1],[3,28,3,32],[13,33,13,36],[4,28,4,32],[3,12,3,16],[5,0,5,1],[6,0,6,1],[7,0,7,1],[3,2,3,6],[3,7,3,11],[5,2,5,6],[6,2,6,6],[7,2,7,6],[5,7,5,11],[4,0,4,1],[4,2,4,6],[4,7,4,11],[6,7,6,11],[7,7,7,11],[5,22,5,27],[6,22,6,27],[7,22,7,27],[5,17,5,21],[6,17,6,21],[7,17,7,21],[3,17,3,21],[3,22,3,27],[4,12,4,16],[4,17,4,21],[4,22,4,27],[8,22,8,27],[13,0,13,32],[14,24,14,32],[14,0,14,22],[15,1,15,32],[5,28,5,32],[6,28,6,32],[7,28,7,32],[8,28,8,32],[12,0,12,1],[12,2,12,6],[12,7,12,11],[12,12,12,16],[12,17,12,21],[12,22,12,27],[12,28,12,32],[8,0,8,1],[8,2,8,6],[8,7,8,11],[8,12,8,16],[8,17,8,21],[5,12,5,16],[6,12,6,16],[7,12,7,16],[26,24,26,32],[27,1,27,32],[28,0,28,32],[29,0,29,22],[29,24,29,32],[16,0,16,32],[25,0,25,32],[17,0,17,22],[17,24,17,32],[18,1,18,32],[19,0,19,32],[20,0,20,22],[20,24,20,32],[21,1,21,32],[22,0,22,32],[23,0,23,22],[23,24,23,32],[24,1,24,32],[0,33,0,36],[14,33,16,33],[17,33,19,33],[20,33,22,33],[3,35,12,35],[3,36,12,36],[14,35,16,35],[14,36,16,36],[17,35,19,35],[17,36,19,36],[20,35,22,35],[20,36,22,36],[10,12,10,16],[10,17,10,21],[10,22,10,27],[10,28,10,32],[26,35,28,35],[26,36,28,36],[23,33,25,33],[26,33,28,33],[29,33,31,33],[3,33,12,33],[3,34,12,34],[14,34,16,34],[17,34,19,34],[20,34,22,34],[23,34,25,34],[29,34,31,34],[29,35,31,35],[29,36,31,36],[23,35,25,35],[23,36,25,36],[26,34,28,34],[30,1,30,32],[31,0,31,32],[26,0,26,22],[3,37,12,37],[14,37,16,37],[17,37,19,37],[20,37,22,37],[23,37,25,37],[26,37,28,37],[29,37,31,37],[11,0,11,1],[11,2,11,6],[11,7,11,11],[11,12,11,16],[11,17,11,21],[11,22,11,27],[11,28,11,32],[9,0,9,1],[9,2,9,6],[9,7,9,11],[9,12,9,16],[9,17,9,21],[9,22,9,27],[9,28,9,32],[10,0,10,1],[10,2,10,6],[10,7,10,11]]}
["IX. POWIĄZANIE PROJEKTU Z INNYMI PROJEKTAMI WNIOSKODAWCY I STRATEGIAMI",null,null,null,null,null,null,null,null,null,null,null,null,null,null,null,null,null,null,null,null,null,null,null,null,null,null,null,null,null,null,null,null,"Uwagi/komentarze Ekspertów"]
[null,null,null,null,null,null,null,null,null,null,null,null,null,null,null,null,null,null,null,null,null,null,null,null,null,null,null,null,null,null,null,null,null,{"$f":"'I. Informacje ogólne o projekci'!$AH$2","v":"Ekspert od innowacyjności 1"},{"$f":"'I. Informacje ogólne o projekci'!$AI$2","v":"Ekspert od innowacyjności 2"},{"$f":"'I. Informacje ogólne o projekci'!$AJ$2","v":"Ekspert od innowacyjności 3"},{"$f":"'I. Informacje ogólne o projekci'!$AK$2","v":"Ekspert finansowy"},{"$f":"'I. Informacje ogólne o projekci'!$AL$2","v":"Uwagi MFiPR"}]
["Komplementarność z innymi projektami zrealizowanymi przez Wnioskodawcę ze środków UE",null,null,null,null,null,null,null,null,null,null,null,null,null,null,null,null,null,null,null,null,null,null,"447."]
["Lp.",null,"Tytuł projektu",null,null,null,null,"Nazwa Programu",null,null,null,null,"Źródło finansowania",null,null,null,null,"Kwota dofinansowania (PLN)",null,null,null,null,"Kwota wydatków całkowitych (PLN)",null,null,null,null,null,"Opis powiązań"]
[null,null,"448.",null,null,null,null,"449.",null,null,null,null,"450.",null,null,null,null,"451.",null,null,null,null,"452.",null,null,null,null,null,"453."]
["1.",null,{"$f":"IF($Y$3=\"nie\",\"Nie dotyczy\",\" \")","v":" "},null,null,null,null,{"$f":"IF($Y$3=\"nie\",\"Nie dotyczy\",\" \")","v":" "},null,null,null,null,{"$f":"IF($Y$3=\"nie\",\"Nie dotyczy\",\" \")","v":" "},null,null,null,null,{"$f":"IF($Y$3=\"nie\",\"Nie dotyczy\",\" \")","v":" "},null,null,null,null,{"$f":"IF($Y$3=\"nie\",\"Nie dotyczy\",\" \")","v":" "},null,null,null,null,null,{"$f":"IF($Y$3=\"nie\",\"Nie dotyczy\",\" \")","v":" "}]
["2.",null," ",null,null,null,null,{"$f":"IF($C7=\"nie dotyczy\",\"Nie dotyczy\",\" \")","v":" "},null,null,null,null,{"$f":"IF($C7=\"nie dotyczy\",\"Nie dotyczy\",\" \")","v":" "},null,null,null,null,{"$f":"IF($C7=\"nie dotyczy\",\"Nie dotyczy\",\" \")","v":" "},null,null,null,null,{"$f":"IF($C7=\"nie dotyczy\",\"Nie dotyczy\",\" \")","v":" "},null,null,null,null,null,{"$f":"IF($C7=\"nie dotyczy\",\"Nie dotyczy\",\" \")","v":" "}]
["3.",null," ",null,null,null,null," ",null,null,null,null," ",null,null,null,null," ",null,null,null,null," ",null,null,null,null,null," "]
["4.",null," ",null,null,null,null," ",null,null,null,null," ",null,null,null,null," ",null,null,null,null," ",null,null,null,null,null," "]
["5.",null," ",null,null,null,null," ",null,null,null,null," ",null,null,null,null," ",null,null,null,null," ",null,null,null,null,null," "]
["6.",null," ",null,null,null,null," ",null,null,null,null," ",null,null,null,null," ",null,null,null,null," ",null,null,null,null,null," "]
["7.",null," ",null,null,null,null," ",null,null,null,null," ",null,null,null,null," ",null,null,null,null," ",null,null,null,null,null," "]
["8.",null," ",null,null,null,null," ",null,null,null,null," ",null,null,null,null," ",null,null,null,null," ",null,null,null,null,null," "]
["Powiązanie ze strategiami:"]
["Strategia UE Morza Bałtyckiego",null,null,null,null,null,null,null,null,null,null,null,null,null,null,null,null,null,null,null,null,null,null,"454."]
["455.","Uzasadnienie wyboru strategii "]
[{"$f":"IF($Y15=\"tak\",\"Uzupełnij uzasadnienie\",\"Nie dotyczy\")","v":"Nie dotyczy"}]
["Strategia rozwoju Społeczno-Gospodarczego Polski Wschodniej do roku 2020 (dla następujących województw: lubelskie, podkarpackie, podlaskie, świętokrzyskie, warmińsko-mazurskie)",null,null,null,null,null,null,null,null,null,null,null,null,null,null,null,null,null,null,null,null,null,null,"456."]
["457.","Uzasadnienie wyboru strategii"]
[{"$f":"IF($Y18=\"tak\",\"Uzupełnij uzasadnienie\",\"Nie dotyczy\")","v":"Nie dotyczy"}]
["Strategia Rozwoju Polski Południowej do roku 2020 (dla następujących województw: małopolskie, śląskie)",null,null,null,null,null,null,null,null,null,null,null,null,null,null,null,null,null,null,null,null,null,null,"458."]
["459.","Uzasadnienie wyboru strategii "]
[{"$f":"IF($Y21=\"tak\",\"Uzupełnij uzasadnienie\",\"Nie dotyczy\")","v":"Nie dotyczy"}]
["Strategia Rozwoju Polski Zachodniej do roku 2020 (dla następujących województw: dolnośląskie, lubuskie, opolskie, wielkopolskie, zachodniopomorskie)",null,null,null,null,null,null,null,null,null,null,null,null,null,null,null,null,null,null,null,null,null,null,"460."]
["461.","Uzasadnienie wyboru strategii"]
[{"$f":"IF($Y24=\"tak\",\"Uzupełnij uzasadnienie\",\"Nie dotyczy\")","v":"Nie dotyczy"}]
["Strategia Rozwoju Polski Centralnej do rok 2020 (dla następujących województw: mazowieckie, łódzkie)",null,null,null,null,null,null,null,null,null,null,null,null,null,null,null,null,null,null,null,null,null,null,"462."]
["463.","Uzasadnienie wyboru strategii "]
[{"$f":"IF($Y27=\"tak\",\"Uzupełnij uzasadnienie\",\"Nie dotyczy\")","v":"Nie dotyczy"}]
["Strategia Europa 2020",null,null,null,null,null,null,null,null,null,null,null,null,null,null,null,null,null,null,null,null,null,null,"464."]
["465.","Uzasadnienie wyboru strategii"]
[{"$f":"IF($Y30=\"tak\",\"Uzupełnij uzasadnienie\",\"Nie dotyczy\")","v":"Nie dotyczy"}]

{"sheet":"X. Zakres R-F","index":14,"n_rows":259,"n_cols":32,"rows_kept":259,"cut":false,"hidden":false,"merged":[[259,0,259,1],[260,0,260,1],[1,0,1,4],[0,27,1,30],[123,27,124,30],[246,27,248,30],[264,0,264,2],[0,0,0,4],[123,0,123,5],[247,0,247,26],[254,0,254,2],[255,0,255,1],[256,0,256,1],[245,0,245,2],[257,0,257,1],[258,0,258,1],[261,0,261,1],[262,0,262,1],[263,0,263,1]]}
["X. ZAKRES RZECZOWO-FINANSOWY",null,null,null,null,null,null,null,null,null,null,null,null,null,null,null,null,null,null,null,null,null,null,null,null,null,null,"Uwagi/komentarze Ekspertów"]
["ZAKRES RZECZOWY"]
["Numer zadania","Nazwa zadania","Opis działań planowanych do realizacji w ramach wskazanych zadań/ czas realizacji/ podmiot działania","Wydatki rzeczywiście ponoszone","Wydatki rozliczane ryczałtowo",null,null,null,null,null,null,null,null,null,null,null,null,null,null,null,null,null,null,null,null,null,null,{"$f":"'I. Informacje ogólne o projekci'!$AH$2","v":"Ekspert od innowacyjności 1"},{"$f":"'I. Informacje ogólne o projekci'!$AI$2","v":"Ekspert od innowacyjności 2"},{"$f":"'I. Informacje ogólne o projekci'!$AJ$2","v":"Ekspert od innowacyjności 3"},{"$f":"'I. Informacje ogólne o projekci'!$AK$2","v":"Ekspert finansowy"},{"$f":"'I. Informacje ogólne o projekci'!$AL$2","v":"Uwagi MFiPR"}]
[1]
[2]
[3]
[4]
[5]
[6]
[7]
[8]
[9]
[10]
[11]
[12]
[13]
[14]
[15]
[16]
[17]
[18]
[19]
[20]
[21]
[22]
[23]
[24]
[25]
[26]
[27]
[28]
[29]
[30]
[31]
[32]
[33]
[34]
[35]
[36]
[37]
[38]
[39]
[40]
[41]
[42]
[43]
[44]
[45]
[46]
[47]
[48]
[49]
[50]
[51]
[52]
[53]
[54]
[55]
[56]
[57]
[58]
[59]
[60]
[61]
[62]
[63]
[64]
[65]
[66]
[67]
[68]
[69]
[70]
[71]
[72]
[73]
[74]
[75]
[76]
[77]
[78]
[79]
[80]
[81]
[82]
[83]
[84]
[85]
[86]
[87]
[88]
[89]
[90]
[91]
[92]
[93]
[94]
[95]
[96]
[97]
[98]
[99]
[100]
[101]
[102]
[103]
[104]
[105]
[106]
[107]
[108]
[109]
[110]
[111]
[112]
[113]
[114]
[115]
[116]
[117]
[118]
[119]
[120]
["WYDATKI RZECZYWIŚCIE PONOSZONE"]
["Numer zadania","Kategoria kosztów","Nazwa kosztu","Wydatki ogółem","Wydatki kwalifikowalne","Dofinansowanie"]
[1,null,{"$f":"C4","v":0}]
[2,null,{"$f":"C5","v":0}]
[3,null,0]
[4,null,0]
[5,null,0]
[6,null,0]
[7,null,0]
[8,null,0]
[9,null,0]
[10,null,0]
[11,null,0]
[12,null,0]
[13,null,0]
[14,null,0]
[15,null,0]
[16,null,0]
[17,null,0]
[18,null,0]
[19,null,0]
[20,null,0]
[21,null,0]
[22,null,0]
[23,null,0]
[24,null,0]
[25,null,0]
[26,null,0]
[27,null,0]
[28,null,0]
[29,null,0]
[30,null,0]
[31,null,0]
[32,null,0]
[33,null,0]
[34,null,0]
[35,null,0]
[36,null,0]
[37,null,0]
[38,null,0]
[39,null,0]
[40,null,0]
[41,null,0]
[42,null,0]
[43,null,0]
[44,null,0]
[45,null,0]
[46,null,0]
[47,null,0]
[48,null,0]
[49,null,0]
[50,null,0]
[51,null,0]
[52,null,0]
[53,null,0]
[54,null,0]
[55,null,0]
[56,null,0]
[57,null,0]
[58,null,0]
[59,null,0]
[60,null,0]
[61,null,0]
[62,null,0]
[63,null,0]
[64,null,0]
[65,null,0]
[66,null,{"$f":"C69","v":0}]
[67,null,0]
[68,null,0]
[69,null,0]
[70,null,0]
[71,null,0]
[72,null,0]
[73,null,0]
[74,null,0]
[75,null,0]
[76,null,0]
[77,null,0]
[78,null,0]
[79,null,0]
[80,null,0]
[81,null,0]
[82,null,0]
[83,null,0]
[84,null,0]
[85,null,0]
[86,null,0]
[87,null,0]
[88,null,0]
[89,null,0]
[90,null,0]
[91,null,0]
[92,null,0]
[93,null,0]
[94,null,0]
[95,null,0]
[96,null,0]
[97,null,0]
[98,null,0]
[99,null,0]
[100,null,0]
[101,null,0]
[102,null,0]
[103,null,0]
[104,null,0]
[105,null,0]
[106,null,0]
[107,null,0]
[108,null,0]
[109,null,0]
[110,null,0]
[111,null,0]
[112,null,0]
[113,null,0]
[114,null,0]
[115,null,0]
[116,null,0]
[117,null,0]
[118,null,0]
[119,null,0]
[120,null,{"$f":"C123","v":0}]
["Razem:",null,null,{"$f":"SUM(D126:D245)","v":0},{"$f":"SUM(E126:E245)","v":0},{"$f":"SUM(F126:F245)","v":0}]
[null,null,null,{"$f":"IF(D246='Fiszka projektu'!$K$60,\" \",\"SUMA WPROWADZONYCH KWOT NIEZGODNA Z CZ. V ASPEKTY FINANSOWE\")","v":" "},{"$f":"IF(E246='Fiszka projektu'!$K$62,\" \",\"SUMA WPROWADZONYCH KWOT NIEZGODNA Z CZ. V ASPEKTY FINANSOWE\")","v":" "},{"$f":"IF(F246='Fiszka projektu'!$K$64,\" \",\"SUMA WPROWADZONYCH KWOT NIEZGODNA Z CZ. V ASPEKTY FINANSOWE\")","v":" "}]
["WYDATKI ROZLICZANE RYCZAŁTOWO"]
["Numer zadania","Rodzaj ryczałtu","Nazwa ryczałtu","Wydatki ogółem","Wydatki kwalifikowalne","Dofinansowanie","Liczba stawek","Nazwa wskaźnika 1","Wartość wskaźnika 1","Nazwa wskaźnika 2","Wartość wskaźnika 2","Nazwa wskaźnika 3","Wartość wskaźnika 3","Nazwa wskaźnika 4","Wartość wskaźnika 4","Nazwa wskaźnika 5","Wartość wskaźnika 5","Nazwa wskaźnika 6","Wartość wskaźnika 6","Nazwa wskaźnika 7","Wartość wskaźnika 7","Nazwa wskaźnika 8","Wartość wskaźnika 8","Nazwa wskaźnika 9","Wartość wskaźnika 9","Nazwa wskaźnika 10","Wartość wskaźnika 10"]
[]
[]
[]
[]
[]
["KATEGORIE KOSZTÓW PODLEGAJĄCYCH LIMITOM"]
["Nazwa kategorii",null,"Wydatki kwalifikowalne"]
["wydatki poniesione na zakup gruntów",null,0]
["wkład rzeczowy",null,0]
["cross-financing",null,0]

{"sheet":"XI. Deklaracja wnioskodawcy","index":15,"n_rows":55,"n_cols":17,"rows_kept":55,"cut":false,"hidden":false,"merged":[[54,1,54,32],[51,1,51,32],[52,1,52,32],[53,1,53,32],[35,1,35,32],[25,1,25,32],[28,1,28,32],[29,1,29,32],[30,1,30,32],[31,1,31,32],[32,1,32,32],[33,1,33,32],[34,1,34,32],[48,16,48,30],[36,1,36,32],[37,1,37,32],[38,1,38,32],[23,1,23,32],[39,1,39,32],[12,1,12,32],[13,1,13,32],[24,1,24,32],[26,1,26,32],[27,1,27,32],[6,1,6,32],[14,1,14,32],[20,1,20,32],[17,1,17,32],[18,1,18,32],[7,1,7,32],[8,1,8,32],[9,1,9,32],[11,1,11,32],[10,1,10,32],[9,0,10,0],[40,1,40,32],[41,1,41,32],[48,3,48,12],[0,0,0,32],[1,1,1,32],[2,1,2,32],[4,1,4,32],[5,1,5,32],[3,1,3,32],[15,1,15,32],[16,1,16,32],[19,1,19,32],[43,0,47,32],[21,1,21,32],[22,1,22,32]]}
["XI. DEKLARACJA WNIOSKODAWCY:"]
["1.","Oświadczam, że jestem świadomy skutków niezachowania wskazanej w Regulaminie Konkursu formy komunikacji z Instytucją Zarządzającą w trakcie konkursu. "]
["2.","Oświadczam, że jestem świadomy odpowiedzialności karnej za podanie fałszywych danych lub złożenie fałszywych oświadczeń."]
[null,"Zgodnie z art. 297 § 1 kodeksu karnego: „Kto, w celu uzyskania dla siebie lub kogo innego, od banku lub jednostki organizacyjnej prowadzącej podobną działalność gospodarczą na podstawie ustawy albo od organu lub instytucji dysponujących środkami publicznymi - kredytu, pożyczki pieniężnej, poręczenia, gwarancji, akredytywy, dotacji, subwencji, potwierdzenia przez bank zobowiązania wynikającego z poręczenia lub z gwarancji lub podobnego świadczenia pieniężnego na określony cel gospodarczy, elektronicznego instrumentu płatniczego lub zamówienia publicznego, przedkłada podrobiony, przerobiony, poświadczający nieprawdę albo nierzetelny dokument albo nierzetelne, pisemne oświadczenie dotyczące okoliczności o istotnym znaczeniu dla uzyskania wymienionego wsparcia finansowego, instrumentu płatniczego lub zamówienia, podlega karze pozbawienia wolności od 3 miesięcy do lat 5”."]
["3.","Oświadczam, że zapoznałem/zapoznałam się z Regulaminem Konkursu i akceptuję jego zasady.\n"]
["4.","Oświadczam, iż informacje w niniejszym wniosku są zgodne ze stanem faktycznym i prawnym oraz że jestem świadomy(a) odpowiedzialności karnej za składanie fałszywych oświadczeń. \n"]
["5.","Oświadczam, iż w przypadku otrzymania dofinansowania na realizację projektu nie naruszę zasady zakazu podwójnego finansowania określonej w wytycznych w zakresie kwalifikowalności wydatków w ramach Europejskiego Funduszu Rozwoju Regionalnego, Europejskiego Funduszu Społecznego oraz Funduszu Spójności na lata 2014-2020. "]
["6.","Oświadczam, że projekt jest zgodny z właściwymi przepisami prawa unijnego i krajowego, w szczególności dotyczącymi zamówień publicznych oraz pomocy publicznej i pomocy de minimis.\n"]
["7.","Oświadczam, że Wnioskodawca zapewni wystarczające środki finansowe gwarantujące płynną i terminową realizację projektu przedstawionego w niniejszym wniosku.\n"]
["8.","Oświadczam, że Wnioskodawca (wybierz z listy rowijanej): "]
[]
["9.","Oświadczam, że Wnioskodawca oraz jednostka gospodarcza13, w skład której wchodzi Wnioskodawca (jeśli dotyczy) nie pozostają pod zarządem komisarycznym, nie znajdują się w toku likwidacji lub postępowania upadłościowego."]
["10.","Oświadczam, że nie zalegam w opłacaniu składek na ubezpieczenie społeczne, ubezpieczenie zdrowotne, Fundusz Pracy i Fundusz Gwarantowanych Świadczeń Pracowniczych oraz podatków i innych należności publicznoprawnych."]
["11.","Zobowiązuję się do zapewnienia trwałości i utrzymania rezultatów projektu przez okres minimum 5 lat  lub 3 lat w przypadku MSP (trwałość operacji rozumiana zgodnie z art. 71 Rozporządzenia Parlamentu Europejskiego i Rady (UE) nr 1303/2013 z dnia 17 grudnia 2013 r.)."]
["12.","Zobowiązuję się do przedkładania do Głównego Urzędu Statystycznego  Deklaracji GUS PNT-01 za każdy rok realizacji i trwałości projektu."]
["13.","Oświadczam, że przy określaniu statusu przedsiębiorstwa uwzględniłem istniejące powiązania, partnerstwo z innymi przedsiębiorstwami, łączenie lub podział przedsiębiorstwa."]
["14.","Oświadczam, że nie podlegam wykluczeniu z ubiegania się o dofinansowanie na podstawie art. 14 ust. 16 rozporządzenia Komisji (UE) nr  651/2014 z dnia 17 czerwca 2014 r. uznające niektóre rodzaje pomocy za zgodne z rynkiem wewnętrznym w zastosowaniu art. 107 i 108 Traktatu (Dz. Urz. UE L 156 z 20.06.2017 r., str. 1).\n"]
["15.","Oświadczam, że przedmiot projektu nie dotyczy rodzajów działalności wykluczonych \nz możliwości uzyskania dofinansowania, o których mowa:\n- w art. 1 Rozporządzenia Komisji (UE) Nr 651/2014 z dnia 17 czerwca 2014 r. uznającego niektóre rodzaje pomocy za zgodne z rynkiem wewnętrznym w zastosowaniu art. 107 i 108 Traktatu; \n- art. 1 ust. 1 rozporządzenia Komisji Europejskiej (UE) nr 1407/2013 z dnia 18 grudnia 2013 r. w sprawie stosowania art. 107 i 108 Traktatu o funkcjonowaniu Unii europejskiej do pomocy de minimis);\n- w art. 3 ust 3 rozporządzenia Parlamentu Europejskiego i Rady (UE) Nr 1301/2013 z dnia 17 grudnia 2013 r. w sprawie Europejskiego Funduszu Rozwoju Regionalnego i przepisów szczególnych dotyczących celu \"Inwestycje na rzecz wzrostu i zatrudnienia\" oraz w sprawie uchylenia rozporządzenia (WE) nr 1080/2006 (Dz. Urz. L 347 z 20.12.2013 r., str. 289).\n"]
["16.","Oświadczam, że projekt nie został zakończony w rozumieniu art. 65 ust. 6 Rozporządzenia Parlamentu Europejskiego i Rady (UE) nr 1303/2013 z dnia 17 grudnia 2013 r. "]
["17.","Oświadczam, iż uzyskanie wsparcia w ramach projektu objętego niniejszym wnioskiem \no dofinansowanie nie spowoduje utraty więcej niż 100 miejsc pracy w istniejących lokalizacjach wnioskodawcy na terytorium UE (dotyczy przedsiębiorstw innych niż MSP).\n"]
["18.","Oświadczam, że w ciągu dwóch lat poprzedzających złożenie niniejszego wniosku \no dofinansowanie nie przeniosłem tej samej lub podobnej działalności lub jej części z obszaru EOG do zakładu, w którym ma zostać dokonana inwestycja początkowa,  której dotyczy wniosek o pomoc, oraz zobowiązuję się, że nie dokonam takiego przeniesienia przez okres dwóch lat od zakończenia inwestycji początkowej, której dotyczy niniejszy wniosek o dofinansowanie .\n"]
["19.","Oświadczam, że wartość pomocy de minimis brutto łącznie z wartością innej pomocy de minimis otrzymanej przeze mnie jako jednego przedsiębiorcę w rozumieniu art. 2 ust. 2 rozporządzenia Komisji (UE) nr 1407/2013 z dnia 18 grudnia 2013 r. w sprawie stosowania art. 107 i 108 Traktatu o funkcjonowaniu Unii Europejskiej do pomocy de minimis (Dz. U. UE. L. z 2013 r. Nr 352, str. 1), w okresie bieżącego roku i dwóch poprzednich lat podatkowych nie przekracza kwoty stanowiącej równowartość 200 000 euro (albo 100 000 euro w przypadku przedsiębiorcy prowadzącego działalność w sektorze drogowego transportu towarów) – dotyczy przypadku, kiedy w ramach projektu przewidziane zostały wydatki kwalifikowalne objęte pomocą de minimis (w przypadku ubiegania się o pomoc de minimis)."]
["20.","Oświadczam, że realizacja projektu nie rozpoczęła się przed dniem ani w dniu złożenia wniosku o dofinansowanie.\n"]
["21.","Oświadczam, że projekt nie stanowi elementu sztucznie podzielonego większego projektu, \no którym mowa w art. 4 ust. 2 Rozporządzenia komisji (UE) nr 651/2014 z dnia 17 czerwca 2014 r. uznającego niektóre rodzaje pomocy za zgodne z rynkiem wewnętrznym \nw zastosowaniu art. 107 i 108 Traktatu.\n"]
["22.","Oświadczam, że projekt nie obejmuje przedsięwzięć będących częścią operacji, które zostały objęte lub powinny były zostać objęte procedurą odzyskiwania zgodnie z art. 71 Rozporządzenia Parlamentu Europejskiego i Rady (UE) nr 1303/2013 z dnia 17 grudnia 2013 r.  w następstwie przeniesienia działalności produkcyjnej poza obszar objęty programem."]
["23.","Oświadczam, iż realizowany przeze mnie projekt jest/będzie zgodny z planami zagospodarowania przestrzennego (dotyczy sytuacji, gdy Wnioskodawca oczekuje na wydanie decyzji)."]
["24.","Oświadczam, że projekt (wybierz z listy rozwijanej):"]
[]
["25.","Oświadczam, że projekt jest zgodny z zasadami horyzontalnymi wymienionymi w art. 7 i 8 rozporządzenia Parlamentu Europejskiego i Rady (UE) nr 1303/2013 z dnia 17 grudnia 2013 r. ustanawiającego wspólne przepisy dotyczące Europejskiego Funduszu Rozwoju Regionalnego, Europejskiego Funduszu Społecznego, Funduszu Spójności, Europejskiego Funduszu Rolnego na rzecz Rozwoju Obszarów Wiejskich oraz Europejskiego Funduszu Morskiego i Rybackiego oraz ustanawiającego przepisy ogólne dotyczące Europejskiego Funduszu Rozwoju Regionalnego, Europejskiego Funduszu Społecznego, Funduszu Spójności i Europejskiego Funduszu Morskiego i Rybackiego oraz uchylające rozporządzenie Rady (WE) nr 1083/2006 (Dz. Urz. UE L 347 z 20.12.2013, str. 320, z późn. zm.)."]
["26.","Wyrażam zgodę na udzielanie informacji na potrzeby ewaluacji przeprowadzanych przez Instytucję Zarządzającą lub inną uprawnioną instytucję lub jednostkę organizacyjną."]
["27.","Wyrażam zgodę na udostępnienie niniejszego wniosku o dofinansowanie podmiotom dokonującym ewaluacji, z zastrzeżeniem ochrony informacji w nim zawartych. "]
["28.","Oświadczam, że w przypadku konieczności poprawy dokumentacji aplikacyjnej nie wprowadzę innych zmian do wniosku o dofinansowanie, niż wskazane w wezwaniu."]
["29.","Wyrażam zgodę na kontrolę w miejscu realizacji projektu na potrzeby oceny przed podpisaniem umowy o dofinansowanie, przeprowadzaną przez Instytucję Zarządzającą, Instytucję Organizującą Konkurs lub inną upoważnioną instytucję lub jednostkę organizacyjną."]
["30.","Wyrażam zgodę na przekazywanie upoważnionemu przez MFiPR podmiotowi zewnętrznemu niezbędnych dokumentów oraz informacji w celu weryfikacji statusu MŚP oraz trudnej sytuacji, o której mowa art. 2 pkt 18 rozporządzenia Komisji (UE) nr 651/2014 z dnia 17 czerwca 2014 r. uznającego niektóre rodzaje pomocy za zgodne z rynkiem wewnętrznym w zastosowaniu art. 107 i 108 Traktatu. Ponadto wyrażam zgodę na przekazanie przez MFiPR upoważnionemu podmiotowi zewnętrznemu dokumentów, które zostały złożone na etapie ubiegania się o dofinansowanie w celu weryfikacji statusu MŚP oraz trudnej sytuacji."]
["31.","Przyjmuję do wiadomości, że:"]
["a)","Administratorem danych wnioskodawców/beneficjentów zbieranych i przetwarzanych w celu udziału tych osób w naborze wniosków o dofinansowanie w ramach Programu Operacyjnego Inteligentny Rozwój 2014-2020,  jest Minister Funduszy i Polityki Regionalnej z siedzibą przy ul. Wspólnej 2/4, 00-926 w Warszawie;"]
["b)","Osobom, które we wniosku o dofinansowanie podały swoje dane osobowe przysługuje prawo wglądu do treści tych danych oraz ich poprawienia. Podanie danych jest dobrowolne, ale konieczne do realizacji ww. celu w ramach wdrażania POIR;"]
["c)","Osobom, które we wniosku o dofinansowanie podały swoje dane osobowe przysługuje prawo do wniesienia sprzeciwu wobec dalszego przetwarzania;"]
["d)","Osobom, które we wniosku o dofinansowanie podały swoje dane osobowe przysługuje prawo wniesienia skargi do organu nadzorczego;"]
["e)","Dane osobowe są przetwarzane na podstawie przepisów ustawy z dnia 11 lipca 2014 r. \no zasadach realizacji programów w zakresie polityki spójności finansowanych w perspektywie finansowej 2014–2020;\n"]
["f)","Okres przetwarzania danych jest zgodny z art. 140 ust. 1 Rozporządzenia Parlamentu Europejskiego i Rady (UE) nr 1303/2013 z dnia 17 grudnia 2013 r. oraz jednocześnie nie krótszy niż 10 lat od dnia przyznania ostatniej pomocy w ramach programu pomocowego;"]
["g)","Dane kontaktowe do Inspektora Ochrony Danych - IOD@mfipr.gov.pl. "]
[]
[]
[]
[]
[]
[]
[null,null,null,"data",null,null,null,null,null,null,null,null,null,null,null,null,"czytelny/e podpis/y Wnioskodawcy 15 pieczęć imienna i firmowa"]
[]
[]
[13,"Jednostka gospodarcza – grupa przedsiębiorstw tworzących jeden podmiot gospodarczy w rozumieniu orzecznictwa europejskiego z zakresu prawa konkurencji."]
[14,"Zgodnie z art. 14 ust. 16 rozporządzenia KE nr 651/2014 „Beneficjent potwierdza, że nie dokonał przeniesienia do zakładu, w którym ma zostać dokonana inwestycja początkowa, której dotyczy wniosek o pomoc, w ciągu dwóch lat poprzedzających złożenie wniosku o pomoc, oraz zobowiązuje się, że nie dokona takiego przeniesienia przez okres dwóch lat od zakończenia inwestycji początkowej, której dotyczy wniosek o pomoc.”\n\"przeniesienie\" oznacza przeniesienie tej samej lub podobnej działalności lub jej części z zakładu na terenie jednej umawiającej się strony Porozumienia EOG (zakład pierwotny) do zakładu, w którym dokonuje się inwestycji objętej pomocą i który znajduje się na terenie innej umawiającej się strony Porozumienia EOG (zakład objęty pomocą). Przeniesienie występuje wówczas, gdy produkt lub usługa w zakładzie pierwotnym i zakładzie objętym pomocą służy przynajmniej częściowo do tych samych celów oraz zaspokaja wymagania lub potrzeby tej samej kategorii klientów oraz w jednym z pierwotnych zakładów beneficjenta w EOG nastąpiła likwidacja miejsc pracy związanych z taką samą lub podobną działalnością.\n"]
[15,"osoba/osoby upoważnione do reprezentowania Wnioskodawcy zgodnie z dokumentem rejestrowym"]
["*","niewłaściwe skreślić"]

{"sheet":"XII. Załączniki","index":16,"n_rows":33,"n_cols":38,"rows_kept":33,"cut":false,"hidden":false,"merged":[[13,1,13,32],[7,1,7,32],[8,1,8,32],[9,1,9,32],[10,1,10,32],[11,1,11,32],[12,1,12,32],[31,1,31,32],[32,1,32,32],[19,1,19,32],[20,1,20,32],[21,1,21,32],[9,33,9,36],[0,33,0,36],[2,1,2,32],[3,1,3,32],[4,1,4,32],[5,1,5,32],[0,0,1,32],[6,1,6,32]]}
["XII. ZAŁĄCZNIKI",null,null,null,null,null,null,null,null,null,null,null,null,null,null,null,null,null,null,null,null,null,null,null,null,null,null,null,null,null,null,null,null,"Uwagi/komentarze Ekspertów"]
[null,null,null,null,null,null,null,null,null,null,null,null,null,null,null,null,null,null,null,null,null,null,null,null,null,null,null,null,null,null,null,null,null,{"$f":"'I. Informacje ogólne o projekci'!$AH$2","v":"Ekspert od innowacyjności 1"},{"$f":"'I. Informacje ogólne o projekci'!$AI$2","v":"Ekspert od innowacyjności 2"},{"$f":"'I. Informacje ogólne o projekci'!$AJ$2","v":"Ekspert od innowacyjności 3"},{"$f":"'I. Informacje ogólne o projekci'!$AK$2","v":"Ekspert finansowy"},{"$f":"'I. Informacje ogólne o projekci'!$AL$2","v":"Uwagi MFiPR"}]
["1.","Formularz informacji przedstawianych przy ubieganiu się o pomoc inną niż pomoc w rolnictwie lub rybołówstwie, pomoc de minimis lub pomoc de minimis w rolnictwie lub rybołówstwie stanowiący załącznik do Rozporządzenia Rady Ministrów z dnia 2 lutego 2016 r. zmieniającego rozporządzenie w sprawie zakresu informacji przedstawianych przez podmiot ubiegający się o pomoc inną niż pomoc de minimis lub pomoc de minimis w rolnictwie lub rybołówstwie (Dz.U. 2016 poz. 238).\n"]
["2.","Formularz informacji przedstawianych przy ubieganiu się o pomoc de minimis stanowiący załącznik do Rozporządzenia Rady Ministrów z dnia 24 października 2014 r. zmieniającego rozporządzenie w sprawie zakresu informacji przedstawianych przez podmiot ubiegający się o pomoc de minimis (Dz.U. 2014 poz. 1543)  (dotyczy Wnioskodawców ubiegających się o pomoc de minimis).\n"]
["3.","Kompletne sprawozdania finansowe Wnioskodawcy oraz podmiotów powiązanych/partnerskich (w przypadku wykazania powiązań/partnerstwa) za okres 3 ostatnich zatwierdzonych okresów obrachunkowych albo skonsolidowane sprawozdania finansowe za ww. okresy sporządzane zgodnie z ustawą o rachunkowości/Międzynarodowymi Standardami Rachunkowości  (lub oświadczenie, że wnioskodawca/podmiot powiązany/w partnerstwie nie ma obowiązku sporządzania sprawozdań finansowych na podstawie ustawy o rachunkowości). W przypadku braku obowiązku, zgodnie z ustawą o rachunkowości, sporządzenia sprawozdań finansowych należy przedłożyć wyciągi z ksiąg rachunkowych/finansowych potwierdzające wskazane we wniosku dane."]
["4.","Model finansowy - wypełniony zgodnie z instrukcją wypełniania modelu finansowego."]
["5.","Oświadczenie dotyczące kwalifikowalności podatku VAT składane w związku z aplikowaniem do programu PO IR15  (obligatoryjne jedynie w przypadku, gdy wnioskodawca występuje o refundację części poniesionego w ramach projektu podatku VAT)."]
["6.","Oświadczenie o spełnianiu kryteriów MŚP16  (jeśli dotyczy)."]
["7.","Sprawozdanie o działalności badawczej i rozwojowej (B+R) - GUS PNT-01 za ostatni okres sprawozdawczy. (jeśli dotyczy)."]
["8.","Agenda badawcza – wg wzoru.",null,null,null,null,null,null,null,null,null,null,null,null,null,null,null,null,null,null,null,null,null,null,null,null,null,null,null,null,null,null,null,"Uwagi do Agendy nanoszone są bezpośrednio w Agendzie Badawczej."]
["9.","Pełnomocnictwo upoważniające przedstawiciela Wnioskodawcy do działania w jego imieniu i na jego rzecz podpisane przez osoby uprawnione do reprezentowania Przedsiębiorstwa (jeśli dotyczy)."]
["10.","Inne dokumenty: np. Formularz KRS-ZM – zmiana przedmiotu działalności gospodarczej, dokumenty potwierdzające zewnętrzne finansowanie (jeśli dotyczy)."]
["11.","Dokument potwierdzający nawiązanie współpracy z jednostką naukową/MSP/NGO (jeśli dotyczy)."]
["12.","Upoważnienie dla banku do przekazywania informacji objętych tajemnicą bankową, celem potwierdzenia autentyczności dokumentów potwierdzających zewnętrzne finansowanie (np. promesy kredytowej, pożyczkowej itd.) u podmiotów je wydających."]
[]
[]
[]
[]
[]
[]
[]
[]
[]
[]
[]
[]
[]
[]
[]
[]
[]
[15,"Wzór Oświadczenia o kwalifikowalności podatku VAT dostępny jest na stronie internetowej POIR wraz z ogłoszeniem o naborze "]
[16,"Wzór Oświadczenia o spełnianiu kryteriów MŚP dostępny jest na stronie internetowej POIR wraz z ogłoszeniem o naborze "]